Workbook

Sheet TAB2 var (4) (hidden)
B1: Nuova produzione Vita emessa nel 2015 | AB1: Nuova produzione Vita emessa nel 2015
B2: Settore polizze "individuali" | AB2: Settore polizze "individuali"
B3: Premi del lavoro diretto (importi in MIGLIAIA di Euro) | AB3: Premi del lavoro diretto - Variazioni (%) annue
B4: Dato mensile: | O4: Dato cumulato da inizio anno: | AB4: Dato mensile: | AO4: Dato cumulato da inizio anno:
B5: Gennaio | O5: Gennaio | Z5: Tabella 2. | AB5: Gennaio | AM5: Tabella 2. | AO5: Gennaio | AZ5: Tabella 2.
C7: Premi imponibili* raccolti da: | P7: Premi imponibili* raccolti da: | AC7: Premi imponibili* raccolti da: | AP7: Premi imponibili* raccolti da:
C8: Imprese italiane ed extra-U.E. | P8: Imprese italiane ed extra-U.E. | AC8: Imprese italiane ed extra-U.E. | AP8: Imprese italiane ed extra-U.E.
C9: Numero polizze/Adesioni | D9: Agenti | E9: Agenzie in Economia | F9: Sp. bancari e postali | G9: Promotori finanziari | H9: Altre forme (inclusi Broker) | I9: Imprese italiane ed extra-U.E. | P9: Numero polizze/Adesioni | Q9: Agenti | R9: Agenzie in Economia | S9: Sp. bancari e postali | T9: Promotori finanziari | U9: Altre forme (inclusi Broker) | V9: Imprese italiane ed extra-U.E. | X9: Imprese U.E. | Z9: Totale imprese | AC9: Numero polizze/Adesioni | AD9: Agenti | AE9: Agenzie in Economia | AF9: Sp. bancari e postali | AG9: Promotori finanziari | AH9: Altre forme (inclusi Broker) | AI9: Imprese italiane ed extra-U.E. | AK9: Imprese U.E. | AM9: Totale imprese | AP9: Numero polizze/Adesioni | AQ9: Agenti | AR9: Agenzie in Economia | AS9: Sp. bancari e postali | AT9: Promotori finanziari | AU9: Altre forme (inclusi Broker) | AV9: Imprese italiane ed extra-U.E. | AX9: Imprese U.E. | AZ9: Totale imprese
B10: Ramo I | C10: 289375 | D10: 731376.7777 | E10: 185449.5101 | F10: 5081311.76 | G10: 211363.1949 | H10: 40145.84248 | I10: 6249647.085 | O10: Ramo I | P10: 265295 | Q10: 734611.7238 | R10: 182213.5605 | S10: 5080822.103 | T10: 211363.1949 | U10: 40162.9002 | V10: 6249173.483 | X10: 0 | Z10: 6249173.483 | AB10: Ramo I | AC10: -0.007697688075 | AD10: 0.298226235 | AE10: 0.419432883 | AF10: 0.001425938375 | AG10: -0.1364598534 | AH10: 1.639735969 | AI10: 0.03672636247 | AK10: -1 | AM10: 0.03627989422 | AO10: Ramo I | AP10: -0.007697688075 | AQ10: 0.298226235 | AR10: 0.419432883 | AS10: 0.001425938375 | AT10: -0.1364598534 | AU10: 1.639735969 | AV10: 0.03672636247 | AX10: -1 | AZ10: 0.03627989422
B11: Ramo III | C11: 36972 | D11: 54517.47212 | E11: 22408.8253 | F11: 1031260.502 | G11: 675300.0294 | H11: 288.9778214 | I11: 1783775.806 | O11: Ramo III | P11: 36979 | Q11: 54517.47212 | R11: 22408.8253 | S11: 1031260.502 | T11: 675300.0294 | U11: 288.9778214 | V11: 1783775.806 | X11: 1001959 | Z11: 2785734.806 | AB11: Ramo III | AC11: 0.3464535392 | AD11: 0.8874754824 | AE11: 2.646347268 | AF11: 0.9696544965 | AG11: 0.8756946123 | AH11: -0.06277141299 | AI11: 0.94112612 | AK11: 0.1598345142 | AM11: 0.5625443742 | AO11: Ramo III | AP11: 0.3464535392 | AQ11: 0.8874754824 | AR11: 2.646347268 | AS11: 0.9696544965 | AT11: 0.8756946123 | AU11: -0.06277141299 | AV11: 0.94112612 | AX11: 0.1598345142 | AZ11: 0.5625443742
B12: - Unit classiche | C12: 34351 | D12: 54113.10385 | E12: 1753.934833 | F12: 920461.5886 | G12: 672283.8234 | H12: 288.9778214 | I12: 1648901.429 | O12: - Unit classiche | P12: 34357 | Q12: 54113.10385 | R12: 1753.934833 | S12: 920460.5852 | T12: 672283.8234 | U12: 288.9778214 | V12: 1648900.425 | X12: 936978 | Z12: 2585878.425 | AB12: - Unit classiche | AC12: 0.3048613749 | AD12: 0.9594605362 | AE12: 0.1557619127 | AF12: 1.097964867 | AG12: 0.8731326851 | AH12: -0.06277141299 | AI12: 0.9936148082 | AK12: 0.1897891598 | AM12: 0.6015530583 | AO12: - Unit classiche | AP12: 0.3048613749 | AQ12: 0.9594605362 | AR12: 0.1557619127 | AS12: 1.097964867 | AT12: 0.8731326851 | AU12: -0.06277141299 | AV12: 0.9936148082 | AX12: 0.1897891598 | AZ12: 0.6015530583
B13: - Unit protette | C13: 2481 | D13: 4.013580853 | E13: 20653.88707 | F13: 110796.9062 | G13: 187.6349049 | H13: 0 | I13: 131642.4418 | O13: - Unit protette | P13: 2482 | Q13: 4.013580853 | R13: 20653.88707 | S13: 110797.9096 | T13: 187.6349049 | U13: 0 | V13: 131643.4452 | X13: -261 | Z13: 131382.4452 | AB13: - Unit protette | AC13: 1.585416667 | AD13: -0.8262504975 | AE13: 3.462813286 | AF13: 0.3099860188 | AG13: -0.8321436185 | AH13: n.d. | AI13: 0.4570647035 | AK13: -0.4263736264 | AM13: 0.4615362721 | AO13: - Unit protette | AP13: 1.585416667 | AQ13: -0.8262504975 | AR13: 3.462813286 | AS13: 0.3099860188 | AT13: -0.8321436185 | AU13: n.d. | AV13: 0.4570647035 | AX13: -0.4263736264 | AZ13: 0.4615362721
B14: - Unit garantite(**) | C14: 138 | D14: 357.2086959 | E14: 1.003395213 | F14: 0 | G14: 2808.503202 | H14: 0 | I14: 3166.715293 | O14: - Unit garantite(**) | P14: 138 | Q14: 357.2086959 | R14: 1.003395213 | S14: 0 | T14: 2808.503202 | U14: 0 | V14: 3166.715293 | X14: 65242 | Z14: 68408.71529 | AB14: - Unit garantite(**) | AC14: -0.1636363636 | AD14: -0.7124775815 | AE14: n.d. | AF14: -1 | AG14: n.d. | AH14: n.d. | AI14: 1.538673287 | AK14: -0.1507159594 | AM14: -0.1237222684 | AO14: - Unit garantite(**) | AP14: -0.1636363636 | AQ14: -0.7124775815 | AR14: n.d. | AS14: -1 | AT14: n.d. | AU14: n.d. | AV14: 1.538673287 | AX14: -0.1507159594 | AZ14: -0.1237222684
B15: - Index linked | C15: 2 | D15: 43.14599417 | E15: 0 | F15: 2.006790426 | G15: 20.06790426 | H15: 0 | I15: 65.22068886 | O15: - Index linked | P15: 2 | Q15: 43.14599417 | R15: 0 | S15: 2.006790426 | T15: 20.06790426 | U15: 0 | V15: 65.22068886 | X15: 0 | Z15: 65.22068886 | AB15: - Index linked | AC15: -0.7777777778 | AD15: (…) | AE15: n.d. | AF15: -0.9919754246 | AG15: n.d. | AH15: n.d. | AI15: -0.7412793762 | AK15: n.d. | AM15: -0.7412793762 | AO15: - Index linked | AP15: -0.7777777778 | AQ15: (…) | AR15: n.d. | AS15: -0.9919754246 | AT15: n.d. | AU15: n.d. | AV15: -0.7412793762 | AX15: n.d. | AZ15: -0.7412793762
B16: Ramo IV | C16: 2167 | D16: 103.349707 | E16: 2.006790426 | F16: 766.5939429 | G16: 0 | H16: 0 | I16: 871.9504403 | O16: Ramo IV | P16: 2167 | Q16: 103.349707 | R16: 2.006790426 | S16: 766.5939429 | T16: 0 | U16: 0 | V16: 871.9504403 | X16: 0 | Z16: 871.9504403 | AB16: Ramo IV | AC16: -0.01945701357 | AD16: -0.2084373625 | AE16: 0.9981192792 | AF16: 0.9226235886 | AG16: n.d. | AH16: n.d. | AI16: 0.6442856569 | AK16: n.d. | AM16: 0.6442856569 | AO16: Ramo IV | AP16: -0.01945701357 | AQ16: -0.2084373625 | AR16: 0.9981192792 | AS16: 0.9226235886 | AT16: n.d. | AU16: n.d. | AV16: 0.6442856569 | AX16: n.d. | AZ16: 0.6442856569
B17: Ramo V | C17: 2027 | D17: 60743.53942 | E17: 21805.78477 | F17: 200928.888 | G17: 0 | H17: 5063.132246 | I17: 288541.3445 | O17: Ramo V | P17: 2027 | Q17: 60744.54281 | R17: 21805.78477 | S17: 200927.8846 | T17: 0 | U17: 5063.132246 | V17: 288541.3445 | X17: 0 | Z17: 288541.3445 | AB17: Ramo V | AC17: -0.2947112039 | AD17: 0.7928050606 | AE17: -0.4745761558 | AF17: 2.974959164 | AG17: -1 | AH17: (…) | AI17: 1.167443118 | AK17: n.d. | AM17: 1.167443118 | AO17: Ramo V | AP17: -0.2947112039 | AQ17: 0.7928050606 | AR17: -0.4745761558 | AS17: 2.974959164 | AT17: -1 | AU17: (…) | AV17: 1.167443118 | AX17: n.d. | AZ17: 1.167443118
B18: Ramo VI | C18: 3028 | D18: 3813.905205 | E18: 218.7401565 | F18: 3708.128285 | G18: 296.0015879 | H18: 0 | I18: 8036.775235 | O18: Ramo VI | P18: 3028 | Q18: 3813.905205 | R18: 218.7401565 | S18: 3708.128285 | T18: 296.0015879 | U18: 0 | V18: 8036.775235 | X18: 0 | Z18: 8036.775235 | AB18: Ramo VI | AC18: 0.4606849976 | AD18: 0.737952261 | AE18: -0.4298560172 | AF18: 0.3401473038 | AG18: -0.4254920201 | AH18: -1 | AI18: 0.3697447976 | AK18: n.d. | AM18: 0.3697447976 | AO18: Ramo VI | AP18: 0.4606849976 | AQ18: 0.737952261 | AR18: -0.4298560172 | AS18: 0.3401473038 | AT18: -0.4254920201 | AU18: -1 | AV18: 0.3697447976 | AX18: n.d. | AZ18: 0.3697447976
B19: Totale | C19: 333569 | D19: 850555.0441 | E19: 229884.8671 | F19: 6317975.872 | G19: 886959.2259 | H19: 45497.95255 | I19: 8330872.962 | O19: Totale | P19: 309496 | Q19: 853790.9937 | R19: 226648.9175 | S19: 6317485.212 | T19: 886959.2259 | U19: 45515.01027 | V19: 8330399.359 | X19: 1001959 | Z19: 9332358.359 | AB19: Totale | AC19: 0.02490942929 | AD19: 0.3531848491 | AE19: 0.284841662 | AF19: 0.1179656637 | AG19: 0.4484849037 | AH19: 1.900374036 | AI19: 0.1755713212 | AK19: 0.1563582688 | AM19: 0.1734779924 | AO19: Totale | AP19: 0.02490942929 | AQ19: 0.3531848491 | AR19: 0.284841662 | AS19: 0.1179656637 | AT19: 0.4484849037 | AU19: 1.900374036 | AV19: 0.1755713212 | AX19: 0.1563582688 | AZ19: 0.1734779924
B20: Forme pens. individuali | C20: 24543 | D20: 31210.60811 | E20: 14912.45966 | F20: 36462.96162 | G20: 5462.483541 | H20: 2516.515195 | I20: 90565.02812 | O20: Forme pens. individuali | P20: 24519 | Q20: 31218.63527 | R20: 14912.45966 | S20: 36428.84619 | T20: 5462.483541 | U20: 2516.515195 | V20: 90538.93985 | X20: 65446 | Z20: 155984.9398 | AB20: Forme pens. individuali | AC20: -0.05441573467 | AD20: 0.004223906166 | AE20: -0.0008731334322 | AF20: 0.2792354049 | AG20: 0.07212313781 | AH20: 0.1632504996 | AI20: 0.1075339991 | AK20: -0.1519463018 | AM20: -0.01847018716 | AO20: Forme pens. individuali | AP20: -0.05441573467 | AQ20: 0.004223906166 | AR20: -0.0008731334322 | AS20: 0.2792354049 | AT20: 0.07212313781 | AU20: 0.1632504996 | AV20: 0.1075339991 | AX20: -0.1519463018 | AZ20: -0.01847018716
B21: Forme di puro rischio | C21: 68172 | D21: 4051.709871 | E21: 349.1815342 | F21: 28863.6667 | G21: 570.9318763 | H21: 439.4871034 | I21: 34274.97709 | O21: Forme di puro rischio | P21: 44093 | Q21: 4043.682709 | R21: 349.1815342 | S21: 20794.3624 | T21: 570.9318763 | U21: 439.4871034 | V21: 26197.64562 | X21: 0 | Z21: 26197.64562 | AB21: Forme di puro rischio | AC21: 0.05372206954 | AD21: 0.1073185775 | AE21: 1.081872782 | AF21: 0.8174606717 | AG21: 0.6969102536 | AH21: 1.327596394 | AI21: 0.6595271746 | AK21: -1 | AM21: 0.439572608 | AO21: Forme di puro rischio | AP21: 0.05372206954 | AQ21: 0.1073185775 | AR21: 1.081872782 | AS21: 0.8174606717 | AT21: 0.6969102536 | AU21: 1.327596394 | AV21: 0.6595271746 | AX21: -1 | AZ21: 0.439572608
B22: Altre forme | C22: 240856 | D22: 815292.7261 | E22: 214623.2259 | F22: 6252649.244 | G22: 880925.8104 | H22: 42541.95025 | I22: 8206032.957 | O22: Altre forme | P22: 240885 | Q22: 818528.6757 | R22: 211387.2764 | S22: 6260262.003 | T22: 880925.8104 | U22: 42559.00797 | V22: 8213662.774 | X22: 936513 | Z22: 9150175.774 | AB22: Altre forme | AC22: 0.02854837126 | AD22: 0.3728861429 | AE22: 0.3104493587 | AF22: 0.1157208214 | AG22: 0.4515067722 | AH22: 2.190176512 | AI22: 0.1752739995 | AK22: 0.1901386972 | AM22: 0.1767783102 | AO22: Altre forme | AP22: 0.02854837126 | AQ22: 0.3728861429 | AR22: 0.3104493587 | AS22: 0.1157208214 | AT22: 0.4515067722 | AU22: 2.190176512 | AV22: 0.1752739995 | AX22: 0.1901386972 | AZ22: 0.1767783102
B23: Totale | C23: 333571 | D23: 850555.0441 | E23: 229884.8671 | F23: 6317975.872 | G23: 886959.2259 | H23: 45497.95255 | I23: 8330872.962 | O23: Totale | P23: 309497 | Q23: 853790.9937 | R23: 226648.9175 | S23: 6317485.212 | T23: 886959.2259 | U23: 45515.01027 | V23: 8330399.359 | X23: 1001959 | Z23: 9332358.359 | AB23: Totale | AC23: 0.02491274083 | AD23: 0.3531848491 | AE23: 0.284841662 | AF23: 0.1179656637 | AG23: 0.4484849037 | AH23: 1.900374036 | AI23: 0.1755713212 | AK23: 0.1563582688 | AM23: 0.1734779924 | AO23: Totale | AP23: 0.02491274083 | AQ23: 0.3531848491 | AR23: 0.284841662 | AS23: 0.1179656637 | AT23: 0.4484849037 | AU23: 1.900374036 | AV23: 0.1755713212 | AX23: 0.1563582688 | AZ23: 0.1734779924
J25: 0
B27: Febbraio | O27: Febbraio | Z27: Tabella 2. | AB27: Febbraio | AM27: Tabella 2. | AO27: Febbraio | AZ27: Tabella 2.
C29: Premi imponibili* raccolti da: | P29: Premi imponibili* raccolti da: | AC29: Premi imponibili* raccolti da: | AP29: Premi imponibili* raccolti da:
C30: Imprese italiane ed extra-U.E. | P30: Imprese italiane ed extra-U.E. | AC30: Imprese italiane ed extra-U.E. | AP30: Imprese italiane ed extra-U.E.
C31: Numero polizze/Adesioni | D31: Agenti | E31: Agenzie in Economia | F31: Sp. bancari e postali | G31: Promotori finanziari | H31: Altre forme (inclusi Broker) | I31: Imprese italiane ed extra-U.E. | P31: Numero polizze/Adesioni | Q31: Agenti | R31: Agenzie in Economia | S31: Sp. bancari e postali | T31: Promotori finanziari | U31: Altre forme (inclusi Broker) | V31: Imprese italiane ed extra-U.E. | X31: Imprese U.E. | Z31: Totale imprese | AC31: Numero polizze/Adesioni | AD31: Agenti | AE31: Agenzie in Economia | AF31: Sp. bancari e postali | AG31: Promotori finanziari | AH31: Altre forme (inclusi Broker) | AI31: Imprese italiane ed extra-U.E. | AK31: Imprese U.E. | AM31: Totale imprese | AP31: Numero polizze/Adesioni | AQ31: Agenti | AR31: Agenzie in Economia | AS31: Sp. bancari e postali | AT31: Promotori finanziari | AU31: Altre forme (inclusi Broker) | AV31: Imprese italiane ed extra-U.E. | AX31: Imprese U.E. | AZ31: Totale imprese
B32: Ramo I | C32: 320356 | D32: 718445.0202 | E32: 161367.0216 | F32: 5463224.046 | G32: 321495.8535 | H32: 39081.24016 | I32: 6703613.182 | O32: Ramo I | P32: 587461 | Q32: 1457794.776 | R32: 339395.4207 | S32: 10686378.76 | T32: 532859.0483 | U32: 79893.33706 | V32: 13096321.35 | X32: 0 | Z32: 13096321.35 | AB32: Ramo I | AC32: 0.1411417581 | AD32: 0.1333199787 | AE32: 0.2762706834 | AF32: 0.07663572685 | AG32: -0.01643329796 | AH32: 1.52917112 | AI32: 0.08505893412 | AK32: -1 | AM32: 0.08338211403 | AO32: Ramo I | AP32: 0.0687482717 | AQ32: 0.2108249534 | AR32: 0.3493354759 | AS32: 0.03951720784 | AT32: -0.06782682584 | AU32: 1.583570175 | AV32: 0.06144616122 | AX32: -1 | AZ32: 0.06038355921
B33: Ramo III | C33: 47877 | D33: 73653.22223 | E33: 26812.72689 | F33: 1470326.179 | G33: 1215801.939 | H33: 302.0219592 | I33: 2786896.089 | O33: Ramo III | P33: 84923 | Q33: 128170.6943 | R33: 49221.55218 | S33: 2501650.898 | T33: 1891101.968 | U33: 590.9997806 | V33: 4570736.113 | X33: 2582113 | Z33: 7152849.113 | AB33: Ramo III | AC33: 0.5929826893 | AD33: 0.7858701974 | AE33: 4.76108582 | AF33: 1.500592649 | AG33: 2.200756667 | AH33: -0.02364626128 | AI33: 1.74828994 | AK33: 1.019402264 | AM33: 1.430824645 | AO33: Ramo III | AP33: 0.4753565782 | AQ33: 0.8277198228 | AR33: 3.557692795 | AS33: 1.250513655 | AT33: 1.555975202 | AU33: -0.04317702807 | AV33: 1.364570105 | AX33: 0.5683702358 | AZ33: 0.9983506681
B34: - Unit classiche | C34: 44108 | D34: 73223.76908 | E34: 2656.990525 | F34: 1322384.013 | G34: 1211806.419 | H34: 300.0151687 | I34: 2610371.207 | O34: - Unit classiche | P34: 78532 | Q34: 127336.8729 | R34: 4410.925357 | S34: 2242234.103 | T34: 1884090.243 | U34: 588.9929901 | V34: 4258661.137 | X34: 2451711 | Z34: 6710372.137 | AB34: - Unit classiche | AC34: 0.6423154138 | AD34: 0.7897529522 | AE34: 0.5239112475 | AF34: 1.687684335 | AG34: 2.193810011 | AH34: -0.02379466586 | AI34: 1.854768144 | AK34: 1.14703777 | AM34: 1.546494539 | AO34: - Unit classiche | AP34: 0.4753888931 | AQ34: 0.8581428726 | AR34: 0.3525919851 | AS34: 1.409634484 | AT34: 1.551818929 | AU34: -0.04331483123 | AV34: 1.445725736 | AX34: 0.6421208092 | AZ34: 1.074764185
B35: - Unit protette | C35: 3640 | D35: 22.07469469 | E35: 24155.73636 | F35: 147940.1591 | G35: 1112.765291 | H35: 2.006790426 | I35: 173232.7422 | O35: - Unit protette | P35: 6122 | Q35: 26.08827554 | R35: 44809.62343 | S35: 259412.7814 | T35: 1300.400196 | U35: 2.006790426 | V35: 305550.9001 | X35: -82 | Z35: 305468.9001 | AB35: - Unit protette | AC35: 0.1883774078 | AD35: -0.04437773601 | AE35: (…) | AF35: 0.5444069777 | AG35: 1.61928402 | AH35: -0.0009403603778 | AI35: 0.7463165517 | AK35: 0.07185628743 | AM35: 0.7451874061 | AO35: - Unit protette | AP35: 0.5217499379 | AQ35: -0.4353141167 | AR35: 4.946422149 | AS35: 0.4347476694 | AT35: -0.1570434291 | AU35: -0.0009403603778 | AV35: 0.6087241188 | AX35: -0.7152777778 | AZ35: 0.6107347764
B36: - Unit garantite(**) | C36: 129 | D36: 407.3784566 | E36: 0 | F36: 2.006790426 | G36: 2882.754447 | H36: 0 | I36: 3292.139694 | O36: - Unit garantite(**) | P36: 267 | Q36: 764.5871524 | R36: 1.003395213 | S36: 2.006790426 | T36: 5691.257649 | U36: 0 | V36: 6458.854987 | X36: 130484 | Z36: 136942.855 | AB36: - Unit garantite(**) | AC36: -0.05147058824 | AD36: 0.3298957826 | AE36: -1 | AF36: n.d. | AG36: n.d. | AH36: n.d. | AI36: (…) | AK36: -0.1507159594 | AM36: -0.1114387508 | AO36: - Unit garantite(**) | AP36: -0.1129568106 | AQ36: -0.5063012676 | AR36: -0.6669801201 | AS36: -0.6003761442 | AT36: n.d. | AU36: n.d. | AV36: 3.148998 | AX36: -0.1507159594 | AZ36: -0.1176176321
B37: - Index linked | C37: 0 | D37: 0 | E37: 0 | F37: 0 | G37: 0 | H37: 0 | I37: 0 | O37: - Index linked | P37: 2 | Q37: 43.14599417 | R37: 0 | S37: 2.006790426 | T37: 20.06790426 | U37: 0 | V37: 65.22068886 | X37: 0 | Z37: 65.22068886 | AB37: - Index linked | AC37: n.d. | AD37: n.d. | AE37: n.d. | AF37: n.d. | AG37: n.d. | AH37: n.d. | AI37: n.d. | AK37: n.d. | AM37: n.d. | AO37: - Index linked | AP37: -0.7777777778 | AQ37: (…) | AR37: n.d. | AS37: -0.9919754246 | AT37: n.d. | AU37: n.d. | AV37: -0.7412793762 | AX37: n.d. | AZ37: -0.7412793762
B38: Ramo IV | C38: 2085 | D38: 240.8148512 | E38: 3.01018564 | F38: 586.9861997 | G38: 0 | H38: 3.01018564 | I38: 833.8214222 | O38: Ramo IV | P38: 4253 | Q38: 348.178139 | R38: 5.016976066 | S38: 1353.580143 | T38: 0 | U38: 3.01018564 | V38: 1709.785443 | X38: 0 | Z38: 1709.785443 | AB38: Ramo IV | AC38: -0.2721563154 | AD38: 0.5428515954 | AE38: 0.4985894594 | AF38: 0.007672222722 | AG38: n.d. | AH38: n.d. | AI38: 0.1273172961 | AK38: n.d. | AM38: 0.1273172961 | AO38: Ramo IV | AP38: -0.1621355398 | AQ38: 0.2037281075 | AR38: 0.6650993994 | AS38: 0.3794590111 | AT38: n.d. | AU38: n.d. | AV38: 0.3425848785 | AX38: n.d. | AZ38: 0.3425848785
B39: Ramo V | C39: 1674 | D39: 48202.10265 | E39: 17287.49613 | F39: 176235.3318 | G39: 0 | H39: 50.16976066 | I39: 241775.1004 | O39: Ramo V | P39: 3713 | Q39: 108946.6455 | R39: 39093.2809 | S39: 432677.0601 | T39: 0 | U39: 5113.302006 | V39: 585830.2884 | X39: 0 | Z39: 585830.2884 | AB39: Ramo V | AC39: -0.3715989564 | AD39: 0.4142869022 | AE39: -0.8652470836 | AF39: 0.8991589273 | AG39: n.d. | AH39: -0.7621286572 | AI39: 0.04454563717 | AK39: n.d. | AM39: 0.04454563717 | AO39: Ramo V | AP39: -0.3318337232 | AQ39: 0.6029894275 | AR39: -0.7697573459 | AS39: 1.507172813 | AT39: -1 | AU39: (…) | AV39: 0.4023936001 | AX39: n.d. | AZ39: 0.4023936001
B40: Ramo VI | C40: 3514 | D40: 1195.043699 | E40: 56.19013194 | F40: 2773.925199 | G40: 409.385247 | H40: 0 | I40: 4434.544277 | O40: Ramo VI | P40: 7095 | Q40: 5008.948904 | R40: 274.9302884 | S40: 6482.053485 | T40: 705.3868349 | U40: 0 | V40: 12471.31951 | X40: 0 | Z40: 12471.31951 | AB40: Ramo VI | AC40: 1.267001115 | AD40: -0.7369849622 | AE40: -0.9184441111 | AF40: 0.2237214608 | AG40: 0.110671207 | AH40: -1 | AI40: -0.4373874821 | AK40: n.d. | AM40: -0.4373874821 | AO40: Ramo VI | AP40: 0.8347556245 | AQ40: -0.2566245758 | AR40: -0.7436869464 | AS40: 0.2877185074 | AT40: -0.2018875833 | AU40: -1 | AV40: -0.09295601548 | AX40: n.d. | AZ40: -0.09295601548
B41: Totale | C41: 375506 | D41: 841736.2036 | E41: 205526.4449 | F41: 7113146.469 | G41: 1537707.178 | H41: 39436.44206 | I41: 9737552.737 | O41: Totale | P41: 687445 | Q41: 1700269.243 | R41: 427990.201 | S41: 13628542.36 | T41: 2424666.404 | U41: 85600.64903 | V41: 18267068.85 | X41: 2582113 | Z41: 20849181.85 | AB41: Totale | AC41: 0.1819808043 | AD41: 0.1787141574 | AE41: -0.2159380667 | AF41: 0.2350922143 | AG41: 1.174715664 | AH41: 1.46784348 | AI41: 0.3044187028 | AK41: 0.9945068053 | AM41: 0.3694279142 | AO41: Totale | AP41: 0.1056916715 | AQ41: 0.2603117231 | AR41: -0.01201443743 | AS41: 0.1778882906 | AT41: 0.8376758309 | AU41: 1.680381688 | AV41: 0.2423234698 | AX41: 0.5566797751 | AZ41: 0.2741906423
B42: Forme pens. individuali | C42: 24788 | D42: 19111.66863 | E42: 14868.31027 | F42: 29962.92529 | G42: 3939.329607 | H42: 855.8961168 | I42: 68738.12991 | O42: Forme pens. individuali | P42: 49828 | Q42: 50330.30389 | R42: 29780.76993 | S42: 65591.0621 | T42: 9401.813148 | U42: 3372.411312 | V42: 158476.3604 | X42: 130892 | Z42: 289368.3604 | AB42: Forme pens. individuali | AC42: -0.1015938376 | AD42: -0.4140027421 | AE42: -0.2355640948 | AF42: 0.1727063328 | AG42: -0.2045613171 | AH42: -0.2087299233 | AI42: -0.1811363503 | AK42: -0.1540291099 | AM42: -0.1680564325 | AO42: Forme pens. individuali | AP42: -0.07898190422 | AQ42: -0.2099008053 | AR42: -0.1336637712 | AS42: 0.229575055 | AT42: -0.06425541551 | AU42: 0.03925702531 | AV42: -0.03786783473 | AX42: -0.1529889862 | AZ42: -0.09359300161
B43: Forme di puro rischio | C43: 83377 | D43: 4903.592407 | E43: 393.3309236 | F43: 28259.62278 | G43: 905.0624823 | H43: 418.4158039 | I43: 34880.0244 | O43: Forme di puro rischio | P43: 103263 | Q43: 8926.203816 | R43: 741.5090625 | S43: 33753.21158 | T43: 1475.994359 | U43: 846.8655599 | V43: 45743.78437 | X43: 0 | Z43: 45743.78437 | AB43: Forme di puro rischio | AC43: 0.3085786319 | AD43: 0.05271204123 | AE43: 1.396517295 | AF43: -0.4174520183 | AG43: 1.316585591 | AH43: 0.04540776723 | AI43: -0.2975897145 | AK43: -1 | AM43: -0.4748377618 | AO43: Forme di puro rischio | AP43: 0.186085778 | AQ43: 0.07676696803 | AR43: 1.237288102 | AS43: 0.001978689283 | AT43: 1.029857362 | AU43: 0.4638998886 | AV43: 0.04884582408 | AX43: -1 | AZ43: -0.1745599122
B44: Altre forme | C44: 267342 | D44: 817720.9426 | E44: 190264.8037 | F44: 7054923.92 | G44: 1532862.786 | H44: 38162.13014 | I44: 9633934.583 | O44: Altre forme | P44: 534356 | Q44: 1641012.735 | R44: 397467.922 | S44: 13529198.08 | T44: 2413788.596 | U44: 81381.37216 | V44: 18062848.71 | X44: 2451221 | Z44: 20514069.71 | AB44: Altre forme | AC44: 0.1911750977 | AD44: 0.2079631852 | AE44: -0.2154415795 | AF44: 0.2378283178 | AG44: 1.184370652 | AH44: 1.628135472 | AI44: 0.3120165784 | AK44: 1.147002335 | AM44: 0.38374728 | AO44: Altre forme | AP44: 0.1119212602 | AQ44: 0.2849572446 | AR44: -0.002559438999 | AS44: 0.1781642207 | AT44: 0.8444938218 | AU44: 1.894849456 | AV44: 0.2460894037 | AX44: 0.6424768811 | AZ44: 0.2830899736
B45: Totale | C45: 375507 | D45: 841736.2036 | E45: 205526.4449 | F45: 7113146.469 | G45: 1537707.178 | H45: 39436.44206 | I45: 9737552.737 | O45: Totale | P45: 687447 | Q45: 1700269.243 | R45: 427990.201 | S45: 13628542.36 | T45: 2424666.404 | U45: 85600.64903 | V45: 18267068.85 | X45: 2582113 | Z45: 20849181.85 | AB45: Totale | AC45: 0.1819839316 | AD45: 0.1787141574 | AE45: -0.2159380667 | AF45: 0.2350922143 | AG45: 1.174715664 | AH45: 1.46784348 | AI45: 0.3044187028 | AK45: 0.9945068053 | AM45: 0.3694279142 | AO45: Totale | AP45: 0.1056948883 | AQ45: 0.2603117231 | AR45: -0.01201443743 | AS45: 0.1778882906 | AT45: 0.8376758309 | AU45: 1.680381688 | AV45: 0.2423234698 | AX45: 0.5566797751 | AZ45: 0.2741906423
J47: 0
B49: Marzo | O49: Marzo | Z49: Tabella 2. | AB49: Marzo | AM49: Tabella 2. | AO49: Marzo | AZ49: Tabella 2.
C51: Premi imponibili* raccolti da: | P51: Premi imponibili* raccolti da: | AC51: Premi imponibili* raccolti da: | AP51: Premi imponibili* raccolti da:
C52: Imprese italiane ed extra-U.E. | P52: Imprese italiane ed extra-U.E. | AC52: Imprese italiane ed extra-U.E. | AP52: Imprese italiane ed extra-U.E.
C53: Numero polizze/Adesioni | D53: Agenti | E53: Agenzie in Economia | F53: Sp. bancari e postali | G53: Promotori finanziari | H53: Altre forme (inclusi Broker) | I53: Imprese italiane ed extra-U.E. | P53: Numero polizze/Adesioni | Q53: Agenti | R53: Agenzie in Economia | S53: Sp. bancari e postali | T53: Promotori finanziari | U53: Altre forme (inclusi Broker) | V53: Imprese italiane ed extra-U.E. | X53: Imprese U.E. | Z53: Totale imprese | AC53: Numero polizze/Adesioni | AD53: Agenti | AE53: Agenzie in Economia | AF53: Sp. bancari e postali | AG53: Promotori finanziari | AH53: Altre forme (inclusi Broker) | AI53: Imprese italiane ed extra-U.E. | AK53: Imprese U.E. | AM53: Totale imprese | AP53: Numero polizze/Adesioni | AQ53: Agenti | AR53: Agenzie in Economia | AS53: Sp. bancari e postali | AT53: Promotori finanziari | AU53: Altre forme (inclusi Broker) | AV53: Imprese italiane ed extra-U.E. | AX53: Imprese U.E. | AZ53: Totale imprese
B54: Ramo I | C54: 287292 | D54: 901633.8808 | E54: 157045.3984 | F54: 4340319.446 | G54: 444508.093 | H54: 34413.44563 | I54: 5877920.264 | O54: Ramo I | P54: 874753 | Q54: 2359428.657 | R54: 496440.8191 | S54: 15026698.21 | T54: 977367.1414 | U54: 114306.7827 | V54: 18974241.61 | X54: 0 | Z54: 18974241.61 | AB54: Ramo I | AC54: -0.01162142636 | AD54: 0.3361552799 | AE54: 0.2040675816 | AF54: -0.1571759343 | AG54: 0.2078914469 | AH54: 1.159784818 | AI54: -0.0727219178 | AK54: -1 | AM54: -0.07282649894 | AO54: Ramo I | AP54: 0.04094880418 | AQ54: 0.2558399161 | AR54: 0.2997299964 | AS54: -0.02612931306 | AT54: 0.04015693541 | AU54: 1.439462921 | AV54: 0.01591027191 | AX54: -1 | AZ54: 0.01519935835
B55: Ramo III | C55: 62146 | D55: 125476.5782 | E55: 35542.26524 | F55: 1744929.361 | G55: 2018658.585 | H55: 114.3870543 | I55: 3924721.176 | O55: Ramo III | P55: 147069 | Q55: 253647.2725 | R55: 84763.81742 | S55: 4246580.259 | T55: 3909760.553 | U55: 705.3868349 | V55: 8495457.289 | X55: 4563982 | Z55: 13059439.29 | AB55: Ramo III | AC55: 0.2160453967 | AD55: 1.51994222 | AE55: (…) | AF55: 0.8885527709 | AG55: 2.350679086 | AH55: -0.08318225652 | AI55: 1.4816069 | AK55: 0.270384057 | AM55: 0.8801341442 | AO55: Ramo III | AP55: 0.3534040086 | AQ55: 1.115147199 | AR55: 4.300217288 | AS55: 1.086216373 | AT55: 1.91265102 | AU55: -0.04989986614 | AV55: 1.417236132 | AX55: 0.4233878136 | AZ55: 0.9430926671
B56: - Unit classiche | C56: 51319 | D56: 124844.4392 | E56: 3597.171839 | F56: 1442686.654 | G56: 2011873.627 | H56: 114.3870543 | I56: 3583116.279 | O56: - Unit classiche | P56: 129851 | Q56: 252181.3121 | R56: 8008.097196 | S56: 3684920.757 | T56: 3895963.869 | U56: 703.3800444 | V56: 7841777.416 | X56: 4073124 | Z56: 11914901.42 | AB56: - Unit classiche | AC56: 0.0461736046 | AD56: 1.520284351 | AE56: 0.5416587598 | AF56: 0.6739072722 | AG56: 2.341085446 | AH56: -0.08318225652 | AI56: 1.363496779 | AK56: 0.9229783035 | AM56: 1.20605558 | AO56: - Unit classiche | AP56: 0.2695391173 | AQ56: 1.135953862 | AR56: 0.4314479155 | AS56: 1.055862561 | AT56: 1.906364397 | AU56: -0.05003268699 | AV56: 1.407454348 | AX56: 0.7434878026 | AZ56: 1.130139847
B57: - Unit protette | C57: 10647 | D57: 23.0780899 | E57: 31936.06285 | F57: 302242.7061 | G57: 395.337714 | H57: 0 | I57: 334597.1848 | O57: - Unit protette | P57: 16769 | Q57: 49.16636545 | R57: 76745.68628 | S57: 561655.4876 | T57: 1695.73791 | U57: 2.006790426 | V57: 640148.0849 | X57: 295132 | Z57: 935280.0849 | AB57: - Unit protette | AC57: 4.429372769 | AD57: -0.5013798237 | AE57: (…) | AF57: 3.868379291 | AG57: 0.314089294 | AH57: n.d. | AI57: 4.125061711 | AK57: -0.5387692034 | AM57: -0.1070858212 | AO57: - Unit protette | AP57: 1.80230615 | AQ57: -0.468377074 | AR57: (…) | AS57: 1.31238556 | AT57: -0.08015855963 | AU57: -0.0009403603778 | AV57: 1.508219173 | AX57: -0.5386897458 | AZ57: 0.04501834485
B58: - Unit garantite(**) | C58: 180 | D58: 609.0608944 | E58: 9.030556919 | F58: 0 | G58: 6389.620718 | H58: 0 | I58: 7007.712169 | O58: - Unit garantite(**) | P58: 447 | Q58: 1373.648047 | R58: 10.03395213 | S58: 2.006790426 | T58: 12080.87837 | U58: 0 | V58: 13466.56716 | X58: 195726 | Z58: 209192.5672 | AB58: - Unit garantite(**) | AC58: 1 | AD58: 1.882499495 | AE58: 1.991721058 | AF58: n.d. | AG58: n.d. | AH58: n.d. | AI58: (…) | AK58: -0.1507159594 | AM58: -0.06211001511 | AO58: - Unit garantite(**) | AP58: 0.1432225064 | AQ58: -0.2195127648 | AR58: 0.6635819452 | AS58: -0.6003761442 | AT58: n.d. | AU58: n.d. | AV58: (…) | AX58: -0.1507159594 | AZ58: -0.09920497197
B59: - Index linked | C59: 0 | D59: 0 | E59: 0 | F59: 0 | G59: 0 | H59: 0 | I59: 0 | O59: - Index linked | P59: 2 | Q59: 43.14599417 | R59: 0 | S59: 2.006790426 | T59: 20.06790426 | U59: 0 | V59: 65.22068886 | X59: 0 | Z59: 65.22068886 | AB59: - Index linked | AC59: n.d. | AD59: n.d. | AE59: n.d. | AF59: n.d. | AG59: n.d. | AH59: n.d. | AI59: n.d. | AK59: n.d. | AM59: n.d. | AO59: - Index linked | AP59: -0.7777777778 | AQ59: (…) | AR59: n.d. | AS59: -0.9919754246 | AT59: n.d. | AU59: n.d. | AV59: -0.7412793762 | AX59: n.d. | AZ59: -0.7412793762
B60: Ramo IV | C60: 2205 | D60: 356.2053007 | E60: 4.013580853 | F60: 497.6840257 | G60: 0 | H60: 0 | I60: 857.9029073 | O60: Ramo IV | P60: 6458 | Q60: 704.3834397 | R60: 9.030556919 | S60: 1851.264168 | T60: 0 | U60: 3.01018564 | V60: 2567.688351 | X60: 0 | Z60: 2567.688351 | AB60: Ramo IV | AC60: -0.2914524422 | AD60: 1.145577728 | AE60: 2.98896141 | AF60: -0.282102736 | AG60: n.d. | AH60: n.d. | AI60: -0.002759647439 | AK60: n.d. | AM60: -0.002759647439 | AO60: Ramo IV | AP60: -0.211284807 | AQ60: 0.5471835421 | AR60: 1.246859441 | AS60: 0.1055674572 | AT60: n.d. | AU60: n.d. | AV60: 0.2033521598 | AX60: n.d. | AZ60: 0.2033521598
B61: Ramo V | C61: 1602 | D61: 69524.25093 | E61: 164183.5519 | F61: 302999.2661 | G61: 12040.74256 | H61: 10035.95892 | I61: 558783.7705 | O61: Ramo V | P61: 5315 | Q61: 178470.8964 | R61: 203276.8328 | S61: 735676.3262 | T61: 12040.74256 | U61: 15149.26093 | V61: 1144614.059 | X61: 0 | Z61: 1144614.059 | AB61: Ramo V | AC61: -0.4791937581 | AD61: 0.3012765874 | AE61: 1.961782488 | AF61: 3.661475778 | AG61: (…) | AH61: (…) | AI61: 2.201176884 | AK61: n.d. | AM61: 2.201176884 | AO61: Ramo V | AP61: -0.3843391637 | AQ61: 0.4701983145 | AR61: -0.09745271489 | AS61: 2.096588415 | AT61: 0.7082729523 | AU61: (…) | AV61: 0.932517382 | AX61: n.d. | AZ61: 0.932517382
B62: Ramo VI | C62: 5026 | D62: 1623.493455 | E62: 117.3972399 | F62: 4109.526506 | G62: 879.977602 | H62: 0 | I62: 6730.394803 | O62: Ramo VI | P62: 12121 | Q62: 6632.442359 | R62: 392.3275284 | S62: 10591.57999 | T62: 1585.364437 | U62: 0 | V62: 19201.71432 | X62: 0 | Z62: 19201.71432 | AB62: Ramo VI | AC62: 0.9301075269 | AD62: -0.1245062993 | AE62: -0.7963750065 | AF62: 0.2414342036 | AG62: -0.4146052281 | AH62: -1 | AI62: -0.07121489435 | AK62: n.d. | AM62: -0.07121489435 | AO62: Ramo VI | AP62: 0.8731262556 | AQ62: -0.2281116749 | AR62: -0.7621062522 | AS62: 0.2693563117 | AT62: -0.3358449655 | AU62: -1 | AV62: -0.0854523482 | AX62: n.d. | AZ62: -0.0854523482
B63: Totale | C63: 358271 | D63: 1098614.409 | E63: 356892.6264 | F63: 6392855.283 | G63: 2476087.398 | H63: 44563.7916 | I63: 10369013.51 | O63: Totale | P63: 1045716 | Q63: 2798883.652 | R63: 784882.8274 | S63: 20021397.64 | T63: 4900753.802 | U63: 130164.4406 | V63: 28636082.36 | X63: 4563982 | Z63: 33200064.36 | AB63: Totale | AC63: 0.02197582773 | AD63: 0.4084099796 | AE63: 0.8623708891 | AF63: 0.0407259498 | AG63: 1.547448558 | AH63: 1.662805013 | AI63: 0.2796379786 | AK63: 0.2698020849 | AM63: 0.2780494231 | AO63: Totale | AP63: 0.0755075594 | AQ63: 0.3145698719 | AR63: 0.2561576575 | AS63: 0.1303218021 | AT63: 1.13875282 | AU63: 1.674337981 | AV63: 0.2555808937 | AX63: 0.4176053991 | AZ63: 0.2756234371
B64: Forme pens. individuali | C64: 26409 | D64: 26834.80158 | E64: 13053.16833 | F64: 27830.79274 | G64: 7784.340064 | H64: 1235.179507 | I64: 76738.28222 | O64: Forme pens. individuali | P64: 76237 | Q64: 77165.10547 | R64: 42833.93826 | S64: 93421.85484 | T64: 17186.15321 | U64: 4607.590819 | V64: 235214.6426 | X64: 196338 | Z64: 431552.6426 | AB64: Forme pens. individuali | AC64: 0.09204813299 | AD64: -0.1282825302 | AE64: -0.2443001254 | AF64: 0.1884029089 | AG64: 0.9326981402 | AH64: -0.2879333677 | AI64: -0.00646700316 | AK64: -0.1518144116 | AM64: -0.07910409739 | AO64: Forme pens. individuali | AP64: -0.02614838281 | AQ64: -0.1833090605 | AR64: -0.1706642077 | AS64: 0.2170143908 | AT64: 0.2210306714 | AU64: -0.07471811644 | AV64: -0.02784379857 | AX64: -0.152597823 | AZ64: -0.08886994465
B65: Forme di puro rischio | C65: 66218 | D65: 7033.800444 | E65: 521.7655109 | F65: 15204.44767 | G65: 1249.22704 | H65: 546.8503912 | I65: 24556.09105 | O65: Forme di puro rischio | P65: 169481 | Q65: 15960.00426 | R65: 1263.274573 | S65: 48957.65924 | T65: 2725.221399 | U65: 1393.715951 | V65: 70299.87543 | X65: 0 | Z65: 70299.87543 | AB65: Forme di puro rischio | AC65: 0.2353182598 | AD65: 0.1575848438 | AE65: 0.4053251581 | AF65: 0.04640835554 | AG65: 0.3965851957 | AH65: 0.9763490623 | AI65: 0.1086841025 | AK65: -1 | AM65: 0.08220177728 | AO65: Forme di puro rischio | AP65: 0.2048469424 | AQ65: 0.1109496403 | AR65: 0.7977194665 | AS65: 0.01536759721 | AT65: 0.6805458371 | AU65: 0.629701806 | AV65: 0.06899946126 | AX65: -1 | AZ65: -0.09996933498
B66: Altre forme | C66: 265643 | D66: 1064745.807 | E66: 343317.6926 | F66: 6349820.043 | G66: 2467053.831 | H66: 42781.7617 | I66: 10267719.14 | O66: Altre forme | P66: 799999 | Q66: 2705758.542 | R66: 740785.6146 | S66: 19879018.12 | T66: 4880842.427 | U66: 124163.1339 | V66: 28330567.84 | X66: 4367644 | Z66: 32698211.84 | AB66: Altre forme | AC66: -0.02616037158 | AD66: 0.4326915321 | AE66: 0.9732120266 | AF66: 0.04014591504 | AG66: 1.551073408 | AH66: 1.905517077 | AI66: 0.2828720524 | AK66: 0.2922017062 | AM66: 0.2843305592 | AO66: Altre forme | AP66: 0.06192349097 | AQ66: 0.3393028331 | AR66: 0.2940004694 | AS66: 0.1302585725 | AT66: 1.144755381 | AU66: 1.898516245 | AV66: 0.259174115 | AX66: 0.4678881693 | AZ66: 0.2835519655
B67: Totale | C67: 358270 | D67: 1098614.409 | E67: 356892.6264 | F67: 6392855.283 | G67: 2476087.398 | H67: 44563.7916 | I67: 10369013.51 | O67: Totale | P67: 1045717 | Q67: 2798883.652 | R67: 784882.8274 | S67: 20021397.64 | T67: 4900753.802 | U67: 130164.4406 | V67: 28636082.36 | X67: 4563982 | Z67: 33200064.36 | AB67: Totale | AC67: 0.02197589042 | AD67: 0.4084099796 | AE67: 0.8623708891 | AF67: 0.0407259498 | AG67: 1.547448558 | AH67: 1.662805013 | AI67: 0.2796379786 | AK67: 0.2698020849 | AM67: 0.2780494231 | AO67: Totale | AP67: 0.07550969403 | AQ67: 0.3145698719 | AR67: 0.2561576575 | AS67: 0.1303218021 | AT67: 1.13875282 | AU67: 1.674337981 | AV67: 0.2555808937 | AX67: 0.4176053991 | AZ67: 0.2756234371
AB68: (...) Il dato relativo alla variazione percentuale non è significativo.
B69: (*) Le polizze che prevedono una rateazione del premio periodico devono essere indicate secondo l'intero importo di tariffa su base annua, comprensivo di eventuali sovrappremi e garanzie accessorie. | AB69: (*) Le polizze che prevedono una rateazione del premio periodico devono essere indicate secondo l'intero importo di tariffa su base annua, comprensivo di eventuali sovrappremi e garanzie accessorie.
B70: (**) Sono da intendersi tutte le nuove polizze unit-linked che prevedono una garanzia finanziaria di rendimento ovvero una garanzia del capitale investito. | AB70: (**) Sono da intendersi tutte le nuove polizze unit-linked che prevedono una garanzia finanziaria di rendimento ovvero una garanzia del capitale investito.
B71: Aprile | O71: Aprile | Z71: Tabella 2. | AB71: Aprile | AM71: Tabella 2. | AO71: Aprile | AZ71: Tabella 2.
C73: Premi imponibili* raccolti da: | P73: Premi imponibili* raccolti da: | AC73: Premi imponibili* raccolti da: | AP73: Premi imponibili* raccolti da:
C74: Imprese italiane ed extra-U.E. | P74: Imprese italiane ed extra-U.E. | AC74: Imprese italiane ed extra-U.E. | AP74: Imprese italiane ed extra-U.E.
C75: Numero polizze/Adesioni | D75: Agenti | E75: Agenzie in Economia | F75: Sp. bancari e postali | G75: Promotori finanziari | H75: Altre forme (inclusi Broker) | I75: Imprese italiane ed extra-U.E. | P75: Numero polizze/Adesioni | Q75: Agenti | R75: Agenzie in Economia | S75: Sp. bancari e postali | T75: Promotori finanziari | U75: Altre forme (inclusi Broker) | V75: Imprese italiane ed extra-U.E. | X75: Imprese U.E. | Z75: Totale imprese | AC75: Numero polizze/Adesioni | AD75: Agenti | AE75: Agenzie in Economia | AF75: Sp. bancari e postali | AG75: Promotori finanziari | AH75: Altre forme (inclusi Broker) | AI75: Imprese italiane ed extra-U.E. | AK75: Imprese U.E. | AM75: Totale imprese | AP75: Numero polizze/Adesioni | AQ75: Agenti | AR75: Agenzie in Economia | AS75: Sp. bancari e postali | AT75: Promotori finanziari | AU75: Altre forme (inclusi Broker) | AV75: Imprese italiane ed extra-U.E. | AX75: Imprese U.E. | AZ75: Totale imprese
B76: Ramo I | C76: 309102 | D76: 670652.8526 | E76: 160934.3839 | F76: 4806680.356 | G76: 338387.7654 | H76: 24758.44178 | I76: 6001413.8 | O76: Ramo I | P76: 1183855 | Q76: 3030081.51 | R76: 657375.203 | S76: 19833378.57 | T76: 1315754.907 | U76: 139065.2245 | V76: 24975655.41 | X76: 0 | Z76: 24975655.41 | AB76: Ramo I | AC76: 0.08926180173 | AD76: -0.03608985595 | AE76: 0.2409782669 | AF76: -0.06471176915 | AG76: 0.1751480089 | AH76: 0.4132773909 | AI76: -0.04286242566 | AK76: -1 | AM76: -0.04300497898 | AO76: Ramo I | AP76: 0.05314496572 | AQ76: 0.1769462851 | AR76: 0.2848384253 | AS76: -0.03576924399 | AT76: 0.07182158115 | AU76: 1.160209152 | AV76: 0.001138516508 | AX76: -1 | AZ76: 0.0005764875514
B77: Ramo III | C77: 54356 | D77: 129126.7401 | E77: 43078.34504 | F77: 1988177.779 | G77: 1219501.913 | H77: 594.6197391 | I77: 3380479.397 | O77: Ramo III | P77: 201425 | Q77: 382774.0127 | R77: 127842.1625 | S77: 6234758.038 | T77: 5129262.466 | U77: 1300.006574 | V77: 11875936.69 | X77: 6204645 | Z77: 18080581.69 | AB77: Ramo III | AC77: 0.5062070494 | AD77: 1.878104335 | AE77: (…) | AF77: 1.57009587 | AG77: 0.6864643403 | AH77: (…) | AI77: 1.184663286 | AK77: 0.4836954408 | AM77: 0.8925114057 | AO77: Ramo III | AP77: 0.3914986805 | AQ77: 1.322874246 | AR77: 4.873769792 | AS77: 1.219467959 | AT77: 1.483364322 | AU77: 0.6652473926 | AV77: 1.346141133 | AX77: 0.438852683 | AZ77: 0.9287766166
B78: - Unit classiche | C78: 50270 | D78: 128643.4236 | E78: 9887.934649 | F78: 1771277.946 | G78: 1213996.917 | H78: 590.6088134 | I78: 3124396.83 | O78: - Unit classiche | P78: 180121 | Q78: 380824.7357 | R78: 17896.03185 | S78: 5456198.703 | T78: 5109960.786 | U78: 1293.988858 | V78: 10966174.25 | X78: 5619298 | Z78: 16585472.25 | AB78: - Unit classiche | AC78: 0.4504587685 | AD78: 1.886492988 | AE78: 4.289172077 | AF78: 1.646743865 | AG78: 0.6800132259 | AH78: (…) | AI78: 1.172265404 | AK78: 0.5179656444 | AM78: 0.9010049584 | AO78: - Unit classiche | AP78: 0.3153278808 | AQ78: 1.341629811 | AR78: 1.397687768 | AS78: 1.216502327 | AT78: 1.476829648 | AU78: 0.6682820511 | AV78: 1.335413495 | AX78: 0.6750143676 | AZ78: 1.060210155
B79: - Unit protette | C79: 3920 | D79: 13.03550861 | E79: 33187.4022 | F79: 216899.8333 | G79: 682.8601051 | H79: 4.010925727 | I79: 250787.142 | O79: - Unit protette | P79: 20689 | Q79: 62.20187406 | R79: 109933.0885 | S79: 778555.3208 | T79: 2378.598015 | U79: 6.017716154 | V79: 890935.2269 | X79: 294981 | Z79: 1185916.227 | AB79: - Unit protette | AC79: 1.978723404 | AD79: -0.4367152888 | AE79: (…) | AF79: 1.078598408 | AG79: 0.3655360519 | AH79: 0.3287741905 | AI79: 1.305489775 | AK79: -0.8046571798 | AM79: 1.320592223 | AO79: - Unit protette | AP79: 1.834109589 | AQ79: -0.4620401011 | AR79: (…) | AS79: 1.242130018 | AT79: 0.01494273776 | AU79: 0.1970325736 | AV79: 1.447634982 | AX79: -0.5383680023 | AZ79: 0.1823757163
B80: - Unit garantite(**) | C80: 166 | D80: 470.2810415 | E80: 3.008194296 | F80: 0 | G80: 4822.135456 | H80: 0 | I80: 5295.424692 | O80: - Unit garantite(**) | P80: 613 | Q80: 1843.929088 | R80: 13.04214643 | S80: 2.006790426 | T80: 16903.01382 | U80: 0 | V80: 18761.99185 | X80: 290366 | Z80: 309127.9918 | AB80: - Unit garantite(**) | AC80: 0.4561403509 | AD80: 0.7120744378 | AE80: n.d. | AF80: -1 | AG80: n.d. | AH80: n.d. | AI80: (…) | AK80: 0.07563789282 | AM80: 0.1322497589 | AO80: - Unit garantite(**) | AP80: 0.2138613861 | AQ80: -0.09374661402 | AR80: 1.162326373 | AS80: -0.7504058426 | AT80: n.d. | AU80: n.d. | AV80: (…) | AX80: -0.0881753521 | AZ80: -0.03546325901
B81: - Index linked | C81: 0 | D81: 0 | E81: 0 | F81: 0 | G81: 0 | H81: 0 | I81: 0 | O81: - Index linked | P81: 2 | Q81: 43.14599417 | R81: 0 | S81: 2.006790426 | T81: 20.06790426 | U81: 0 | V81: 65.22068886 | X81: 0 | Z81: 65.22068886 | AB81: - Index linked | AC81: n.d. | AD81: n.d. | AE81: n.d. | AF81: n.d. | AG81: n.d. | AH81: n.d. | AI81: n.d. | AK81: n.d. | AM81: n.d. | AO81: - Index linked | AP81: -0.7777777778 | AQ81: (…) | AR81: n.d. | AS81: -0.9919754246 | AT81: n.d. | AU81: n.d. | AV81: -0.7412793762 | AX81: n.d. | AZ81: -0.7412793762
B82: Ramo IV | C82: 1765 | D82: 330.9013725 | E82: 3.008194296 | F82: 980.6713403 | G82: 0 | H82: 2.005462864 | I82: 1316.58637 | O82: Ramo IV | P82: 8223 | Q82: 1035.284812 | R82: 12.03875121 | S82: 2831.935509 | T82: 0 | U82: 5.015648503 | V82: 3884.274721 | X82: 0 | Z82: 3884.274721 | AB82: Ramo IV | AC82: -0.3655643422 | AD82: 1.10815136 | AE82: 0.4948709643 | AF82: 0.6110014359 | AG82: n.d. | AH82: n.d. | AI82: 0.7149546319 | AK82: n.d. | AM82: 0.7149546319 | AO82: Ramo IV | AP82: -0.2504102097 | AQ82: 0.6910035843 | AR82: 0.9959681788 | AS82: 0.240321883 | AT82: n.d. | AU82: n.d. | AV82: 0.338717804 | AX82: n.d. | AZ82: 0.338717804
B83: Ramo V | C83: 1332 | D83: 38210.08394 | E83: 15756.92172 | F83: 153282.5403 | G83: 5013.657159 | H83: 5075.826508 | I83: 217339.0297 | O83: Ramo V | P83: 6647 | Q83: 216680.9803 | R83: 219033.7546 | S83: 888958.8665 | T83: 17054.39972 | U83: 20225.08744 | V83: 1361953.089 | X83: 0 | Z83: 1361953.089 | AB83: Ramo V | AC83: -0.4674130348 | AD83: -0.468849015 | AE83: -0.5451959393 | AF83: 0.419699737 | AG83: (…) | AH83: (…) | AI83: 0.00957133925 | AK83: n.d. | AM83: 0.00957133925 | AO83: Ramo V | AP83: -0.4029998204 | AQ83: 0.1207791421 | AR83: -0.1571449591 | AS83: 1.572630738 | AT83: 1.213559802 | AU83: (…) | AV83: 0.6864824858 | AX83: n.d. | AZ83: 0.6864824858
B84: Ramo VI | C84: 3471 | D84: 2688.322969 | E84: 150.4097148 | F84: 3896.214254 | G84: 512.3957617 | H84: 0 | I84: 7247.3427 | O84: Ramo VI | P84: 15592 | Q84: 9320.765328 | R84: 542.7372431 | S84: 14487.79425 | T84: 2097.760199 | U84: 0 | V84: 26449.05701 | X84: 0 | Z84: 26449.05701 | AB84: Ramo VI | AC84: 1.181646763 | AD84: 0.763585943 | AE84: -0.5893211636 | AF84: 0.3721880732 | AG84: -0.08407786238 | AH84: -1 | AI84: 0.369891071 | AK84: n.d. | AM84: 0.369891071 | AO84: Ramo VI | AP84: 0.9340114116 | AQ84: -0.07868807187 | AR84: -0.7307073306 | AS84: 0.2954646827 | AT84: -0.2880432213 | AU84: -1 | AV84: 0.0061912589 | AX84: n.d. | AZ84: 0.0061912589
B85: Totale | C85: 370026 | D85: 841008.9011 | E85: 219923.0686 | F85: 6953017.561 | G85: 1563415.731 | H85: 30430.89349 | I85: 9607796.156 | O85: Totale | P85: 1415742 | Q85: 3639892.553 | R85: 1004805.896 | S85: 26974415.2 | T85: 6464169.533 | U85: 160595.3341 | V85: 38243878.52 | X85: 6204645 | Z85: 44448523.52 | AB85: Totale | AC85: 0.1324992195 | AD85: 0.03286626511 | AE85: 0.2901008884 | AF85: 0.1541718779 | AG85: 0.5444493335 | AH85: 0.7262687985 | AI85: 0.1951669453 | AK85: 0.4824433082 | AM85: 0.229930874 | AO85: Totale | AP85: 0.08984214424 | AQ85: 0.2366400556 | AR85: 0.2634332845 | AS85: 0.1363746828 | AT85: 0.9566527512 | AU85: 1.422260402 | AV85: 0.2398361788 | AX85: 0.4341921257 | AZ85: 0.2637422722
B86: Forme pens. individuali | C86: 26602 | D86: 27156.97537 | E86: 16318.45132 | F86: 33902.95235 | G86: 6890.7704 | H86: 1414.85405 | I86: 85684.00349 | O86: Forme pens. individuali | P86: 102839 | Q86: 104322.0808 | R86: 59152.38958 | S86: 127324.8072 | T86: 24076.92361 | U86: 6022.444869 | V86: 320898.6461 | X86: 290979 | Z86: 611877.6461 | AB86: Forme pens. individuali | AC86: 0.03012701363 | AD86: -0.03815282594 | AE86: -0.06290209844 | AF86: 0.2371490116 | AG86: 0.4079979807 | AH86: 0.3840307944 | AI86: 0.08504172671 | AK86: 0.07158142642 | AM86: 0.07793539176 | AO86: Forme pens. individuali | AP86: -0.01218926499 | AQ86: -0.1499127668 | AR86: -0.1434923707 | AS86: 0.2223113641 | AT86: 0.2692680593 | AU86: 0.003417642526 | AV86: -6.61845317e-05 | AX86: -0.09072756419 | AZ86: -0.04533273384
B87: Forme di puro rischio | C87: 60299 | D87: 5755.678419 | E87: 365.9969726 | F87: 16056.73842 | G87: 840.9400134 | H87: 4668.717547 | I87: 27688.07137 | O87: Forme di puro rischio | P87: 229780 | Q87: 21715.68268 | R87: 1629.271546 | S87: 65014.39766 | T87: 3566.161412 | U87: 6062.433498 | V87: 97987.9468 | X87: 0 | Z87: 97987.9468 | AB87: Forme di puro rischio | AC87: 0.1187198516 | AD87: 0.06723374816 | AE87: -0.2194164492 | AF87: 0.02250565993 | AG87: 0.8697576254 | AH87: (…) | AI87: 0.2427508373 | AK87: -1 | AM87: 0.200350042 | AO87: Forme di puro rischio | AP87: 0.1809874284 | AQ87: 0.09901779664 | AR87: 0.3906551285 | AS87: 0.0171212158 | AT87: 0.7216292516 | AU87: 4.413756543 | AV87: 0.1129685146 | AX87: -1 | AZ87: -0.03150016869
B88: Altre forme | C88: 283125 | D88: 808096.2473 | E88: 203238.6203 | F88: 6903057.871 | G88: 1555684.021 | H88: 24347.3219 | I88: 9494424.081 | O88: Altre forme | P88: 1083124 | Q88: 3513854.789 | R88: 944024.2349 | S88: 26782076 | T88: 6436526.448 | U88: 148510.4558 | V88: 37824991.92 | X88: 5913666 | Z88: 43738657.92 | AB88: Altre forme | AC88: 0.1462132959 | AD88: 0.03519751338 | AE88: 0.3319526255 | AF88: 0.1541373834 | AG88: 0.5449672265 | AH88: 0.4899313213 | AI88: 0.1961289784 | AK88: 0.5192482874 | AM88: 0.2328463999 | AO88: Altre forme | AP88: 0.08273638038 | AQ88: 0.2545474723 | AR88: 0.3019873563 | AS88: 0.1363182911 | AT88: 0.9607731823 | AU88: 1.509553962 | AV88: 0.2427326292 | AX88: 0.4809771094 | AZ88: 0.2703634529
B89: Totale | C89: 370026 | D89: 841008.9011 | E89: 219923.0686 | F89: 6953017.561 | G89: 1563415.731 | H89: 30430.89349 | I89: 9607796.156 | O89: Totale | P89: 1415743 | Q89: 3639892.553 | R89: 1004805.896 | S89: 26974415.2 | T89: 6464169.533 | U89: 160595.3341 | V89: 38243878.52 | X89: 6204645 | Z89: 44448523.52 | AB89: Totale | AC89: 0.1325026857 | AD89: 0.03286626511 | AE89: 0.2901008884 | AF89: 0.1541718779 | AG89: 0.5444493335 | AH89: 0.7262687985 | AI89: 0.1951669453 | AK89: 0.4824433082 | AM89: 0.229930874 | AO89: Totale | AP89: 0.08984459197 | AQ89: 0.2366400556 | AR89: 0.2634332845 | AS89: 0.1363746828 | AT89: 0.9566527512 | AU89: 1.422260402 | AV89: 0.2398361788 | AX89: 0.4341921257 | AZ89: 0.2637422722
B93: Maggio | O93: Maggio | Z93: Tabella 2. | AB93: Maggio | AM93: Tabella 2. | AO93: Maggio | AZ93: Tabella 2.
C95: Premi imponibili* raccolti da: | P95: Premi imponibili* raccolti da: | AC95: Premi imponibili* raccolti da: | AP95: Premi imponibili* raccolti da:
C96: Imprese italiane ed extra-U.E. | P96: Imprese italiane ed extra-U.E. | AC96: Imprese italiane ed extra-U.E. | AP96: Imprese italiane ed extra-U.E.
C97: Numero polizze/Adesioni | D97: Agenti | E97: Agenzie in Economia | F97: Sp. bancari e postali | G97: Promotori finanziari | H97: Altre forme (inclusi Broker) | I97: Imprese italiane ed extra-U.E. | P97: Numero polizze/Adesioni | Q97: Agenti | R97: Agenzie in Economia | S97: Sp. bancari e postali | T97: Promotori finanziari | U97: Altre forme (inclusi Broker) | V97: Imprese italiane ed extra-U.E. | X97: Imprese U.E. | Z97: Totale imprese | AC97: Numero polizze/Adesioni | AD97: Agenti | AE97: Agenzie in Economia | AF97: Sp. bancari e postali | AG97: Promotori finanziari | AH97: Altre forme (inclusi Broker) | AI97: Imprese italiane ed extra-U.E. | AK97: Imprese U.E. | AM97: Totale imprese | AP97: Numero polizze/Adesioni | AQ97: Agenti | AR97: Agenzie in Economia | AS97: Sp. bancari e postali | AT97: Promotori finanziari | AU97: Altre forme (inclusi Broker) | AV97: Imprese italiane ed extra-U.E. | AX97: Imprese U.E. | AZ97: Totale imprese
B98: Ramo I | C98: 282566 | D98: 575997.1481 | E98: 147762.307 | F98: 3911817.733 | G98: 272530.8102 | H98: 19363.73231 | I98: 4927471.731 | O98: Ramo I | P98: 1466421 | Q98: 3606078.658 | R98: 805137.51 | S98: 23745196.3 | T98: 1588285.717 | U98: 158428.9568 | V98: 29903127.14 | X98: 0 | Z98: 29903127.14 | AB98: Ramo I | AC98: -0.06448729324 | AD98: -0.143706389 | AE98: 0.06983265059 | AF98: -0.1983186794 | AG98: -0.1564781089 | AH98: 0.3769016608 | AI98: -0.1824944683 | AK98: -1 | AM98: -0.1825281032 | AO98: Ramo I | AP98: 0.02823179479 | AQ98: 0.1105223496 | AR98: 0.239135228 | AS98: -0.06693644307 | AT98: 0.02425478064 | AU98: 1.019770731 | AV98: -0.03459510427 | AX98: -1 | AZ98: -0.03503937987
B99: Ramo III | C99: 52049 | D99: 144656.9924 | E99: 42433.93752 | F99: 1775118.036 | G99: 1142170.685 | H99: 1273.691664 | I99: 3105653.343 | O99: Ramo III | P99: 253474 | Q99: 527431.0051 | R99: 170276.1 | S99: 8009876.074 | T99: 6271433.151 | U99: 2573.698238 | V99: 14981590.03 | X99: 8046171 | Z99: 23027761.03 | AB99: Ramo III | AC99: 0.8524753532 | AD99: 1.91155474 | AE99: 2.746770282 | AF99: 1.370957399 | AG99: 0.6497326965 | AH99: (…) | AI99: 1.067452466 | AK99: -0.03800945208 | AM99: 0.4480461943 | AO99: Ramo III | AP99: 0.4664306252 | AQ99: 1.459247997 | AR99: 4.145786041 | AS99: 1.251346795 | AT99: 1.274082711 | AU99: 1.839346908 | AV99: 1.282364177 | AX99: 0.2922453756 | AZ99: 0.8003701393
B100: - Unit classiche | C100: 48649 | D100: 144343.3446 | E100: 5732.11513 | F100: 1624456.497 | G100: 1139620.286 | H100: 1271.681101 | I100: 2915423.924 | O100: - Unit classiche | P100: 228770 | Q100: 525168.0803 | R100: 23628.14698 | S100: 7080655.2 | T100: 6249581.073 | U100: 2565.669959 | V100: 13881598.17 | X100: 6882353 | Z100: 20763951.17 | AB100: - Unit classiche | AC100: 1.006806369 | AD100: 1.920144474 | AE100: -0.2713960686 | AF100: 1.726606755 | AG100: 0.6474184184 | AH100: (…) | AI100: 1.167665846 | AK100: -0.05134814608 | AM100: 0.5612421683 | AO100: - Unit classiche | AP100: 0.4193272202 | AQ100: 1.476477287 | AR100: 0.5411876812 | AS100: 1.315903542 | AT100: 1.268560199 | AU100: 1.859040897 | AV100: 1.298063684 | AX100: 0.4686435504 | AZ100: 0.93571511
B101: - Unit protette | C101: 3293 | D101: 17.08978555 | E101: 36701.82239 | F101: 150656.5124 | G101: 712.7445856 | H101: 2.010563006 | I101: 188090.1798 | O101: - Unit protette | P101: 23982 | Q101: 79.29165961 | R101: 146634.9109 | S101: 929211.8333 | T101: 3091.342601 | U101: 8.02827916 | V101: 1079025.407 | X101: 778812 | Z101: 1857837.407 | AB101: - Unit protette | AC101: 0.1426092991 | AD101: -0.000884928179 | AE101: (…) | AF101: 0.1339582279 | AG101: 0.2384136118 | AH101: -0.5004424641 | AI101: 0.3737850594 | AK101: -0.02232860021 | AM101: 0.06351167097 | AO101: - Unit protette | AP101: 1.35533294 | AQ101: -0.4026111916 | AR101: (…) | AS101: 0.9354623815 | AT101: 0.05900216496 | AU101: -0.113081825 | AV101: 1.154120671 | AX101: -0.3131424308 | AZ101: 0.136438486
B102: - Unit garantite(**) | C102: 107 | D102: 296.5580434 | E102: 0 | F102: 5.026407515 | G102: 1837.654588 | H102: 0 | I102: 2139.239038 | O102: - Unit garantite(**) | P102: 720 | Q102: 2140.487132 | R102: 13.04214643 | S102: 7.033197941 | T102: 18740.66841 | U102: 0 | V102: 20901.23089 | X102: 385006 | Z102: 405907.2309 | AB102: - Unit garantite(**) | AC102: 0.1382978723 | AD102: 0.2542082816 | AE102: n.d. | AF102: n.d. | AG102: n.d. | AH102: n.d. | AI102: (…) | AK102: 0.07563789282 | AM102: 0.09700349071 | AO102: - Unit garantite(**) | AP102: 0.2020033389 | AQ102: -0.05752045347 | AR102: 1.162326373 | AS102: -0.1252474145 | AT102: n.d. | AU102: n.d. | AV102: (…) | AX102: -0.05271264424 | AZ102: -0.006870221767
B103: - Index linked | C103: 0 | D103: 0 | E103: 0 | F103: 0 | G103: 0 | H103: 0 | I103: 0 | O103: - Index linked | P103: 2 | Q103: 43.14599417 | R103: 0 | S103: 2.006790426 | T103: 20.06790426 | U103: 0 | V103: 65.22068886 | X103: 0 | Z103: 65.22068886 | AB103: - Index linked | AC103: -1 | AD103: n.d. | AE103: n.d. | AF103: -1 | AG103: n.d. | AH103: n.d. | AI103: -1 | AK103: n.d. | AM103: -1 | AO103: - Index linked | AP103: -0.9977477477 | AQ103: (…) | AR103: n.d. | AS103: -0.9999011633 | AT103: n.d. | AU103: n.d. | AV103: -0.9967881235 | AX103: n.d. | AZ103: -0.9967881235
B104: Ramo IV | C104: 1669 | D104: 313.6478289 | E104: 2.010563006 | F104: 443.3291428 | G104: 0 | H104: 0 | I104: 758.9875348 | O104: Ramo IV | P104: 9892 | Q104: 1348.932641 | R104: 14.04931422 | S104: 3275.264651 | T104: 0 | U104: 5.015648503 | V104: 4643.262255 | X104: 0 | Z104: 4643.262255 | AB104: Ramo IV | AC104: -0.3777032066 | AD104: 0.761151991 | AE104: 0.9982301436 | AF104: -0.2003452873 | AG104: n.d. | AH104: n.d. | AI104: 0.03474880552 | AK104: n.d. | AM104: 0.03474880552 | AO104: Ramo IV | AP104: -0.2754175212 | AQ104: 0.7068109101 | AR104: 0.996291569 | AS104: 0.154226637 | AT104: n.d. | AU104: n.d. | AV104: 0.277380313 | AX104: n.d. | AZ104: 0.277380313
B105: Ramo V | C105: 1214 | D105: 25060.66259 | E105: 16971.16233 | F105: 97369.55582 | G105: 1005.281503 | H105: -198.0404561 | I105: 140208.6218 | O105: Ramo V | P105: 7861 | Q105: 241741.6429 | R105: 236004.9169 | S105: 986328.4223 | T105: 18059.68122 | U105: 20027.04698 | V105: 1502161.71 | X105: 0 | Z105: 1502161.71 | AB105: Ramo V | AC105: -0.4753673293 | AD105: -0.396385633 | AE105: -0.9102056492 | AF105: 0.1486324941 | AG105: -0.000884928179 | AH105: n.d. | AI105: -0.556714477 | AK105: n.d. | AM105: -0.556714477 | AO105: Ramo V | AP105: -0.4154521118 | AQ105: 0.02935215144 | AR105: -0.4742261506 | AS105: 1.292109724 | AT105: 1.073279192 | AU105: (…) | AV105: 0.3366040364 | AX105: n.d. | AZ105: 0.3366040364
B106: Ramo VI | C106: 4882 | D106: 2566.483677 | E106: 94.49646128 | F106: 4084.458747 | G106: 437.2974538 | H106: 5.026407515 | I106: 7187.762747 | O106: Ramo VI | P106: 20474 | Q106: 11887.24901 | R106: 637.2337044 | S106: 18572.25299 | T106: 2535.057652 | U106: 5.026407515 | V106: 33636.81976 | X106: 0 | Z106: 33636.81976 | AB106: Ramo VI | AC106: 2.024783147 | AD106: 0.7975622117 | AE106: -0.7894241777 | AF106: 0.3945051655 | AG106: -0.06332962017 | AH106: 0.2488938398 | AI106: 0.3622564385 | AK106: n.d. | AM106: 0.3622564385 | AO106: Ramo VI | AP106: 1.115957007 | AQ106: 0.02968064676 | AR106: -0.7414003171 | AS106: 0.3160200408 | AT106: -0.2573076986 | AU106: -0.821342593 | AV106: 0.06571504367 | AX106: n.d. | AZ106: 0.06571504367
B107: Totale | C107: 342380 | D107: 748594.9346 | E107: 207263.9139 | F107: 5788833.113 | G107: 1416144.074 | H107: 20444.40993 | I107: 8181280.445 | O107: Totale | P107: 1758122 | Q107: 4388487.487 | R107: 1212069.81 | S107: 32763248.31 | T107: 7880313.607 | U107: 181039.7441 | V107: 46425158.96 | X107: 8046171 | Z107: 54471329.96 | AB107: Totale | AC107: 0.0167156148 | AD107: -0.0220459037 | AE107: -0.3884085877 | AF107: 0.01265994952 | AG107: 0.3926135305 | AH107: 0.4404510999 | AI107: 0.04194702635 | AK107: -0.03813406388 | AM107: 0.02624858571 | AO107: Totale | AP107: 0.07478794585 | AQ107: 0.1832497004 | AR107: 0.0686648923 | AS107: 0.1123637684 | AT107: 0.8238999644 | AU107: 1.24914092 | AV107: 0.1996838229 | AX107: 0.2892924185 | AZ107: 0.2121280527
B108: Forme pens. individuali | C108: 27426 | D108: 25502.98645 | E108: 14833.93386 | F108: 36090.61124 | G108: 6565.493496 | H108: 1665.75145 | I108: 84658.77649 | O108: Forme pens. individuali | P108: 130265 | Q108: 129825.0673 | R108: 73986.32344 | S108: 163415.4184 | T108: 30642.41711 | U108: 7688.19632 | V108: 405557.4226 | X108: 385620 | Z108: 791177.4226 | AB108: Forme pens. individuali | AC108: 0.06496330525 | AD108: -0.239299212 | AE108: -0.2727794604 | AF108: 0.373984149 | AG108: 0.530663977 | AH108: 0.9094967405 | AI108: -0.008128391725 | AK108: 0.07336796262 | AM108: 0.03328186594 | AO108: Forme pens. individuali | AP108: 0.003111018705 | AQ108: -0.1690925173 | AR108: -0.1729714828 | AS108: 0.2528555206 | AT108: 0.3174745514 | AU108: 0.1183996682 | AV108: -0.001759949396 | AX108: -0.05528130627 | AZ108: -0.02858346889
B109: Forme di puro rischio | C109: 61214 | D109: 5457.67328 | E109: 409.1495717 | F109: 16473.54799 | G109: 855.4945591 | H109: -3678.32502 | I109: 19517.54038 | O109: Forme di puro rischio | P109: 290994 | Q109: 27173.35596 | R109: 2038.421118 | S109: 81487.94565 | T109: 4421.655971 | U109: 2384.108478 | V109: 117505.4872 | X109: 0 | Z109: 117505.4872 | AB109: Forme di puro rischio | AC109: 0.1453643933 | AD109: -0.02477602932 | AE109: 0.1618280978 | AF109: 0.05560919935 | AG109: 1.115042105 | AH109: -16.10645474 | AI109: -0.1209181945 | AK109: -1 | AM109: -0.1306291278 | AO109: Forme di puro rischio | AP109: 0.1733108612 | AQ109: 0.07169469767 | AR109: 0.3377698208 | AS109: 0.02467390204 | AT109: 0.7859008612 | AU109: 0.7487599867 | AV109: 0.06586582267 | AX109: -1 | AZ109: -0.04950187469
B110: Altre forme | C110: 253740 | D110: 717634.2749 | E110: 192020.8305 | F110: 5736268.953 | G110: 1408723.086 | H110: 22456.9835 | I110: 8077104.128 | O110: Altre forme | P110: 1336864 | Q110: 4231489.064 | R110: 1136045.065 | S110: 32518344.95 | T110: 7845249.534 | U110: 170967.4393 | V110: 45902096.05 | X110: 7660551 | Z110: 53562647.05 | AB110: Altre forme | AC110: -0.01480471981 | AD110: -0.01199723279 | AE110: -0.3964313719 | AF110: 0.01086930009 | AG110: 0.3917398421 | AH110: 0.7172602592 | AI110: 0.04296583592 | AK110: -0.04338719084 | AM110: 0.02648906355 | AO110: Altre forme | AP110: 0.06276517178 | AQ110: 0.1996591787 | AR110: 0.08899341254 | AS110: 0.1119756051 | AT110: 0.8266643803 | AU110: 1.366159582 | AV110: 0.2022136916 | AX110: 0.3164270547 | AZ110: 0.21731875
B111: Totale | C111: 342380 | D111: 748594.9346 | E111: 207263.9139 | F111: 5788833.113 | G111: 1416144.074 | H111: 20444.40993 | I111: 8181280.445 | O111: Totale | P111: 1758123 | Q111: 4388487.487 | R111: 1212069.81 | S111: 32763248.31 | T111: 7880313.607 | U111: 181039.7441 | V111: 46425158.96 | X111: 8046171 | Z111: 54471329.96 | AB111: Totale | AC111: 0.0167156148 | AD111: -0.0220459037 | AE111: -0.3884085877 | AF111: 0.01265994952 | AG111: 0.3926135305 | AH111: 0.4404510999 | AI111: 0.04194702635 | AK111: -0.03813406388 | AM111: 0.02624858571 | AO111: Totale | AP111: 0.07478987127 | AQ111: 0.1832497004 | AR111: 0.0686648923 | AS111: 0.1123637684 | AT111: 0.8238999644 | AU111: 1.24914092 | AV111: 0.1996838229 | AX111: 0.2892924185 | AZ111: 0.2121280527
B115: Giugno | O115: Giugno | Z115: Tabella 2. | AB115: Giugno | AM115: Tabella 2. | AO115: Giugno | AZ115: Tabella 2.
C117: Premi imponibili* raccolti da: | P117: Premi imponibili* raccolti da: | AC117: Premi imponibili* raccolti da: | AP117: Premi imponibili* raccolti da:
C118: Imprese italiane ed extra-U.E. | P118: Imprese italiane ed extra-U.E. | AC118: Imprese italiane ed extra-U.E. | AP118: Imprese italiane ed extra-U.E.
C119: Numero polizze/Adesioni | D119: Agenti | E119: Agenzie in Economia | F119: Sp. bancari e postali | G119: Promotori finanziari | H119: Altre forme (inclusi Broker) | I119: Imprese italiane ed extra-U.E. | P119: Numero polizze/Adesioni | Q119: Agenti | R119: Agenzie in Economia | S119: Sp. bancari e postali | T119: Promotori finanziari | U119: Altre forme (inclusi Broker) | V119: Imprese italiane ed extra-U.E. | X119: Imprese U.E. | Z119: Totale imprese | AC119: Numero polizze/Adesioni | AD119: Agenti | AE119: Agenzie in Economia | AF119: Sp. bancari e postali | AG119: Promotori finanziari | AH119: Altre forme (inclusi Broker) | AI119: Imprese italiane ed extra-U.E. | AK119: Imprese U.E. | AM119: Totale imprese | AP119: Numero polizze/Adesioni | AQ119: Agenti | AR119: Agenzie in Economia | AS119: Sp. bancari e postali | AT119: Promotori finanziari | AU119: Altre forme (inclusi Broker) | AV119: Imprese italiane ed extra-U.E. | AX119: Imprese U.E. | AZ119: Totale imprese
B120: Ramo I | C120: 269235 | D120: 521793.1828 | E120: 142093.3167 | F120: 3582087.384 | G120: 258492.003 | H120: 18065.17696 | I120: 4522531.064 | O120: Ramo I | P120: 1735656 | Q120: 4127871.841 | R120: 947230.8266 | S120: 27327283.68 | T120: 1846777.72 | U120: 176494.1337 | V120: 34425658.2 | X120: 0 | Z120: 34425658.2 | AB120: Ramo I | AC120: 0.0781173041 | AD120: -0.2082932174 | AE120: 0.1474443338 | AF120: -0.1439325802 | AG120: -0.09889335997 | AH120: 0.3972268131 | AI120: -0.14135411 | AK120: -1 | AM120: -0.1414623431 | AO120: Ramo I | AP120: 0.03566533503 | AQ120: 0.05673107586 | AR120: 0.2244575905 | AS120: -0.07780874931 | AT120: 0.005029922386 | AU120: 0.9316761204 | AV120: -0.05011049864 | AX120: -1 | AZ120: -0.05050151907
B121: Ramo III | C121: 44476 | D121: 149177.5232 | E121: 36588.56133 | F121: 1316797.031 | G121: 1114253.352 | H121: 837.3790285 | I121: 2617653.846 | O121: Ramo III | P121: 297950 | Q121: 676608.5284 | R121: 206864.6613 | S121: 9326673.104 | T121: 7385686.504 | U121: 3411.077267 | V121: 17599243.87 | X121: 9161094 | Z121: 26760337.87 | AB121: Ramo III | AC121: 0.2362686235 | AD121: 1.46980615 | AE121: 4.766591475 | AF121: 0.2304762301 | AG121: 0.204987529 | AH121: 3.267910343 | AI121: 0.2695993984 | AK121: -0.2827471075 | AM121: 0.03217348468 | AO121: Ramo III | AP121: 0.4267791042 | AQ121: 1.461568077 | AR121: 4.245670134 | AS121: 1.015284852 | AT121: 1.00562459 | AU121: 2.09354431 | AV121: 1.040288244 | AX121: 0.1773764066 | AZ121: 0.6310515767
B122: - Unit classiche | C122: 41556 | D122: 148652.2855 | E122: 3077.392941 | F122: 1213105.096 | G122: 1112172.41 | H122: 837.3790285 | I122: 2477844.564 | O122: - Unit classiche | P122: 270326 | Q122: 673820.3658 | R122: 26705.53992 | S122: 8293760.296 | T122: 7361753.483 | U122: 3403.048988 | V122: 16359442.73 | X122: 7903056 | Z122: 24262498.73 | AB122: - Unit classiche | AC122: 0.5420238228 | AD122: 1.485915554 | AE122: 0.4718556821 | AF122: 0.4130170556 | AG122: 0.2033748119 | AH122: 3.267910343 | AI122: 0.3431382803 | AK122: -0.3043338097 | AM122: 0.05630938384 | AO122: - Unit classiche | AP122: 0.4369030091 | AQ122: 1.478553308 | AR122: 0.5328670824 | AS122: 1.117956201 | AT122: 1.000977878 | AU122: 2.111809004 | AV122: 1.074654948 | AX122: 0.2843338705 | AZ122: 0.7282449232
B123: - Unit protette | C123: 2751 | D123: 21.00950968 | E123: 33500.16341 | F123: 103655.9185 | G123: 443.2006089 | H123: 0 | I123: 137620.292 | O123: - Unit protette | P123: 26733 | Q123: 100.3011693 | R123: 180135.0743 | S123: 1032867.752 | T123: 3534.54321 | U123: 8.02827916 | V123: 1216645.699 | X123: 778392 | Z123: 1995037.699 | AB123: - Unit protette | AC123: -0.687457396 | AD123: 0.3920424416 | AE123: (…) | AF123: -0.5102048203 | AG123: -0.09551950479 | AH123: n.d. | AI123: -0.3640183369 | AK123: -0.4622279129 | AM123: -0.3636625931 | AO123: - Unit protette | AP123: 0.4081858407 | AQ123: -0.3214778534 | AR123: (…) | AS123: 0.4931676393 | AT123: 0.03679214555 | AU123: -0.113081825 | AV123: 0.696140131 | AX123: -0.3130396718 | AZ123: 0.07816646424
B124: - Unit garantite(**) | C124: 168 | D124: 504.2282322 | E124: 11.00498126 | F124: 0 | G124: 1637.741302 | H124: 0 | I124: 2152.974515 | O124: - Unit garantite(**) | P124: 888 | Q124: 2644.715364 | R124: 24.04712769 | S124: 7.033197941 | T124: 20378.40971 | U124: 0 | V124: 23054.2054 | X124: 479646 | Z124: 502700.2054 | AB124: - Unit garantite(**) | AC124: -0.2533333333 | AD124: -0.1418916456 | AE124: n.d. | AF124: n.d. | AG124: n.d. | AH124: n.d. | AI124: 2.663986466 | AK124: 0.07563789282 | AM124: 0.09280939843 | AO124: - Unit garantite(**) | AP124: 0.07766990291 | AQ124: -0.07486274356 | AR124: 2.986900369 | AS124: -0.1252474145 | AT124: n.d. | AU124: n.d. | AV124: (…) | AX124: -0.02987166651 | AZ124: 0.01088385058
B125: - Index linked | C125: 1 | D125: 0 | E125: 0 | F125: 36.0163023 | G125: 0 | H125: 0 | I125: 36.0163023 | O125: - Index linked | P125: 3 | Q125: 43.14599417 | R125: 0 | S125: 38.02309273 | T125: 20.06790426 | U125: 0 | V125: 101.2369912 | X125: 0 | Z125: 101.2369912 | AB125: - Index linked | AC125: n.d. | AD125: n.d. | AE125: n.d. | AF125: n.d. | AG125: n.d. | AH125: n.d. | AI125: n.d. | AK125: n.d. | AM125: n.d. | AO125: - Index linked | AP125: -0.9966216216 | AQ125: (…) | AR125: n.d. | AS125: -0.9981273188 | AT125: n.d. | AU125: n.d. | AV125: -0.9950144545 | AX125: n.d. | AZ125: -0.9950144545
B126: Ramo IV | C126: 1704 | D126: 340.1539662 | E126: 7.003169892 | F126: 386.1747969 | G126: 0 | H126: 0 | I126: 733.331933 | O126: Ramo IV | P126: 11596 | Q126: 1689.086607 | R126: 21.05248411 | S126: 3661.439448 | T126: 0 | U126: 5.015648503 | V126: 5376.594188 | X126: 0 | Z126: 5376.594188 | AB126: Ramo IV | AC126: -0.1539225422 | AD126: 0.5297169688 | AE126: 1.320070736 | AF126: -0.01839900902 | AG126: n.d. | AH126: n.d. | AI126: 0.1850953655 | AK126: n.d. | AM126: 0.1850953655 | AO126: Ramo IV | AP126: -0.2597982893 | AQ126: 0.6679249571 | AR126: 1.093478412 | AS126: 0.1332076445 | AT126: n.d. | AU126: n.d. | AV126: 0.2639556699 | AX126: n.d. | AZ126: 0.2639556699
B127: Ramo V | C127: 1279 | D127: 30138.64186 | E127: 45337.52143 | F127: 109769.6858 | G127: 3060.385243 | H127: -1821.824625 | I127: 186484.4097 | O127: Ramo V | P127: 9140 | Q127: 271880.2848 | R127: 281342.4383 | S127: 1096098.108 | T127: 21120.06646 | U127: 18205.22236 | V127: 1688646.12 | X127: 0 | Z127: 1688646.12 | AB127: Ramo V | AC127: -0.4800813008 | AD127: -0.551442535 | AE127: -0.7188214842 | AF127: 1.072971703 | AG127: 0.5208063675 | AH127: -4.089845546 | AI127: -0.3433323368 | AK127: n.d. | AM127: -0.3433323368 | AO127: Ramo V | AP127: -0.4254463163 | AQ127: -0.09984886773 | AR127: -0.5388680062 | AS127: 1.268098228 | AT127: 0.9695990369 | AU127: (…) | AV127: 0.1994499764 | AX127: n.d. | AZ127: 0.1994499764
B128: Ramo VI | C128: 4208 | D128: 2014.912023 | E128: 226.1023422 | F128: 4361.009953 | G128: 1058.479107 | H128: 0 | I128: 7660.503425 | O128: Ramo VI | P128: 24682 | Q128: 13902.16103 | R128: 863.3360466 | S128: 22933.26295 | T128: 3593.536759 | U128: 5.026407515 | V128: 41297.32319 | X128: 0 | Z128: 41297.32319 | AB128: Ramo VI | AC128: 2.100957996 | AD128: 0.3377104101 | AE128: -0.06368573868 | AF128: 0.2962472595 | AG128: 0.9057723903 | AH128: -1 | AI128: 0.3504649655 | AK128: n.d. | AM128: 0.3504649655 | AO128: Ramo VI | AP128: 1.237106861 | AQ128: 0.06523135783 | AR128: -0.6809138308 | AS128: 0.3122137171 | AT128: -0.09454007546 | AU128: -0.8484433019 | AV128: 0.1090945153 | AX128: n.d. | AZ128: 0.1090945153
B129: Totale | C129: 320902 | D129: 703464.4139 | E129: 224252.5049 | F129: 5013401.286 | G129: 1376864.219 | H129: 17080.73137 | I129: 7335063.155 | O129: Totale | P129: 2079024 | Q129: 5091951.901 | R129: 1436322.315 | S129: 37776649.6 | T129: 9257177.827 | U129: 198120.4754 | V129: 53760222.12 | X129: 9161094 | Z129: 62921316.12 | AB129: Totale | AC129: 0.1007361063 | AD129: -0.1077237022 | AE129: -0.2311300957 | AF129: -0.05607259233 | AG129: 0.1340340596 | AH129: 0.2449367538 | AI129: -0.03728244248 | AK129: -0.2830533619 | AM129: -0.07894244648 | AO129: Totale | AP129: 0.07871296864 | AQ129: 0.1322402813 | AR129: 0.007340507557 | AS129: 0.08663089218 | AT129: 0.6725666565 | AU129: 1.102899515 | AV129: 0.1607029532 | AX129: 0.1751223469 | AZ129: 0.1627803101
B130: Forme pens. individuali | C130: 24236 | D130: 27785.57677 | E130: 13961.31941 | F130: 29031.17658 | G130: 7810.535335 | H130: 1174.531636 | I130: 79763.13973 | O130: Forme pens. individuali | P130: 154501 | Q130: 157610.6441 | R130: 87947.64284 | S130: 192446.595 | T130: 38452.95244 | U130: 8862.727956 | V130: 485320.5623 | X130: 480261 | Z130: 965581.5623 | AB130: Forme pens. individuali | AC130: 0.01071771133 | AD130: -0.1529877897 | AE130: -0.01667633798 | AF130: 0.02121493427 | AG130: 0.2325540241 | AH130: -0.0005761824523 | AI130: -0.03833175242 | AK130: 0.07336796262 | AM130: 0.01922496547 | AO130: Forme pens. individuali | AP130: 0.004296671867 | AQ130: -0.1662979895 | AR130: -0.1515637603 | AS130: 0.2114039594 | AT130: 0.2992915966 | AU130: 0.1010294467 | AV130: -0.007960405683 | AX130: -0.03242827239 | AZ130: -0.02028299399
B131: Forme di puro rischio | C131: 63841 | D131: 6476.931697 | E131: 558.2526857 | F131: 19377.77109 | G131: 845.3826513 | H131: 1626.736321 | I131: 28885.07445 | O131: Forme di puro rischio | P131: 354835 | Q131: 33650.28766 | R131: 2596.673803 | S131: 100865.7167 | T131: 5267.038623 | U131: 4010.844799 | V131: 146390.5616 | X131: 0 | Z131: 146390.5616 | AB131: Forme di puro rischio | AC131: 0.127355242 | AD131: 0.1050990517 | AE131: 1.010247625 | AF131: -0.3615479138 | AG131: 0.4511175218 | AH131: (…) | AI131: -0.2261815033 | AK131: -1 | AM131: -0.2397058208 | AO131: Forme di puro rischio | AP131: 0.1647682511 | AQ131: 0.07796643188 | AR131: 0.4414360241 | AS131: -0.08201171477 | AT131: 0.7221311711 | AU131: 1.477540883 | AV131: -0.008006755524 | AX131: -1 | AZ131: -0.0942138589
B132: Altre forme | C132: 232825 | D132: 669201.9054 | E132: 209732.9328 | F132: 4964992.338 | G132: 1368208.301 | H132: 14279.46341 | I132: 7226414.941 | O132: Altre forme | P132: 1569689 | Q132: 4900690.97 | R132: 1345777.998 | S132: 37483337.29 | T132: 9213457.836 | U132: 185246.9027 | V132: 53128510.99 | X132: 8680833 | Z132: 61809343.99 | AB132: Altre forme | AC132: 0.1038179086 | AD132: -0.1074069081 | AE132: -0.2433584505 | AF132: -0.05472571256 | AG132: 0.1333638923 | AH132: 0.1619348856 | AI132: -0.03633053 | AK132: -0.3041616681 | AM132: -0.08013486252 | AO132: Altre forme | AP132: 0.06866039686 | AQ132: 0.1458322943 | AR132: 0.01922314101 | AS132: 0.08659344382 | AT132: 0.6745469339 | AU132: 1.191113817 | AV132: 0.1630542907 | AX132: 0.1915281419 | AZ132: 0.1669708905
B133: Totale | C133: 320902 | D133: 703464.4139 | E133: 224252.5049 | F133: 5013401.286 | G133: 1376864.219 | H133: 17080.73137 | I133: 7335063.155 | O133: Totale | P133: 2079025 | Q133: 5091951.901 | R133: 1436322.315 | S133: 37776649.6 | T133: 9257177.827 | U133: 198120.4754 | V133: 53760222.12 | X133: 9161094 | Z133: 62921316.12 | AB133: Totale | AC133: 0.1007323306 | AD133: -0.1077237022 | AE133: -0.2311300957 | AF133: -0.05607259233 | AG133: 0.1340340596 | AH133: 0.2449367538 | AI133: -0.03728244248 | AK133: -0.2830533619 | AM133: -0.07894244648 | AO133: Totale | AP133: 0.07871404719 | AQ133: 0.1322402813 | AR133: 0.007340507557 | AS133: 0.08663089218 | AT133: 0.6725666565 | AU133: 1.102899515 | AV133: 0.1607029532 | AX133: 0.1751223469 | AZ133: 0.1627803101
AB134: (...) Il dato relativo alla variazione percentuale non è significativo.
B135: (*) Le polizze che prevedono una rateazione del premio periodico devono essere indicate secondo l'intero importo di tariffa su base annua, comprensivo di eventuali sovrappremi e garanzie accessorie. | AB135: (*) Le polizze che prevedono una rateazione del premio periodico devono essere indicate secondo l'intero importo di tariffa su base annua, comprensivo di eventuali sovrappremi e garanzie accessorie.
B136: (**) Sono da intendersi tutte le nuove polizze unit-linked che prevedono una garanzia finanziaria di rendimento ovvero una garanzia del capitale investito. | AB136: (**) Sono da intendersi tutte le nuove polizze unit-linked che prevedono una garanzia finanziaria di rendimento ovvero una garanzia del capitale investito.
B137: Luglio | O137: Luglio | Z137: Tabella 2. | AB137: Luglio | AM137: Tabella 2. | AO137: Luglio | AZ137: Tabella 2.
C139: Premi imponibili* raccolti da: | P139: Premi imponibili* raccolti da: | AC139: Premi imponibili* raccolti da: | AP139: Premi imponibili* raccolti da:
C140: Imprese italiane ed extra-U.E. | P140: Imprese italiane ed extra-U.E. | AC140: Imprese italiane ed extra-U.E. | AP140: Imprese italiane ed extra-U.E.
C141: Numero polizze/Adesioni | D141: Agenti | E141: Agenzie in Economia | F141: Sp. bancari e postali | G141: Promotori finanziari | H141: Altre forme (inclusi Broker) | I141: Imprese italiane ed extra-U.E. | P141: Numero polizze/Adesioni | Q141: Agenti | R141: Agenzie in Economia | S141: Sp. bancari e postali | T141: Promotori finanziari | U141: Altre forme (inclusi Broker) | V141: Imprese italiane ed extra-U.E. | X141: Imprese U.E. | Z141: Totale imprese | AC141: Numero polizze/Adesioni | AD141: Agenti | AE141: Agenzie in Economia | AF141: Sp. bancari e postali | AG141: Promotori finanziari | AH141: Altre forme (inclusi Broker) | AI141: Imprese italiane ed extra-U.E. | AK141: Imprese U.E. | AM141: Totale imprese | AP141: Numero polizze/Adesioni | AQ141: Agenti | AR141: Agenzie in Economia | AS141: Sp. bancari e postali | AT141: Promotori finanziari | AU141: Altre forme (inclusi Broker) | AV141: Imprese italiane ed extra-U.E. | AX141: Imprese U.E. | AZ141: Totale imprese
B142: Ramo I | C142: 288569 | D142: 611177.6415 | E142: 152074.8347 | F142: 4334081.765 | G142: 282539.8879 | H142: 25271.43878 | I142: 5405145.568 | O142: Ramo I | P142: 2024225 | Q142: 4739049.482 | R142: 1099305.661 | S142: 31661365.45 | T142: 2129317.608 | U142: 201765.5725 | V142: 39830803.77 | X142: 0 | Z142: 39830803.77 | AB142: Ramo I | AC142: -0.08704386836 | AD142: -0.1686803295 | AE142: 0.08993230318 | AF142: -0.2210361541 | AG142: -0.1479834013 | AH142: 0.6743165729 | AI142: -0.2034070545 | AK142: -1 | AM142: -0.2035272532 | AO142: Ramo I | AP142: 0.01619404338 | AQ142: 0.02102672399 | AR142: 0.2039017919 | AS142: -0.1004500598 | AT142: -0.01836231376 | AU142: 0.8951891195 | AV142: -0.07428521925 | AX142: -1 | AZ142: -0.07462823008
B143: Ramo III | C143: 39714 | D143: 121521.0049 | E143: 36842.67635 | F143: 1288359.159 | G143: 1074339.285 | H143: 597.2703465 | I143: 2521659.396 | O143: Ramo III | P143: 337664 | Q143: 798129.5332 | R143: 243707.3377 | S143: 10615032.26 | T143: 8460025.789 | U143: 4008.347613 | V143: 20120903.27 | X143: 10510946 | Z143: 30631849.27 | AB143: Ramo III | AC143: 0.09011556092 | AD143: 1.076109445 | AE143: (…) | AF143: 0.1341779826 | AG143: -0.1767228872 | AH143: 3.12226854 | AI143: 0.006460553699 | AK143: -0.1831262584 | AM143: -0.0688857214 | AO143: Ramo III | AP143: 0.3767705844 | AQ143: 1.393895807 | AR143: 4.375758549 | AS143: 0.841637869 | AT143: 0.696265618 | AU143: 2.213020613 | AV143: 0.8075913394 | AX143: 0.1142266839 | AZ143: 0.4895329545
B144: - Unit classiche | C144: 36481 | D144: 120626.6 | E144: 3084.396111 | F144: 1179770.007 | G144: 966627.5312 | H144: 592.2680823 | I144: 2270700.803 | O144: - Unit classiche | P144: 306807 | Q144: 794446.9659 | R144: 29789.93603 | S144: 9473530.304 | T144: 8328381.014 | U144: 3995.31707 | V144: 18630143.54 | X144: 8892309 | Z144: 27522452.54 | AB144: - Unit classiche | AC144: 0.1185344167 | AD144: 1.095591119 | AE144: 0.3820903154 | AF144: 0.2002174739 | AG144: -0.2587393957 | AH144: 3.174716947 | AI144: -0.03248086475 | AK144: -0.1887891285 | AM144: -0.08592800937 | AO144: - Unit classiche | AP144: 0.389864369 | AQ144: 1.411635877 | AR144: 0.515746242 | AS144: 0.9338116828 | AT144: 0.6713219707 | AU144: 2.233864551 | AV144: 0.8207170568 | AX144: 0.2060794219 | AZ144: 0.5633123854
B145: - Unit protette | C145: 3053 | D145: 16.00724547 | E145: 33744.2739 | F145: 108589.1514 | G145: 106696.2947 | H145: 5.002264209 | I145: 249050.7295 | O145: - Unit protette | P145: 29786 | Q145: 116.3084148 | R145: 213879.3482 | S145: 1141456.903 | T145: 110230.8379 | U145: 13.03054337 | V145: 1465696.428 | X145: 1072303 | Z145: 2537999.428 | AB145: - Unit protette | AC145: -0.1259662182 | AD145: -0.2768610693 | AE145: (…) | AF145: -0.2901619856 | AG145: (…) | AH145: 0.6571933829 | AI145: 0.5803849 | AK145: -0.2055965641 | AM145: 0.0291832404 | AO145: - Unit protette | AP145: 0.3251768474 | AQ145: -0.3156668711 | AR145: (…) | AS145: 0.3513057193 | AT145: (…) | AU145: 0.07954543935 | AV145: 0.6752898695 | AX145: -0.2865928667 | AZ145: 0.06729924172
B146: - Unit garantite(**) | C146: 180 | D146: 878.397595 | E146: 14.00633978 | F146: 0 | G146: 1015.459634 | H146: 0 | I146: 1907.863569 | O146: - Unit garantite(**) | P146: 1068 | Q146: 3523.112959 | R146: 38.05346747 | S146: 7.033197941 | T146: 21393.86935 | U146: 0 | V146: 24962.06897 | X146: 546334 | Z146: 571296.069 | AB146: - Unit garantite(**) | AC146: -0.4427244582 | AD146: -0.07422113033 | AE146: 2.480106104 | AF146: n.d. | AG146: n.d. | AH146: n.d. | AI146: 1.002281593 | AK146: 0.05842208009 | AM146: 0.07248327138 | AO146: - Unit garantite(**) | AP146: -0.06887532694 | AQ146: -0.07470285704 | AR146: 2.784071858 | AS146: -0.1252474145 | AT146: n.d. | AU146: n.d. | AV146: (…) | AX146: -0.01989157227 | AZ146: 0.01790372751
B147: - Index linked | C147: 0 | D147: 0 | E147: 0 | F147: 0 | G147: 0 | H147: 0 | I147: 0 | O147: - Index linked | P147: 3 | Q147: 43.14599417 | R147: 0 | S147: 38.02309273 | T147: 20.06790426 | U147: 0 | V147: 101.2369912 | X147: 0 | Z147: 101.2369912 | AB147: - Index linked | AC147: n.d. | AD147: n.d. | AE147: n.d. | AF147: n.d. | AG147: n.d. | AH147: n.d. | AI147: n.d. | AK147: n.d. | AM147: n.d. | AO147: - Index linked | AP147: -0.9966216216 | AQ147: (…) | AR147: n.d. | AS147: -0.9981273188 | AT147: n.d. | AU147: n.d. | AV147: -0.9950144545 | AX147: n.d. | AZ147: -0.9950144545
B148: Ramo IV | C148: 1364 | D148: 344.1557776 | E148: 4.001811367 | F148: 343.1553247 | G148: 0 | H148: 0 | I148: 691.3129136 | O148: Ramo IV | P148: 12960 | Q148: 2033.242385 | R148: 25.05429548 | S148: 4004.594773 | T148: 0 | U148: 5.015648503 | V148: 6067.907102 | X148: 0 | Z148: 6067.907102 | AB148: Ramo IV | AC148: -0.4105445117 | AD148: 0.3309132849 | AE148: n.d. | AF148: -0.2454637208 | AG148: n.d. | AH148: -1 | AI148: -0.03905961323 | AK148: n.d. | AM148: -0.03905961323 | AO148: Ramo IV | AP148: -0.2791991101 | AQ148: 0.599374363 | AR148: 1.491422221 | AS148: 0.08648388347 | AT148: n.d. | AU148: -0.1691862761 | AV148: 0.2201220722 | AX148: n.d. | AZ148: 0.2201220722
B149: Ramo V | C149: 1340 | D149: 28000.67413 | E149: 13738.21842 | F149: 90657.03471 | G149: 5103.309946 | H149: 1821.824625 | I149: 139321.0618 | O149: Ramo V | P149: 10480 | Q149: 299880.9589 | R149: 295080.6567 | S149: 1186755.143 | T149: 26223.37641 | U149: 20027.04698 | V149: 1827967.182 | X149: 0 | Z149: 1827967.182 | AB149: Ramo V | AC149: -0.5096963044 | AD149: -0.407479357 | AE149: -0.9235929059 | AF149: -0.3318878136 | AG149: n.d. | AH149: n.d. | AI149: -0.6159321057 | AK149: n.d. | AM149: -0.6159321057 | AO149: Ramo V | AP149: -0.4377984014 | AQ149: -0.1414688183 | AR149: -0.6264402314 | AS149: 0.9173410563 | AT149: 1.44551962 | AU149: (…) | AV149: 0.03239896777 | AX149: n.d. | AZ149: 0.03239896777
B150: Ramo VI | C150: 4806 | D150: 2208.999875 | E150: 278.12589 | F150: 4208.905105 | G150: 493.223251 | H150: 258.1168332 | I150: 7447.370954 | O150: Ramo VI | P150: 29488 | Q150: 16111.1609 | R150: 1141.461937 | S150: 27142.16805 | T150: 4086.76001 | U150: 263.1432407 | V150: 48744.69414 | X150: 0 | Z150: 48744.69414 | AB150: Ramo VI | AC150: 1.852225519 | AD150: 0.3241554847 | AE150: -0.5037345489 | AF150: 0.06116487667 | AG150: -0.4845448973 | AH150: (…) | AI150: 0.04102847664 | AK150: n.d. | AM150: 0.04102847664 | AO150: Ramo VI | AP150: 1.318603554 | AQ150: 0.09457735365 | AR150: -0.6505111251 | AS150: 0.2657774494 | AT150: -0.1703040117 | AU150: (…) | AV150: 0.09812480382 | AX150: n.d. | AZ150: 0.09812480382
B151: Totale | C151: 335793 | D151: 763252.4761 | E151: 202937.8571 | F151: 5717650.019 | G151: 1362475.707 | H151: 27948.65059 | I151: 8074264.709 | O151: Totale | P151: 2414817 | Q151: 5855204.377 | R151: 1639260.172 | S151: 43494299.62 | T151: 10619653.53 | U151: 226069.126 | V151: 61834486.83 | X151: 10510946 | Z151: 72345432.83 | AB151: Totale | AC151: -0.06528135395 | AD151: -0.09449915094 | AE151: -0.377088834 | AF151: -0.1640813079 | AG151: -0.1679662829 | AH151: 0.8331163866 | AI151: -0.1642782036 | AK151: -0.1836321466 | AM151: -0.1671064585 | AO151: Totale | AP151: 0.0560898361 | AQ151: 0.09645095159 | AR151: -0.06415970544 | AS151: 0.04541311182 | AT151: 0.4806609638 | AU151: 1.065321656 | AV151: 0.1046137687 | AX151: 0.1123460463 | AZ151: 0.1057304969
B152: Forme pens. individuali | C152: 28997 | D152: 34416.57821 | E152: 14684.64681 | F152: 37710.06896 | G152: 12228.53508 | H152: 1318.596845 | I152: 100358.4259 | O152: Forme pens. individuali | P152: 183498 | Q152: 192027.2223 | R152: 102632.2897 | S152: 230156.664 | T152: 50681.48753 | U152: 10181.3248 | V152: 585678.9882 | X152: 547523 | Z152: 1133201.988 | AB152: Forme pens. individuali | AC152: 0.06018061497 | AD152: -0.003685607057 | AE152: -0.1612315699 | AF152: 0.06579777113 | AG152: 0.4995095412 | AH152: -0.08611678719 | AI152: 0.03429059354 | AK152: 0.06753217896 | AM152: 0.04737780004 | AO152: Forme pens. individuali | AP152: 0.01273242048 | AQ152: -0.1411752706 | AR152: -0.1529606724 | AS152: 0.1848815046 | AT152: 0.3425437046 | AU152: 0.07258293516 | AV152: -0.0009673288838 | AX152: -0.02116868443 | AZ152: -0.01083099125
B153: Forme di puro rischio | C153: 76495 | D153: 7658.466504 | E153: 584.2644596 | F153: 19220.7 | G153: 964.4365394 | H153: 1298.587789 | I153: 29726.45529 | O153: Forme di puro rischio | P153: 431330 | Q153: 41308.75416 | R153: 3180.938263 | S153: 120086.4167 | T153: 6231.475162 | U153: 5309.432588 | V153: 176117.0169 | X153: 0 | Z153: 176117.0169 | AB153: Forme di puro rischio | AC153: 0.1644669742 | AD153: 0.264366978 | AE153: 0.2122767461 | AF153: -0.04203402221 | AG153: 0.4221374668 | AH153: 3.710300024 | AI153: 0.07872470393 | AK153: n.d. | AM153: 0.07872470393 | AO153: Forme di puro rischio | AP153: 0.1647148092 | AQ153: 0.108257489 | AR153: 0.3930675835 | AS153: -0.07583879423 | AT153: 0.6676849965 | AU153: 1.80244364 | AV153: 0.005640667767 | AX153: -1 | AZ153: -0.06902186714
B154: Altre forme | C154: 230300 | D154: 721177.4314 | E154: 187668.9459 | F154: 5660719.25 | G154: 1349282.735 | H154: 25331.46595 | I154: 7944179.828 | O154: Altre forme | P154: 1799989 | Q154: 5621868.401 | R154: 1533446.944 | S154: 43144056.54 | T154: 10562740.57 | U154: 210578.3686 | V154: 61072690.82 | X154: 9963423 | Z154: 71036113.82 | AB154: Altre forme | AC154: -0.1348740064 | AD154: -0.1011185272 | AE154: -0.3902894358 | AF154: -0.1656410881 | AG154: -0.1715541113 | AH154: 0.872523754 | AI154: -0.1670006784 | AK154: -0.1935820552 | AM154: -0.1708000757 | AO154: Altre forme | AP154: 0.03743252325 | AQ154: 0.1068247717 | AR154: -0.05819260129 | AS154: 0.04513851937 | AT154: 0.4812941565 | AU154: 1.147168006 | AV154: 0.1060486452 | AX154: 0.122520319 | AZ154: 0.1083297324
B155: Totale | C155: 335792 | D155: 763252.4761 | E155: 202937.8571 | F155: 5717650.019 | G155: 1362475.707 | H155: 27948.65059 | I155: 8074264.709 | O155: Totale | P155: 2414817 | Q155: 5855204.377 | R155: 1639260.172 | S155: 43494299.62 | T155: 10619653.53 | U155: 226069.126 | V155: 61834486.83 | X155: 10510946 | Z155: 72345432.83 | AB155: Totale | AC155: -0.06528673945 | AD155: -0.09449915094 | AE155: -0.377088834 | AF155: -0.1640813079 | AG155: -0.1679662829 | AH155: 0.8331163866 | AI155: -0.1642782036 | AK155: -0.1836321466 | AM155: -0.1671064585 | AO155: Totale | AP155: 0.0560898361 | AQ155: 0.09645095159 | AR155: -0.06415970544 | AS155: 0.04541311182 | AT155: 0.4806609638 | AU155: 1.065321656 | AV155: 0.1046137687 | AX155: 0.1123460463 | AZ155: 0.1057304969
J157: 0
B159: Agosto | O159: Agosto | Z159: Tabella 2. | AB159: Agosto | AM159: Tabella 2. | AO159: Agosto | AZ159: Tabella 2.
C161: Premi imponibili* raccolti da: | P161: Premi imponibili* raccolti da: | AC161: Premi imponibili* raccolti da: | AP161: Premi imponibili* raccolti da:
C162: Imprese italiane ed extra-U.E. | P162: Imprese italiane ed extra-U.E. | AC162: Imprese italiane ed extra-U.E. | AP162: Imprese italiane ed extra-U.E.
C163: Numero polizze/Adesioni | D163: Agenti | E163: Agenzie in Economia | F163: Sp. bancari e postali | G163: Promotori finanziari | H163: Altre forme (inclusi Broker) | I163: Imprese italiane ed extra-U.E. | P163: Numero polizze/Adesioni | Q163: Agenti | R163: Agenzie in Economia | S163: Sp. bancari e postali | T163: Promotori finanziari | U163: Altre forme (inclusi Broker) | V163: Imprese italiane ed extra-U.E. | X163: Imprese U.E. | Z163: Totale imprese | AC163: Numero polizze/Adesioni | AD163: Agenti | AE163: Agenzie in Economia | AF163: Sp. bancari e postali | AG163: Promotori finanziari | AH163: Altre forme (inclusi Broker) | AI163: Imprese italiane ed extra-U.E. | AK163: Imprese U.E. | AM163: Totale imprese | AP163: Numero polizze/Adesioni | AQ163: Agenti | AR163: Agenzie in Economia | AS163: Sp. bancari e postali | AT163: Promotori finanziari | AU163: Altre forme (inclusi Broker) | AV163: Imprese italiane ed extra-U.E. | AX163: Imprese U.E. | AZ163: Totale imprese
B164: Ramo I | C164: 203969 | D164: 248705.5733 | E164: 101330.8661 | F164: 3327948.352 | G164: 230181.1885 | H164: 15923.20743 | I164: 3924089.187 | O164: Ramo I | P164: 2228194 | Q164: 4987755.055 | R164: 1200636.527 | S164: 34989313.8 | T164: 2359498.796 | U164: 217688.78 | V164: 43754892.96 | X164: 0 | Z164: 43754892.96 | AB164: Ramo I | AC164: 0.0429675915 | AD164: -0.1587569608 | AE164: 0.1126648648 | AF164: -0.05972943744 | AG164: -0.02545172618 | AH164: 0.4288320552 | AI164: -0.05973800422 | AK164: -1 | AM164: -0.05974341136 | AO164: Ramo I | AP164: 0.01858760531 | AQ164: 0.01026101127 | AR164: 0.195627471 | AS164: -0.09672939456 | AT164: -0.01905845935 | AU164: 0.850997719 | AV164: -0.07299897504 | AX164: -1 | AZ164: -0.07331257309
B165: Ramo III | C165: 31090 | D165: 54812.81029 | E165: 28409.85935 | F165: 904682.4926 | G165: 748238.6803 | H165: 499.225968 | I165: 1736643.069 | O165: Ramo III | P165: 368754 | Q165: 852942.3435 | R165: 272117.197 | S165: 11519714.76 | T165: 9208264.469 | U165: 4507.573581 | V165: 21857546.34 | X165: 11392380 | Z165: 33249926.34 | AB165: Ramo III | AC165: 0.4556606424 | AD165: 1.085096231 | AE165: 2.271080494 | AF165: 0.4660077471 | AG165: 0.1425401572 | AH165: (…) | AI165: 0.3286714731 | AK165: -0.07289300079 | AM165: 0.1595759887 | AO165: Ramo III | AP165: 0.3830902872 | AQ165: 1.371327214 | AR165: 4.037373118 | AS165: 0.8053107813 | AT165: 0.6319961762 | AU165: 2.38905753 | AV165: 0.7572654148 | AX165: 0.09709464514 | AZ165: 0.4568909462
B166: - Unit classiche | C166: 27850 | D166: 54242.55217 | E166: 2443.10584 | F166: 834567.756 | G166: 647273.98 | H166: 496.2246095 | I166: 1539023.619 | O166: - Unit classiche | P166: 334657 | Q166: 848689.518 | R166: 32233.04187 | S166: 10308098.06 | T166: 8975654.994 | U166: 4491.541679 | V166: 20169167.16 | X166: 9706598 | Z166: 29875765.16 | AB166: - Unit classiche | AC166: 0.3994974874 | AD166: 1.081327371 | AE166: 0.6462047131 | AF166: 0.4834080723 | AG166: -0.01120939403 | AH166: (…) | AI166: 0.236322953 | AK166: -0.08297380421 | AM166: 0.1033877868 | AO166: - Unit classiche | AP166: 0.3906609709 | AQ166: 1.38742004 | AR166: 0.5249057561 | AS166: 0.8874145041 | AT166: 0.5920713265 | AU166: 2.413142879 | AV166: 0.7573322611 | AX166: 0.1750088853 | AZ166: 0.5136148965
B167: - Unit protette | C167: 3137 | D167: 17.00769831 | E167: 25966.75351 | F167: 70114.73651 | G167: 100319.4083 | H167: 3.001358525 | I167: 196420.9073 | O167: - Unit protette | P167: 32923 | Q167: 133.3161131 | R167: 239846.1017 | S167: 1211571.64 | T167: 210550.2461 | U167: 16.03190189 | V167: 1662117.336 | X167: 1072760 | Z167: 2734877.336 | AB167: - Unit protette | AC167: 1.245526127 | AD167: 0.2073997655 | AE167: 2.605954292 | AF167: 0.2864475 | AG167: (…) | AH167: 0.4914938279 | AI167: 2.168156642 | AK167: -2.920168067 | AM167: 2.187764994 | AO167: - Unit protette | AP167: 0.3790315825 | AQ167: -0.2756330094 | AR167: (…) | AS167: 0.3473745523 | AT167: (…) | AU167: 0.1384098533 | AV167: 0.7740800194 | AX167: -0.2861757944 | AZ167: 0.1209778346
B168: - Unit garantite(**) | C168: 103 | D168: 553.2504215 | E168: 0 | F168: 0 | G168: 645.2920829 | H168: 0 | I168: 1198.542504 | O168: - Unit garantite(**) | P168: 1171 | Q168: 4076.363381 | R168: 38.05346747 | S168: 7.033197941 | T168: 22039.16143 | U168: 0 | V168: 26160.61148 | X168: 613022 | Z168: 639182.6115 | AB168: - Unit garantite(**) | AC168: 0.6885245902 | AD168: 1.605990796 | AE168: n.d. | AF168: -1 | AG168: n.d. | AH168: n.d. | AI168: 4.592518328 | AK168: 0.05842208009 | AM168: 0.07379205846 | AO168: - Unit garantite(**) | AP168: -0.03062913907 | AQ168: 0.014059311 | AR168: 2.784071858 | AS168: -0.3003555114 | AT168: n.d. | AU168: n.d. | AV168: (…) | AX168: -0.01193851351 | AZ168: 0.02356186882
B169: - Index linked | C169: 0 | D169: 0 | E169: 0 | F169: 0 | G169: 0 | H169: 0 | I169: 0 | O169: - Index linked | P169: 3 | Q169: 43.14599417 | R169: 0 | S169: 38.02309273 | T169: 20.06790426 | U169: 0 | V169: 101.2369912 | X169: 0 | Z169: 101.2369912 | AB169: - Index linked | AC169: n.d. | AD169: n.d. | AE169: n.d. | AF169: n.d. | AG169: n.d. | AH169: n.d. | AI169: n.d. | AK169: n.d. | AM169: n.d. | AO169: - Index linked | AP169: -0.9966216216 | AQ169: (…) | AR169: n.d. | AS169: -0.9981273188 | AT169: n.d. | AU169: n.d. | AV169: -0.9950144545 | AX169: n.d. | AZ169: -0.9950144545
B170: Ramo IV | C170: 895 | D170: 148.0670206 | E170: 1.000452842 | F170: 232.1050593 | G170: 0 | H170: 2.000905683 | I170: 383.1734384 | O170: Ramo IV | P170: 13855 | Q170: 2181.309405 | R170: 26.05474832 | S170: 4236.699832 | T170: 0 | U170: 7.016554187 | V170: 6451.08054 | X170: 0 | Z170: 6451.08054 | AB170: Ramo IV | AC170: -0.3679378531 | AD170: -0.1732543575 | AE170: -0.9668556927 | AF170: -0.06605514688 | AG170: n.d. | AH170: -0.005670781375 | AI170: -0.1666781384 | AK170: n.d. | AM170: -0.1666781384 | AO170: Ramo IV | AP170: -0.2856774593 | AQ170: 0.5039677409 | AR170: -0.352531941 | AS170: 0.07684845022 | AT170: n.d. | AU170: -0.1283078091 | AV170: 0.1873858377 | AX170: n.d. | AZ170: 0.1873858377
B171: Ramo V | C171: 920 | D171: 10237.63393 | E171: 9095.116784 | F171: 33130.99631 | G171: 40.01811367 | H171: 6.00271705 | I171: 52509.76785 | O171: Ramo V | P171: 11400 | Q171: 310118.5928 | R171: 304175.7735 | S171: 1219886.139 | T171: 26263.39452 | U171: 20033.0497 | V171: 1880476.95 | X171: 0 | Z171: 1880476.95 | AB171: Ramo V | AC171: -0.1050583658 | AD171: -0.5177510359 | AE171: -0.9356403118 | AF171: -0.6878221598 | AG171: 1.651544583 | AH171: n.d. | AI171: -0.8045709024 | AK171: n.d. | AM171: -0.8045709024 | AO171: Ramo V | AP171: -0.4204077482 | AQ171: -0.1630276535 | AR171: -0.6733621568 | AS171: 0.6823987329 | AT171: 1.445809187 | AU171: (…) | AV171: -0.07787714928 | AX171: n.d. | AZ171: -0.07787714928
B172: Ramo VI | C172: 3376 | D172: 1165.527561 | E172: 63.02852903 | F172: 5260.381042 | G172: 301.1363054 | H172: 64.02898187 | I172: 6854.102419 | O172: Ramo VI | P172: 32864 | Q172: 17276.68846 | R172: 1204.490466 | S172: 32402.54909 | T172: 4387.896315 | U172: 327.1722226 | V172: 55598.79656 | X172: 0 | Z172: 55598.79656 | AB172: Ramo VI | AC172: 1.834592779 | AD172: -0.2282521388 | AE172: -0.7099873112 | AF172: 0.4689848067 | AG172: -0.1065877767 | AH172: (…) | AI172: 0.2136281603 | AK172: n.d. | AM172: 0.2136281603 | AO172: Ramo VI | AP172: 1.362786685 | AQ172: 0.06453595499 | AR172: -0.6542218391 | AS172: 0.2948566075 | AT172: -0.1662231223 | AU172: (…) | AV172: 0.1111616154 | AX172: n.d. | AZ172: 0.1111616154
B173: Totale | C173: 240250 | D173: 315069.6121 | E173: 138899.8712 | F173: 4271254.327 | G173: 978761.0232 | H173: 16494.466 | I173: 5720479.299 | O173: Totale | P173: 2655067 | Q173: 6170273.99 | R173: 1778160.043 | S173: 47765553.94 | T173: 11598414.56 | U173: 242563.592 | V173: 67554966.13 | X173: 11392380 | Z173: 78947346.13 | AB173: Totale | AC173: 0.08927769894 | AD173: -0.08634891627 | AE173: -0.4244164486 | AF173: 0.001134015675 | AG173: 0.09796075585 | AH173: 0.4686889292 | AI173: -0.006041401387 | AK173: -0.07291640372 | AM173: -0.01552276006 | AO173: Totale | AP173: 0.05900947022 | AQ173: 0.08536246259 | AR173: -0.1077817333 | AS173: 0.04129478474 | AT173: 0.4383536361 | AU173: 1.009802447 | AV173: 0.09429770437 | AX173: 0.09540967311 | AZ173: 0.09445802597
B174: Forme pens. individuali | C174: 19136 | D174: 13127.94219 | E174: 12891.83532 | F174: 37385.92224 | G174: 5398.443534 | H174: 1375.622657 | I174: 70179.76594 | O174: Forme pens. individuali | P174: 202634 | Q174: 205155.1645 | R174: 115524.125 | S174: 267542.5862 | T174: 56079.93106 | U174: 11556.94746 | V174: 655858.7542 | X174: 614785 | Z174: 1270643.754 | AB174: Forme pens. individuali | AC174: 0.1683966296 | AD174: 0.0703517643 | AE174: -0.2357335931 | AF174: 0.3847510997 | AG174: 0.2756539381 | AH174: 0.1827012765 | AI174: 0.1406403058 | AK174: 0.06753217896 | AM174: 0.103651716 | AO174: Forme pens. individuali | AP174: 0.02563661303 | AQ174: -0.1301754599 | AR174: -0.1630758076 | AS174: 0.2092716312 | AT174: 0.3358010691 | AU174: 0.08460313345 | AV174: 0.01248282382 | AX174: -0.01218887127 | AZ174: 0.0003936820278
B175: Forme di puro rischio | C175: 51484 | D175: 3202.449546 | E175: 231.1046064 | F175: 11272.10217 | G175: 797.6232336 | H175: 422.1910992 | I175: 15925.47065 | O175: Forme di puro rischio | P175: 482814 | Q175: 44511.20371 | R175: 3412.042869 | S175: 131358.5189 | T175: 7029.098396 | U175: 5731.623687 | V175: 192042.4876 | X175: 0 | Z175: 192042.4876 | AB175: Forme di puro rischio | AC175: 0.6192483095 | AD175: 0.01688429036 | AE175: -0.1854962784 | AF175: 0.3899636856 | AG175: 0.8478813528 | AH175: 1.439575176 | AI175: 0.3110240384 | AK175: n.d. | AM175: 0.3110240384 | AO175: Forme di puro rischio | AP175: 0.2006535265 | AQ175: 0.1011387627 | AR175: 0.3291210665 | AS175: -0.04847571988 | AT175: 0.6863452087 | AU175: 1.772071814 | AV175: 0.02544880639 | AX175: -1 | AZ175: -0.04609063078
B176: Altre forme | C176: 169631 | D176: 298739.2204 | E176: 125776.9313 | F176: 4222596.302 | G176: 972564.9565 | H176: 14696.65225 | I176: 5634374.063 | O176: Altre forme | P176: 1969620 | Q176: 5920607.621 | R176: 1659223.875 | S176: 47366652.84 | T176: 11535305.53 | U176: 225275.0209 | V176: 66707064.88 | X176: 10777595 | Z176: 77484659.88 | AB176: Altre forme | AC176: -0.01594161702 | AD176: -0.09316159713 | AE176: -0.4389169044 | AF176: -0.002058915527 | AG176: 0.09674772954 | AH176: 0.4853260343 | AI176: -0.008307733879 | AK176: -0.08288454108 | AM176: -0.01838574849 | AO176: Altre forme | AP176: 0.03260895209 | AQ176: 0.09464415108 | AR176: -0.1042668305 | AS176: 0.04075051558 | AT176: 0.4387617045 | AU176: 1.08651404 | AV176: 0.09537968744 | AX176: 0.103844109 | AZ176: 0.09654925095
B177: Totale | C177: 240251 | D177: 315069.6121 | E177: 138899.8712 | F177: 4271254.327 | G177: 978761.0232 | H177: 16494.466 | I177: 5720479.299 | O177: Totale | P177: 2655068 | Q177: 6170273.99 | R177: 1778160.043 | S177: 47765553.94 | T177: 11598414.56 | U177: 242563.592 | V177: 67554966.13 | X177: 11392380 | Z177: 78947346.13 | AB177: Totale | AC177: 0.08931680511 | AD177: -0.08634091893 | AE177: -0.4244164486 | AF177: 0.001134015675 | AG177: 0.09796075585 | AH177: 0.4689521351 | AI177: -0.006040532545 | AK177: -0.07291640372 | AM177: -0.01552202151 | AO177: Totale | AP177: 0.05901282589 | AQ177: 0.08536303887 | AR177: -0.1077817333 | AS177: 0.04129478474 | AT177: 0.4383536361 | AU177: 1.009802447 | AV177: 0.09429770437 | AX177: 0.09540967311 | AZ177: 0.09445802597
B181: Settembre | O181: Settembre | Z181: Tabella 2. | AB181: Settembre | AM181: Tabella 2. | AO181: Settembre | AZ181: Tabella 2.
C183: Premi imponibili* raccolti da: | P183: Premi imponibili* raccolti da: | AC183: Premi imponibili* raccolti da: | AP183: Premi imponibili* raccolti da:
C184: Imprese italiane ed extra-U.E. | P184: Imprese italiane ed extra-U.E. | AC184: Imprese italiane ed extra-U.E. | AP184: Imprese italiane ed extra-U.E.
C185: Numero polizze/Adesioni | D185: Agenti | E185: Agenzie in Economia | F185: Sp. bancari e postali | G185: Promotori finanziari | H185: Altre forme (inclusi Broker) | I185: Imprese italiane ed extra-U.E. | P185: Numero polizze/Adesioni | Q185: Agenti | R185: Agenzie in Economia | S185: Sp. bancari e postali | T185: Promotori finanziari | U185: Altre forme (inclusi Broker) | V185: Imprese italiane ed extra-U.E. | X185: Imprese U.E. | Z185: Totale imprese | AC185: Numero polizze/Adesioni | AD185: Agenti | AE185: Agenzie in Economia | AF185: Sp. bancari e postali | AG185: Promotori finanziari | AH185: Altre forme (inclusi Broker) | AI185: Imprese italiane ed extra-U.E. | AK185: Imprese U.E. | AM185: Totale imprese | AP185: Numero polizze/Adesioni | AQ185: Agenti | AR185: Agenzie in Economia | AS185: Sp. bancari e postali | AT185: Promotori finanziari | AU185: Altre forme (inclusi Broker) | AV185: Imprese italiane ed extra-U.E. | AX185: Imprese U.E. | AZ185: Totale imprese
B186: Ramo I | C186: 257374 | D186: 430336.7863 | E186: 118900.8189 | F186: 4013522.668 | G186: 250901.5673 | H186: 21568.76282 | I186: 4835230.603 | O186: Ramo I | P186: 2485568 | Q186: 5418091.842 | R186: 1319537.346 | S186: 39002836.47 | T186: 2610400.364 | U186: 239257.5428 | V186: 48590123.56 | X186: 0 | Z186: 48590123.56 | AB186: Ramo I | AC186: -0.02722826539 | AD186: -0.1806931426 | AE186: -0.1388750017 | AF186: 0.03081295886 | AG186: -0.1346361744 | AH186: -0.2794129677 | AI186: -0.008512078371 | AK186: -1 | AM186: -0.008684861328 | AO186: Ramo I | AP186: 0.01364416211 | AQ186: -0.008100660976 | AR186: 0.1551930829 | AS186: -0.08508043875 | AT186: -0.03149143509 | AU186: 0.6216629032 | AV186: -0.06696013624 | AX186: -1 | AZ186: -0.06726144764
B187: Ramo III | C187: 38765 | D187: 69992.68126 | E187: 22886.35921 | F187: 976770.1221 | G187: 574468.0253 | H187: 2662.205012 | I187: 1646779.393 | O187: Ramo III | P187: 407519 | Q187: 922935.0248 | R187: 295003.5562 | S187: 12496484.88 | T187: 9782732.495 | U187: 7169.778593 | V187: 23504325.73 | X187: 12579694 | Z187: 36084019.73 | AB187: Ramo III | AC187: 0.2588491265 | AD187: 0.2293547249 | AE187: 0.7964204079 | AF187: 0.006334174055 | AG187: -0.178595363 | AH187: (…) | AI187: -0.05356262809 | AK187: 0.153112678 | AM187: 0.02327245346 | AO187: Ramo III | AP187: 0.3702262869 | AQ187: 1.215269078 | AR187: 3.418890607 | AS187: 0.6998234837 | AT187: 0.5426029217 | AU187: 3.377362631 | AV187: 0.6577601192 | AX187: 0.1021481372 | AZ187: 0.4099638442
B188: - Unit classiche | C188: 35333 | D188: 69388.40774 | E188: 2637.193691 | F188: 914048.7321 | G188: 501345.9276 | H188: 2662.205012 | I188: 1490082.466 | O188: - Unit classiche | P188: 369990 | Q188: 918077.9258 | R188: 34870.23556 | S188: 11222146.79 | T188: 9477000.921 | U188: 7153.746691 | V188: 21659249.62 | X188: 10534397 | Z188: 32193646.62 | AB188: - Unit classiche | AC188: 0.3503401361 | AD188: 0.2316044578 | AE188: 0.1865331916 | AF188: 0.02851569872 | AG188: -0.2826517561 | AH188: (…) | AI188: -0.09497954769 | AK188: -0.1437202802 | AM188: -0.1130109021 | AO188: - Unit classiche | AP188: 0.3867067448 | AQ188: 1.229297869 | AR188: 0.4927115085 | AS188: 0.7672120995 | AT188: 0.4955949244 | AU188: 3.410918548 | AV188: 0.6504028963 | AX188: 0.1416169364 | AZ188: 0.4403527072
B189: - Unit protette | C189: 3255 | D189: 17.00769831 | E189: 20249.16552 | F189: 62721.39001 | G189: 72133.65034 | H189: 0 | I189: 155121.2136 | O189: - Unit protette | P189: 36178 | Q189: 150.3238114 | R189: 260095.2672 | S189: 1274293.03 | T189: 282683.8965 | U189: 16.03190189 | V189: 1817238.549 | X189: 1365587 | Z189: 3182825.549 | AB189: - Unit protette | AC189: 0.6988517745 | AD189: 0.2073997655 | AE189: 0.9260430075 | AF189: -0.1646680553 | AG189: (…) | AH189: n.d. | AI189: 0.8016821082 | AK189: -3405.965116 | AM189: 4.207973887 | AO189: - Unit protette | AP189: 0.4027917798 | AQ189: -0.2412915955 | AR189: 4.995018747 | AS189: 0.3079131703 | AT189: (…) | AU189: 0.1384098533 | AV189: 0.7764031015 | AX189: -0.09127405841 | AZ189: 0.2601572961
B190: - Unit garantite(**) | C190: 177 | D190: 587.2658181 | E190: 0 | F190: 0 | G190: 988.4474076 | H190: 0 | I190: 1575.713226 | O190: - Unit garantite(**) | P190: 1348 | Q190: 4663.629199 | R190: 38.05346747 | S190: 7.033197941 | T190: 23027.60884 | U190: 0 | V190: 27736.3247 | X190: 679710 | Z190: 707446.3247 | AB190: - Unit garantite(**) | AC190: 0.1644736842 | AD190: 0.09506801376 | AE190: -1 | AF190: -1 | AG190: n.d. | AH190: n.d. | AI190: -0.7854112744 | AK190: 0.05842208009 | AM190: -0.0296550601 | AO190: - Unit garantite(**) | AP190: -0.008823529412 | AQ190: 0.02359449851 | AR190: 1.702496666 | AS190: -0.9989676328 | AT190: n.d. | AU190: n.d. | AV190: 1.436665739 | AX190: -0.005451863818 | AZ190: 0.01817369066
B191: - Index linked | C191: 0 | D191: 0 | E191: 0 | F191: 0 | G191: 0 | H191: 0 | I191: 0 | O191: - Index linked | P191: 3 | Q191: 43.14599417 | R191: 0 | S191: 38.02309273 | T191: 20.06790426 | U191: 0 | V191: 101.2369912 | X191: 0 | Z191: 101.2369912 | AB191: - Index linked | AC191: -1 | AD191: -1 | AE191: n.d. | AF191: -1 | AG191: n.d. | AH191: -1 | AI191: -1 | AK191: n.d. | AM191: -1 | AO191: - Index linked | AP191: -0.9991299304 | AQ191: -0.06771142049 | AR191: n.d. | AS191: -0.998129821 | AT191: n.d. | AU191: -1 | AV191: -0.9950324228 | AX191: n.d. | AZ191: -0.9950324228
B192: Ramo IV | C192: 1339 | D192: 387.1752498 | E192: 12.0054341 | F192: 357.1616645 | G192: 0 | H192: 0 | I192: 756.3423484 | O192: Ramo IV | P192: 15194 | Q192: 2568.484655 | R192: 38.06018242 | S192: 4593.861497 | T192: 0 | U192: 7.016554187 | V192: 7207.422889 | X192: 0 | Z192: 7207.422889 | AB192: Ramo IV | AC192: -0.2881446039 | AD192: 0.4412187551 | AE192: -0.7564908036 | AF192: -0.02479249712 | AG192: n.d. | AH192: n.d. | AI192: 0.1054601313 | AK192: n.d. | AM192: 0.1054601313 | AO192: Ramo IV | AP192: -0.285895568 | AQ192: 0.4941614461 | AR192: -0.5749495797 | AS192: 0.06819263078 | AT192: n.d. | AU192: -0.1283078091 | AV192: 0.1782227273 | AX192: n.d. | AZ192: 0.1782227273
B193: Ramo V | C193: 1385 | D193: 21020.51466 | E193: 15574.04939 | F193: 47410.45972 | G193: 1040.470955 | H193: 15.00679263 | I193: 85060.50151 | O193: Ramo V | P193: 12785 | Q193: 331139.1075 | R193: 319749.8229 | S193: 1267296.599 | T193: 27303.86548 | U193: 20048.05649 | V193: 1965537.451 | X193: 0 | Z193: 1965537.451 | AB193: Ramo V | AC193: -0.0864116095 | AD193: -0.7512934072 | AE193: -0.8024009632 | AF193: -0.6533031127 | AG193: n.d. | AH193: -0.9659476295 | AI193: -0.7169607587 | AK193: n.d. | AM193: -0.7169607587 | AO193: Ramo V | AP193: -0.3965069625 | AQ193: -0.2722915223 | AR193: -0.6834313495 | AS193: 0.4704606985 | AT193: 1.542704256 | AU193: (…) | AV193: -0.1599608917 | AX193: n.d. | AZ193: -0.1599608917
B194: Ramo VI | C194: 6169 | D194: 1095.495862 | E194: 163.0738132 | F194: 7413.355557 | G194: 521.2359305 | H194: 27.01222673 | I194: 9220.173389 | O194: Ramo VI | P194: 39033 | Q194: 18372.18433 | R194: 1367.564279 | S194: 39815.90465 | T194: 4909.132246 | U194: 354.1844493 | V194: 64818.96995 | X194: 0 | Z194: 64818.96995 | AB194: Ramo VI | AC194: 3.148621385 | AD194: -0.3078254963 | AE194: -0.6094562346 | AF194: 1.359043557 | AG194: -0.5277616017 | AH194: (…) | AI194: 0.4755730575 | AK194: n.d. | AM194: 0.4755730575 | AO194: Ramo VI | AP194: 1.535268901 | AQ194: 0.03144973654 | AR194: -0.6494301818 | AS194: 0.4135872538 | AT194: -0.2289034961 | AU194: (…) | AV194: 0.1516169984 | AX194: n.d. | AZ194: 0.1516169984
B195: Totale | C195: 305032 | D195: 522832.6533 | E195: 157536.3067 | F195: 5045473.767 | G195: 826931.2995 | H195: 24272.98685 | I195: 6577047.013 | O195: Totale | P195: 2960099 | Q195: 6693106.643 | R195: 1935696.35 | S195: 52811027.71 | T195: 12425345.86 | U195: 266836.5789 | V195: 74132013.14 | X195: 12579694 | Z195: 86711707.14 | AB195: Totale | AC195: 0.01590642652 | AD195: -0.2179603943 | AE195: -0.3153554341 | AF195: 0.008201352465 | AG195: -0.1650651637 | AH195: -0.2089058697 | AI195: -0.05013305251 | AK195: 0.1521615511 | AM195: -0.02392628812 | AO195: Totale | AP195: 0.05439949505 | AQ195: 0.05344536689 | AR195: -0.1292667512 | AS195: 0.03803952415 | AT195: 0.3723464872 | AU195: 0.7627744303 | AV195: 0.0797317834 | AX195: 0.100526052 | AZ195: 0.08269964508
B196: Forme pens. individuali | C196: 30842 | D196: 31408.21651 | E196: 17197.78435 | F196: 49678.48631 | G196: 7162.241894 | H196: 1729.782963 | I196: 107176.512 | O196: Forme pens. individuali | P196: 233476 | Q196: 236563.381 | R196: 132721.9093 | S196: 317221.0725 | T196: 63242.17296 | U196: 13286.73042 | V196: 763035.2662 | X196: 682047 | Z196: 1445082.266 | AB196: Forme pens. individuali | AC196: -0.2443834677 | AD196: -0.286149432 | AE196: -0.0159747111 | AF196: 0.5278962421 | AG196: 0.1479443438 | AH196: 0.1616183912 | AI196: 0.05366431492 | AK196: 0.06753217896 | AM196: 0.05896875011 | AO196: Forme pens. individuali | AP196: -0.02059684713 | AQ196: -0.154697288 | AR196: -0.1465439875 | AS196: 0.2500975226 | AT196: 0.3114949985 | AU196: 0.09404640611 | AV196: 0.01807181233 | AX196: -0.004860091803 | AZ196: 0.007118180443
B197: Forme di puro rischio | C197: 60226 | D197: 8049.643565 | E197: 949.4297468 | F197: 16054.26675 | G197: 904.6609528 | H197: 1168.528919 | I197: 27126.52993 | O197: Forme di puro rischio | P197: 543040 | Q197: 52560.84727 | R197: 4361.472616 | S197: 147412.7857 | T197: 7933.759349 | U197: 6900.152606 | V197: 219169.0175 | X197: 0 | Z197: 219169.0175 | AB197: Forme di puro rischio | AC197: 0.168710704 | AD197: 0.6139545881 | AE197: 1.496345049 | AF197: 0.2147697732 | AG197: 0.4385978522 | AH197: 3.449718496 | AI197: 0.3928752055 | AK197: n.d. | AM197: 0.3928752055 | AO197: Forme di puro rischio | AP197: 0.1970250718 | AQ197: 0.1574624818 | AR197: 0.479734254 | AS197: -0.02547641863 | AT197: 0.6538681032 | AU197: 1.961134986 | AV197: 0.06005893729 | AX197: -1 | AZ197: -0.007371988349
B198: Altre forme | C198: 213964 | D198: 483374.7932 | E198: 139389.0926 | F198: 4979741.014 | G198: 818864.3967 | H198: 21374.67496 | I198: 6442743.971 | O198: Altre forme | P198: 2183584 | Q198: 6403982.415 | R198: 1798612.968 | S198: 52346393.85 | T198: 12354169.92 | U198: 246649.6958 | V198: 73149808.85 | X198: 11897647 | Z198: 85047455.85 | AB198: Altre forme | AC198: 0.02913321822 | AD198: -0.2198149186 | AE198: -0.3432542786 | AF198: 0.004243157176 | AG198: -0.1674367235 | AH198: -0.2611864869 | AI198: -0.0529532452 | AK198: 0.1576728961 | AM198: -0.02672819365 | AO198: Altre forme | AP198: 0.03226733632 | AQ198: 0.0623251582 | AR198: -0.1288348091 | AS198: 0.03716370183 | AT198: 0.3725224508 | AU198: 0.8017008 | AV198: 0.08047446884 | AX198: 0.1086972039 | AZ198: 0.08433591285
B199: Totale | C199: 305032 | D199: 522832.6533 | E199: 157536.3067 | F199: 5045473.767 | G199: 826931.2995 | H199: 24272.98685 | I199: 6577047.013 | O199: Totale | P199: 2960100 | Q199: 6693106.643 | R199: 1935696.35 | S199: 52811027.71 | T199: 12425345.86 | U199: 266836.5789 | V199: 74132013.14 | X199: 12579694 | Z199: 86711707.14 | AB199: Totale | AC199: 0.01590642652 | AD199: -0.2179603943 | AE199: -0.3153554341 | AF199: 0.008201352465 | AG199: -0.1650651637 | AH199: -0.2089058697 | AI199: -0.05013305251 | AK199: 0.1521615511 | AM199: -0.02392628812 | AO199: Totale | AP199: 0.05440248033 | AQ199: 0.05344586737 | AR199: -0.1292667512 | AS199: 0.03803952415 | AT199: 0.3723464872 | AU199: 0.7627744303 | AV199: 0.0797317834 | AX199: 0.100526052 | AZ199: 0.08269964508
AB200: (...) Il dato relativo alla variazione percentuale non è significativo.
B201: (*) Le polizze che prevedono una rateazione del premio periodico devono essere indicate secondo l'intero importo di tariffa su base annua, comprensivo di eventuali sovrappremi e garanzie accessorie. | AB201: (*) Le polizze che prevedono una rateazione del premio periodico devono essere indicate secondo l'intero importo di tariffa su base annua, comprensivo di eventuali sovrappremi e garanzie accessorie.
B202: (**) Sono da intendersi tutte le nuove polizze unit-linked che prevedono una garanzia finanziaria di rendimento ovvero una garanzia del capitale investito. | AB202: (**) Sono da intendersi tutte le nuove polizze unit-linked che prevedono una garanzia finanziaria di rendimento ovvero una garanzia del capitale investito.
B203: Ottobre | O203: Ottobre | Z203: Tabella 2. | AB203: Ottobre | AM203: Tabella 2. | AO203: Ottobre | AZ203: Tabella 2.
C205: Premi imponibili* raccolti da: | P205: Premi imponibili* raccolti da: | AC205: Premi imponibili* raccolti da: | AP205: Premi imponibili* raccolti da:
C206: Imprese italiane ed extra-U.E. | P206: Imprese italiane ed extra-U.E. | AC206: Imprese italiane ed extra-U.E. | AP206: Imprese italiane ed extra-U.E.
C207: Numero polizze/Adesioni | D207: Agenti | E207: Agenzie in Economia | F207: Sp. bancari e postali | G207: Promotori finanziari | H207: Altre forme (inclusi Broker) | I207: Imprese italiane ed extra-U.E. | P207: Numero polizze/Adesioni | Q207: Agenti | R207: Agenzie in Economia | S207: Sp. bancari e postali | T207: Promotori finanziari | U207: Altre forme (inclusi Broker) | V207: Imprese italiane ed extra-U.E. | X207: Imprese U.E. | Z207: Totale imprese | AC207: Numero polizze/Adesioni | AD207: Agenti | AE207: Agenzie in Economia | AF207: Sp. bancari e postali | AG207: Promotori finanziari | AH207: Altre forme (inclusi Broker) | AI207: Imprese italiane ed extra-U.E. | AK207: Imprese U.E. | AM207: Totale imprese | AP207: Numero polizze/Adesioni | AQ207: Agenti | AR207: Agenzie in Economia | AS207: Sp. bancari e postali | AT207: Promotori finanziari | AU207: Altre forme (inclusi Broker) | AV207: Imprese italiane ed extra-U.E. | AX207: Imprese U.E. | AZ207: Totale imprese
B208: Ramo I | C208: 282455 | D208: 494539.8469 | E208: 126449.2356 | F208: 4500138.928 | G208: 331036.8394 | H208: 25655.61267 | I208: 5477820.463 | O208: Ramo I | P208: 2768023 | Q208: 5912631.688 | R208: 1445986.582 | S208: 43502975.4 | T208: 2941437.203 | U208: 264913.1554 | V208: 54067944.03 | X208: 0 | Z208: 54067944.03 | AB208: Ramo I | AC208: -0.0130645646 | AD208: -0.2423390501 | AE208: -0.1391633884 | AF208: -0.006316506362 | AG208: -0.1728164261 | AH208: 0.1657558854 | AI208: -0.04742839767 | AK208: -1 | AM208: -0.04756619727 | AO208: Ramo I | AP208: 0.01085269902 | AQ208: -0.03310317987 | AR208: 0.1216530604 | AS208: -0.07751655482 | AT208: -0.04976258732 | AU208: 0.5624844999 | AV208: -0.06501784419 | AX208: -1 | AZ208: -0.06530321
B209: Ramo III | C209: 46641 | D209: 104508.3043 | E209: 23648.70427 | F209: 1180382.284 | G209: 689725.195 | H209: 4839.190395 | I209: 2003103.678 | O209: Ramo III | P209: 454160 | Q209: 1027443.329 | R209: 318652.2605 | S209: 13676867.16 | T209: 10472457.69 | U209: 12008.96899 | V209: 25507429.41 | X209: 13499844 | Z209: 39007273.41 | AB209: Ramo III | AC209: 0.2774856204 | AD209: 0.4352045612 | AE209: 0.340708121 | AF209: 0.1256741528 | AG209: -0.3838702552 | AH209: (…) | AI209: -0.113179443 | AK209: -0.4251024338 | AM209: -0.2425417474 | AO209: Ramo III | AP209: 0.3600862482 | AQ209: 1.099213441 | AR209: 2.775562997 | AS209: 0.6281525098 | AT209: 0.4035977921 | AU209: (…) | AV209: 0.5518194968 | AX209: 0.0373051515 | AZ209: 0.3244600643
B210: - Unit classiche | C210: 42610 | D210: 103580.8845 | E210: 3347.515208 | F210: 1080775.199 | G210: 592001.9619 | H210: 4835.188584 | I210: 1784540.749 | O210: - Unit classiche | P210: 412600 | Q210: 1021658.81 | R210: 38217.75077 | S210: 12302921.99 | T210: 10069002.88 | U210: 11988.93528 | V210: 23443790.37 | X210: 11379781 | Z210: 34823571.37 | AB210: - Unit classiche | AC210: 0.264691915 | AD210: 0.5282861199 | AE210: -0.2985398344 | AF210: 0.1381356789 | AG210: -0.4709141311 | AH210: (…) | AI210: -0.1666097295 | AK210: -0.3421028671 | AM210: -0.2324259767 | AO210: - Unit classiche | AP210: 0.3730266486 | AQ210: 1.130232608 | AR210: 0.3584890966 | AS210: 0.6853780932 | AT210: 0.3505425877 | AU210: (…) | AV210: 0.5357955672 | AX210: 0.08249070876 | AZ210: 0.3509286481
B211: - Unit protette | C211: 3777 | D211: 13.00588694 | E211: 20301.18906 | F211: 99607.08583 | G211: 96626.73681 | H211: 4.001811367 | I211: 216552.0194 | O211: - Unit protette | P211: 39955 | Q211: 163.3296983 | R211: 280396.4563 | S211: 1373900.116 | T211: 379310.6333 | U211: 20.03371326 | V211: 2033790.569 | X211: 1365276 | Z211: 3399066.569 | AB211: - Unit protette | AC211: 0.738150023 | AD211: -0.6082945502 | AE211: 0.5778017285 | AF211: 0.03335426885 | AG211: (…) | AH211: -0.005670781375 | AI211: 0.9717153887 | AK211: -1.00126259 | AM211: -0.3928342472 | AO211: - Unit protette | AP211: 0.4288524121 | AQ211: -0.2939672125 | AR211: 3.984649942 | AS211: 0.2831951282 | AT211: (…) | AU211: 0.106385738 | AV211: 0.7953390836 | AX211: -0.2194265746 | AZ211: 0.1794594899
B212: - Unit garantite(**) | C212: 254 | D212: 914.4138973 | E212: 0 | F212: 0 | G212: 1096.496315 | H212: 0 | I212: 2010.910212 | O212: - Unit garantite(**) | P212: 1602 | Q212: 5578.043096 | R212: 38.05346747 | S212: 7.033197941 | T212: 24124.10515 | U212: 0 | V212: 29747.23491 | X212: 754787 | Z212: 784534.2349 | AB212: - Unit garantite(**) | AC212: 0.2390243902 | AD212: 0.8140058 | AE212: n.d. | AF212: -1 | AG212: n.d. | AH212: n.d. | AI212: -0.3534125754 | AK212: 0.08417571627 | AM212: 0.06536764125 | AO212: - Unit garantite(**) | AP212: 0.02364217252 | AQ212: 0.1023332121 | AR212: 1.702496666 | AS212: -0.9992532683 | AT212: n.d. | AU212: n.d. | AV212: 1.052533239 | AX212: 0.002794001201 | AZ212: 0.02262489535
B213: - Index linked | C213: 0 | D213: 0 | E213: 0 | F213: 0 | G213: 0 | H213: 0 | I213: 0 | O213: - Index linked | P213: 3 | Q213: 43.14599417 | R213: 0 | S213: 38.02309273 | T213: 20.06790426 | U213: 0 | V213: 101.2369912 | X213: 0 | Z213: 101.2369912 | AB213: - Index linked | AC213: -1 | AD213: -1 | AE213: n.d. | AF213: -1 | AG213: n.d. | AH213: n.d. | AI213: -1 | AK213: n.d. | AM213: -1 | AO213: - Index linked | AP213: -0.9992283951 | AQ213: -0.9905191381 | AR213: n.d. | AS213: -0.9981299136 | AT213: n.d. | AU213: -1 | AV213: -0.9959318277 | AX213: n.d. | AZ213: -0.9959318277
B214: Ramo IV | C214: 1302 | D214: 258.1168332 | E214: 12.0054341 | F214: 348.1575889 | G214: 0 | H214: 0 | I214: 618.2798562 | O214: Ramo IV | P214: 16496 | Q214: 2826.601488 | R214: 50.06561652 | S214: 4942.019086 | T214: 0 | U214: 7.016554187 | V214: 7825.702745 | X214: 0 | Z214: 7825.702745 | AB214: Ramo IV | AC214: -0.7556306306 | AD214: -0.3538112383 | AE214: -0.8430006497 | AF214: -0.8090361103 | AG214: n.d. | AH214: -1 | AI214: -0.7315441428 | AK214: n.d. | AM214: -0.7315441428 | AO214: Ramo IV | AP214: -0.3799661718 | AQ214: 0.3342724007 | AR214: -0.6984195159 | AS214: -0.1929753122 | AT214: n.d. | AU214: -0.4188699457 | AV214: -0.07061428419 | AX214: n.d. | AZ214: -0.07061428419
B215: Ramo V | C215: 1706 | D215: 16041.26086 | E215: 21608.78093 | F215: 80654.5072 | G215: 800.3622734 | H215: 50.02264209 | I215: 119154.9339 | O215: Ramo V | P215: 14491 | Q215: 347180.3684 | R215: 341358.6038 | S215: 1347951.106 | T215: 28104.22775 | U215: 20098.07913 | V215: 2084692.385 | X215: 0 | Z215: 2084692.385 | AB215: Ramo V | AC215: -0.08279569892 | AD215: -0.835084152 | AE215: -0.3327165825 | AF215: -0.4540531302 | AG215: (…) | AH215: -0.9888025989 | AI215: -0.5773050303 | AK215: n.d. | AM215: -0.5773050303 | AO215: Ramo V | AP215: -0.3711868084 | AQ215: -0.37140649 | AR215: -0.6725363756 | AS215: 0.3351739145 | AT215: 1.607466174 | AU215: 2.037410815 | AV215: -0.2048348741 | AX215: n.d. | AZ215: -0.2048348741
B216: Ramo VI | C216: 8388 | D216: 2120.960024 | E216: 82.03713302 | F216: 8108.670282 | G216: 744.3369143 | H216: 116.0525296 | I216: 11172.05688 | O216: Ramo VI | P216: 47421 | Q216: 20493.14435 | R216: 1449.601412 | S216: 47924.57493 | T216: 5653.46916 | U216: 470.2369789 | V216: 75991.02683 | X216: 0 | Z216: 75991.02683 | AB216: Ramo VI | AC216: 3.693900392 | AD216: 0.0711270038 | AE216: -0.8372554972 | AF216: 0.8799725941 | AG216: -0.1950153007 | AH216: n.d. | AI216: 0.4467733473 | AK216: n.d. | AM216: 0.4467733473 | AO216: Ramo VI | AP216: 1.759762556 | AQ216: 0.03541928325 | AR216: -0.6709236427 | AS216: 0.4755214152 | AT216: -0.2246057782 | AU216: (…) | AV216: 0.1872256668 | AX216: n.d. | AZ216: 0.1872256668
B217: Totale | C217: 340492 | D217: 617468.4889 | E217: 171800.7633 | F217: 5769632.548 | G217: 1022306.734 | H217: 30660.87824 | I217: 7611869.412 | O217: Totale | P217: 3300591 | Q217: 7310575.132 | R217: 2107497.113 | S217: 58580660.26 | T217: 13447652.59 | U217: 297497.4571 | V217: 81743882.55 | X217: 13499844 | Z217: 95243726.55 | AB217: Totale | AC217: 0.02657087123 | AD217: -0.2517219042 | AE217: -0.1300955427 | AF217: 0.006703264786 | AG217: -0.3276997756 | AH217: 0.1474210243 | AI217: -0.08304278378 | AK217: -0.4254011233 | AM217: -0.1384065137 | AO217: Totale | AP217: 0.05145906829 | AQ217: 0.01836675579 | AR217: -0.1293343724 | AS217: 0.03486686039 | AT217: 0.2716819002 | AU217: 0.6704459744 | AV217: 0.06217401894 | AX217: 0.03589987014 | AZ217: 0.05836914374
B218: Forme pens. individuali | C218: 38413 | D218: 37362.91183 | E218: 16791.6005 | F218: 58692.56641 | G218: 8350.77987 | H218: 2069.93693 | I218: 123267.7955 | O218: Forme pens. individuali | P218: 271889 | Q218: 273926.2928 | R218: 149513.5098 | S218: 375913.6389 | T218: 71592.95283 | U218: 15356.66735 | V218: 886303.0617 | X218: 757273 | Z218: 1643576.062 | AB218: Forme pens. individuali | AC218: 0.2520942664 | AD218: -0.04251298252 | AE218: -0.1819606095 | AF218: 0.3927422734 | AG218: 0.04886465157 | AH218: 0.2326346036 | AI218: 0.107216717 | AK218: 0.08001091123 | AM218: 0.09674637922 | AO218: Forme pens. individuali | AP218: 0.01049560515 | AQ218: -0.140969043 | AR218: -0.1506736937 | AS218: 0.2704129025 | AT218: 0.2742775788 | AU218: 0.110881666 | AV218: 0.02960104075 | AX218: 0.002969414501 | AZ218: 0.01715702177
B219: Forme di puro rischio | C219: 70243 | D219: 9144.138973 | E219: 1067.483182 | F219: 20013.05865 | G219: 762.3450654 | H219: 1127.510353 | I219: 32114.53622 | O219: Forme di puro rischio | P219: 613283 | Q219: 61704.98624 | R219: 5428.955798 | S219: 167425.8443 | T219: 8696.104414 | U219: 8027.662959 | V219: 251283.5537 | X219: 0 | Z219: 251283.5537 | AB219: Forme di puro rischio | AC219: 0.01147654293 | AD219: 0.4425665172 | AE219: 1.39491936 | AF219: -0.1623263134 | AG219: 0.3701245291 | AH219: 2.891003574 | AI219: 0.01879944837 | AK219: n.d. | AM219: 0.01879944837 | AO219: Forme di puro rischio | AP219: 0.1723921056 | AQ219: 0.192385085 | AR219: 0.5999523464 | AS219: -0.04414252369 | AT219: 0.6243777567 | AU219: 2.063978539 | AV219: 0.05460059528 | AX219: -1 | AZ219: -0.004102414645
B220: Altre forme | C220: 231835 | D220: 570961.4381 | E220: 153941.6797 | F220: 5690926.923 | G220: 1013193.609 | H220: 27463.43096 | I220: 7456487.08 | O220: Altre forme | P220: 2415419 | Q220: 6974943.853 | R220: 1952554.648 | S220: 58037320.78 | T220: 13367363.53 | U220: 274113.1268 | V220: 80606295.93 | X220: 12742571 | Z220: 93348866.93 | AB220: Altre forme | AC220: 0.001209215953 | AD220: -0.2678340704 | AE220: -0.1279152221 | AF220: 0.004544459253 | AG220: -0.3299393073 | AH220: 0.1095212138 | AI220: -0.08603260637 | AK220: -0.4483840115 | AM220: -0.143309911 | AO220: Altre forme | AP220: 0.02920298967 | AQ220: 0.02450745827 | AR220: -0.1287623782 | AS220: 0.03387179866 | AT220: 0.2714884294 | AU220: 0.6957119418 | AV220: 0.06256742923 | AX220: 0.03911384571 | AZ220: 0.05930369658
B221: Totale | C221: 340491 | D221: 617468.4889 | E221: 171800.7633 | F221: 5769632.548 | G221: 1022306.734 | H221: 30660.87824 | I221: 7611869.412 | O221: Totale | P221: 3300591 | Q221: 7310575.132 | R221: 2107497.113 | S221: 58580660.26 | T221: 13447652.59 | U221: 297497.4571 | V221: 81743882.55 | X221: 13499844 | Z221: 95243726.55 | AB221: Totale | AC221: 0.02656476122 | AD221: -0.2517219042 | AE221: -0.1300955427 | AF221: 0.006703264786 | AG221: -0.3276997756 | AH221: 0.1474210243 | AI221: -0.08304278378 | AK221: -0.4254011233 | AM221: -0.1384065137 | AO221: Totale | AP221: 0.05146107806 | AQ221: 0.01836718398 | AR221: -0.1293343724 | AS221: 0.03486686039 | AT221: 0.2716819002 | AU221: 0.6704459744 | AV221: 0.06217401894 | AX221: 0.03589987014 | AZ221: 0.05836914374
J223: 0
B225: Novembre | O225: Novembre | Z225: Tabella 2. | AB225: Novembre | AM225: Tabella 2. | AO225: Novembre | AZ225: Tabella 2.
C227: Premi imponibili* raccolti da: | P227: Premi imponibili* raccolti da: | AC227: Premi imponibili* raccolti da: | AP227: Premi imponibili* raccolti da:
C228: Imprese italiane ed extra-U.E. | P228: Imprese italiane ed extra-U.E. | AC228: Imprese italiane ed extra-U.E. | AP228: Imprese italiane ed extra-U.E.
... 50 more rows

Sheet TAB1_2012 (hidden)
A1: Nuova produzione Vita emessa nel 2012
A2: Settore polizze "individuali"
A3: Premi del lavoro diretto - Attività svolta da imprese nazionali e da rappresentanze in Italia di imprese extra U.E. (importi in MIGLIAIA di Euro)
A4: Dato mensile: | J4: Dato cumulato da inizio anno:
A5: Gennaio | J5: =+A5 -> Gennaio
C7: Premi imponibili annualizzati(*) | L7: Premi imponibili annualizzati(*)
B8: Numero polizze/Adesioni | C8: Agenti | D8: Agenzie in Economia | E8: Sportelli bancari e postali | F8: Promotori finanziari | G8: Altre forme (inclusi Broker) | H8: Totale | K8: Numero polizze/Adesioni | L8: Agenti | M8: Agenzie in Economia | N8: Sportelli bancari e postali | O8: Promotori finanziari | P8: Altre forme (inclusi Broker) | Q8: Totale
A9: Annui | B9: 51475 | C9: 15603.49891 | D9: 34624.3923 | E9: 6807.762129 | F9: 3163.141939 | G9: 298.2962968 | H9: 60497.09157 | J9: =+A9 -> Annui | K9: =+IF(ISERROR(B9),0,B9) -> 51475 | L9: 15603.49891 | M9: 34624.3923 | N9: 6807.762129 | O9: 3163.141939 | P9: 298.2962968 | Q9: 60497.09157 | S9: =+Q9 -> 60497.09157 | U9: 60493 | V9: 18337.05558 | W9: 40690.19454 | X9: 8000.405118 | Y9: 3717.28866 | Z9: 350.5544369 | AA9: 71095.49833
A10: Unici | B10: 123268 | C10: 303684.649 | D10: 79163.63299 | E10: 2154487.045 | F10: 590368.4111 | G10: 9523.459623 | H10: 3137227.198 | J10: =+A10 -> Unici | K10: 123268 | L10: 303684.649 | M10: 79163.63299 | N10: 2154487.045 | O10: 590368.4111 | P10: 9523.459623 | Q10: 3137227.198 | S10: =+Q10/10 -> 313722.7198 | U10: 137586 | V10: 356886.7675 | W10: 93032.20685 | X10: 2207188.372 | Y10: 525231.7132 | Z10: 11191.86212 | AA10: 3193530.922
A11: Ricorrenti | B11: 56460 | C11: 50492.1537 | D11: 10625.55433 | E11: 117250.4645 | F11: 6287.245101 | G11: 2822.803882 | H11: 187478.2215 | J11: =+A11 -> Ricorrenti | K11: 56460 | L11: 50492.1537 | M11: 10625.55433 | N11: 117250.4645 | O11: 6287.245101 | P11: 2822.803882 | Q11: 187478.2215 | S11: =+Q11 -> 187478.2215 | U11: 66109 | V11: 59337.80841 | W11: 12487.03137 | X11: 137769.0701 | Y11: 7088.728311 | Z11: 3317.327221 | AA11: 219999.9654
A12: Totale | B12: 231203 | C12: 369780.3016 | D12: 124413.5796 | E12: 2278545.272 | F12: 599818.7981 | G12: 12644.5598 | H12: 3385202.511 | J12: =+A12 -> Totale | K12: =SUM(K9:K11) -> 231203 | L12: 369780.3016 | M12: 124413.5796 | N12: 2278545.272 | O12: 599818.7981 | P12: 12644.5598 | Q12: 3385202.511 | S12: =+SUM(S9:S11) -> 561698.0329 | U12: 264188 | V12: 434561.6315 | W12: 146209.4328 | X12: 2352957.847 | Y12: 536037.7301 | Z12: 14859.74378 | AA12: 3484626.386
A14: (*) Le polizze che prevedono una rateazione del premio periodico devono essere indicate secondo l'intero importo di tariffa su base annua, comprensivo di eventuali sovrappremi e garanzie accessorie.
A17: Febbraio | B17: Febbraio | J17: =+A17 -> Febbraio
L19: Premi imponibili annualizzati(*)
B20: Numero polizze/Adesioni | C20: Agenti | D20: Agenzie in Economia | E20: Sportelli bancari e postali | F20: Promotori finanziari | G20: Altre forme (inclusi Broker) | H20: Totale | K20: Numero polizze/Adesioni | L20: Agenti | M20: Agenzie in Economia | N20: Sportelli bancari e postali | O20: Promotori finanziari | P20: Altre forme (inclusi Broker) | Q20: Totale
A21: Annui | B21: 58439 | C21: 20266.13028 | D21: 32815.59563 | E21: 9409.346274 | F21: 2675.657722 | G21: 388.3857824 | H21: 65555.11569 | J21: Annui | K21: =+IF(ISERROR(B21+K9),0,B21+K9) -> 109914 | L21: 35869.62919 | M21: 67439.98793 | N21: 16217.1084 | O21: 5838.799662 | P21: 686.6820792 | Q21: 126052.2073 | S21: =+Q21 -> 126052.2073
A22: Unici | B22: 126282 | C22: 311314.2275 | D22: 65846.40503 | E22: 2311762.266 | F22: 1042319.333 | G22: 13549.45864 | H22: 3744791.69 | J22: Unici | K22: 249550 | L22: 614998.8765 | M22: 145010.038 | N22: 4466249.312 | O22: 1632687.744 | P22: 23072.91826 | Q22: 6882018.888 | S22: =+Q22/10 -> 688201.8888
A23: Ricorrenti | B23: 66430 | C23: 50161.82559 | D23: 7230.181717 | E23: 184882.6434 | F23: 7543.492928 | G23: 1713.702215 | H23: 251531.8458 | J23: Ricorrenti | K23: 122890 | L23: 100653.9793 | M23: 17855.73605 | N23: 302133.1079 | O23: 13830.73803 | P23: 4536.506097 | Q23: 439010.0673 | S23: =+Q23 -> 439010.0673
A24: Totale | B24: 251151 | C24: 381742.1833 | D24: 105892.1824 | E24: 2506054.256 | F24: 1052538.483 | G24: 15651.54663 | H24: 4061878.651 | J24: Totale | K24: =SUM(K21:K23) -> 482354 | L24: 751522.4849 | M24: 230305.762 | N24: 4784599.528 | O24: 1652357.281 | P24: 28296.10643 | Q24: 7447081.163 | S24: =+SUM(S21:S23) -> 1253264.163
L25: =+L24/Q24 -> 0.1009150389 | M25: =+M24/Q24 -> 0.03092564147
A26: (*) Le polizze che prevedono una rateazione del premio periodico devono essere indicate secondo l'intero importo di tariffa su base annua, comprensivo di eventuali sovrappremi e garanzie accessorie.
A29: Marzo | B29: Marzo | J29: =+A29 -> Marzo
L31: Premi imponibili annualizzati(*)
B32: Numero polizze/Adesioni | C32: Agenti | D32: Agenzie in Economia | E32: Sportelli bancari e postali | F32: Promotori finanziari | G32: Altre forme (inclusi Broker) | H32: Totale | K32: Numero polizze/Adesioni | L32: Agenti | M32: Agenzie in Economia | N32: Sportelli bancari e postali | O32: Promotori finanziari | P32: Altre forme (inclusi Broker) | Q32: Totale
A33: Annui | B33: 66170 | C33: 22891.41557 | D33: 30637.32371 | E33: 9270.267632 | F33: 3635.242069 | G33: 362.3231357 | H33: 66796.57212 | J33: Annui | K33: =+IF(ISERROR(B33+K21),0,B33+K21) -> 176084 | L33: 58761.04476 | M33: 98077.31164 | N33: 25487.37604 | O33: 9474.04173 | P33: 1049.005215 | Q33: 192848.7794 | S33: =+Q33 -> 192848.7794
A34: Unici | B34: 189180 | C34: 532841.2112 | D34: 69901.34109 | E34: 3236268.246 | F34: 881196.8901 | G34: 18849.81109 | H34: 4739057.5 | J34: Unici | K34: 438730 | L34: 1147840.088 | M34: 214911.3791 | N34: 7702517.558 | O34: 2513884.634 | P34: 41922.72935 | Q34: 11621076.39 | S34: =+Q34/10 -> 1162107.639
A35: Ricorrenti | B35: 67309 | C35: 73351.41802 | D35: 17199.33913 | E35: 152562.0616 | F35: 9422.403313 | G35: 1381.231843 | H35: 253916.4539 | J35: Ricorrenti | K35: 190199 | L35: 174005.3973 | M35: 35055.07517 | N35: 454695.1694 | O35: 23253.14134 | P35: 5917.737941 | Q35: 692926.5212 | S35: =+Q35 -> 692926.5212
A36: Totale | B36: 322659 | C36: 629084.0448 | D36: 117738.0039 | E36: 3398100.575 | F36: 894254.5355 | G36: 20593.36607 | H36: 5059770.526 | J36: Totale | K36: =SUM(K33:K35) -> 805013 | L36: 1380606.53 | M36: 348043.7659 | N36: 8182700.103 | O36: 2546611.817 | P36: 48889.4725 | Q36: 12506851.69 | S36: =+SUM(S33:S35) -> 2047882.939
A38: (*) Le polizze che prevedono una rateazione del premio periodico devono essere indicate secondo l'intero importo di tariffa su base annua, comprensivo di eventuali sovrappremi e garanzie accessorie.
A41: Aprile | B41: Aprile | J41: =+A41 -> Aprile
L43: Premi imponibili annualizzati(*)
B44: Numero polizze/Adesioni | C44: Agenti | D44: Agenzie in Economia | E44: Sportelli bancari e postali | F44: Promotori finanziari | G44: Altre forme (inclusi Broker) | H44: Totale | K44: Numero polizze/Adesioni | L44: Agenti | M44: Agenzie in Economia | N44: Sportelli bancari e postali | O44: Promotori finanziari | P44: Altre forme (inclusi Broker) | Q44: Totale
A45: Annui | B45: 55624 | C45: 19711.57965 | D45: 29179.02314 | E45: 9502.474725 | F45: 2038.818308 | G45: 415.3704456 | H45: 60847.26627 | J45: Annui | K45: =+IF(ISERROR(B45+K33),0,B45+K33) -> 231708 | L45: 78472.62441 | M45: 127256.3348 | N45: 34989.85076 | O45: 11512.86004 | P45: 1464.37566 | Q45: 253696.0456 | S45: =+Q45 -> 253696.0456
A46: Unici | B46: 137192 | C46: 480386.4297 | D46: 68706.27528 | E46: 2749326.971 | F46: 829896.1379 | G46: 10475.34237 | H46: 4138791.156 | J46: Unici | K46: 575922 | L46: 1628226.517 | M46: 283617.6544 | N46: 10451844.53 | O46: 3343780.772 | P46: 52398.07172 | Q46: 15759867.54 | S46: =+Q46/10 -> 1575986.754
A47: Ricorrenti | B47: 56448 | C47: 44415.61179 | D47: 10784.6182 | E47: 101666.6708 | F47: 6950.198492 | G47: 1535.36931 | H47: 165352.4686 | J47: Ricorrenti | K47: 246647 | L47: 218421.0091 | M47: 45839.69337 | N47: 556361.8402 | O47: 30203.33983 | P47: 7453.10725 | Q47: 858278.9898 | S47: =+Q47 -> 858278.9898
A48: Totale | B48: 249264 | C48: 544513.6212 | D48: 108669.9166 | E48: 2860496.116 | F48: 838885.1547 | G48: 12426.08213 | H48: 4364990.891 | J48: Totale | K48: =SUM(K45:K47) -> 1054277 | L48: 1925120.151 | M48: 456713.6825 | N48: 11043196.22 | O48: 3385496.971 | P48: 61315.55463 | Q48: 16871842.58 | S48: =+SUM(S45:S47) -> 2687961.79
A50: (*) Le polizze che prevedono una rateazione del premio periodico devono essere indicate secondo l'intero importo di tariffa su base annua, comprensivo di eventuali sovrappremi e garanzie accessorie.
A53: Maggio | B53: Maggio | J53: =+A53 -> Maggio
L55: Premi imponibili annualizzati(*)
B56: Numero polizze/Adesioni | C56: Agenti | D56: Agenzie in Economia | E56: Sportelli bancari e postali | F56: Promotori finanziari | G56: Altre forme (inclusi Broker) | H56: Totale | K56: Numero polizze/Adesioni | L56: Agenti | M56: Agenzie in Economia | N56: Sportelli bancari e postali | O56: Promotori finanziari | P56: Altre forme (inclusi Broker) | Q56: Totale
A57: Annui | B57: 65249 | C57: 23083.58696 | D57: 28921.79373 | E57: 12858.46775 | F57: 3004.679705 | G57: 610.5445104 | H57: 68479.07265 | J57: Annui | K57: =+IF(ISERROR(B57+K45),0,B57+K45) -> 296957 | L57: 101556.2114 | M57: 156178.1285 | N57: 47848.31851 | O57: 14517.53974 | P57: 2074.920171 | Q57: 322175.1183 | S57: =+Q57 -> 322175.1183
A58: Unici | B58: 176291 | C58: 441634.8694 | D58: 65168.11979 | E58: 3311513.353 | F58: 805864.7056 | G58: 16221.46702 | H58: 4640402.515 | J58: Unici | K58: 752213 | L58: 2069861.387 | M58: 348785.7742 | N58: 13763357.88 | O58: 4149645.477 | P58: 68619.53874 | Q58: 20400270.06 | S58: =+Q58/10 -> 2040027.006
A59: Ricorrenti | B59: 60179 | C59: 59402.97819 | D59: 9762.706811 | E59: 96951.46558 | F59: 8579.65171 | G59: 1627.451433 | H59: 176324.2537 | J59: Ricorrenti | K59: 306826 | L59: 277823.9873 | M59: 55602.40018 | N59: 653313.3058 | O59: 38782.99155 | P59: 9080.558683 | Q59: 1034603.244 | S59: =+Q59 -> 1034603.244
A60: Totale | B60: 301719 | C60: 524121.4345 | D60: 103852.6203 | E60: 3421323.286 | F60: 817449.037 | G60: 18459.46296 | H60: 4885205.841 | J60: Totale | K60: =SUM(K57:K59) -> 1355996 | L60: 2449241.585 | M60: 560566.3029 | N60: 14464519.51 | O60: 4202946.008 | P60: 79775.01759 | Q60: 21757048.42 | S60: =+SUM(S57:S59) -> 3396805.368
A62: (*) Le polizze che prevedono una rateazione del premio periodico devono essere indicate secondo l'intero importo di tariffa su base annua, comprensivo di eventuali sovrappremi e garanzie accessorie.
A65: Giugno | B65: Giugno | J65: =+A65 -> Giugno
L67: Premi imponibili annualizzati(*)
B68: Numero polizze/Adesioni | C68: Agenti | D68: Agenzie in Economia | E68: Sportelli bancari e postali | F68: Promotori finanziari | G68: Altre forme (inclusi Broker) | H68: Totale | K68: Numero polizze/Adesioni | L68: Agenti | M68: Agenzie in Economia | N68: Sportelli bancari e postali | O68: Promotori finanziari | P68: Altre forme (inclusi Broker) | Q68: Totale
A69: Annui | B69: 63963 | C69: 24187.57154 | D69: 29636.43107 | E69: 11613.3573 | F69: 2650.363711 | G69: 367.3275989 | H69: 68455.05122 | J69: Annui | K69: =+IF(ISERROR(B69+K57),0,B69+K57) -> 360920 | L69: 125743.7829 | M69: 185814.5596 | N69: 59461.67581 | O69: 17167.90345 | P69: 2442.24777 | Q69: 390630.1695 | S69: =+Q69 -> 390630.1695
A70: Unici | B70: 121931 | C70: 461343.4464 | D70: 78088.64288 | E70: 2402899.011 | F70: 722338.213 | G70: 25665.88997 | H70: 3690335.203 | J70: Unici | K70: 874144 | L70: 2531204.833 | M70: 426874.4171 | N70: 16166256.89 | O70: 4871983.69 | P70: 94285.4287 | Q70: 24090605.26 | S70: =+Q70/10 -> 2409060.526
A71: Ricorrenti | B71: 50860 | C71: 68773.33508 | D71: 10744.58249 | E71: 77985.55094 | F71: 7456.650168 | G71: 1082.965837 | H71: 166043.0845 | J71: Ricorrenti | K71: 357686 | L71: 346597.3224 | M71: 66346.98267 | N71: 731298.8568 | O71: 46239.64171 | P71: 10163.52452 | Q71: 1200646.328 | S71: =+Q71 -> 1200646.328
A72: Totale | B72: 236754 | C72: 554304.353 | D72: 118469.6564 | E72: 2492497.919 | F72: 732445.2268 | G72: 27116.1834 | H72: 3924833.339 | J72: Totale | K72: =SUM(K69:K71) -> 1592750 | L72: 3003545.938 | M72: 679035.9593 | N72: 16957017.43 | O72: 4935391.235 | P72: 106891.201 | Q72: 25681881.76 | S72: =+SUM(S69:S71) -> 4000337.024
A74: (*) Le polizze che prevedono una rateazione del premio periodico devono essere indicate secondo l'intero importo di tariffa su base annua, comprensivo di eventuali sovrappremi e garanzie accessorie.
A77: Luglio | B77: Luglio | J77: =+A77 -> Luglio
L79: Premi imponibili annualizzati(*)
B80: Numero polizze/Adesioni | C80: Agenti | D80: Agenzie in Economia | E80: Sportelli bancari e postali | F80: Promotori finanziari | G80: Altre forme (inclusi Broker) | H80: Totale | K80: Numero polizze/Adesioni | L80: Agenti | M80: Agenzie in Economia | N80: Sportelli bancari e postali | O80: Promotori finanziari | P80: Altre forme (inclusi Broker) | Q80: Totale
A81: Annui | B81: 61623 | C81: 22162.76573 | D81: 23802.22787 | E81: 13544.07921 | F81: 3039.710948 | G81: 461.4115071 | H81: 63010.19526 | J81: Annui | K81: =+IF(ISERROR(B81+K69),0,B81+K69) -> 422543 | L81: 147906.5486 | M81: 209616.7874 | N81: 73005.75501 | O81: 20207.6144 | P81: 2903.659277 | Q81: 453640.3648 | S81: =+Q81 -> 453640.3648
A82: Unici | B82: 136452 | C82: 457107.6687 | D82: 62884.08279 | E82: 2555040.698 | F82: 676740.547 | G82: 7010.252051 | H82: 3758783.248 | J82: Unici | K82: 1010596 | L82: 2988312.502 | M82: 489758.4998 | N82: 18721297.59 | O82: 5548724.237 | P82: 101295.6808 | Q82: 27849388.51 | S82: =+Q82/10 -> 2784938.851
A83: Ricorrenti | B83: 54971 | C83: 65976.84105 | D83: 14765.16823 | E83: 70522.89542 | F83: 7068.303824 | G83: 960.8569344 | H83: 159294.0654 | J83: Ricorrenti | K83: 412657 | L83: 412574.1634 | M83: 81112.1509 | N83: 801821.7522 | O83: 53307.94554 | P83: 11124.38145 | Q83: 1359940.393 | S83: =+Q83 -> 1359940.393
A84: Totale | B84: 253046 | C84: 545247.2755 | D84: 101451.4789 | E84: 2639107.672 | F84: 686848.5617 | G84: 8432.520492 | H84: 3981087.509 | J84: Totale | K84: =SUM(K81:K83) -> 1845796 | L84: 3548793.214 | M84: 780487.4382 | N84: 19596125.1 | O84: 5622239.797 | P84: 115323.7215 | Q84: 29662969.27 | S84: =+SUM(S81:S83) -> 4598519.609
A86: (*) Le polizze che prevedono una rateazione del premio periodico devono essere indicate secondo l'intero importo di tariffa su base annua, comprensivo di eventuali sovrappremi e garanzie accessorie.
A89: Agosto | B89: Agosto | J89: =+A89 -> Agosto
L91: Premi imponibili annualizzati(*)
B92: Numero polizze/Adesioni | C92: Agenti | D92: Agenzie in Economia | E92: Sportelli bancari e postali | F92: Promotori finanziari | G92: Altre forme (inclusi Broker) | H92: Totale | K92: Numero polizze/Adesioni | L92: Agenti | M92: Agenzie in Economia | N92: Sportelli bancari e postali | O92: Promotori finanziari | P92: Altre forme (inclusi Broker) | Q92: Totale
A93: Annui | B93: 35381 | C93: 9041.063218 | D93: 20521.3018 | E93: 7792.950095 | F93: 1710.525522 | G93: 517.4614949 | H93: 39583.30213 | J93: Annui | K93: =+IF(ISERROR(B93+K81),0,B93+K81) -> 457924 | L93: 156947.6119 | M93: 230138.0892 | N93: 80798.70511 | O93: 21918.13992 | P93: 3421.120772 | Q93: 493223.6669 | S93: =+Q93 -> 493223.6669
A94: Unici | B94: 81411 | C94: 212375.4057 | D94: 53526.7375 | E94: 1700680.742 | F94: 527398.357 | G94: 2964.644 | H94: 2496945.886 | J94: Unici | K94: 1092007 | L94: 3200687.908 | M94: 543285.2373 | N94: 20421978.33 | O94: 6076122.594 | P94: 104260.3248 | Q94: 30346334.4 | S94: =+Q94/10 -> 3034633.44
A95: Ricorrenti | B95: 31374 | C95: 28180.13228 | D95: 36460.51709 | E95: 58405.08822 | F95: 5398.8149 | G95: 1364.216668 | H95: 129808.7692 | J95: Ricorrenti | K95: 444031 | L95: 440754.2957 | M95: 117572.668 | N95: 860226.8404 | O95: 58706.76044 | P95: 12488.59812 | Q95: 1489749.163 | S95: =+Q95 -> 1489749.163
A96: Totale | B96: 148166 | C96: 249596.6012 | D96: 110508.5564 | E96: 1766878.78 | F96: 534507.6975 | G96: 4846.322163 | H96: 2666337.957 | J96: Totale | K96: =SUM(K93:K95) -> 1993962 | L96: 3798389.815 | M96: 890995.9946 | N96: 21363003.88 | O96: 6156747.495 | P96: 120170.0436 | Q96: 32329307.23 | S96: =+SUM(S93:S95) -> 5017606.269
A98: (*) Le polizze che prevedono una rateazione del premio periodico devono essere indicate secondo l'intero importo di tariffa su base annua, comprensivo di eventuali sovrappremi e garanzie accessorie.
A101: Settembre | B101: Settembre | J101: =+A101 -> Settembre
L103: Premi imponibili annualizzati(*)
B104: Numero polizze/Adesioni | C104: Agenti | D104: Agenzie in Economia | E104: Sportelli bancari e postali | F104: Promotori finanziari | G104: Altre forme (inclusi Broker) | H104: Totale | K104: Numero polizze/Adesioni | L104: Agenti | M104: Agenzie in Economia | N104: Sportelli bancari e postali | O104: Promotori finanziari | P104: Altre forme (inclusi Broker) | Q104: Totale
A105: Annui | B105: 54634 | C105: 16231.47594 | D105: 28705.60092 | E105: 12287.95894 | F105: 1695.512132 | G105: 511.4561391 | H105: 59432.00407 | J105: Annui | K105: =+IF(ISERROR(B105+K93),0,B105+K93) -> 512558 | L105: 173179.0878 | M105: 258843.6902 | N105: 93086.66405 | O105: 23613.65206 | P105: 3932.576911 | Q105: 552655.671 | S105: =+Q105 -> 552655.671
A106: Unici | B106: 126428 | C106: 258544.5814 | D106: 57799.54818 | E106: 2202734.495 | F106: 450014.3426 | G106: 8677.739189 | H106: 2977770.707 | J106: Unici | K106: 1218435 | L106: 3459232.489 | M106: 601084.7855 | N106: 22624712.83 | O106: 6526136.937 | P106: 112938.0639 | Q106: 33324105.1 | S106: =+Q106/10 -> 3332410.51
A107: Ricorrenti | B107: 43178 | C107: 48568.31536 | D107: 10061.97371 | E107: 58968.59078 | F107: 4841.3177 | G107: 1488.327356 | H107: 123928.5249 | J107: Ricorrenti | K107: 487209 | L107: 489322.6111 | M107: 127634.6417 | N107: 919195.4312 | O107: 63548.07814 | P107: 13976.92548 | Q107: 1613677.688 | S107: =+Q107 -> 1613677.688
A108: Totale | B108: 224240 | C108: 323344.3727 | D108: 96567.1228 | E108: 2273991.045 | F108: 456551.1724 | G108: 10677.52268 | H108: 3161131.236 | J108: Totale | K108: =SUM(K105:K107) -> 2218202 | L108: 4121734.188 | M108: 987563.1174 | N108: 23636994.92 | O108: 6613298.667 | P108: 130847.5663 | Q108: 35490438.46 | S108: =+SUM(S105:S107) -> 5498743.869
A110: (*) Le polizze che prevedono una rateazione del premio periodico devono essere indicate secondo l'intero importo di tariffa su base annua, comprensivo di eventuali sovrappremi e garanzie accessorie.
A113: Ottobre | B113: Ottobre | J113: =+A113 -> Ottobre
L115: Premi imponibili annualizzati(*)
B116: Numero polizze/Adesioni | C116: Agenti | D116: Agenzie in Economia | E116: Sportelli bancari e postali | F116: Promotori finanziari | G116: Altre forme (inclusi Broker) | H116: Totale | K116: Numero polizze/Adesioni | L116: Agenti | M116: Agenzie in Economia | N116: Sportelli bancari e postali | O116: Promotori finanziari | P116: Altre forme (inclusi Broker) | Q116: Totale
A117: Annui | B117: 74088 | C117: 23919.33231 | D117: 28656.55718 | E117: 30998.64595 | F117: 4343.874058 | G117: 308.2749331 | H117: 88226.68444 | J117: Annui | K117: =+IF(ISERROR(B117+K105),0,B117+K105) -> 586646 | L117: 197098.4201 | M117: 287500.2473 | N117: 124085.31 | O117: 27957.52611 | P117: 4240.851844 | Q117: 640882.3554 | S117: =+Q117 -> 640882.3554
A118: Unici | B118: 130612 | C118: 488432.6057 | D118: 109671.8101 | E118: 2592388.006 | F118: 838401.7235 | G118: 7130.359168 | H118: 4036024.504 | J118: Unici | K118: 1349047 | L118: 3947665.095 | M118: 710756.5957 | N118: 25217100.83 | O118: 7364538.66 | P118: 120068.4231 | Q118: 37360129.61 | S118: =+Q118/10 -> 3736012.961
A119: Ricorrenti | B119: 56036 | C119: 72839.96188 | D119: 10969.78333 | E119: 73362.42784 | F119: 8952.984665 | G119: 1879.676378 | H119: 168004.8341 | J119: Ricorrenti | K119: 543245 | L119: 562162.5729 | M119: 138604.425 | N119: 992557.859 | O119: 72501.0628 | P119: 15856.60186 | Q119: 1781682.522 | S119: =+Q119 -> 1781682.522
A120: Totale | B120: 260736 | C120: 585191.8999 | D120: 149298.1507 | E120: 2696749.079 | F120: 851698.5822 | G120: 9318.310479 | H120: 4292256.023 | J120: Totale | K120: =SUM(K117:K119) -> 2478938 | L120: 4706926.088 | M120: 1136861.268 | N120: 26333744 | O120: 7464997.249 | P120: 140165.8768 | Q120: 39782694.48 | S120: =+SUM(S117:S119) -> 6158577.838
A122: (*) Le polizze che prevedono una rateazione del premio periodico devono essere indicate secondo l'intero importo di tariffa su base annua, comprensivo di eventuali sovrappremi e garanzie accessorie.
A125: Novembre | B125: Novembre | J125: =+A125 -> Novembre
L127: Premi imponibili annualizzati(*)
B128: Numero polizze/Adesioni | C128: Agenti | D128: Agenzie in Economia | E128: Sportelli bancari e postali | F128: Promotori finanziari | G128: Altre forme (inclusi Broker) | H128: Totale | K128: Numero polizze/Adesioni | L128: Agenti | M128: Agenzie in Economia | N128: Sportelli bancari e postali | O128: Promotori finanziari | P128: Altre forme (inclusi Broker) | Q128: Totale
A129: Annui | B129: 72665 | C129: 24961.26155 | D129: 28716.61074 | E129: 22092.70324 | F129: 2611.328898 | G129: 219.1954882 | H129: 78601.09992 | J129: Annui | K129: =+IF(ISERROR(B129+K117),0,B129+K117) -> 659311 | L129: 222059.6817 | M129: 316216.8581 | N129: 146178.0133 | O129: 30568.85501 | P129: 4460.047332 | Q129: 719483.4553 | S129: =+Q129 -> 719483.4553
A130: Unici | B130: 121924 | C130: 488526.6896 | D130: 86747.36511 | E130: 2757781.511 | F130: 593137.9865 | G130: 4621.121319 | H130: 3930814.673 | J130: Unici | K130: 1470971 | L130: 4436191.784 | M130: 797503.9608 | N130: 27974882.34 | O130: 7957676.647 | P130: 124689.5444 | Q130: 41290944.28 | S130: =+Q130/10 -> 4129094.428
A131: Ricorrenti | B131: 53960 | C131: 75156.02745 | D131: 11589.33588 | E131: 143741.1947 | F131: 8024.156295 | G131: 1915.708513 | H131: 240426.4229 | J131: Ricorrenti | K131: 597205 | L131: 637318.6004 | M131: 150193.7609 | N131: 1136299.054 | O131: 80525.2191 | P131: 17772.31037 | Q131: 2022108.944 | S131: =+Q131 -> 2022108.944
A132: Totale | B132: 248549 | C132: 588643.9786 | D132: 127053.3117 | E132: 2923615.409 | F132: 603773.4717 | G132: 6756.02532 | H132: 4249842.196 | J132: Totale | K132: =SUM(K129:K131) -> 2727487 | L132: 5295570.066 | M132: 1263914.58 | N132: 29257359.41 | O132: 8068770.721 | P132: 146921.9021 | Q132: 44032536.68 | S132: =+SUM(S129:S131) -> 6870686.828
A134: (*) Le polizze che prevedono una rateazione del premio periodico devono essere indicate secondo l'intero importo di tariffa su base annua, comprensivo di eventuali sovrappremi e garanzie accessorie. | N134: =+N132/Q132 -> 0.6644486468
A137: Dicembre | B137: Dicembre | J137: =+A137 -> Dicembre
L139: Premi imponibili annualizzati(*)
B140: Numero polizze/Adesioni | C140: Agenti | D140: Agenzie in Economia | E140: Sportelli bancari e postali | F140: Promotori finanziari | G140: Altre forme (inclusi Broker) | H140: Totale | K140: Numero polizze/Adesioni | L140: Agenti | M140: Agenzie in Economia | N140: Sportelli bancari e postali | O140: Promotori finanziari | P140: Altre forme (inclusi Broker) | Q140: Totale
A141: Annui | B141: 70926 | C141: 39283.03434 | D141: 22886.41111 | E141: 19615.49396 | F141: 3615.224216 | G141: 835.7453544 | H141: 86235.90897 | J141: Annui | K141: =+IF(ISERROR(B141+K129),0,B141+K129) -> 730237 | L141: 261342.716 | M141: 339103.2692 | N141: 165793.5072 | O141: 34184.07923 | P141: 5295.792687 | Q141: 805719.3643 | S141: =+Q141 -> 805719.3643
A142: Unici | B142: 98277 | C142: 898778.5702 | D142: 73019.12166 | E142: 1438826.208 | F142: 722314.1915 | G142: 15668.97428 | H142: 3148607.066 | J142: Unici | K142: 1569248 | L142: 5334970.354 | M142: 870523.0824 | N142: 29413708.55 | O142: 8679990.838 | P142: 140358.5187 | Q142: 44439551.35 | S142: =+Q142/10 -> 4443955.135
A143: Ricorrenti | B143: 74489 | C143: 200935.2028 | D143: 16695.89013 | E143: 181102.5152 | F143: 20039.87244 | G143: 4457.975819 | H143: 423231.4564 | J143: Ricorrenti | K143: 671694 | L143: 838253.8032 | M143: 166889.651 | N143: 1317401.569 | O143: 100565.0915 | P143: 22230.28619 | Q143: 2445340.401 | S143: =+Q143 -> 2445340.401
A144: Totale | B144: 243692 | C144: 1138996.807 | D144: 112601.4229 | E144: 1639544.218 | F144: 745969.2882 | G144: 20962.69545 | H144: 3658074.432 | J144: Totale | K144: =SUM(K141:K143) -> 2971179 | L144: 6434566.874 | M144: 1376516.003 | N144: 30896903.63 | O144: 8814740.009 | P144: 167884.5976 | Q144: 47690611.11 | S144: =+SUM(S141:S143) -> 7695014.9
A146: (*) Le polizze che prevedono una rateazione del premio periodico devono essere indicate secondo l'intero importo di tariffa su base annua, comprensivo di eventuali sovrappremi e garanzie accessorie.
N147: =+N144/Q144 -> 0.6478613486
C148: =+C144+D144 -> 1251598.23 | D148: =+C148/H144 -> 0.342146737 | L148: =+L144+M144 -> 7811082.876 | M148: =+L148/Q144 -> 0.1637865964
O149: =+O144/Q144 -> 0.1848317688

Sheet TAB1_2012_UE_LPS (hidden)
A1: Nuova produzione Vita emessa nel 2012
A2: Settore polizze "individuali"
A3: Premi del lavoro diretto - Attività svolta da imprese U.E. operanti in Italia secondo il regime della Libertà di Stabilimento o in L.P.S.(importi in MIGLIAIA di Euro)
A4: Dato mensile: | J4: Dato cumulato da inizio anno:
A5: Gennaio | J5: =+A5 -> Gennaio
C7: Premi imponibili annualizzati(*) | L7: Premi imponibili annualizzati(*)
B8: Numero polizze/Adesioni | C8: Agenti | D8: Agenzie in Economia | E8: Sportelli bancari e postali | F8: Promotori finanziari | G8: Altre forme (inclusi Broker) | H8: Totale | K8: Numero polizze/Adesioni | L8: Agenti | M8: Agenzie in Economia | N8: Sportelli bancari e postali | O8: Promotori finanziari | P8: Altre forme (inclusi Broker) | Q8: Totale
A9: Annui | B9: 57 | C9: 0 | D9: 0 | E9: 4430 | F9: 4510 | G9: 0 | H9: 8940 | J9: =+A9 -> Annui | K9: =+IF(ISERROR(B9),0,B9) -> 57 | L9: 0 | M9: 0 | N9: 4430 | O9: 4510 | P9: 0 | Q9: 8940
A10: Unici | B10: 4750 | C10: 245 | D10: 0 | E10: 173615 | F10: 119947 | G10: 17397 | H10: 311204 | J10: =+A10 -> Unici | K10: 4750 | L10: 245 | M10: 0 | N10: 173615 | O10: 119947 | P10: 17397 | Q10: 311204
A11: Ricorrenti | B11: 611 | C11: 0 | D11: 0 | E11: 403 | F11: 345 | G11: 1585 | H11: 2333 | J11: =+A11 -> Ricorrenti | K11: 611 | L11: 0 | M11: 0 | N11: 403 | O11: 345 | P11: 1585 | Q11: 2333
A12: Totale | B12: 5418 | C12: 245 | D12: 0 | E12: 178448 | F12: 124802 | G12: 18982 | H12: 322477 | J12: =+A12 -> Totale | K12: =SUM(K9:K11) -> 5418 | L12: 245 | M12: 0 | N12: 178448 | O12: 124802 | P12: 18982 | Q12: 322477
A14: (*) Le polizze che prevedono una rateazione del premio periodico devono essere indicate secondo l'intero importo di tariffa su base annua, comprensivo di eventuali sovrappremi e garanzie accessorie.
A17: Febbraio | J17: =+A17 -> Febbraio
L19: Premi imponibili annualizzati(*)
B20: Numero polizze/Adesioni | C20: Agenti | D20: Agenzie in Economia | E20: Sportelli bancari e postali | F20: Promotori finanziari | G20: Altre forme (inclusi Broker) | H20: Totale | K20: Numero polizze/Adesioni | L20: Agenti | M20: Agenzie in Economia | N20: Sportelli bancari e postali | O20: Promotori finanziari | P20: Altre forme (inclusi Broker) | Q20: Totale
A21: Annui | B21: 76 | C21: 0 | D21: 0 | E21: 2014 | F21: 2128 | G21: 0 | H21: 4142 | J21: Annui | K21: =+IF(ISERROR(B21+K9),0,B21+K9) -> 133 | L21: 0 | M21: 0 | N21: 6444 | O21: 6638 | P21: 0 | Q21: 13082
A22: Unici | B22: 10051 | C22: 21 | D22: 0 | E22: 294337 | F22: 125488 | G22: 16379 | H22: 436225 | J22: Unici | K22: 14801 | L22: 266 | M22: 0 | N22: 467952 | O22: 245435 | P22: 33776 | Q22: 747429
A23: Ricorrenti | B23: 561 | C23: 0 | D23: 0 | E23: 215 | F23: 505 | G23: 1554 | H23: 2274 | J23: Ricorrenti | K23: 1172 | L23: 0 | M23: 0 | N23: 618 | O23: 850 | P23: 3139 | Q23: 4607
A24: Totale | B24: 10688 | C24: 21 | D24: 0 | E24: 296566 | F24: 128121 | G24: 17933 | H24: 442641 | J24: Totale | K24: =SUM(K21:K23) -> 16106 | L24: 266 | M24: 0 | N24: 475014 | O24: 252923 | P24: 36915 | Q24: 765118
A26: (*) Le polizze che prevedono una rateazione del premio periodico devono essere indicate secondo l'intero importo di tariffa su base annua, comprensivo di eventuali sovrappremi e garanzie accessorie.
A29: Marzo | J29: =+A29 -> Marzo
L31: Premi imponibili annualizzati(*)
B32: Numero polizze/Adesioni | C32: Agenti | D32: Agenzie in Economia | E32: Sportelli bancari e postali | F32: Promotori finanziari | G32: Altre forme (inclusi Broker) | H32: Totale | K32: Numero polizze/Adesioni | L32: Agenti | M32: Agenzie in Economia | N32: Sportelli bancari e postali | O32: Promotori finanziari | P32: Altre forme (inclusi Broker) | Q32: Totale
A33: Annui | B33: 119 | C33: 0 | D33: 0 | E33: -483 | F33: -327 | G33: 0 | H33: -810 | J33: Annui | K33: =+IF(ISERROR(B33+K21),0,B33+K21) -> 252 | L33: 0 | M33: 0 | N33: 5961 | O33: 6311 | P33: 0 | Q33: 12272
A34: Unici | B34: 46911 | C34: 352 | D34: 0 | E34: 619119 | F34: 155992 | G34: 495260 | H34: 1270723 | J34: Unici | K34: 61712 | L34: 618 | M34: 0 | N34: 1087071 | O34: 401427 | P34: 529036 | Q34: 2018152
A35: Ricorrenti | B35: 536 | C35: 0 | D35: 0 | E35: 223 | F35: 714 | G35: 2043 | H35: 2980 | J35: Ricorrenti | K35: 1708 | L35: 0 | M35: 0 | N35: 841 | O35: 1564 | P35: 5182 | Q35: 7587
A36: Totale | B36: 47566 | C36: 352 | D36: 0 | E36: 618859 | F36: 156379 | G36: 497303 | H36: 1272893 | J36: Totale | K36: =SUM(K33:K35) -> 63672 | L36: 618 | M36: 0 | N36: 1093873 | O36: 409302 | P36: 534218 | Q36: 2038011
A38: (*) Le polizze che prevedono una rateazione del premio periodico devono essere indicate secondo l'intero importo di tariffa su base annua, comprensivo di eventuali sovrappremi e garanzie accessorie.
A41: Aprile | J41: =+A41 -> Aprile
L43: Premi imponibili annualizzati(*)
B44: Numero polizze/Adesioni | C44: Agenti | D44: Agenzie in Economia | E44: Sportelli bancari e postali | F44: Promotori finanziari | G44: Altre forme (inclusi Broker) | H44: Totale | K44: Numero polizze/Adesioni | L44: Agenti | M44: Agenzie in Economia | N44: Sportelli bancari e postali | O44: Promotori finanziari | P44: Altre forme (inclusi Broker) | Q44: Totale
A45: Annui | B45: 130 | C45: 0 | D45: 0 | E45: 1641 | F45: 1816 | G45: 0 | H45: 3457 | J45: Annui | K45: =+IF(ISERROR(B45+K33),0,B45+K33) -> 382 | L45: 0 | M45: 0 | N45: 7602 | O45: 8127 | P45: 0 | Q45: 15729
A46: Unici | B46: 11730 | C46: 60 | D46: 0 | E46: 322130 | F46: 204737 | G46: 33603 | H46: 560530 | J46: Unici | K46: 73442 | L46: 678 | M46: 0 | N46: 1409201 | O46: 606164 | P46: 562639 | Q46: 2578682
A47: Ricorrenti | B47: 470 | C47: 0 | D47: 0 | E47: 236 | F47: 650 | G47: 737 | H47: 1623 | J47: Ricorrenti | K47: 2178 | L47: 0 | M47: 0 | N47: 1077 | O47: 2214 | P47: 5919 | Q47: 9210
A48: Totale | B48: 12330 | C48: 60 | D48: 0 | E48: 324007 | F48: 207203 | G48: 34340 | H48: 565610 | J48: Totale | K48: =SUM(K45:K47) -> 76002 | L48: 678 | M48: 0 | N48: 1417880 | O48: 616505 | P48: 568558 | Q48: 2603621
A50: (*) Le polizze che prevedono una rateazione del premio periodico devono essere indicate secondo l'intero importo di tariffa su base annua, comprensivo di eventuali sovrappremi e garanzie accessorie.
A53: Maggio | J53: =+A53 -> Maggio
L55: Premi imponibili annualizzati(*)
B56: Numero polizze/Adesioni | C56: Agenti | D56: Agenzie in Economia | E56: Sportelli bancari e postali | F56: Promotori finanziari | G56: Altre forme (inclusi Broker) | H56: Totale | K56: Numero polizze/Adesioni | L56: Agenti | M56: Agenzie in Economia | N56: Sportelli bancari e postali | O56: Promotori finanziari | P56: Altre forme (inclusi Broker) | Q56: Totale
A57: Annui | B57: 199 | C57: 0 | D57: 0 | E57: 348 | F57: 546 | G57: 0 | H57: 894 | J57: Annui | K57: =+IF(ISERROR(B57+K45),0,B57+K45) -> 581 | L57: 0 | M57: 0 | N57: 7950 | O57: 8673 | P57: 0 | Q57: 16623
A58: Unici | B58: 32738 | C58: 130 | D58: 0 | E58: 354202 | F58: 297347 | G58: 370303 | H58: 1021982 | J58: Unici | K58: 106180 | L58: 808 | M58: 0 | N58: 1763403 | O58: 903511 | P58: 932942 | Q58: 3600664
A59: Ricorrenti | B59: 491 | C59: 0 | D59: 0 | E59: 216 | F59: 666 | G59: 620 | H59: 1502 | J59: Ricorrenti | K59: 2669 | L59: 0 | M59: 0 | N59: 1293 | O59: 2880 | P59: 6539 | Q59: 10712
A60: Totale | B60: 33428 | C60: 130 | D60: 0 | E60: 354766 | F60: 298559 | G60: 370923 | H60: 1024378 | J60: Totale | K60: =SUM(K57:K59) -> 109430 | L60: 808 | M60: 0 | N60: 1772646 | O60: 915064 | P60: 939481 | Q60: 3627999
A62: (*) Le polizze che prevedono una rateazione del premio periodico devono essere indicate secondo l'intero importo di tariffa su base annua, comprensivo di eventuali sovrappremi e garanzie accessorie.
A65: Giugno | J65: =+A65 -> Giugno
L67: Premi imponibili annualizzati(*)
B68: Numero polizze/Adesioni | C68: Agenti | D68: Agenzie in Economia | E68: Sportelli bancari e postali | F68: Promotori finanziari | G68: Altre forme (inclusi Broker) | H68: Totale | K68: Numero polizze/Adesioni | L68: Agenti | M68: Agenzie in Economia | N68: Sportelli bancari e postali | O68: Promotori finanziari | P68: Altre forme (inclusi Broker) | Q68: Totale
A69: Annui | B69: 95 | C69: 0 | D69: 0 | E69: -285 | F69: -144 | G69: 0 | H69: -429 | J69: Annui | K69: =+IF(ISERROR(B69+K57),0,B69+K57) -> 676 | L69: 0 | M69: 0 | N69: 7665 | O69: 8529 | P69: 0 | Q69: 16194
A70: Unici | B70: 24124 | C70: 370 | D70: 0 | E70: 193019 | F70: 175349 | G70: 319427 | H70: 688165 | J70: Unici | K70: 130304 | L70: 1178 | M70: 0 | N70: 1956422 | O70: 1078860 | P70: 1252369 | Q70: 4288829
A71: Ricorrenti | B71: 402 | C71: 0 | D71: 0 | E71: 222 | F71: 464 | G71: 862 | H71: 1548 | J71: Ricorrenti | K71: 3071 | L71: 0 | M71: 0 | N71: 1515 | O71: 3344 | P71: 7401 | Q71: 12260
A72: Totale | B72: 24621 | C72: 370 | D72: 0 | E72: 192956 | F72: 175669 | G72: 320289 | H72: 689284 | J72: Totale | K72: =SUM(K69:K71) -> 134051 | L72: 1178 | M72: 0 | N72: 1965602 | O72: 1090733 | P72: 1259770 | Q72: 4317283
A74: (*) Le polizze che prevedono una rateazione del premio periodico devono essere indicate secondo l'intero importo di tariffa su base annua, comprensivo di eventuali sovrappremi e garanzie accessorie.
A77: Luglio | J77: =+A77 -> Luglio
L79: Premi imponibili annualizzati(*)
B80: Numero polizze/Adesioni | C80: Agenti | D80: Agenzie in Economia | E80: Sportelli bancari e postali | F80: Promotori finanziari | G80: Altre forme (inclusi Broker) | H80: Totale | K80: Numero polizze/Adesioni | L80: Agenti | M80: Agenzie in Economia | N80: Sportelli bancari e postali | O80: Promotori finanziari | P80: Altre forme (inclusi Broker) | Q80: Totale
A81: Annui | B81: 111 | C81: 0 | D81: 0 | E81: 0 | F81: 132 | G81: 0 | H81: 132 | J81: Annui | K81: =+IF(ISERROR(B81+K69),0,B81+K69) -> 787 | L81: 0 | M81: 0 | N81: 7665 | O81: 8661 | P81: 0 | Q81: 16326
A82: Unici | B82: 9160 | C82: 0 | D82: 0 | E82: 161188 | F82: 178713 | G82: 36421 | H82: 376322 | J82: Unici | K82: 139464 | L82: 1178 | M82: 0 | N82: 2117610 | O82: 1257573 | P82: 1288790 | Q82: 4665151
A83: Ricorrenti | B83: 941 | C83: 0 | D83: 0 | E83: 21586 | F83: 21577 | G83: 609 | H83: 43772 | J83: Ricorrenti | K83: 4012 | L83: 0 | M83: 0 | N83: 23101 | O83: 24921 | P83: 8010 | Q83: 56032
A84: Totale | B84: 10212 | C84: 0 | D84: 0 | E84: 182774 | F84: 200422 | G84: 37030 | H84: 420226 | J84: Totale | K84: =SUM(K81:K83) -> 144263 | L84: 1178 | M84: 0 | N84: 2148376 | O84: 1291155 | P84: 1296800 | Q84: 4737509
A86: (*) Le polizze che prevedono una rateazione del premio periodico devono essere indicate secondo l'intero importo di tariffa su base annua, comprensivo di eventuali sovrappremi e garanzie accessorie.
A89: Agosto | J89: =+A89 -> Agosto
L91: Premi imponibili annualizzati(*)
B92: Numero polizze/Adesioni | C92: Agenti | D92: Agenzie in Economia | E92: Sportelli bancari e postali | F92: Promotori finanziari | G92: Altre forme (inclusi Broker) | H92: Totale | K92: Numero polizze/Adesioni | L92: Agenti | M92: Agenzie in Economia | N92: Sportelli bancari e postali | O92: Promotori finanziari | P92: Altre forme (inclusi Broker) | Q92: Totale
A93: Annui | B93: 52 | C93: 0 | D93: 0 | E93: 367 | F93: 442 | G93: 0 | H93: 809 | J93: Annui | K93: =+IF(ISERROR(B93+K81),0,B93+K81) -> 839 | L93: 0 | M93: 0 | N93: 8032 | O93: 9103 | P93: 0 | Q93: 17135
A94: Unici | B94: 40987 | C94: 75 | D94: 0 | E94: 669080 | F94: 161969 | G94: 317011 | H94: 1148135 | J94: Unici | K94: 180451 | L94: 1253 | M94: 0 | N94: 2786690 | O94: 1419542 | P94: 1605801 | Q94: 5813286
A95: Ricorrenti | B95: 898 | C95: 0 | D95: 0 | E95: 354 | F95: 332 | G95: 1447 | H95: 2133 | J95: Ricorrenti | K95: 4910 | L95: 0 | M95: 0 | N95: 23455 | O95: 25253 | P95: 9457 | Q95: 58165
A96: Totale | B96: 41937 | C96: 75 | D96: 0 | E96: 669801 | F96: 162743 | G96: 318458 | H96: 1151077 | J96: Totale | K96: =SUM(K93:K95) -> 186200 | L96: 1253 | M96: 0 | N96: 2818177 | O96: 1453898 | P96: 1615258 | Q96: 5888586
A98: (*) Le polizze che prevedono una rateazione del premio periodico devono essere indicate secondo l'intero importo di tariffa su base annua, comprensivo di eventuali sovrappremi e garanzie accessorie.
A101: Settembre | J101: =+A101 -> Settembre
L103: Premi imponibili annualizzati(*)
B104: Numero polizze/Adesioni | C104: Agenti | D104: Agenzie in Economia | E104: Sportelli bancari e postali | F104: Promotori finanziari | G104: Altre forme (inclusi Broker) | H104: Totale | K104: Numero polizze/Adesioni | L104: Agenti | M104: Agenzie in Economia | N104: Sportelli bancari e postali | O104: Promotori finanziari | P104: Altre forme (inclusi Broker) | Q104: Totale
A105: Annui | B105: 67 | C105: 0 | D105: 0 | E105: 1143 | F105: 1254 | G105: 0 | H105: 2397 | J105: Annui | K105: =+IF(ISERROR(B105+K93),0,B105+K93) -> 906 | L105: 0 | M105: 0 | N105: 9175 | O105: 10357 | P105: 0 | Q105: 19532
A106: Unici | B106: 25369 | C106: 65 | D106: 0 | E106: 205027 | F106: 139176 | G106: 343468 | H106: 687736 | J106: Unici | K106: 205820 | L106: 1318 | M106: 0 | N106: 2991717 | O106: 1558718 | P106: 1949269 | Q106: 6501022
A107: Ricorrenti | B107: 935 | C107: 0 | D107: 0 | E107: 342 | F107: 457 | G107: 1254 | H107: 2053 | J107: Ricorrenti | K107: 5845 | L107: 0 | M107: 0 | N107: 23797 | O107: 25710 | P107: 10711 | Q107: 60218
A108: Totale | B108: 26371 | C108: 65 | D108: 0 | E108: 206512 | F108: 140887 | G108: 344722 | H108: 692186 | J108: Totale | K108: =SUM(K105:K107) -> 212571 | L108: 1318 | M108: 0 | N108: 3024689 | O108: 1594785 | P108: 1959980 | Q108: 6580772
A110: (*) Le polizze che prevedono una rateazione del premio periodico devono essere indicate secondo l'intero importo di tariffa su base annua, comprensivo di eventuali sovrappremi e garanzie accessorie.
A113: Ottobre | J113: =+A113 -> Ottobre
L115: Premi imponibili annualizzati(*)
B116: Numero polizze/Adesioni | C116: Agenti | D116: Agenzie in Economia | E116: Sportelli bancari e postali | F116: Promotori finanziari | G116: Altre forme (inclusi Broker) | H116: Totale | K116: Numero polizze/Adesioni | L116: Agenti | M116: Agenzie in Economia | N116: Sportelli bancari e postali | O116: Promotori finanziari | P116: Altre forme (inclusi Broker) | Q116: Totale
A117: Annui | B117: 157 | C117: 0 | D117: 0 | E117: 737 | F117: 854 | G117: 0 | H117: 1591 | J117: Annui | K117: =+IF(ISERROR(B117+K105),0,B117+K105) -> 1063 | L117: 0 | M117: 0 | N117: 9912 | O117: 11211 | P117: 0 | Q117: 21123
A118: Unici | B118: 7626 | C118: 561 | D118: 0 | E118: 207748 | F118: 221441 | G118: 14973 | H118: 444723 | J118: Unici | K118: 213446 | L118: 1879 | M118: 0 | N118: 3199465 | O118: 1780159 | P118: 1964242 | Q118: 6945745
A119: Ricorrenti | B119: 1523 | C119: 0 | D119: 0 | E119: 443 | F119: 461 | G119: 620 | H119: 1524 | J119: Ricorrenti | K119: 7368 | L119: 0 | M119: 0 | N119: 24240 | O119: 26171 | P119: 11331 | Q119: 61742
A120: Totale | B120: 9306 | C120: 561 | D120: 0 | E120: 208928 | F120: 222756 | G120: 15593 | H120: 447838 | J120: Totale | K120: =SUM(K117:K119) -> 221877 | L120: 1879 | M120: 0 | N120: 3233617 | O120: 1817541 | P120: 1975573 | Q120: 7028610
A122: (*) Le polizze che prevedono una rateazione del premio periodico devono essere indicate secondo l'intero importo di tariffa su base annua, comprensivo di eventuali sovrappremi e garanzie accessorie.
A125: Novembre | J125: =+A125 -> Novembre
L127: Premi imponibili annualizzati(*)
B128: Numero polizze/Adesioni | C128: Agenti | D128: Agenzie in Economia | E128: Sportelli bancari e postali | F128: Promotori finanziari | G128: Altre forme (inclusi Broker) | H128: Totale | K128: Numero polizze/Adesioni | L128: Agenti | M128: Agenzie in Economia | N128: Sportelli bancari e postali | O128: Promotori finanziari | P128: Altre forme (inclusi Broker) | Q128: Totale
A129: Annui | B129: 123 | C129: 0 | D129: 0 | E129: 1787 | F129: 2003 | G129: 0 | H129: 3790 | J129: Annui | K129: =+IF(ISERROR(B129+K117),0,B129+K117) -> 1186 | L129: 0 | M129: 0 | N129: 11699 | O129: 13214 | P129: 0 | Q129: 24913
A130: Unici | B130: 38270 | C130: 712 | D130: 0 | E130: 284208 | F130: 299977 | G130: 416096 | H130: 1000993 | J130: Unici | K130: 251716 | L130: 2591 | M130: 0 | N130: 3483673 | O130: 2080136 | P130: 2380338 | Q130: 7946738
A131: Ricorrenti | B131: 1466 | C131: 0 | D131: 0 | E131: 372 | F131: 368 | G131: 620 | H131: 1360 | J131: Ricorrenti | K131: 8834 | L131: 0 | M131: 0 | N131: 24612 | O131: 26539 | P131: 11951 | Q131: 63102
A132: Totale | B132: 39859 | C132: 712 | D132: 0 | E132: 286367 | F132: 302348 | G132: 416716 | H132: 1006143 | J132: Totale | K132: =SUM(K129:K131) -> 261736 | L132: 2591 | M132: 0 | N132: 3519984 | O132: 2119889 | P132: 2392289 | Q132: 8034753
A134: (*) Le polizze che prevedono una rateazione del premio periodico devono essere indicate secondo l'intero importo di tariffa su base annua, comprensivo di eventuali sovrappremi e garanzie accessorie.
A137: Dicembre | J137: =+A137 -> Dicembre
L139: Premi imponibili annualizzati(*)
B140: Numero polizze/Adesioni | C140: Agenti | D140: Agenzie in Economia | E140: Sportelli bancari e postali | F140: Promotori finanziari | G140: Altre forme (inclusi Broker) | H140: Totale | K140: Numero polizze/Adesioni | L140: Agenti | M140: Agenzie in Economia | N140: Sportelli bancari e postali | O140: Promotori finanziari | P140: Altre forme (inclusi Broker) | Q140: Totale
A141: Annui | B141: 100 | C141: 0 | D141: 0 | E141: 608 | F141: 757 | G141: 0 | H141: 1365 | J141: Annui | K141: =+IF(ISERROR(B141+K129),0,B141+K129) -> 1286 | L141: 0 | M141: 0 | N141: 12307 | O141: 13971 | P141: 0 | Q141: 26278
A142: Unici | B142: 35886 | C142: 290 | D142: 0 | E142: 161069 | F142: 229254 | G142: 366965 | H142: 757578 | J142: Unici | K142: 287602 | L142: 2881 | M142: 0 | N142: 3644742 | O142: 2309390 | P142: 2747303 | Q142: 8704316
A143: Ricorrenti | B143: 1428 | C143: 0 | D143: 0 | E143: 574 | F143: 408 | G143: 121 | H143: 1103 | J143: Ricorrenti | K143: 10262 | L143: 0 | M143: 0 | N143: 25186 | O143: 26947 | P143: 12072 | Q143: 64205
A144: Totale | B144: 37414 | C144: 290 | D144: 0 | E144: 162251 | F144: 230419 | G144: 367086 | H144: 760046 | J144: Totale | K144: =SUM(K141:K143) -> 299150 | L144: 2881 | M144: 0 | N144: 3682235 | O144: 2350308 | P144: 2759375 | Q144: 8794799
A146: (*) Le polizze che prevedono una rateazione del premio periodico devono essere indicate secondo l'intero importo di tariffa su base annua, comprensivo di eventuali sovrappremi e garanzie accessorie.

Sheet TAB2_2012 (hidden)
A1: Nuova produzione Vita emessa nel 2012
A2: Settore polizze "individuali"
A3: Premi del lavoro diretto - Attività svolta da imprese nazionali e da rappresentanze in Italia di imprese extra U.E. (importi in MIGLIAIA di Euro)
A4: Dato mensile: | J4: Dato cumulato da inizio anno:
A5: Gennaio | J5: =+A5 -> Gennaio
C7: Premi imponibili annualizzati(*) | L7: Premi imponibili annualizzati(*)
B8: Numero polizze/Adesioni | C8: Agenti | D8: Agenzie in Economia | E8: Sportelli bancari e postali | F8: Promotori finanziari | G8: Altre forme (inclusi Broker) | H8: Totale | K8: Numero polizze/Adesioni | L8: Agenti | M8: Agenzie in Economia | N8: Sportelli bancari e postali | O8: Promotori finanziari | P8: Altre forme (inclusi Broker) | Q8: Totale
A9: Ramo I | B9: 205572 | C9: 320327.18 | D9: 89173.57583 | E9: 1986570.254 | F9: 386209.6208 | G9: 10674.60305 | H9: 2792955.234 | J9: =+A9 -> Ramo I | K9: =++IF(ISERROR(B9),0,B9) -> 205572 | L9: 320327.18 | M9: 89173.57583 | N9: 1986570.254 | O9: 386209.6208 | P9: 10674.60305 | Q9: 2792955.234 | S9: 235597 | T9: 376444.8819 | U9: 104795.7786 | V9: 2023330.805 | W9: 452512.8419 | X9: 12544.67287 | Y9: 2969628.98
A10: Ramo III | B10: 18993 | C10: 14224.12878 | D10: 1054.046982 | E10: 251208.5246 | F10: 209780.3742 | G10: 1812.800649 | H10: 478079.8752 | J10: Ramo III | K10: 18993 | L10: 14224.12878 | M10: 1054.046982 | N10: 251208.5246 | O10: 209780.3742 | P10: 1812.800649 | Q10: 478079.8752 | S10: 21211 | T10: 16716.0354 | U10: 1238.704101 | V10: 281944.5813 | W10: 79227.65545 | X10: 2130.382836 | Y10: 381257.359
A11: - Unit classiche(a) | B11: 14980 | C11: 12619.53494 | D11: 1053.045987 | E11: 147812.822 | F11: 203010.6498 | G11: 1691.680341 | H11: 366187.7331 | J11: - Unit classiche(a) | K11: 14980 | L11: 12619.53494 | M11: 1053.045987 | N11: 147812.822 | O11: 203010.6498 | P11: 1691.680341 | Q11: 366187.7331 | S11: 16534 | T11: 14830.33485 | U11: 1237.527744 | V11: 160435.12 | W11: 78594.77529 | X11: 1988.043619 | Y11: 257085.8015
A12: - Unit protette(b) | B12: 33 | C12: 22.02187426 | D12: 0 | E12: 50111.77587 | F12: 525.5219994 | G12: 0 | H12: 50659.31974 | J12: - Unit protette(b) | K12: 33 | L12: 22.02187426 | M12: 0 | N12: 50111.77587 | O12: 525.5219994 | P12: 0 | Q12: 50659.31974 | S12: 39 | T12: 25.87985776 | U12: 0 | V12: 58890.79268 | W12: 617.5875146 | X12: 0 | Y12: 59534.26005
A13: - Unit garantite(c) | B13: 196 | C13: 1129.121553 | D13: 0 | E13: 10.00994285 | F13: 6244.202347 | G13: 1.000994285 | H13: 7384.334837 | J13: - Unit garantite(c) | K13: 196 | L13: 1129.121553 | M13: 0 | N13: 10.00994285 | O13: 6244.202347 | P13: 1.000994285 | Q13: 7384.334837 | S13: 191 | T13: 1326.930889 | U13: 0 | V13: 11.76357171 | W13: 15.29264322 | X13: 1.176357171 | Y13: 1355.163461
A14: - Index linked | B14: 3784 | C14: 453.4504109 | D14: 1.000994285 | E14: 53273.91682 | F14: 0 | G14: 120.1193141 | H14: 53848.48753 | J14: - Index linked | K14: 3784 | L14: 453.4504109 | M14: 1.000994285 | N14: 53273.91682 | O14: 0 | P14: 120.1193141 | Q14: 53848.48753 | S14: 4447 | T14: 532.8897983 | U14: 1.176357171 | V14: 62606.90498 | W14: 0 | X14: 141.1628605 | Y14: 63282.134
A15: Ramo IV | B15: 863 | C15: 27.02684568 | D15: 1.000994285 | E15: 295.2933139 | F15: 0 | G15: 1.000994285 | H15: 324.3221482 | J15: Ramo IV | K15: 863 | L15: 27.02684568 | M15: 1.000994285 | N15: 295.2933139 | O15: 0 | P15: 1.000994285 | Q15: 324.3221482 | S15: 1014 | T15: 31.76164361 | U15: 1.176357171 | V15: 347.0253654 | W15: 0 | X15: 1.176357171 | Y15: 381.1397233
A16: Ramo V | B16: 2893 | C16: 29983.7828 | D16: 33334.11067 | E16: 38615.35651 | F16: 3453.430282 | G16: 154.1531198 | H16: 105540.8334 | J16: Ramo V | K16: 2893 | L16: 29983.7828 | M16: 33334.11067 | N16: 38615.35651 | O16: 3453.430282 | P16: 154.1531198 | Q16: 105540.8334 | S16: 3400 | T16: 35236.60269 | U16: 39173.87014 | V16: 45228.5805 | W16: 4058.432239 | X16: 181.1590043 | Y16: 123878.6446
A17: Ramo VI | B17: 2883 | C17: 5218.183205 | D17: 850.8451418 | E17: 1855.843403 | F17: 375.3728567 | G17: 2.001988569 | H17: 8302.246596 | J17: Ramo VI | K17: 2883 | L17: 5218.183205 | M17: 850.8451418 | N17: 1855.843403 | O17: 375.3728567 | P17: 2.001988569 | Q17: 8302.246596 | S17: 2967 | T17: 6132.349931 | U17: 999.9035951 | V17: 2106.855693 | W17: 238.8005057 | X17: 2.352714341 | Y17: 9480.262439
A18: Totale | B18: 231204 | C18: 369780.3016 | D18: 124413.5796 | E18: 2278545.272 | F18: 599818.7981 | G18: 12644.5598 | H18: 3385202.511 | J18: Totale | K18: =SUM(K9:K10,K15:K17) -> 231204 | L18: =SUM(L9:L10,L15:L17) -> 369780.3016 | M18: 124413.5796 | N18: 2278545.272 | O18: 599818.7981 | P18: 12644.5598 | Q18: 3385202.511 | S18: 264189 | T18: 434561.6315 | U18: 146209.4328 | V18: 2352957.847 | W18: 536037.7301 | X18: 14859.74378 | Y18: 3484626.386
A19: Forme pens. individuali | B19: 27964 | C19: 26043.86929 | D19: 12342.25953 | E19: 22730.57821 | F19: 4005.979127 | G19: 2075.061152 | H19: 67197.74731 | J19: Forme pens. individuali | K19: =++IF(ISERROR(B19),0,B19) -> 27964 | L19: 26043.86929 | M19: 12342.25953 | N19: 22730.57821 | O19: 4005.979127 | P19: 2075.061152 | Q19: 67197.74731 | S19: 32199 | T19: 30606.46087 | U19: 14504.48392 | V19: 26436.2747 | W19: 4205.476885 | X19: 2438.588415 | Y19: 78191.28478
A20: Forme di puro rischio | B20: 33503 | C20: 7272.223477 | D20: 173.1720112 | E20: 16488.37785 | F20: 196.1948798 | G20: 200.1988569 | H20: 24330.16708 | J20: Forme di puro rischio | K20: 33503 | L20: 7272.223477 | M20: 173.1720112 | N20: 16488.37785 | O20: 196.1948798 | P20: 200.1988569 | Q20: 24330.16708 | S20: 39373 | T20: 8546.234845 | U20: 203.5097905 | V20: 19376.95532 | W20: 230.5660055 | X20: 235.2714341 | Y20: 28592.53739
A21: Altre forme | B21: 169737 | C21: 336464.2088 | D21: 111898.1481 | E21: 2239326.316 | F21: 595616.6241 | G21: 10369.29979 | H21: 3293674.597 | J21: Altre forme | K21: 169737 | L21: 336464.2088 | M21: 111898.1481 | N21: 2239326.316 | O21: 595616.6241 | P21: 10369.29979 | Q21: 3293674.597 | S21: 192616 | T21: 395408.9358 | U21: 131501.439 | V21: 2307144.617 | W21: 531601.6872 | X21: 12185.88393 | Y21: 3377842.563
A22: Totale | B22: 231204 | C22: 369780.3016 | D22: 124413.5796 | E22: 2278545.272 | F22: 599818.7981 | G22: 12644.5598 | H22: 3385202.511 | J22: Totale | K22: =SUM(K19:K21) -> 231204 | L22: =SUM(L19:L21) -> 369780.3016 | M22: 124413.5796 | N22: 2278545.272 | O22: 599818.7981 | P22: 12644.5598 | Q22: 3385202.511 | S22: 264188 | T22: 434561.6315 | U22: 146209.4328 | V22: 2352957.847 | W22: 536037.7301 | X22: 14859.74378 | Y22: 3484626.386
A24: (*) Le polizze che prevedono una rateazione del premio periodico devono essere indicate secondo l'intero importo di tariffa su base annua, comprensivo di eventuali sovrappremi e garanzie accessorie.
A25: (**) Sono da intendersi tutte le nuove polizze di Ramo III che prevedono una garanzia finanziaria di rendimento ovvero una garanzia del capitale investito in capo alla compagnia di assicurazioni.
A27: Febbraio | B27: Febbraio | J27: =+A27 -> Febbraio
L29: Premi imponibili annualizzati(*)
B30: Numero polizze/Adesioni | C30: Agenti | D30: Agenzie in Economia | E30: Sportelli bancari e postali | F30: Promotori finanziari | G30: Altre forme (inclusi Broker) | H30: Totale | K30: Numero polizze/Adesioni | L30: Agenti | M30: Agenzie in Economia | N30: Sportelli bancari e postali | O30: Promotori finanziari | P30: Altre forme (inclusi Broker) | Q30: Totale
A31: Ramo I | B31: 206187 | C31: 344390.0816 | D31: 78091.56811 | E31: 1920336.464 | F31: 570471.6477 | G31: 14415.31869 | H31: 2927705.08 | J31: Ramo I | K31: =+IF(ISERROR(B31+K9),0,B31+K9) -> 411759 | L31: 664717.2616 | M31: 167265.1439 | N31: 3906906.718 | O31: 956681.2685 | P31: 25089.92174 | Q31: 5720660.314
A32: Ramo III | B32: 39438 | C32: 20995.85512 | D32: 466.4633366 | E32: 549756.071 | F32: 481451.224 | G32: 405.4026852 | H32: 1053075.016 | J32: Ramo III | K32: 58431 | L32: 35219.9839 | M32: 1520.510318 | N32: 800964.5956 | O32: 691231.5982 | P32: 2218.203334 | Q32: 1531154.891
A33: - Unit classiche(a) | B33: 27832 | C33: 20616.47828 | D33: 466.4633366 | E33: 319477.3358 | F33: 473013.8432 | G33: 405.4026852 | H33: 813979.5233 | J33: =+A33 -> - Unit classiche(a) | K33: 42812 | L33: 33236.01323 | M33: 1519.509324 | N33: 467290.1579 | O33: 676024.493 | P33: 2097.083026 | Q33: 1180167.256
A34: - Unit protette(b) | B34: 27 | C34: 13.0129257 | D34: 0 | E34: 77052.53604 | F34: 315.3131996 | G34: 0 | H34: 77380.86217 | J34: =+A34 -> - Unit protette(b) | K34: 60 | L34: 35.03479996 | M34: 0 | N34: 127164.3119 | O34: 840.835199 | P34: 0 | Q34: 128040.1819
A35: - Unit garantite(c) | B35: 131 | C35: 289.2873482 | D35: 0 | E35: 0 | F35: 8122.067624 | G35: 0 | H35: 8411.354973 | J35: =+A35 -> - Unit garantite(c) | K35: 327 | L35: 1418.408901 | M35: 0 | N35: 10.00994285 | O35: 14366.26997 | P35: 1.000994285 | Q35: 15795.68981
A36: - Index linked | B36: 11448 | C36: 77.07655991 | D36: 0 | E36: 153226.1991 | F36: 0 | G36: 0 | H36: 153303.2757 | J36: =+A36 -> - Index linked | K36: 15232 | L36: 530.5269708 | M36: 1.000994285 | N36: 206500.1159 | O36: 0 | P36: 120.1193141 | Q36: 207151.7632
A37: Ramo IV | B37: 967 | C37: 53.05269708 | D37: 1.000994285 | E37: 310.3082282 | F37: 0 | G37: 3.002982854 | H37: 367.3649024 | J37: Ramo IV | K37: 1830 | L37: 80.07954276 | M37: 2.001988569 | N37: 605.6015421 | O37: 0 | P37: 4.003977138 | Q37: 691.6870506
A38: Ramo V | B38: 2495 | C38: 14303.20733 | D38: 26918.7383 | E38: 33389.16535 | F38: 60.05965707 | G38: 816.8113362 | H38: 75487.98198 | J38: Ramo V | K38: 5388 | L38: 44286.99013 | M38: 60252.84897 | N38: 72004.52187 | O38: 3513.489939 | P38: 970.964456 | Q38: 181028.8154
A39: Ramo VI | B39: 2064 | C39: 1999.98658 | D39: 414.4116338 | E39: 2262.247083 | F39: 555.5518279 | G39: 11.01093713 | H39: 5243.208062 | J39: Ramo VI | K39: 4947 | L39: 7218.169786 | M39: 1265.256776 | N39: 4118.090486 | O39: 930.9246846 | P39: 13.0129257 | Q39: 13545.45466
A40: Totale | B40: 251151 | C40: 381742.1833 | D40: 105892.1824 | E40: 2506054.256 | F40: 1052538.483 | G40: 15651.54663 | H40: 4061878.651 | J40: Totale | K40: =SUM(K31:K32,K37:K39) -> 482355 | L40: =SUM(L31:L32,L37:L39) -> 751522.4849 | M40: 230305.762 | N40: 4784599.528 | O40: 1652357.281 | P40: 28296.10643 | Q40: 7447081.163 | S40: =+N40/Q40 -> 0.6424798419
A41: Forme pens. individuali | B41: 26982 | C41: 21584.43976 | D41: 8560.503121 | E41: 20418.28142 | F41: 4304.275423 | G41: 956.950536 | H41: 55824.45025 | J41: Forme pens. individuali | K41: =+IF(ISERROR(B41+K19),0,B41+K19) -> 54946 | L41: 47628.30905 | M41: 20902.76265 | N41: 43148.85963 | O41: 8310.25455 | P41: 3032.011688 | Q41: 123022.1976
A42: Forme di puro rischio | B42: 46435 | C42: 5090.055937 | D42: 157.1561027 | E42: 15100.99978 | F42: 248.2465826 | G42: 201.1998512 | H42: 20797.65825 | J42: Forme di puro rischio | K42: 79938 | L42: 12362.27941 | M42: 330.3281139 | N42: 31589.37763 | O42: 444.4414623 | P42: 401.3987081 | Q42: 45127.82533
A43: Altre forme | B43: 177735 | C43: 355067.6876 | D43: 97174.52315 | E43: 2470534.975 | F43: 1047985.961 | G43: 14493.39625 | H43: 3985256.543 | J43: Altre forme | K43: 347472 | L43: 691531.8965 | M43: 209072.6712 | N43: 4709861.291 | O43: 1643602.585 | P43: 24862.69604 | Q43: 7278931.14
A44: Totale | B44: 251152 | C44: 381742.1833 | D44: 105892.1824 | E44: 2506054.256 | F44: 1052538.483 | G44: 15651.54663 | H44: 4061878.651 | J44: Totale | K44: =SUM(K41:K43) -> 482356 | L44: =SUM(L41:L43) -> 751522.4849 | M44: 230305.762 | N44: 4784599.528 | O44: 1652357.281 | P44: 28296.10643 | Q44: 7447081.163
A46: (*) Le polizze che prevedono una rateazione del premio periodico devono essere indicate secondo l'intero importo di tariffa su base annua, comprensivo di eventuali sovrappremi e garanzie accessorie.
A47: (**) Sono da intendersi tutte le nuove polizze di Ramo III che prevedono una garanzia finanziaria di rendimento ovvero una garanzia del capitale investito in capo alla compagnia di assicurazioni.
A49: Marzo | B49: Marzo | J49: =+A49 -> Marzo
L51: Premi imponibili annualizzati(*)
B52: Numero polizze/Adesioni | C52: Agenti | D52: Agenzie in Economia | E52: Sportelli bancari e postali | F52: Promotori finanziari | G52: Altre forme (inclusi Broker) | H52: Totale | K52: Numero polizze/Adesioni | L52: Agenti | M52: Agenzie in Economia | N52: Sportelli bancari e postali | O52: Promotori finanziari | P52: Altre forme (inclusi Broker) | Q52: Totale
A53: Ramo I | B53: 274356 | C53: 568659.1552 | D53: 89466.79042 | E53: 2675061.738 | F53: 353096.9073 | G53: 19109.04228 | H53: 3705393.633 | J53: Ramo I | K53: =+IF(ISERROR(B53+K31),0,B53+K31) -> 686115 | L53: 1233376.417 | M53: 256731.9344 | N53: 6581968.456 | O53: 1309778.176 | P53: 44198.96402 | Q53: 9426053.947
A54: Ramo III | B54: 43028 | C54: 37141.12409 | D54: 1231.097947 | E54: 685510.3683 | F54: 537424.2986 | G54: 406.3624119 | H54: 1261713.251 | J54: Ramo III | K54: 101459 | L54: 72361.10799 | M54: 2751.608265 | N54: 1486474.964 | O54: 1228655.897 | P54: 2624.565746 | Q54: 2792868.143
A55: - Unit classiche(a) | B55: 27024 | C55: 36500.5528 | D55: 1206.075631 | E55: 421745.1308 | F55: 534099.3333 | G55: 406.3624119 | H55: 993957.4549 | J55: =+A55 -> - Unit classiche(a) | K55: 69836 | L55: 69736.56603 | M55: 2725.584955 | N55: 889035.2887 | O55: 1210123.826 | P55: 2503.445438 | Q55: 2174124.711
A56: - Unit protette(b) | B56: 42 | C56: 52.04641728 | D56: 0 | E56: 63545.67282 | F56: 479.4275746 | G56: 0 | H56: 64077.14682 | J56: =+A56 -> - Unit protette(b) | K56: 102 | L56: 87.08121724 | M56: 0 | N56: 190709.9847 | O56: 1320.262774 | P56: 0 | Q56: 192117.3287
A57: - Unit garantite(c) | B57: 225 | C57: 568.5070195 | D57: 25.022316 | E57: 0 | F57: 2845.537776 | G57: 0 | H57: 3439.067111 | J57: =+A57 -> - Unit garantite(c) | K57: 552 | L57: 1986.915921 | M57: 25.022316 | N57: 10.00994285 | O57: 17211.80775 | P57: 1.000994285 | Q57: 19234.75692
A58: - Index linked | B58: 15737 | C58: 20.0178528 | D58: 0 | E58: 200219.5646 | F58: 0 | G58: 0 | H58: 200239.5825 | J58: =+A58 -> - Index linked | K58: 30969 | L58: 550.5448236 | M58: 1.000994285 | N58: 406719.6805 | O58: 0 | P58: 120.1193141 | Q58: 407391.3457
A59: Ramo IV | B59: 667 | C59: 43.03838352 | D59: 4.00357056 | E59: 208.1856691 | F59: 0 | G59: 0 | H59: 255.2276232 | J59: Ramo IV | K59: 2497 | L59: 123.1179263 | M59: 6.005559129 | N59: 813.7872113 | O59: 0 | P59: 4.003977138 | Q59: 946.9146738
A60: Ramo V | B60: 2431 | C60: 21620.28192 | D60: 26516.64871 | E60: 34947.16742 | F60: 3002.67792 | G60: 1075.959588 | H60: 87162.73556 | J60: Ramo V | K60: 7819 | L60: 65907.27205 | M60: 86769.49768 | N60: 106951.6893 | O60: 6516.167859 | P60: 2046.924044 | Q60: 268191.5509
A61: Ramo VI | B61: 2177 | C61: 1620.445184 | D61: 519.4632802 | E61: 2373.11645 | F61: 730.6516272 | G61: 2.00178528 | H61: 5245.678326 | J61: Ramo VI | K61: 7124 | L61: 8838.61497 | M61: 1784.720056 | N61: 6491.206936 | O61: 1661.576312 | P61: 15.01471098 | Q61: 18791.13298
A62: Totale | B62: 322659 | C62: 629084.0448 | D62: 117738.0039 | E62: 3398100.575 | F62: 894254.5355 | G62: 20593.36607 | H62: 5059770.526 | J62: Totale | K62: =SUM(K53:K54,K59:K61) -> 805014 | L62: 1380606.53 | M62: 348043.7659 | N62: 8182700.103 | O62: 2546611.817 | P62: 48889.4725 | Q62: 12506851.69
A63: Forme pens. individuali | B63: 30419 | C63: 28510.42685 | D63: 12393.05267 | E63: 22422.99782 | F63: 4721.210583 | G63: 1206.075631 | H63: 69253.76355 | J63: Forme pens. individuali | K63: =+IF(ISERROR(B63+K41),0,B63+K41) -> 85365 | L63: 76138.7359 | M63: 33295.81532 | N63: 65571.85744 | O63: 13031.46513 | P63: 4238.087319 | Q63: 192275.9611
A64: Forme di puro rischio | B64: 56788 | C64: 6241.566503 | D64: 150.133896 | E64: 17114.26325 | F64: 347.3097461 | G64: 278.2481539 | H64: 24131.52155 | J64: Forme di puro rischio | K64: 136726 | L64: 18603.84592 | M64: 480.4620099 | N64: 48703.64088 | O64: 791.7512084 | P64: 679.646862 | Q64: 69259.34688
A65: Altre forme | B65: 235452 | C65: 594332.0514 | D65: 105194.8174 | E65: 3358563.314 | F65: 889186.0152 | G65: 19109.04228 | H65: 4966385.241 | J65: Altre forme | K65: 582924 | L65: 1285863.948 | M65: 314267.4886 | N65: 8068424.605 | O65: 2532788.6 | P65: 43971.73832 | Q65: 12245316.38
A66: Totale | B66: 322659 | C66: 629084.0448 | D66: 117738.0039 | E66: 3398100.575 | F66: 894254.5355 | G66: 20593.36607 | H66: 5059770.526 | J66: Totale | K66: =SUM(K63:K65) -> 805015 | L66: 1380606.53 | M66: 348043.7659 | N66: 8182700.103 | O66: 2546611.817 | P66: 48889.4725 | Q66: 12506851.69
A68: (*) Le polizze che prevedono una rateazione del premio periodico devono essere indicate secondo l'intero importo di tariffa su base annua, comprensivo di eventuali sovrappremi e garanzie accessorie.
A69: (**) Sono da intendersi tutte le nuove polizze di Ramo III che prevedono una garanzia finanziaria di rendimento ovvero una garanzia del capitale investito in capo alla compagnia di assicurazioni.
A71: Aprile | B71: Aprile | J71: =+A71 -> Aprile
L73: Premi imponibili annualizzati(*)
B74: Numero polizze/Adesioni | C74: Agenti | D74: Agenzie in Economia | E74: Sportelli bancari e postali | F74: Promotori finanziari | G74: Altre forme (inclusi Broker) | H74: Totale | K74: Numero polizze/Adesioni | L74: Agenti | M74: Agenzie in Economia | N74: Sportelli bancari e postali | O74: Promotori finanziari | P74: Altre forme (inclusi Broker) | Q74: Totale
A75: Ramo I | B75: 211591 | C75: 447870.4305 | D75: 76536.2584 | E75: 2264536.613 | F75: 281356.9265 | G75: 10954.76995 | H75: 3081254.999 | J75: Ramo I | K75: =+IF(ISERROR(B75+K53),0,B75+K53) -> 897706 | L75: 1681246.847 | M75: 333268.1928 | N75: 8846505.069 | O75: 1591135.102 | P75: 55153.73397 | Q75: 12507308.95
A76: Ramo III | B76: 32436 | C76: 56890.73766 | D76: 4081.640186 | E76: 564136.1214 | F76: 557208.9434 | G76: 132.1178285 | H76: 1182449.56 | J76: Ramo III | K76: 133895 | L76: 129251.8456 | M76: 6833.248452 | N76: 2050611.085 | O76: 1785864.84 | P76: 2756.683575 | Q76: 3975317.703
A77: - Unit classiche(a) | B77: 21838 | C77: 30920.57633 | D77: 4076.635723 | E77: 336702.2859 | F77: 555786.675 | G77: 131.1169358 | H77: 927617.2899 | J77: =+A77 -> - Unit classiche(a) | K77: 91674 | L77: 100657.1424 | M77: 6802.220678 | N77: 1225737.575 | O77: 1765910.501 | P77: 2634.562374 | Q77: 3101742.001
A78: - Unit protette(b) | B78: 40 | C78: 25.022316 | D78: 0 | E78: 102674.5697 | F78: 771.6882255 | G78: 0 | H78: 103471.2802 | J78: =+A78 -> - Unit protette(b) | K78: 142 | L78: 112.1035332 | M78: 0 | N78: 293384.5544 | O78: 2091.950999 | P78: 0 | Q78: 295588.609
A79: - Unit garantite(c) | B79: 184 | C79: 514.458817 | D79: 5.0044632 | E79: 0 | F79: 650.580216 | G79: 1.00089264 | H79: 1171.044389 | J79: =+A79 -> - Unit garantite(c) | K79: 736 | L79: 2501.374738 | M79: 30.0267792 | N79: 10.00994285 | O79: 17862.38796 | P79: 2.001886925 | Q79: 20405.80131
A80: - Index linked | B80: 10374 | C80: 25430.6802 | D80: 0 | E80: 124759.2658 | F80: 0 | G80: 0 | H80: 150189.946 | J80: =+A80 -> - Index linked | K80: 41343 | L80: 25981.22502 | M80: 1.000994285 | N80: 531478.9463 | O80: 0 | P80: 120.1193141 | Q80: 557581.2917
A81: Ramo IV | B81: 750 | C81: 63.05623632 | D81: 2.00178528 | E81: 226.2017367 | F81: 0 | G81: 0 | H81: 291.2597583 | J81: Ramo IV | K81: 3247 | L81: 186.1741626 | M81: 8.007344409 | N81: 1039.988948 | O81: 0 | P81: 4.003977138 | Q81: 1238.174432
A82: Ramo V | B82: 2656 | C82: 38012.90158 | D82: 27521.54492 | E82: 29132.98207 | F82: 100.089264 | G82: 1338.19346 | H82: 96105.7113 | J82: Ramo V | K82: 10475 | L82: 103920.1736 | M82: 114291.0426 | N82: 136084.6714 | O82: 6616.257123 | P82: 3385.117504 | Q82: 364297.2622
A83: Ramo VI | B83: 1831 | C83: 1676.495172 | D83: 528.4713139 | E83: 2464.19768 | F83: 219.1954882 | G83: 1.00089264 | H83: 4889.360547 | J83: Ramo VI | K83: 8955 | L83: 10515.11014 | M83: 2313.19137 | N83: 8955.404616 | O83: 1880.7718 | P83: 16.01560362 | Q83: 23680.49353
A84: Totale | B84: 249264 | C84: 544513.6212 | D84: 108669.9166 | E84: 2860496.116 | F84: 838885.1547 | G84: 12426.08213 | H84: 4364990.891 | J84: Totale | K84: =SUM(K75:K76,K81:K83) -> 1054278 | L84: 1925120.151 | M84: 456713.6825 | N84: 11043196.22 | O84: 3385496.971 | P84: 61315.55463 | Q84: 16871842.58
A85: Forme pens. individuali | B85: 28349 | C85: 22166.7693 | D85: 12003.70543 | E85: 22421.99692 | F85: 3267.91447 | G85: 962.8587197 | H85: 60823.24484 | J85: Forme pens. individuali | K85: =+IF(ISERROR(B85+K63),0,B85+K63) -> 113714 | L85: 98305.5052 | M85: 45299.52075 | N85: 87993.85437 | O85: 16299.3796 | P85: 5200.946039 | Q85: 253099.206
A86: Forme di puro rischio | B86: 50745 | C86: 4978.439992 | D86: 185.1651384 | E86: 16216.46255 | F86: 382.3409885 | G86: 173.1544267 | H86: 21935.5631 | J86: Forme di puro rischio | K86: 187471 | L86: 23582.28591 | M86: 665.6271483 | N86: 64920.10344 | O86: 1174.092197 | P86: 852.8012887 | Q86: 91194.90998
A87: Altre forme | B87: 170170 | C87: 517368.4119 | D87: 96481.04604 | E87: 2821857.657 | F87: 835234.8992 | G87: 11290.06898 | H87: 4282232.083 | J87: Altre forme | K87: 753094 | L87: 1803232.36 | M87: 410748.5346 | N87: 10890282.26 | O87: 3368023.5 | P87: 55261.8073 | Q87: 16527548.46
A88: Totale | B88: 249264 | C88: 544513.6212 | D88: 108669.9166 | E88: 2860496.116 | F88: 838885.1547 | G88: 12426.08213 | H88: 4364990.891 | J88: Totale | K88: =SUM(K85:K87) -> 1054279 | L88: 1925120.151 | M88: 456713.6825 | N88: 11043196.22 | O88: 3385496.971 | P88: 61315.55463 | Q88: 16871842.58
A90: (*) Le polizze che prevedono una rateazione del premio periodico devono essere indicate secondo l'intero importo di tariffa su base annua, comprensivo di eventuali sovrappremi e garanzie accessorie.
A91: (**) Sono da intendersi tutte le nuove polizze di Ramo III che prevedono una garanzia finanziaria di rendimento ovvero una garanzia del capitale investito in capo alla compagnia di assicurazioni.
A93: Maggio | B93: Maggio | J93: =+A93 -> Maggio
L95: Premi imponibili annualizzati(*)
B96: Numero polizze/Adesioni | C96: Agenti | D96: Agenzie in Economia | E96: Sportelli bancari e postali | F96: Promotori finanziari | G96: Altre forme (inclusi Broker) | H96: Totale | K96: Numero polizze/Adesioni | L96: Agenti | M96: Agenzie in Economia | N96: Sportelli bancari e postali | O96: Promotori finanziari | P96: Altre forme (inclusi Broker) | Q96: Totale
A97: Ramo I | B97: 259651 | C97: 412327.732 | D97: 72783.91189 | E97: 2824179.728 | F97: 303235.4387 | G97: 17752.83276 | H97: 3630279.643 | J97: Ramo I | K97: =+IF(ISERROR(B97+K75),0,B97+K75) -> 1157357 | L97: 2093574.579 | M97: 406052.1047 | N97: 11670684.8 | O97: 1894370.541 | P97: 72906.56673 | Q97: 16137588.59
A98: Ramo III | B98: 36495 | C98: 21784.42831 | D98: 3332.972491 | E98: 569867.2326 | F98: 513843.268 | G98: 160.1428224 | H98: 1108988.044 | J98: Ramo III | K98: 170390 | L98: 151036.274 | M98: 10166.22094 | N98: 2620478.318 | O98: 2299708.108 | P98: 2916.826397 | Q98: 5084305.747
A99: - Unit classiche(a) | B99: 21105 | C99: 20706.46694 | D99: 3291.935893 | E99: 296780.6821 | F99: 512100.7139 | G99: 156.1392518 | H99: 833035.9381 | J99: =+A99 -> - Unit classiche(a) | K99: 112779 | L99: 121363.6093 | M99: 10094.15657 | N99: 1522518.257 | O99: 2278011.215 | P99: 2790.701626 | Q99: 3934777.939
A100: - Unit protette(b) | B100: 2721 | C100: 33.02945712 | D100: 41.03659824 | E100: 107050.4723 | F100: 524.4677434 | G100: 4.00357056 | H100: 107653.0097 | J100: =+A100 -> - Unit protette(b) | K100: 2863 | L100: 145.1329904 | M100: 41.03659824 | N100: 400435.0267 | O100: 2616.418742 | P100: 4.00357056 | Q100: 403241.6187
A101: - Unit garantite(c) | B101: 164 | C101: 570.5088048 | D101: 0 | E101: 0 | F101: 1218.086343 | G101: 0 | H101: 1788.595148 | J101: =+A101 -> - Unit garantite(c) | K101: 900 | L101: 3071.883543 | M101: 30.0267792 | N101: 10.00994285 | O101: 19080.47431 | P101: 2.001886925 | Q101: 22194.39646
A102: - Index linked | B102: 12505 | C102: 474.4231114 | D102: 0 | E102: 166036.0783 | F102: 0 | G102: 0 | H102: 166510.5014 | J102: =+A102 -> - Index linked | K102: 53848 | L102: 26455.64813 | M102: 1.000994285 | N102: 697515.0246 | O102: 0 | P102: 120.1193141 | Q102: 724091.793
A103: Ramo IV | B103: 941 | C103: 112.0999757 | D103: 10.0089264 | E103: 283.2526171 | F103: 0 | G103: 0 | H103: 405.3615192 | J103: Ramo IV | K103: 4188 | L103: 298.2741383 | M103: 18.01627081 | N103: 1323.241565 | O103: 0 | P103: 4.003977138 | Q103: 1643.535951
A104: Ramo V | B104: 2716 | C104: 87774.28096 | D104: 27194.25303 | E104: 25241.51149 | F104: 5.0044632 | G104: 539.481133 | H104: 140754.5311 | J104: Ramo V | K104: 13191 | L104: 191694.4546 | M104: 141485.2956 | N104: 161326.1829 | O104: 6621.261586 | P104: 3924.598637 | Q104: 505051.7933
A105: Ramo VI | B105: 1916 | C105: 2122.89329 | D105: 531.4739919 | E105: 1751.56212 | F105: 365.3258136 | G105: 7.00624848 | H105: 4778.261464 | J105: Ramo VI | K105: 10871 | L105: 12638.00343 | M105: 2844.665362 | N105: 10706.96674 | O105: 2246.097614 | P105: 23.0218521 | Q105: 28458.75499
A106: Totale | B106: 301719 | C106: 524121.4345 | D106: 103852.6203 | E106: 3421323.286 | F106: 817449.037 | G106: 18459.46296 | H106: 4885205.841 | J106: Totale | K106: =SUM(K97:K98,K103:K105) -> 1355997 | L106: 2449241.585 | M106: 560566.3029 | N106: 14464519.51 | O106: 4202946.008 | P106: 79775.01759 | Q106: 21757048.42
A107: Forme pens. individuali | B107: 32890 | C107: 28434.35901 | D107: 11973.67865 | E107: 27255.30748 | F107: 4837.314129 | G107: 1016.906922 | H107: 73517.5662 | J107: Forme pens. individuali | K107: =+IF(ISERROR(B107+K85),0,B107+K85) -> 146604 | L107: 126739.8642 | M107: 57273.1994 | N107: 115249.1618 | O107: 21136.69373 | P107: 6217.852961 | Q107: 326616.7722
A108: Forme di puro rischio | B108: 53052 | C108: 5297.724744 | D108: 190.1696016 | E108: 15801.09211 | F108: 371.3311695 | G108: 216.1928103 | H108: 21876.51043 | J108: Forme di puro rischio | K108: 240523 | L108: 28880.01065 | M108: 855.7967499 | N108: 80721.19555 | O108: 1545.423366 | P108: 1068.994099 | Q108: 113071.4204
A109: Altre forme | B109: 215776 | C109: 490389.3508 | D109: 91688.77208 | E109: 3378266.887 | F109: 812240.3917 | G109: 17226.36323 | H109: 4789811.765 | J109: Altre forme | K109: 968870 | L109: 2293621.711 | M109: 502437.3067 | N109: 14268549.15 | O109: 4180263.891 | P109: 72488.17053 | Q109: 21317360.23
A110: Totale | B110: 301718 | C110: 524121.4345 | D110: 103852.6203 | E110: 3421323.286 | F110: 817449.037 | G110: 18459.46296 | H110: 4885205.841 | J110: Totale | K110: =SUM(K107:K109) -> 1355997 | L110: 2449241.585 | M110: 560566.3029 | N110: 14464519.51 | O110: 4202946.008 | P110: 79775.01759 | Q110: 21757048.42
L111: =+L106/$Q$106 -> 0.1125723277 | M111: 0.02576481387 | N111: 0.6648199345 | O111: 0.1931762952 | P111: 0.003666628674 | Q111: 1
A112: (*) Le polizze che prevedono una rateazione del premio periodico devono essere indicate secondo l'intero importo di tariffa su base annua, comprensivo di eventuali sovrappremi e garanzie accessorie.
A113: (**) Sono da intendersi tutte le nuove polizze di Ramo III che prevedono una garanzia finanziaria di rendimento ovvero una garanzia del capitale investito in capo alla compagnia di assicurazioni.
A115: Giugno | B115: Giugno | J115: =+A115 -> Giugno
L117: Premi imponibili annualizzati(*)
B118: Numero polizze/Adesioni | C118: Agenti | D118: Agenzie in Economia | E118: Sportelli bancari e postali | F118: Promotori finanziari | G118: Altre forme (inclusi Broker) | H118: Totale | K118: Numero polizze/Adesioni | L118: Agenti | M118: Agenzie in Economia | N118: Sportelli bancari e postali | O118: Promotori finanziari | P118: Altre forme (inclusi Broker) | Q118: Totale
A119: Ramo I | B119: 196313 | C119: 486629.998 | D119: 87770.27739 | E119: 1949893 | F119: 257392.554 | G119: 11684.42068 | H119: 2793370.25 | J119: Ramo I | K119: =+IF(ISERROR(B119+K97),0,B119+K97) -> 1353670 | L119: 2580204.577 | M119: 493822.382 | N119: 13620577.8 | O119: 2151763.095 | P119: 84590.98741 | Q119: 18930958.84
A120: Ramo III | B120: 31971 | C120: 30700.37995 | D120: 912.8140877 | E120: 483391.1094 | F120: 474304.0052 | G120: 68.06069952 | H120: 989376.3693 | J120: Ramo III | K120: 202361 | L120: 181736.6539 | M120: 11079.03503 | N120: 3103869.427 | O120: 2774012.113 | P120: 2984.887097 | Q120: 6073682.117
A121: - Unit classiche(a) | B121: 15538 | C121: 30247.97647 | D121: 896.7998055 | E121: 230747.791 | F121: 472373.2833 | G121: 68.06069952 | H121: 734333.9113 | J121: =+A121 -> - Unit classiche(a) | K121: 128317 | L121: 151611.5858 | M121: 10990.95638 | N121: 1753266.048 | O121: 2750384.498 | P121: 2858.762325 | Q121: 4669111.851
A122: - Unit protette(b) | B122: 79 | C122: 125.11158 | D122: 15.0133896 | E122: 29903.66941 | F122: 320.2856448 | G122: 0 | H122: 30364.08002 | J122: =+A122 -> - Unit protette(b) | K122: 2942 | L122: 270.2445704 | M122: 56.04998784 | N122: 430338.6962 | O122: 2936.704387 | P122: 4.00357056 | Q122: 433605.6987
A123: - Unit garantite(c) | B123: 162 | C123: 327.2918933 | D123: 1.00089264 | E123: 5.0044632 | F123: 1610.436258 | G123: 0 | H123: 1943.733507 | J123: =+A123 -> - Unit garantite(c) | K123: 1062 | L123: 3399.175436 | M123: 31.02767184 | N123: 15.01440605 | O123: 20690.91056 | P123: 2.001886925 | Q123: 24138.12996
A124: - Index linked | B124: 16192 | C124: 0 | D124: 0 | E124: 222734.6445 | F124: 0 | G124: 0 | H124: 222734.6445 | J124: =+A124 -> - Index linked | K124: 70040 | L124: 26455.64813 | M124: 1.000994285 | N124: 920249.6691 | O124: 0 | P124: 120.1193141 | Q124: 946826.4376
A125: Ramo IV | B125: 1077 | C125: 128.1142579 | D125: 5.0044632 | E125: 324.2892154 | F125: 0 | G125: 0 | H125: 457.4079365 | J125: Ramo IV | K125: 5265 | L125: 426.3883962 | M125: 23.02073401 | N125: 1647.53078 | O125: 0 | P125: 4.003977138 | Q125: 2100.943888
A126: Ramo V | B126: 5528 | C126: 26500.63443 | D126: 29367.19095 | E126: 56947.78854 | F126: 463.4132923 | G126: 15362.70113 | H126: 128641.7283 | J126: Ramo V | K126: 18719 | L126: 218195.089 | M126: 170852.4866 | N126: 218273.9714 | O126: 7084.674878 | P126: 19287.29977 | Q126: 633693.5216
A127: Ramo VI | B127: 1865 | C127: 10345.22633 | D127: 414.369553 | E127: 1941.731722 | F127: 285.2544024 | G127: 1.00089264 | H127: 12987.5829 | J127: Ramo VI | K127: 12736 | L127: 22983.22976 | M127: 3259.034915 | N127: 12648.69846 | O127: 2531.352016 | P127: 24.02274474 | Q127: 41446.33789
A128: Totale | B128: 236754 | C128: 554304.353 | D128: 118469.6564 | E128: 2492497.919 | F128: 732445.2268 | G128: 27116.1834 | H128: 3924833.339 | J128: Totale | K128: =SUM(K119:K120,K125:K127) -> 1592751 | L128: 3003545.938 | M128: 679035.9593 | N128: 16957017.43 | O128: 4935391.235 | P128: 106891.201 | Q128: 25681881.76
A129: Forme pens. individuali | B129: 27540 | C129: 37225.19907 | D129: 14795.19501 | E129: 20533.31251 | F129: 3194.849307 | G129: 673.6007468 | H129: 76422.15664 | J129: Forme pens. individuali | K129: =+IF(ISERROR(B129+K107),0,B129+K107) -> 174144 | L129: 163965.0633 | M129: 72068.39441 | N129: 135782.4744 | O129: 24331.54304 | P129: 6891.453708 | Q129: 403038.9288
A130: Forme di puro rischio | B130: 51761 | C130: 5956.312101 | D130: 170.1517488 | E130: 16579.78658 | F130: 480.4284672 | G130: 192.1713869 | H130: 23378.85029 | J130: Forme di puro rischio | K130: 292284 | L130: 34836.32275 | M130: 1025.948499 | N130: 97300.98213 | O130: 2025.851834 | P130: 1261.165486 | Q130: 136450.2707
A131: Altre forme | B131: 157453 | C131: 511122.8418 | D131: 103504.3097 | E131: 2455384.82 | F131: 728769.9491 | G131: 26250.41127 | H131: 3825032.332 | J131: Altre forme | K131: 1126323 | L131: 2804744.552 | M131: 605941.6164 | N131: 16723933.97 | O131: 4909033.84 | P131: 98738.5818 | Q131: 25142392.56
A132: Totale | B132: 236754 | C132: 554304.353 | D132: 118469.6564 | E132: 2492497.919 | F132: 732445.2268 | G132: 27116.1834 | H132: 3924833.339 | J132: Totale | K132: =SUM(K129:K131) -> 1592751 | L132: 3003545.938 | M132: 679035.9593 | N132: 16957017.43 | O132: 4935391.235 | P132: 106891.201 | Q132: 25681881.76
A134: (*) Le polizze che prevedono una rateazione del premio periodico devono essere indicate secondo l'intero importo di tariffa su base annua, comprensivo di eventuali sovrappremi e garanzie accessorie.
A135: (**) Sono da intendersi tutte le nuove polizze di Ramo III che prevedono una garanzia finanziaria di rendimento ovvero una garanzia del capitale investito in capo alla compagnia di assicurazioni.
A137: Luglio | B137: Luglio | J137: =+A137 -> Luglio
L139: Premi imponibili annualizzati(*)
B140: Numero polizze/Adesioni | C140: Agenti | D140: Agenzie in Economia | E140: Sportelli bancari e postali | F140: Promotori finanziari | G140: Altre forme (inclusi Broker) | H140: Totale | K140: Numero polizze/Adesioni | L140: Agenti | M140: Agenzie in Economia | N140: Sportelli bancari e postali | O140: Promotori finanziari | P140: Altre forme (inclusi Broker) | Q140: Totale
A141: Ramo I | B141: 218472 | C141: 485300.8126 | D141: 81049.28331 | E141: 2130279.877 | F141: 242858.592 | G141: 7328.53591 | H141: 2946817.101 | J141: Ramo I | K141: =+IF(ISERROR(B141+K119),0,B141+K119) -> 1572142 | L141: 3065505.39 | M141: 574871.6654 | N141: 15750857.67 | O141: 2394621.687 | P141: 91919.52332 | Q141: 21877775.94
A142: Ramo III | B142: 28684 | C142: 25339.59897 | D142: 918.8194436 | E142: 473895.641 | F142: 443516.5476 | G142: 105.0937272 | H142: 943775.7007 | J142: Ramo III | K142: 231045 | L142: 207076.2529 | M142: 11997.85447 | N142: 3577765.068 | O142: 3217528.661 | P142: 3089.980824 | Q142: 7017457.817
A143: - Unit classiche(a) | B143: 16362 | C143: 24662.99554 | D143: 896.7998055 | E143: 237172.5209 | F143: 441849.0604 | G143: 105.0937272 | H143: 704686.4704 | J143: =+A143 -> - Unit classiche(a) | K143: 144679 | L143: 176274.5813 | M143: 11887.75618 | N143: 1990438.569 | O143: 3192233.559 | P143: 2963.856052 | Q143: 5373798.321
A144: - Unit protette(b) | B144: 25 | C144: 25.022316 | D144: 22.01963808 | E144: 61203.58405 | F144: 471.4204335 | G144: 0 | H144: 61722.04643 | J144: =+A144 -> - Unit protette(b) | K144: 2967 | L144: 295.2668864 | M144: 78.06962592 | N144: 491542.2802 | O144: 3408.124821 | P144: 4.00357056 | Q144: 495327.7451
A145: - Unit garantite(c) | B145: 215 | C145: 651.5811087 | D145: 0 | E145: 0 | F145: 1196.066705 | G145: 0 | H145: 1847.647814 | J145: =+A145 -> - Unit garantite(c) | K145: 1277 | L145: 4050.756544 | M145: 31.02767184 | N145: 15.01440605 | O145: 21886.97727 | P145: 2.001886925 | Q145: 25985.77778
A146: - Index linked | B146: 12082 | C146: 0 | D146: 0 | E146: 175519.536 | F146: 0 | G146: 0 | H146: 175519.536 | J146: =+A146 -> - Index linked | K146: 82122 | L146: 26455.64813 | M146: 1.000994285 | N146: 1095769.205 | O146: 0 | P146: 120.1193141 | Q146: 1122345.974
A147: Ramo IV | B147: 1567 | C147: 109.0972978 | D147: 5.0044632 | E147: 501.4472127 | F147: 0 | G147: 215.1919176 | H147: 830.7408912 | J147: Ramo IV | K147: 6832 | L147: 535.485694 | M147: 28.02519721 | N147: 2148.977993 | O147: 0 | P147: 219.1958947 | Q147: 2931.684779
A148: Ramo V | B148: 2368 | C148: 33533.90701 | D148: 19088.02354 | E148: 32658.12595 | F148: 0 | G148: 780.6962592 | H148: 86060.75276 | J148: Ramo V | K148: 21087 | L148: 251728.996 | M148: 189940.5101 | N148: 250932.0973 | O148: 7084.674878 | P148: 20067.99603 | Q148: 719754.2744
A149: Ramo VI | B149: 1955 | C149: 963.8596124 | D149: 390.3481296 | E149: 1772.580866 | F149: 473.4222187 | G149: 3.00267792 | H149: 3603.213504 | J149: Ramo VI | K149: 14691 | L149: 23947.08937 | M149: 3649.383044 | N149: 14421.27932 | O149: 3004.774235 | P149: 27.02542266 | Q149: 45049.5514
A150: Totale | B150: 253046 | C150: 545247.2755 | D150: 101451.4789 | E150: 2639107.672 | F150: 686848.5617 | G150: 8432.520492 | H150: 3981087.509 | J150: Totale | K150: =SUM(K141:K142,K147:K149) -> 1845797 | L150: 3548793.214 | M150: 780487.4382 | N150: 19596125.1 | O150: 5622239.797 | P150: 115323.7215 | Q150: 29662969.27
A151: Forme pens. individuali | B151: 31601 | C151: 32457.94742 | D151: 17897.96219 | E151: 23248.73424 | F151: 4596.099003 | G151: 483.4311451 | H151: 78684.174 | J151: Forme pens. individuali | K151: =+IF(ISERROR(B151+K129),0,B151+K129) -> 205745 | L151: 196423.0107 | M151: 89966.3566 | N151: 159031.2086 | O151: 28927.64204 | P151: 7374.884853 | Q151: 481723.1028
A152: Forme di puro rischio | B152: 55632 | C152: 5332.755986 | D152: 192.1713869 | E152: 23283.76549 | F152: 503.4489979 | G152: 215.1919176 | H152: 29527.33377 | J152: Forme di puro rischio | K152: 347916 | L152: 40169.07874 | M152: 1218.119886 | N152: 120584.7476 | O152: 2529.300832 | P152: 1476.357403 | Q152: 165977.6045
A153: Altre forme | B153: 165813 | C153: 507456.5721 | D153: 83361.34531 | E153: 2592575.172 | F153: 681749.0137 | G153: 7733.89743 | H153: 3872876.001 | J153: Altre forme | K153: 1292136 | L153: 3312201.124 | M153: 689302.9617 | N153: 19316509.14 | O153: 5590782.854 | P153: 106472.4792 | Q153: 29015268.56
A154: Totale | B154: 253046 | C154: 545247.2755 | D154: 101451.4789 | E154: 2639107.672 | F154: 686848.5617 | G154: 8432.520492 | H154: 3981087.509 | J154: Totale | K154: =SUM(K151:K153) -> 1845797 | L154: 3548793.214 | M154: 780487.4382 | N154: 19596125.1 | O154: 5622239.797 | P154: 115323.7215 | Q154: 29662969.27
A156: (*) Le polizze che prevedono una rateazione del premio periodico devono essere indicate secondo l'intero importo di tariffa su base annua, comprensivo di eventuali sovrappremi e garanzie accessorie.
A157: (**) Sono da intendersi tutte le nuove polizze di Ramo III che prevedono una garanzia finanziaria di rendimento ovvero una garanzia del capitale investito in capo alla compagnia di assicurazioni.
A159: Agosto | B159: Agosto | J159: =+A159 -> Agosto | Q159: =+Q163+Q170 -> 24555461.38 | R159: =+Q159/$Q$172 -> 0.7595418365
R160: =+Q160/$Q$172 -> 0
L161: Premi imponibili annualizzati(*) | R161: =+Q161/$Q$172 -> 0
B162: Numero polizze/Adesioni | C162: Agenti | D162: Agenzie in Economia | E162: Sportelli bancari e postali | F162: Promotori finanziari | G162: Altre forme (inclusi Broker) | H162: Totale | K162: Numero polizze/Adesioni | L162: Agenti | M162: Agenzie in Economia | N162: Sportelli bancari e postali | O162: Promotori finanziari | P162: Altre forme (inclusi Broker) | Q162: Totale | R162: =+Q162/$Q$172 -> 
A163: Ramo I | B163: 125993 | C163: 205325.118 | D163: 60497.95474 | E163: 1415145.089 | F163: 183750.8771 | G163: 4540.049015 | H163: 1869259.087 | J163: Ramo I | K163: =+IF(ISERROR(B163+K141),0,B163+K141) -> 1698135 | L163: 3270830.508 | M163: 635369.6201 | N163: 17166002.76 | O163: 2578372.564 | P163: 96459.57233 | Q163: 23747035.03 | R163: =+Q163/$Q$172 -> 0.7345358458
A164: Ramo III | B164: 18033 | C164: 18636.62096 | D164: 1149.024751 | E164: 333263.2188 | F164: 349949.1 | G164: 154.1374666 | H164: 703152.102 | J164: Ramo III | K164: 249078 | L164: 225712.8738 | M164: 13146.87922 | N164: 3911028.287 | O164: 3567477.761 | P164: 3244.118291 | Q164: 7720609.919 | R164: =+Q164/$Q$172 -> 0.2388114866
A165: - Unit classiche(a) | B165: 12028 | C165: 18280.30318 | D165: 1129.006898 | E165: 213868.7375 | F165: 348848.1181 | G165: 152.1356813 | H165: 582278.3014 | J165: =+A165 -> - Unit classiche(a) | K165: 156707 | L165: 194554.8845 | M165: 13016.76308 | N165: 2204307.306 | O165: 3541081.677 | P165: 3115.991734 | Q165: 5956076.622 | R165: 0.1842314956
A166: - Unit protette(b) | B166: 18 | C166: 19.01696016 | D166: 18.01606752 | E166: 34254.54971 | F166: 484.4320378 | G166: 2.00178528 | H166: 34778.01656 | J166: =+A166 -> - Unit protette(b) | K166: 2985 | L166: 314.2838465 | M166: 96.08569344 | N166: 525796.8299 | O166: 3892.556858 | P166: 6.00535584 | Q166: 530105.7617 | R166: 0.0163970653
A167: - Unit garantite(c) | B167: 115 | C167: 337.3008197 | D167: 2.00178528 | E167: 2.00178528 | F167: 616.5498663 | G167: 0 | H167: 957.8542565 | J167: =+A167 -> - Unit garantite(c) | K167: 1392 | L167: 4388.057364 | M167: 33.02945712 | N167: 17.01619133 | O167: 22503.52713 | P167: 2.001886925 | Q167: 26943.63203 | R167: 0.0008334119827
A168: - Index linked | B168: 5872 | C168: 0 | D168: 0 | E168: 85137.92975 | F168: 0 | G168: 0 | H168: 85137.92975 | J168: =+A168 -> - Index linked | K168: 87994 | L168: 26455.64813 | M168: 1.000994285 | N168: 1180907.135 | O168: 0 | P168: 120.1193141 | Q168: 1207483.903 | R168: 0.03734951371
A169: Ramo IV | B169: 1121 | C169: 97.08658608 | D169: 2.00178528 | E169: 315.2811816 | F169: 0 | G169: 98.08747872 | H169: 512.4570317 | J169: Ramo IV | K169: 7953 | L169: 632.5722801 | M169: 30.02698249 | N169: 2464.259175 | O169: 0 | P169: 317.2833735 | Q169: 3444.141811 | R169: 0.0001065331152
A170: Ramo V | B170: 1907 | C170: 23307.78691 | D170: 48475.23234 | E170: 16426.65001 | F170: 410.3659824 | G170: 52.04641728 | H170: 88672.08166 | J170: Ramo V | K170: 22994 | L170: 275036.7829 | M170: 238415.7425 | N170: 267358.7474 | O170: 7495.040861 | P170: 20120.04245 | Q170: 808426.3561 | R170: 0.02500599071
A171: Ramo VI | B171: 1111 | C171: 2229.988802 | D171: 384.3427738 | E171: 1728.541589 | F171: 397.3543781 | G171: 2.00178528 | H171: 4742.229329 | J171: Ramo VI | K171: 15802 | L171: 26177.07817 | M171: 4033.725818 | N171: 16149.82091 | O171: 3402.128613 | P171: 29.02720794 | Q171: 49791.78072 | R171: 0.001540143758
A172: Totale | B172: 148165 | C172: 249596.6012 | D172: 110508.5564 | E172: 1766878.78 | F172: 534507.6975 | G172: 4846.322163 | H172: 2666337.957 | J172: Totale | K172: =SUM(K163:K164,K169:K171) -> 1993962 | L172: 3798389.815 | M172: 890995.9946 | N172: 21363003.88 | O172: 6156747.495 | P172: 120170.0436 | Q172: 32329307.23 | R172: 1
A173: Forme pens. individuali | B173: 16599 | C173: 16435.65804 | D173: 9987.907655 | E173: 20313.11613 | F173: 4244.785686 | G173: 1291.151506 | H173: 52272.61902 | J173: Forme pens. individuali | K173: =+IF(ISERROR(B173+K151),0,B173+K151) -> 222344 | L173: 212858.6687 | M173: 99954.26425 | N173: 179344.3247 | O173: 33172.42773 | P173: 8666.036359 | Q173: 533995.7218 | R173: 0.01651738833
A174: Forme di puro rischio | B174: 32694 | C174: 2572.294085 | D174: 140.1249696 | E174: 12128.81701 | F174: 322.2874301 | G174: 283.2526171 | H174: 15446.77611 | J174: Forme di puro rischio | K174: 380610 | L174: 42741.37282 | M174: 1358.244855 | N174: 132713.5646 | O174: 2851.588262 | P174: 1759.610021 | Q174: 181424.3806 | R174: 0.005611762087
A175: Altre forme | B175: 98872 | C175: 230588.6491 | D175: 100380.5238 | E175: 1734436.847 | F175: 529940.6243 | G175: 3271.91804 | H175: 2598618.562 | J175: Altre forme | K175: 1391008 | L175: 3542789.774 | M175: 789683.4855 | N175: 21050945.99 | O175: 6120723.479 | P175: 109744.3973 | Q175: 31613887.12 | R175: 0.9778708496
A176: Totale | B176: 148165 | C176: 249596.6012 | D176: 110508.5564 | E176: 1766878.78 | F176: 534507.6975 | G176: 4846.322163 | H176: 2666337.957 | J176: Totale | K176: =SUM(K173:K175) -> 1993962 | L176: 3798389.815 | M176: 890995.9946 | N176: 21363003.88 | O176: 6156747.495 | P176: 120170.0436 | Q176: 32329307.23 | R176: 1
A178: (*) Le polizze che prevedono una rateazione del premio periodico devono essere indicate secondo l'intero importo di tariffa su base annua, comprensivo di eventuali sovrappremi e garanzie accessorie.
A179: (**) Sono da intendersi tutte le nuove polizze di Ramo III che prevedono una garanzia finanziaria di rendimento ovvero una garanzia del capitale investito in capo alla compagnia di assicurazioni.
A181: Settembre | B181: Settembre | J181: =+A181 -> Settembre
L183: Premi imponibili annualizzati(*)
B184: Numero polizze/Adesioni | C184: Agenti | D184: Agenzie in Economia | E184: Sportelli bancari e postali | F184: Promotori finanziari | G184: Altre forme (inclusi Broker) | H184: Totale | K184: Numero polizze/Adesioni | L184: Agenti | M184: Agenzie in Economia | N184: Sportelli bancari e postali | O184: Promotori finanziari | P184: Altre forme (inclusi Broker) | Q184: Totale
A185: Ramo I | B185: 206887 | C185: 294247.4228 | D185: 73859.87148 | E185: 1989305.15 | F185: 142439.0334 | G185: 10205.10136 | H185: 2510056.579 | J185: Ramo I | K185: =+IF(ISERROR(B185+K163),0,B185+K163) -> 1905022 | L185: 3565077.931 | M185: 709229.4916 | N185: 19155307.91 | O185: 2720811.597 | P185: 106664.6737 | Q185: 26257091.61
A186: Ramo III | B186: 12349 | C186: 17666.75599 | D186: 817.7292869 | E186: 262077.7324 | F186: 313798.8596 | G186: 130.1160432 | H186: 594491.1934 | J186: Ramo III | K186: 261427 | L186: 243379.6298 | M186: 13964.60851 | N186: 4173106.02 | O186: 3881276.621 | P186: 3374.234334 | Q186: 8315101.113
A187: - Unit classiche(a) | B187: 12165 | C187: 17237.37305 | D187: 678.60521 | E187: 221292.3583 | F187: 312485.6885 | G187: 130.1160432 | H187: 551824.141 | J187: =+A187 -> - Unit classiche(a) | K187: 168872 | L187: 211792.2575 | M187: 13695.36829 | N187: 2425599.664 | O187: 3853567.365 | P187: 3246.107777 | Q187: 6507900.763
A188: - Unit protette(b) | B188: 38 | C188: 37.03302768 | D188: 123.1097947 | E188: 40783.3724 | F188: 321.2865375 | G188: 0 | H188: 41264.80176 | J188: =+A188 -> - Unit protette(b) | K188: 3023 | L188: 351.3168742 | M188: 219.1954882 | N188: 566580.2023 | O188: 4213.843396 | P188: 6.00535584 | Q188: 571370.5634
A189: - Unit garantite(c) | B189: 146 | C189: 392.3499149 | D189: 16.01428224 | E189: 2.00178528 | F189: 991.8846063 | G189: 0 | H189: 1402.250589 | J189: =+A189 -> - Unit garantite(c) | K189: 1538 | L189: 4780.407279 | M189: 49.04373936 | N189: 19.01797661 | O189: 23495.41174 | P189: 2.001886925 | Q189: 28345.88262
A190: - Index linked | B190: 0 | C190: 0 | D190: 0 | E190: 0 | F190: 0 | G190: 0 | H190: 0 | J190: =+A190 -> - Index linked | K190: 87994 | L190: 26455.64813 | M190: 1.000994285 | N190: 1180907.135 | O190: 0 | P190: 120.1193141 | Q190: 1207483.903
A191: Ramo IV | B191: 1568 | C191: 162.1446077 | D191: 1.00089264 | E191: 432.3856205 | F191: 0 | G191: 0 | H191: 595.5311208 | J191: Ramo IV | K191: 9521 | L191: 794.7168878 | M191: 31.02787513 | N191: 2896.644795 | O191: 0 | P191: 317.2833735 | Q191: 4039.672932
A192: Ramo V | B192: 2169 | C192: 9211.214966 | D192: 21368.05697 | E192: 20565.34108 | F192: 0 | G192: 339.302605 | H192: 51483.91562 | J192: Ramo V | K192: 25163 | L192: 284247.9979 | M192: 259783.7994 | N192: 287924.0884 | O192: 7495.040861 | P192: 20459.34505 | Q192: 859910.2717
A193: Ramo VI | B193: 1266 | C193: 2056.834375 | D193: 520.4641728 | E193: 1610.436258 | F193: 313.2793963 | G193: 3.00267792 | H193: 4504.01688 | J193: Ramo VI | K193: 17068 | L193: 28233.91255 | M193: 4554.189991 | N193: 17760.25717 | O193: 3715.408009 | P193: 32.02988586 | Q193: 54295.7976
A194: Totale | B194: 224239 | C194: 323344.3727 | D194: 96567.1228 | E194: 2273991.045 | F194: 456551.1724 | G194: 10677.52268 | H194: 3161131.236 | J194: Totale | K194: =SUM(K185:K186,K191:K193) -> 2218201 | L194: 4121734.188 | M194: 987563.1174 | N194: 23636994.92 | O194: 6613298.667 | P194: 130847.5663 | Q194: 35490438.46
A195: Forme pens. individuali | B195: 24918 | C195: 27672.67971 | D195: 13126.70697 | E195: 22789.32452 | F195: 2569.291407 | G195: 1256.120263 | H195: 67414.12288 | J195: Forme pens. individuali | K195: =+IF(ISERROR(B195+K173),0,B195+K173) -> 247262 | L195: 240531.3485 | M195: 113080.9712 | N195: 202133.6493 | O195: 35741.71914 | P195: 9922.156622 | Q195: 601409.8447
A196: Forme di puro rischio | B196: 42965 | C196: 3818.405422 | D196: 216.1928103 | E196: 15556.8743 | F196: 234.2088778 | G196: 163.1455003 | H196: 19988.82691 | J196: Forme di puro rischio | K196: 423575 | L196: 46559.77825 | M196: 1574.437665 | N196: 148270.4389 | O196: 3085.797139 | P196: 1922.755521 | Q196: 201413.2075
A197: Altre forme | B197: 156355 | C197: 291853.2876 | D197: 83224.22302 | E197: 2235644.846 | F197: 453747.6721 | G197: 9258.25692 | H197: 3073728.286 | J197: Altre forme | K197: 1547363 | L197: 3834643.061 | M197: 872907.7085 | N197: 23286590.83 | O197: 6574471.151 | P197: 119002.6542 | Q197: 34687615.41
A198: Totale | B198: 224238 | C198: 323344.3727 | D198: 96567.1228 | E198: 2273991.045 | F198: 456551.1724 | G198: 10677.52268 | H198: 3161131.236 | J198: Totale | K198: =SUM(K195:K197) -> 2218200 | L198: 4121734.188 | M198: 987563.1174 | N198: 23636994.92 | O198: 6613298.667 | P198: 130847.5663 | Q198: 35490438.46
A200: (*) Le polizze che prevedono una rateazione del premio periodico devono essere indicate secondo l'intero importo di tariffa su base annua, comprensivo di eventuali sovrappremi e garanzie accessorie.
A201: (**) Sono da intendersi tutte le nuove polizze di Ramo III che prevedono una garanzia finanziaria di rendimento ovvero una garanzia del capitale investito in capo alla compagnia di assicurazioni.
A203: Ottobre | B203: Ottobre | J203: =+A203 -> Ottobre
L205: Premi imponibili annualizzati(*)
B206: Numero polizze/Adesioni | C206: Agenti | D206: Agenzie in Economia | E206: Sportelli bancari e postali | F206: Promotori finanziari | G206: Altre forme (inclusi Broker) | H206: Totale | K206: Numero polizze/Adesioni | L206: Agenti | M206: Agenzie in Economia | N206: Sportelli bancari e postali | O206: Promotori finanziari | P206: Altre forme (inclusi Broker) | Q206: Totale
A207: Ramo I | B207: 232407 | C207: 535164.283 | D207: 120144.1498 | E207: 2252160.576 | F207: 283668.9885 | G207: 9191.197114 | H207: 3200329.194 | J207: Ramo I | K207: =+IF(ISERROR(B207+K185),0,B207+K185) -> 2137429 | L207: 4100242.214 | M207: 829373.6414 | N207: 21407468.49 | O207: 3004480.586 | P207: 115855.8708 | Q207: 29457420.8
A208: Ramo III | B208: 16205 | C208: 29818.59353 | D208: 719.6418082 | E208: 373684.2681 | F208: 564364.3249 | G208: 98.08747872 | H208: 968684.9158 | J208: Ramo III | K208: 277632 | L208: 273198.2234 | M208: 14684.25032 | N208: 4546790.288 | O208: 4445640.945 | P208: 3472.321812 | Q208: 9283786.029
A209: - Unit classiche(a) | B209: 15578 | C209: 29196.03831 | D209: 805.7185752 | E209: 305769.6989 | F209: 561769.0103 | G209: 98.08747872 | H209: 897638.5535 | J209: =+A209 -> - Unit classiche(a) | K209: 184450 | L209: 240988.2958 | M209: 14501.08687 | N209: 2731369.363 | O209: 4415336.376 | P209: 3344.195256 | Q209: 7405539.317
A210: - Unit protette(b) | B210: 70 | C210: 78.06962592 | D210: -86.07676704 | E210: 64110.17627 | F210: 349.3115314 | G210: 0 | H210: 64451.48066 | J210: =+A210 -> - Unit protette(b) | K210: 3093 | L210: 429.3865001 | M210: 133.1187211 | N210: 630690.3786 | O210: 4563.154927 | P210: 6.00535584 | Q210: 635822.0441
A211: - Unit garantite(c) | B211: 223 | C211: 544.4855962 | D211: 0 | E211: 0 | F211: 2246.003084 | G211: 0 | H211: 2790.48868 | J211: =+A211 -> - Unit garantite(c) | K211: 1761 | L211: 5324.892875 | M211: 49.04373936 | N211: 19.01797661 | O211: 25741.41483 | P211: 2.001886925 | Q211: 31136.3713
A212: - Index linked | B212: 334 | C212: 0 | D212: 0 | E212: 3804.392925 | F212: 0 | G212: 0 | H212: 3804.392925 | J212: =+A212 -> - Index linked | K212: 88328 | L212: 26455.64813 | M212: 1.000994285 | N212: 1184711.528 | O212: 0 | P212: 120.1193141 | Q212: 1211288.296
A213: Ramo IV | B213: 6460 | C213: 321.2865375 | D213: 2.00178528 | E213: 9530.499719 | F213: 0 | G213: 0 | H213: 9853.788041 | J213: Ramo IV | K213: 15981 | L213: 1116.003425 | M213: 33.02966041 | N213: 12427.14451 | O213: 0 | P213: 317.2833735 | Q213: 13893.46097
A214: Ramo V | B214: 4024 | C214: 17491.59978 | D214: 27976.95107 | E214: 59282.87107 | F214: 3002.67792 | G214: 26.02320864 | H214: 107780.1231 | J214: Ramo V | K214: 29187 | L214: 301739.5977 | M214: 287760.7505 | N214: 347206.9595 | O214: 10497.71878 | P214: 20485.36826 | Q214: 967690.3947
A215: Ramo VI | B215: 1641 | C215: 2396.13698 | D215: 455.4061512 | E215: 2090.864725 | F215: 662.5909277 | G215: 3.00267792 | H215: 5608.001462 | J215: Ramo VI | K215: 18709 | L215: 30630.04953 | M215: 5009.596142 | N215: 19851.1219 | O215: 4377.998937 | P215: 35.03256378 | Q215: 59903.79907
A216: Totale | B216: 260737 | C216: 585191.8999 | D216: 149298.1507 | E216: 2696749.079 | F216: 851698.5822 | G216: 9318.310479 | H216: 4292256.023 | J216: Totale | K216: =SUM(K207:K208,K213:K215) -> 2478938 | L216: 4706926.088 | M216: 1136861.268 | N216: 26333744 | O216: 7464997.249 | P216: 140165.8768 | Q216: 39782694.48
A217: Forme pens. individuali | B217: 33295 | C217: 42481.88721 | D217: 15141.50386 | E217: 29555.35877 | F217: 5891.254079 | G217: 913.8149804 | H217: 93983.8189 | J217: Forme pens. individuali | K217: =+IF(ISERROR(B217+K195),0,B217+K195) -> 280557 | L217: 283013.2357 | M217: 128222.4751 | N217: 231689.008 | O217: 41632.97322 | P217: 10835.9716 | Q217: 695393.6636
A218: Forme di puro rischio | B218: 54787 | C218: 5248.681004 | D218: 174.1553194 | E218: 18256.28175 | F218: 697.6221701 | G218: 234.2088778 | H218: 24610.94913 | J218: Forme di puro rischio | K218: 478362 | L218: 51808.45925 | M218: 1748.592985 | N218: 166526.7207 | O218: 3783.41931 | P218: 2156.964399 | Q218: 226024.1566
A219: Altre forme | B219: 172655 | C219: 537461.3316 | D219: 133982.4915 | E219: 2648937.439 | F219: 845109.706 | G219: 8170.286621 | H219: 4173661.255 | J219: Altre forme | K219: 1720018 | L219: 4372104.393 | M219: 1006890.2 | N219: 25935528.27 | O219: 7419580.857 | P219: 127172.9408 | Q219: 38861276.66
A220: Totale | B220: 260737 | C220: 585191.8999 | D220: 149298.1507 | E220: 2696749.079 | F220: 851698.5822 | G220: 9318.310479 | H220: 4292256.023 | J220: Totale | K220: =SUM(K217:K219) -> 2478937 | L220: 4706926.088 | M220: 1136861.268 | N220: 26333744 | O220: 7464997.249 | P220: 140165.8768 | Q220: 39782694.48
A222: (*) Le polizze che prevedono una rateazione del premio periodico devono essere indicate secondo l'intero importo di tariffa su base annua, comprensivo di eventuali sovrappremi e garanzie accessorie.
A223: (**) Sono da intendersi tutte le nuove polizze di Ramo III che prevedono una garanzia finanziaria di rendimento ovvero una garanzia del capitale investito in capo alla compagnia di assicurazioni.
A225: Novembre | B225: Novembre | J225: =+A225 -> Novembre
L227: Premi imponibili annualizzati(*)
B228: Numero polizze/Adesioni | C228: Agenti | D228: Agenzie in Economia | E228: Sportelli bancari e postali | F228: Promotori finanziari | G228: Altre forme (inclusi Broker) | H228: Totale | K228: Numero polizze/Adesioni | L228: Agenti | M228: Agenzie in Economia | N228: Sportelli bancari e postali | O228: Promotori finanziari | P228: Altre forme (inclusi Broker) | Q228: Totale
A229: Ramo I | B229: 210973 | C229: 510562.3419 | D229: 91607.69977 | E229: 2267255.038 | F229: 183188.3754 | G229: 6254.578108 | H229: 3058868.033 | J229: Ramo I | K229: =+IF(ISERROR(B229+K207),0,B229+K207) -> 2348402 | L229: 4610804.556 | M229: 920981.3412 | N229: 23674723.53 | O229: 3187668.961 | P229: 122110.4489 | Q229: 32516288.83
... 32 more rows

Sheet TAB2_2012_UE_LPS (hidden)
A1: Nuova produzione Vita emessa nel 2012
A2: Settore polizze "individuali"
A3: Premi del lavoro diretto - Attività svolta da imprese U.E. operanti in Italia secondo il regime della Libertà di Stabilimento o in L.P.S.(importi in MIGLIAIA di Euro)
A4: Dato mensile: | J4: Dato cumulato da inizio anno:
A5: Gennaio | J5: =+A5 -> Gennaio
C7: Premi imponibili annualizzati(*) | L7: Premi imponibili annualizzati(*)
B8: Numero polizze/Adesioni | C8: Agenti | D8: Agenzie in Economia | E8: Sportelli bancari e postali | F8: Promotori finanziari | G8: Altre forme (inclusi Broker) | H8: Totale | K8: Numero polizze/Adesioni | L8: Agenti | M8: Agenzie in Economia | N8: Sportelli bancari e postali | O8: Promotori finanziari | P8: Altre forme (inclusi Broker) | Q8: Totale
A9: Ramo I | B9: 0 | C9: 0 | D9: 0 | E9: 4361 | F9: 4361 | G9: 0 | H9: 8722 | J9: =+A9 -> Ramo I | K9: =++IF(ISERROR(B9),0,B9) -> 0 | L9: 0 | M9: 0 | N9: 4361 | O9: 4361 | P9: 0 | Q9: 8722
A10: Ramo III | B10: 5418 | C10: 245 | D10: 0 | E10: 174087 | F10: 120441 | G10: 18982 | H10: 313755 | J10: Ramo III | K10: 5418 | L10: 245 | M10: 0 | N10: 174087 | O10: 120441 | P10: 18982 | Q10: 313755
A11: - Unit classiche(a) | B11: 4390 | C11: 152 | D11: 0 | E11: 161519 | F11: 78031 | G11: 20082 | H11: 259784 | J11: - Unit classiche(a) | K11: 4390 | L11: 152 | M11: 0 | N11: 161519 | O11: 78031 | P11: 20082 | Q11: 259784
A12: - Unit protette(b) | B12: 0 | C12: 0 | D12: 0 | E12: 0 | F12: 0 | G12: 0 | H12: 0 | J12: - Unit protette(b) | K12: 0 | L12: 0 | M12: 0 | N12: 0 | O12: 0 | P12: 0 | Q12: 0
A13: - Unit garantite(c) | B13: 1066 | C13: 93 | D13: 0 | E13: 12568 | F13: 42410 | G13: 0 | H13: 55071 | J13: - Unit garantite(c) | K13: 1066 | L13: 93 | M13: 0 | N13: 12568 | O13: 42410 | P13: 0 | Q13: 55071
A14: - Index linked | B14: -38 | C14: 0 | D14: 0 | E14: 0 | F14: 0 | G14: -1100 | H14: -1100 | J14: - Index linked | K14: -38 | L14: 0 | M14: 0 | N14: 0 | O14: 0 | P14: -1100 | Q14: -1100
A15: Ramo IV | B15: 0 | C15: 0 | D15: 0 | E15: 0 | F15: 0 | G15: 0 | H15: 0 | J15: Ramo IV | K15: 0 | L15: 0 | M15: 0 | N15: 0 | O15: 0 | P15: 0 | Q15: 0
A16: Ramo V | B16: 0 | C16: 0 | D16: 0 | E16: 0 | F16: 0 | G16: 0 | H16: 0 | J16: Ramo V | K16: 0 | L16: 0 | M16: 0 | N16: 0 | O16: 0 | P16: 0 | Q16: 0
A17: Ramo VI | B17: 0 | C17: 0 | D17: 0 | E17: 0 | F17: 0 | G17: 0 | H17: 0 | J17: Ramo VI | K17: 0 | L17: 0 | M17: 0 | N17: 0 | O17: 0 | P17: 0 | Q17: 0
A18: Totale | B18: 5418 | C18: 245 | D18: 0 | E18: 178448 | F18: 124802 | G18: 18982 | H18: 322477 | J18: Totale | K18: =SUM(K9:K10,K15:K17) -> 5418 | L18: =SUM(L9:L10,L15:L17) -> 245 | M18: 0 | N18: 178448 | O18: 124802 | P18: 18982 | Q18: 322477
A19: Forme pens. individuali | B19: 1061 | C19: 0 | D19: 0 | E19: 12568 | F19: 42410 | G19: 0 | H19: 54978 | J19: Forme pens. individuali | K19: =++IF(ISERROR(B19),0,B19) -> 1061 | L19: 0 | M19: 0 | N19: 12568 | O19: 42410 | P19: 0 | Q19: 54978
A20: Forme di puro rischio | B20: 0 | C20: 0 | D20: 0 | E20: 4361 | F20: 4361 | G20: 0 | H20: 8722 | J20: Forme di puro rischio | K20: 0 | L20: 0 | M20: 0 | N20: 4361 | O20: 4361 | P20: 0 | Q20: 8722
A21: Altre forme | B21: 4357 | C21: 245 | D21: 0 | E21: 161519 | F21: 78031 | G21: 18982 | H21: 258777 | J21: Altre forme | K21: 4357 | L21: 245 | M21: 0 | N21: 161519 | O21: 78031 | P21: 18982 | Q21: 258777
A22: Totale | B22: 5418 | C22: 245 | D22: 0 | E22: 178448 | F22: 124802 | G22: 18982 | H22: 322477 | J22: Totale | K22: =SUM(K19:K21) -> 5418 | L22: =SUM(L19:L21) -> 245 | M22: 0 | N22: 178448 | O22: 124802 | P22: 18982 | Q22: 322477
A24: (*) Le polizze che prevedono una rateazione del premio periodico devono essere indicate secondo l'intero importo di tariffa su base annua, comprensivo di eventuali sovrappremi e garanzie accessorie.
A25: (**) Sono da intendersi tutte le nuove polizze di Ramo III che prevedono una garanzia finanziaria di rendimento ovvero una garanzia del capitale investito in capo alla compagnia di assicurazioni. | E25: 0.5533665967
A27: Febbraio | J27: =+A27 -> Febbraio
L29: Premi imponibili annualizzati(*)
B30: Numero polizze/Adesioni | C30: Agenti | D30: Agenzie in Economia | E30: Sportelli bancari e postali | F30: Promotori finanziari | G30: Altre forme (inclusi Broker) | H30: Totale | K30: Numero polizze/Adesioni | L30: Agenti | M30: Agenzie in Economia | N30: Sportelli bancari e postali | O30: Promotori finanziari | P30: Altre forme (inclusi Broker) | Q30: Totale
A31: Ramo I | B31: 0 | C31: 0 | D31: 0 | E31: 1983 | F31: 1983 | G31: 0 | H31: 3966 | J31: Ramo I | K31: =+IF(ISERROR(B31+K9),0,B31+K9) -> 0 | L31: 0 | M31: 0 | N31: 6344 | O31: 6344 | P31: 0 | Q31: 12688
A32: Ramo III | B32: 10688 | C32: 21 | D32: 0 | E32: 294583 | F32: 126138 | G32: 17933 | H32: 438675 | J32: Ramo III | K32: 16106 | L32: 266 | M32: 0 | N32: 468670 | O32: 246579 | P32: 36915 | Q32: 752430
A33: - Unit classiche(a) | B33: 9440 | C33: 0 | D33: 0 | E33: 282015 | F33: 83728 | G33: 15727 | H33: 381470 | J33: =+A33 -> - Unit classiche(a) | K33: 13830 | L33: 152 | M33: 0 | N33: 443534 | O33: 161759 | P33: 35809 | Q33: 641254
A34: - Unit protette(b) | B34: 0 | C34: 0 | D34: 0 | E34: 0 | F34: 0 | G34: 0 | H34: 0 | J34: =+A34 -> - Unit protette(b) | K34: 0 | L34: 0 | M34: 0 | N34: 0 | O34: 0 | P34: 0 | Q34: 0
A35: - Unit garantite(c) | B35: 1063 | C35: 21 | D35: 0 | E35: 12568 | F35: 42410 | G35: 0 | H35: 54999 | J35: =+A35 -> - Unit garantite(c) | K35: 2129 | L35: 114 | M35: 0 | N35: 25136 | O35: 84820 | P35: 0 | Q35: 110070
A36: - Index linked | B36: 185 | C36: 0 | D36: 0 | E36: 0 | F36: 0 | G36: 2206 | H36: 2206 | J36: =+A36 -> - Index linked | K36: 147 | L36: 0 | M36: 0 | N36: 0 | O36: 0 | P36: 1106 | Q36: 1106
A37: Ramo IV | B37: 0 | C37: 0 | D37: 0 | E37: 0 | F37: 0 | G37: 0 | H37: 0 | J37: Ramo IV | K37: 0 | L37: 0 | M37: 0 | N37: 0 | O37: 0 | P37: 0 | Q37: 0
A38: Ramo V | B38: 0 | C38: 0 | D38: 0 | E38: 0 | F38: 0 | G38: 0 | H38: 0 | J38: Ramo V | K38: 0 | L38: 0 | M38: 0 | N38: 0 | O38: 0 | P38: 0 | Q38: 0
A39: Ramo VI | B39: 0 | C39: 0 | D39: 0 | E39: 0 | F39: 0 | G39: 0 | H39: 0 | J39: Ramo VI | K39: 0 | L39: 0 | M39: 0 | N39: 0 | O39: 0 | P39: 0 | Q39: 0
A40: Totale | B40: 10688 | C40: 21 | D40: 0 | E40: 296566 | F40: 128121 | G40: 17933 | H40: 442641 | J40: Totale | K40: =SUM(K31:K32,K37:K39) -> 16106 | L40: =SUM(L31:L32,L37:L39) -> 266 | M40: 0 | N40: 475014 | O40: 252923 | P40: 36915 | Q40: 765118
A41: Forme pens. individuali | B41: 1061 | C41: 0 | D41: 0 | E41: 12568 | F41: 42410 | G41: 0 | H41: 54978 | J41: Forme pens. individuali | K41: =+IF(ISERROR(B41+K19),0,B41+K19) -> 2122 | L41: 0 | M41: 0 | N41: 25136 | O41: 84820 | P41: 0 | Q41: 109956
A42: Forme di puro rischio | B42: 0 | C42: 0 | D42: 0 | E42: 1983 | F42: 1983 | G42: 0 | H42: 3966 | J42: Forme di puro rischio | K42: 0 | L42: 0 | M42: 0 | N42: 6344 | O42: 6344 | P42: 0 | Q42: 12688
A43: Altre forme | B43: 9627 | C43: 21 | D43: 0 | E43: 282015 | F43: 83728 | G43: 17933 | H43: 383697 | J43: Altre forme | K43: 13984 | L43: 266 | M43: 0 | N43: 443534 | O43: 161759 | P43: 36915 | Q43: 642474
A44: Totale | B44: 10688 | C44: 21 | D44: 0 | E44: 296566 | F44: 128121 | G44: 17933 | H44: 442641 | J44: Totale | K44: =SUM(K41:K43) -> 16106 | L44: =SUM(L41:L43) -> 266 | M44: 0 | N44: 475014 | O44: 252923 | P44: 36915 | Q44: 765118
A46: (*) Le polizze che prevedono una rateazione del premio periodico devono essere indicate secondo l'intero importo di tariffa su base annua, comprensivo di eventuali sovrappremi e garanzie accessorie.
A47: (**) Sono da intendersi tutte le nuove polizze di Ramo III che prevedono una garanzia finanziaria di rendimento ovvero una garanzia del capitale investito in capo alla compagnia di assicurazioni. | E47: 0.6699921607
A49: Marzo | J49: =+A49 -> Marzo
L51: Premi imponibili annualizzati(*)
B52: Numero polizze/Adesioni | C52: Agenti | D52: Agenzie in Economia | E52: Sportelli bancari e postali | F52: Promotori finanziari | G52: Altre forme (inclusi Broker) | H52: Totale | K52: Numero polizze/Adesioni | L52: Agenti | M52: Agenzie in Economia | N52: Sportelli bancari e postali | O52: Promotori finanziari | P52: Altre forme (inclusi Broker) | Q52: Totale
A53: Ramo I | B53: 0 | C53: 0 | D53: 0 | E53: -576 | F53: -576 | G53: 0 | H53: -1152 | J53: Ramo I | K53: =+IF(ISERROR(B53+K31),0,B53+K31) -> 0 | L53: 0 | M53: 0 | N53: 5768 | O53: 5768 | P53: 0 | Q53: 11536
A54: Ramo III | B54: 47566 | C54: 352 | D54: 0 | E54: 619435 | F54: 156955 | G54: 497303 | H54: 1274045 | J54: Ramo III | K54: 63672 | L54: 618 | M54: 0 | N54: 1088105 | O54: 403534 | P54: 534218 | Q54: 2026475
A55: - Unit classiche(a) | B55: 46507 | C55: 352 | D55: 0 | E55: 606867 | F55: 114545 | G55: 497338 | H55: 1219102 | J55: =+A55 -> - Unit classiche(a) | K55: 60337 | L55: 504 | M55: 0 | N55: 1050401 | O55: 276304 | P55: 533147 | Q55: 1860356
A56: - Unit protette(b) | B56: 0 | C56: 0 | D56: 0 | E56: 0 | F56: 0 | G56: 0 | H56: 0 | J56: =+A56 -> - Unit protette(b) | K56: 0 | L56: 0 | M56: 0 | N56: 0 | O56: 0 | P56: 0 | Q56: 0
A57: - Unit garantite(c) | B57: 1061 | C57: 0 | D57: 0 | E57: 12568 | F57: 42410 | G57: 0 | H57: 54978 | J57: =+A57 -> - Unit garantite(c) | K57: 3190 | L57: 114 | M57: 0 | N57: 37704 | O57: 127230 | P57: 0 | Q57: 165048
A58: - Index linked | B58: -2 | C58: 0 | D58: 0 | E58: 0 | F58: 0 | G58: -35 | H58: -35 | J58: =+A58 -> - Index linked | K58: 145 | L58: 0 | M58: 0 | N58: 0 | O58: 0 | P58: 1071 | Q58: 1071
A59: Ramo IV | B59: 0 | C59: 0 | D59: 0 | E59: 0 | F59: 0 | G59: 0 | H59: 0 | J59: Ramo IV | K59: 0 | L59: 0 | M59: 0 | N59: 0 | O59: 0 | P59: 0 | Q59: 0
A60: Ramo V | B60: 0 | C60: 0 | D60: 0 | E60: 0 | F60: 0 | G60: 0 | H60: 0 | J60: Ramo V | K60: 0 | L60: 0 | M60: 0 | N60: 0 | O60: 0 | P60: 0 | Q60: 0
A61: Ramo VI | B61: 0 | C61: 0 | D61: 0 | E61: 0 | F61: 0 | G61: 0 | H61: 0 | J61: Ramo VI | K61: 0 | L61: 0 | M61: 0 | N61: 0 | O61: 0 | P61: 0 | Q61: 0
A62: Totale | B62: 47566 | C62: 352 | D62: 0 | E62: 618859 | F62: 156379 | G62: 497303 | H62: 1272893 | J62: Totale | K62: =SUM(K53:K54,K59:K61) -> 63672 | L62: 618 | M62: 0 | N62: 1093873 | O62: 409302 | P62: 534218 | Q62: 2038011
A63: Forme pens. individuali | B63: 1061 | C63: 0 | D63: 0 | E63: 12568 | F63: 42410 | G63: 0 | H63: 54978 | J63: Forme pens. individuali | K63: =+IF(ISERROR(B63+K41),0,B63+K41) -> 3183 | L63: 0 | M63: 0 | N63: 37704 | O63: 127230 | P63: 0 | Q63: 164934
A64: Forme di puro rischio | B64: 0 | C64: 0 | D64: 0 | E64: -576 | F64: -576 | G64: 0 | H64: -1152 | J64: Forme di puro rischio | K64: 0 | L64: 0 | M64: 0 | N64: 5768 | O64: 5768 | P64: 0 | Q64: 11536
A65: Altre forme | B65: 46505 | C65: 352 | D65: 0 | E65: 606867 | F65: 114545 | G65: 497303 | H65: 1219067 | J65: Altre forme | K65: 60489 | L65: 618 | M65: 0 | N65: 1050401 | O65: 276304 | P65: 534218 | Q65: 1861541
A66: Totale | B66: 47566 | C66: 352 | D66: 0 | E66: 618859 | F66: 156379 | G66: 497303 | H66: 1272893 | J66: Totale | K66: =SUM(K63:K65) -> 63672 | L66: 618 | M66: 0 | N66: 1093873 | O66: 409302 | P66: 534218 | Q66: 2038011
A68: (*) Le polizze che prevedono una rateazione del premio periodico devono essere indicate secondo l'intero importo di tariffa su base annua, comprensivo di eventuali sovrappremi e garanzie accessorie.
A69: (**) Sono da intendersi tutte le nuove polizze di Ramo III che prevedono una garanzia finanziaria di rendimento ovvero una garanzia del capitale investito in capo alla compagnia di assicurazioni. | E69: 0.4861830492
A71: Aprile | J71: =+A71 -> Aprile
L73: Premi imponibili annualizzati(*)
B74: Numero polizze/Adesioni | C74: Agenti | D74: Agenzie in Economia | E74: Sportelli bancari e postali | F74: Promotori finanziari | G74: Altre forme (inclusi Broker) | H74: Totale | K74: Numero polizze/Adesioni | L74: Agenti | M74: Agenzie in Economia | N74: Sportelli bancari e postali | O74: Promotori finanziari | P74: Altre forme (inclusi Broker) | Q74: Totale
A75: Ramo I | B75: 0 | C75: 0 | D75: 0 | E75: 1545 | F75: 1545 | G75: 0 | H75: 3090 | J75: Ramo I | K75: =+IF(ISERROR(B75+K53),0,B75+K53) -> 0 | L75: 0 | M75: 0 | N75: 7313 | O75: 7313 | P75: 0 | Q75: 14626
A76: Ramo III | B76: 12330 | C76: 60 | D76: 0 | E76: 322462 | F76: 205658 | G76: 34340 | H76: 562520 | J76: Ramo III | K76: 76002 | L76: 678 | M76: 0 | N76: 1410567 | O76: 609192 | P76: 568558 | Q76: 2588995
A77: - Unit classiche(a) | B77: 11223 | C77: 60 | D77: 0 | E77: 304346 | F77: 155954 | G77: 34350 | H77: 494710 | J77: =+A77 -> - Unit classiche(a) | K77: 71560 | L77: 564 | M77: 0 | N77: 1354747 | O77: 432258 | P77: 567497 | Q77: 2355066
A78: - Unit protette(b) | B78: 49 | C78: 0 | D78: 0 | E78: 17 | F78: 0 | G78: 0 | H78: 17 | J78: =+A78 -> - Unit protette(b) | K78: 49 | L78: 0 | M78: 0 | N78: 17 | O78: 0 | P78: 0 | Q78: 17
A79: - Unit garantite(c) | B79: 1059 | C79: 0 | D79: 0 | E79: 18099 | F79: 49704 | G79: 0 | H79: 67803 | J79: =+A79 -> - Unit garantite(c) | K79: 4249 | L79: 114 | M79: 0 | N79: 55803 | O79: 176934 | P79: 0 | Q79: 232851
A80: - Index linked | B80: -1 | C80: 0 | D80: 0 | E80: 0 | F80: 0 | G80: -10 | H80: -10 | J80: =+A80 -> - Index linked | K80: 144 | L80: 0 | M80: 0 | N80: 0 | O80: 0 | P80: 1061 | Q80: 1061
A81: Ramo IV | B81: 0 | C81: 0 | D81: 0 | E81: 0 | F81: 0 | G81: 0 | H81: 0 | J81: Ramo IV | K81: 0 | L81: 0 | M81: 0 | N81: 0 | O81: 0 | P81: 0 | Q81: 0
A82: Ramo V | B82: 0 | C82: 0 | D82: 0 | E82: 0 | F82: 0 | G82: 0 | H82: 0 | J82: Ramo V | K82: 0 | L82: 0 | M82: 0 | N82: 0 | O82: 0 | P82: 0 | Q82: 0
A83: Ramo VI | B83: 0 | C83: 0 | D83: 0 | E83: 0 | F83: 0 | G83: 0 | H83: 0 | J83: Ramo VI | K83: 0 | L83: 0 | M83: 0 | N83: 0 | O83: 0 | P83: 0 | Q83: 0
A84: Totale | B84: 12330 | C84: 60 | D84: 0 | E84: 324007 | F84: 207203 | G84: 34340 | H84: 565610 | J84: Totale | K84: =SUM(K75:K76,K81:K83) -> 76002 | L84: 678 | M84: 0 | N84: 1417880 | O84: 616505 | P84: 568558 | Q84: 2603621
A85: Forme pens. individuali | B85: 1108 | C85: 0 | D85: 0 | E85: 18116 | F85: 49704 | G85: 0 | H85: 67820 | J85: Forme pens. individuali | K85: =+IF(ISERROR(B85+K63),0,B85+K63) -> 4291 | L85: 0 | M85: 0 | N85: 55820 | O85: 176934 | P85: 0 | Q85: 232754
A86: Forme di puro rischio | B86: 0 | C86: 0 | D86: 0 | E86: 1545 | F86: 1545 | G86: 0 | H86: 3090 | J86: Forme di puro rischio | K86: 0 | L86: 0 | M86: 0 | N86: 7313 | O86: 7313 | P86: 0 | Q86: 14626
A87: Altre forme | B87: 11222 | C87: 60 | D87: 0 | E87: 304346 | F87: 155954 | G87: 34340 | H87: 494700 | J87: Altre forme | K87: 71711 | L87: 678 | M87: 0 | N87: 1354747 | O87: 432258 | P87: 568558 | Q87: 2356241
A88: Totale | B88: 12330 | C88: 60 | D88: 0 | E88: 324007 | F88: 207203 | G88: 34340 | H88: 565610 | J88: Totale | K88: =SUM(K85:K87) -> 76002 | L88: 678 | M88: 0 | N88: 1417880 | O88: 616505 | P88: 568558 | Q88: 2603621
A90: (*) Le polizze che prevedono una rateazione del premio periodico devono essere indicate secondo l'intero importo di tariffa su base annua, comprensivo di eventuali sovrappremi e garanzie accessorie.
A91: (**) Sono da intendersi tutte le nuove polizze di Ramo III che prevedono una garanzia finanziaria di rendimento ovvero una garanzia del capitale investito in capo alla compagnia di assicurazioni. | E91: 0.5728452467
E92: 0.267118844
A93: Maggio | J93: =+A93 -> Maggio
L95: Premi imponibili annualizzati(*)
B96: Numero polizze/Adesioni | C96: Agenti | D96: Agenzie in Economia | E96: Sportelli bancari e postali | F96: Promotori finanziari | G96: Altre forme (inclusi Broker) | H96: Totale | K96: Numero polizze/Adesioni | L96: Agenti | M96: Agenzie in Economia | N96: Sportelli bancari e postali | O96: Promotori finanziari | P96: Altre forme (inclusi Broker) | Q96: Totale
A97: Ramo I | B97: 0 | C97: 0 | D97: 0 | E97: 153 | F97: 151 | G97: 0 | H97: 304 | J97: Ramo I | K97: =+IF(ISERROR(B97+K75),0,B97+K75) -> 0 | L97: 0 | M97: 0 | N97: 7466 | O97: 7464 | P97: 0 | Q97: 14930
A98: Ramo III | B98: 33428 | C98: 130 | D98: 0 | E98: 354613 | F98: 298408 | G98: 370923 | H98: 1024074 | J98: Ramo III | K98: 109430 | L98: 808 | M98: 0 | N98: 1765180 | O98: 907600 | P98: 939481 | Q98: 3613069
A99: - Unit classiche(a) | B99: 32320 | C99: 130 | D99: 0 | E99: 336497 | F99: 248704 | G99: 370923 | H99: 956254 | J99: =+A99 -> - Unit classiche(a) | K99: 103880 | L99: 694 | M99: 0 | N99: 1691244 | O99: 680962 | P99: 938420 | Q99: 3311320
A100: - Unit protette(b) | B100: 49 | C100: 0 | D100: 0 | E100: 17 | F100: 0 | G100: 0 | H100: 17 | J100: =+A100 -> - Unit protette(b) | K100: 98 | L100: 0 | M100: 0 | N100: 34 | O100: 0 | P100: 0 | Q100: 34
A101: - Unit garantite(c) | B101: 1059 | C101: 0 | D101: 0 | E101: 18099 | F101: 49704 | G101: 0 | H101: 67803 | J101: =+A101 -> - Unit garantite(c) | K101: 5308 | L101: 114 | M101: 0 | N101: 73902 | O101: 226638 | P101: 0 | Q101: 300654
A102: - Index linked | B102: 0 | C102: 0 | D102: 0 | E102: 0 | F102: 0 | G102: 0 | H102: 0 | J102: =+A102 -> - Index linked | K102: 144 | L102: 0 | M102: 0 | N102: 0 | O102: 0 | P102: 1061 | Q102: 1061
A103: Ramo IV | B103: 0 | C103: 0 | D103: 0 | E103: 0 | F103: 0 | G103: 0 | H103: 0 | J103: Ramo IV | K103: 0 | L103: 0 | M103: 0 | N103: 0 | O103: 0 | P103: 0 | Q103: 0
A104: Ramo V | B104: 0 | C104: 0 | D104: 0 | E104: 0 | F104: 0 | G104: 0 | H104: 0 | J104: Ramo V | K104: 0 | L104: 0 | M104: 0 | N104: 0 | O104: 0 | P104: 0 | Q104: 0
A105: Ramo VI | B105: 0 | C105: 0 | D105: 0 | E105: 0 | F105: 0 | G105: 0 | H105: 0 | J105: Ramo VI | K105: 0 | L105: 0 | M105: 0 | N105: 0 | O105: 0 | P105: 0 | Q105: 0
A106: Totale | B106: 33428 | C106: 130 | D106: 0 | E106: 354766 | F106: 298559 | G106: 370923 | H106: 1024378 | J106: Totale | K106: =SUM(K97:K98,K103:K105) -> 109430 | L106: 808 | M106: 0 | N106: 1772646 | O106: 915064 | P106: 939481 | Q106: 3627999
A107: Forme pens. individuali | B107: 1108 | C107: 0 | D107: 0 | E107: 18116 | F107: 49704 | G107: 0 | H107: 67820 | J107: Forme pens. individuali | K107: =+IF(ISERROR(B107+K85),0,B107+K85) -> 5399 | L107: 0 | M107: 0 | N107: 73936 | O107: 226638 | P107: 0 | Q107: 300574
A108: Forme di puro rischio | B108: 0 | C108: 0 | D108: 0 | E108: 153 | F108: 151 | G108: 0 | H108: 304 | J108: Forme di puro rischio | K108: 0 | L108: 0 | M108: 0 | N108: 7466 | O108: 7464 | P108: 0 | Q108: 14930
A109: Altre forme | B109: 32320 | C109: 130 | D109: 0 | E109: 336497 | F109: 248704 | G109: 370923 | H109: 956254 | J109: Altre forme | K109: 104031 | L109: 808 | M109: 0 | N109: 1691244 | O109: 680962 | P109: 939481 | Q109: 3312495
A110: Totale | B110: 33428 | C110: 130 | D110: 0 | E110: 354766 | F110: 298559 | G110: 370923 | H110: 1024378 | J110: Totale | K110: =SUM(K107:K109) -> 109430 | L110: 808 | M110: 0 | N110: 1772646 | O110: 915064 | P110: 939481 | Q110: 3627999
A112: (*) Le polizze che prevedono una rateazione del premio periodico devono essere indicate secondo l'intero importo di tariffa su base annua, comprensivo di eventuali sovrappremi e garanzie accessorie.
A113: (**) Sono da intendersi tutte le nuove polizze di Ramo III che prevedono una garanzia finanziaria di rendimento ovvero una garanzia del capitale investito in capo alla compagnia di assicurazioni. | E113: 0.3463233299
A115: Giugno | J115: =+A115 -> Giugno
L117: Premi imponibili annualizzati(*)
B118: Numero polizze/Adesioni | C118: Agenti | D118: Agenzie in Economia | E118: Sportelli bancari e postali | F118: Promotori finanziari | G118: Altre forme (inclusi Broker) | H118: Totale | K118: Numero polizze/Adesioni | L118: Agenti | M118: Agenzie in Economia | N118: Sportelli bancari e postali | O118: Promotori finanziari | P118: Altre forme (inclusi Broker) | Q118: Totale
A119: Ramo I | B119: 0 | C119: 0 | D119: 0 | E119: -379 | F119: -379 | G119: 0 | H119: -758 | J119: Ramo I | K119: =+IF(ISERROR(B119+K97),0,B119+K97) -> 0 | L119: 0 | M119: 0 | N119: 7087 | O119: 7085 | P119: 0 | Q119: 14172
A120: Ramo III | B120: 24621 | C120: 370 | D120: 0 | E120: 193335 | F120: 176048 | G120: 320289 | H120: 690042 | J120: Ramo III | K120: 134051 | L120: 1178 | M120: 0 | N120: 1958515 | O120: 1083648 | P120: 1259770 | Q120: 4303111
A121: - Unit classiche(a) | B121: 23513 | C121: 370 | D121: 0 | E121: 175219 | F121: 126344 | G121: 320289 | H121: 622222 | J121: =+A121 -> - Unit classiche(a) | K121: 127393 | L121: 1064 | M121: 0 | N121: 1866463 | O121: 807306 | P121: 1258709 | Q121: 3933542
A122: - Unit protette(b) | B122: 49 | C122: 0 | D122: 0 | E122: 17 | F122: 0 | G122: 0 | H122: 17 | J122: =+A122 -> - Unit protette(b) | K122: 147 | L122: 0 | M122: 0 | N122: 51 | O122: 0 | P122: 0 | Q122: 51
A123: - Unit garantite(c) | B123: 1059 | C123: 0 | D123: 0 | E123: 18099 | F123: 49704 | G123: 0 | H123: 67803 | J123: =+A123 -> - Unit garantite(c) | K123: 6367 | L123: 114 | M123: 0 | N123: 92001 | O123: 276342 | P123: 0 | Q123: 368457
A124: - Index linked | B124: 0 | C124: 0 | D124: 0 | E124: 0 | F124: 0 | G124: 0 | H124: 0 | J124: =+A124 -> - Index linked | K124: 144 | L124: 0 | M124: 0 | N124: 0 | O124: 0 | P124: 1061 | Q124: 1061
A125: Ramo IV | B125: 0 | C125: 0 | D125: 0 | E125: 0 | F125: 0 | G125: 0 | H125: 0 | J125: Ramo IV | K125: 0 | L125: 0 | M125: 0 | N125: 0 | O125: 0 | P125: 0 | Q125: 0
A126: Ramo V | B126: 0 | C126: 0 | D126: 0 | E126: 0 | F126: 0 | G126: 0 | H126: 0 | J126: Ramo V | K126: 0 | L126: 0 | M126: 0 | N126: 0 | O126: 0 | P126: 0 | Q126: 0
A127: Ramo VI | B127: 0 | C127: 0 | D127: 0 | E127: 0 | F127: 0 | G127: 0 | H127: 0 | J127: Ramo VI | K127: 0 | L127: 0 | M127: 0 | N127: 0 | O127: 0 | P127: 0 | Q127: 0
A128: Totale | B128: 24621 | C128: 370 | D128: 0 | E128: 192956 | F128: 175669 | G128: 320289 | H128: 689284 | J128: Totale | K128: =SUM(K119:K120,K125:K127) -> 134051 | L128: 1178 | M128: 0 | N128: 1965602 | O128: 1090733 | P128: 1259770 | Q128: 4317283
A129: Forme pens. individuali | B129: 1108 | C129: 0 | D129: 0 | E129: 18116 | F129: 49704 | G129: 0 | H129: 67820 | J129: Forme pens. individuali | K129: =+IF(ISERROR(B129+K107),0,B129+K107) -> 6507 | L129: 0 | M129: 0 | N129: 92052 | O129: 276342 | P129: 0 | Q129: 368394
A130: Forme di puro rischio | B130: 0 | C130: 0 | D130: 0 | E130: -379 | F130: -379 | G130: 0 | H130: -758 | J130: Forme di puro rischio | K130: 0 | L130: 0 | M130: 0 | N130: 7087 | O130: 7085 | P130: 0 | Q130: 14172
A131: Altre forme | B131: 23513 | C131: 370 | D131: 0 | E131: 175219 | F131: 126344 | G131: 320289 | H131: 622222 | J131: Altre forme | K131: 127544 | L131: 1178 | M131: 0 | N131: 1866463 | O131: 807306 | P131: 1259770 | Q131: 3934717
A132: Totale | B132: 24621 | C132: 370 | D132: 0 | E132: 192956 | F132: 175669 | G132: 320289 | H132: 689284 | J132: Totale | K132: =SUM(K129:K131) -> 134051 | L132: 1178 | M132: 0 | N132: 1965602 | O132: 1090733 | P132: 1259770 | Q132: 4317283
A134: (*) Le polizze che prevedono una rateazione del premio periodico devono essere indicate secondo l'intero importo di tariffa su base annua, comprensivo di eventuali sovrappremi e garanzie accessorie.
A135: (**) Sono da intendersi tutte le nuove polizze di Ramo III che prevedono una garanzia finanziaria di rendimento ovvero una garanzia del capitale investito in capo alla compagnia di assicurazioni. | E135: 0.279936862
A137: Luglio | J137: =+A137 -> Luglio
L139: Premi imponibili annualizzati(*)
B140: Numero polizze/Adesioni | C140: Agenti | D140: Agenzie in Economia | E140: Sportelli bancari e postali | F140: Promotori finanziari | G140: Altre forme (inclusi Broker) | H140: Totale | K140: Numero polizze/Adesioni | L140: Agenti | M140: Agenzie in Economia | N140: Sportelli bancari e postali | O140: Promotori finanziari | P140: Altre forme (inclusi Broker) | Q140: Totale
A141: Ramo I | B141: 0 | C141: 0 | D141: 0 | E141: 307 | F141: 307 | G141: 0 | H141: 614 | J141: Ramo I | K141: =+IF(ISERROR(B141+K119),0,B141+K119) -> 0 | L141: 0 | M141: 0 | N141: 7394 | O141: 7392 | P141: 0 | Q141: 14786
A142: Ramo III | B142: 10212 | C142: 0 | D142: 0 | E142: 182467 | F142: 200115 | G142: 37030 | H142: 419612 | J142: Ramo III | K142: 144263 | L142: 1178 | M142: 0 | N142: 2140982 | O142: 1283763 | P142: 1296800 | Q142: 4722723
A143: - Unit classiche(a) | B143: 6069 | C143: 0 | D143: 0 | E143: 142418 | F143: 150022 | G143: 37030 | H143: 329470 | J143: =+A143 -> - Unit classiche(a) | K143: 133462 | L143: 1064 | M143: 0 | N143: 2008881 | O143: 957328 | P143: 1295739 | Q143: 4263012
A144: - Unit protette(b) | B144: 2496 | C144: 0 | D144: 0 | E144: 182 | F144: 0 | G144: 0 | H144: 182 | J144: =+A144 -> - Unit protette(b) | K144: 2643 | L144: 0 | M144: 0 | N144: 233 | O144: 0 | P144: 0 | Q144: 233
A145: - Unit garantite(c) | B145: 1647 | C145: 0 | D145: 0 | E145: 39867 | F145: 50093 | G145: 0 | H145: 89960 | J145: =+A145 -> - Unit garantite(c) | K145: 8014 | L145: 114 | M145: 0 | N145: 131868 | O145: 326435 | P145: 0 | Q145: 458417
A146: - Index linked | B146: 0 | C146: 0 | D146: 0 | E146: 0 | F146: 0 | G146: 0 | H146: 0 | J146: =+A146 -> - Index linked | K146: 144 | L146: 0 | M146: 0 | N146: 0 | O146: 0 | P146: 1061 | Q146: 1061
A147: Ramo IV | B147: 0 | C147: 0 | D147: 0 | E147: 0 | F147: 0 | G147: 0 | H147: 0 | J147: Ramo IV | K147: 0 | L147: 0 | M147: 0 | N147: 0 | O147: 0 | P147: 0 | Q147: 0
A148: Ramo V | B148: 0 | C148: 0 | D148: 0 | E148: 0 | F148: 0 | G148: 0 | H148: 0 | J148: Ramo V | K148: 0 | L148: 0 | M148: 0 | N148: 0 | O148: 0 | P148: 0 | Q148: 0
A149: Ramo VI | B149: 0 | C149: 0 | D149: 0 | E149: 0 | F149: 0 | G149: 0 | H149: 0 | J149: Ramo VI | K149: 0 | L149: 0 | M149: 0 | N149: 0 | O149: 0 | P149: 0 | Q149: 0
A150: Totale | B150: 10212 | C150: 0 | D150: 0 | E150: 182774 | F150: 200422 | G150: 37030 | H150: 420226 | J150: Totale | K150: =SUM(K141:K142,K147:K149) -> 144263 | L150: 1178 | M150: 0 | N150: 2148376 | O150: 1291155 | P150: 1296800 | Q150: 4737509
A151: Forme pens. individuali | B151: 2237 | C151: 0 | D151: 0 | E151: 40049 | F151: 50093 | G151: 0 | H151: 90142 | J151: Forme pens. individuali | K151: =+IF(ISERROR(B151+K129),0,B151+K129) -> 8744 | L151: 0 | M151: 0 | N151: 132101 | O151: 326435 | P151: 0 | Q151: 458536
A152: Forme di puro rischio | B152: 0 | C152: 0 | D152: 0 | E152: 307 | F152: 307 | G152: 0 | H152: 614 | J152: Forme di puro rischio | K152: 0 | L152: 0 | M152: 0 | N152: 7394 | O152: 7392 | P152: 0 | Q152: 14786
A153: Altre forme | B153: 7975 | C153: 0 | D153: 0 | E153: 142418 | F153: 150022 | G153: 37030 | H153: 329470 | J153: Altre forme | K153: 135519 | L153: 1178 | M153: 0 | N153: 2008881 | O153: 957328 | P153: 1296800 | Q153: 4264187
A154: Totale | B154: 10212 | C154: 0 | D154: 0 | E154: 182774 | F154: 200422 | G154: 37030 | H154: 420226 | J154: Totale | K154: =SUM(K151:K153) -> 144263 | L154: 1178 | M154: 0 | N154: 2148376 | O154: 1291155 | P154: 1296800 | Q154: 4737509
A156: (*) Le polizze che prevedono una rateazione del premio periodico devono essere indicate secondo l'intero importo di tariffa su base annua, comprensivo di eventuali sovrappremi e garanzie accessorie.
A157: (**) Sono da intendersi tutte le nuove polizze di Ramo III che prevedono una garanzia finanziaria di rendimento ovvero una garanzia del capitale investito in capo alla compagnia di assicurazioni. | E157: 0.4349421502
A159: Agosto | J159: =+A159 -> Agosto
L161: Premi imponibili annualizzati(*)
B162: Numero polizze/Adesioni | C162: Agenti | D162: Agenzie in Economia | E162: Sportelli bancari e postali | F162: Promotori finanziari | G162: Altre forme (inclusi Broker) | H162: Totale | K162: Numero polizze/Adesioni | L162: Agenti | M162: Agenzie in Economia | N162: Sportelli bancari e postali | O162: Promotori finanziari | P162: Altre forme (inclusi Broker) | Q162: Totale
A163: Ramo I | B163: 0 | C163: 0 | D163: 0 | E163: 307 | F163: 307 | G163: 0 | H163: 614 | J163: Ramo I | K163: =+IF(ISERROR(B163+K141),0,B163+K141) -> 0 | L163: 0 | M163: 0 | N163: 7701 | O163: 7699 | P163: 0 | Q163: 15400
A164: Ramo III | B164: 41937 | C164: 75 | D164: 0 | E164: 669494 | F164: 162436 | G164: 318458 | H164: 1150463 | J164: Ramo III | K164: 186200 | L164: 1253 | M164: 0 | N164: 2810476 | O164: 1446199 | P164: 1615258 | Q164: 5873186
A165: - Unit classiche(a) | B165: 39700 | C165: 75 | D165: 0 | E165: 629445 | F165: 112343 | G165: 318458 | H165: 1060321 | J165: =+A165 -> - Unit classiche(a) | K165: 173162 | L165: 1139 | M165: 0 | N165: 2638326 | O165: 1069671 | P165: 1614197 | Q165: 5323333
A166: - Unit protette(b) | B166: 590 | C166: 0 | D166: 0 | E166: 182 | F166: 0 | G166: 0 | H166: 182 | J166: =+A166 -> - Unit protette(b) | K166: 3233 | L166: 0 | M166: 0 | N166: 415 | O166: 0 | P166: 0 | Q166: 415
A167: - Unit garantite(c) | B167: 1647 | C167: 0 | D167: 0 | E167: 39867 | F167: 50093 | G167: 0 | H167: 89960 | J167: =+A167 -> - Unit garantite(c) | K167: 9661 | L167: 114 | M167: 0 | N167: 171735 | O167: 376528 | P167: 0 | Q167: 548377
A168: - Index linked | B168: 0 | C168: 0 | D168: 0 | E168: 0 | F168: 0 | G168: 0 | H168: 0 | J168: =+A168 -> - Index linked | K168: 144 | L168: 0 | M168: 0 | N168: 0 | O168: 0 | P168: 1061 | Q168: 1061
A169: Ramo IV | B169: 0 | C169: 0 | D169: 0 | E169: 0 | F169: 0 | G169: 0 | H169: 0 | J169: Ramo IV | K169: 0 | L169: 0 | M169: 0 | N169: 0 | O169: 0 | P169: 0 | Q169: 0
A170: Ramo V | B170: 0 | C170: 0 | D170: 0 | E170: 0 | F170: 0 | G170: 0 | H170: 0 | J170: Ramo V | K170: 0 | L170: 0 | M170: 0 | N170: 0 | O170: 0 | P170: 0 | Q170: 0
A171: Ramo VI | B171: 0 | C171: 0 | D171: 0 | E171: 0 | F171: 0 | G171: 0 | H171: 0 | J171: Ramo VI | K171: 0 | L171: 0 | M171: 0 | N171: 0 | O171: 0 | P171: 0 | Q171: 0
A172: Totale | B172: 41937 | C172: 75 | D172: 0 | E172: 669801 | F172: 162743 | G172: 318458 | H172: 1151077 | J172: Totale | K172: =SUM(K163:K164,K169:K171) -> 186200 | L172: 1253 | M172: 0 | N172: 2818177 | O172: 1453898 | P172: 1615258 | Q172: 5888586
A173: Forme pens. individuali | B173: 2237 | C173: 0 | D173: 0 | E173: 40049 | F173: 50093 | G173: 0 | H173: 90142 | J173: Forme pens. individuali | K173: =+IF(ISERROR(B173+K151),0,B173+K151) -> 10981 | L173: 0 | M173: 0 | N173: 172150 | O173: 376528 | P173: 0 | Q173: 548678
A174: Forme di puro rischio | B174: 0 | C174: 0 | D174: 0 | E174: 0 | F174: 0 | G174: 0 | H174: 0 | J174: Forme di puro rischio | K174: 0 | L174: 0 | M174: 0 | N174: 7394 | O174: 7392 | P174: 0 | Q174: 14786
A175: Altre forme | B175: 39700 | C175: 75 | D175: 0 | E175: 629752 | F175: 112650 | G175: 318458 | H175: 1060935 | J175: Altre forme | K175: 175219 | L175: 1253 | M175: 0 | N175: 2638633 | O175: 1069978 | P175: 1615258 | Q175: 5325122
A176: Totale | B176: 41937 | C176: 75 | D176: 0 | E176: 669801 | F176: 162743 | G176: 318458 | H176: 1151077 | J176: Totale | K176: =SUM(K173:K175) -> 186200 | L176: 1253 | M176: 0 | N176: 2818177 | O176: 1453898 | P176: 1615258 | Q176: 5888586
A178: (*) Le polizze che prevedono una rateazione del premio periodico devono essere indicate secondo l'intero importo di tariffa su base annua, comprensivo di eventuali sovrappremi e garanzie accessorie.
A179: (**) Sono da intendersi tutte le nuove polizze di Ramo III che prevedono una garanzia finanziaria di rendimento ovvero una garanzia del capitale investito in capo alla compagnia di assicurazioni. | E179: 0.5818906989
A181: Settembre | J181: =+A181 -> Settembre
L183: Premi imponibili annualizzati(*)
B184: Numero polizze/Adesioni | C184: Agenti | D184: Agenzie in Economia | E184: Sportelli bancari e postali | F184: Promotori finanziari | G184: Altre forme (inclusi Broker) | H184: Totale | K184: Numero polizze/Adesioni | L184: Agenti | M184: Agenzie in Economia | N184: Sportelli bancari e postali | O184: Promotori finanziari | P184: Altre forme (inclusi Broker) | Q184: Totale
A185: Ramo I | B185: 0 | C185: 0 | D185: 0 | E185: 949 | F185: 949 | G185: 0 | H185: 1898 | J185: Ramo I | K185: =+IF(ISERROR(B185+K163),0,B185+K163) -> 0 | L185: 0 | M185: 0 | N185: 8650 | O185: 8648 | P185: 0 | Q185: 17298
A186: Ramo III | B186: 26371 | C186: 65 | D186: 0 | E186: 205563 | F186: 139938 | G186: 344722 | H186: 690288 | J186: Ramo III | K186: 212571 | L186: 1318 | M186: 0 | N186: 3016039 | O186: 1586137 | P186: 1959980 | Q186: 6563474
A187: - Unit classiche(a) | B187: 24134 | C187: 65 | D187: 0 | E187: 165514 | F187: 89845 | G187: 344722 | H187: 600146 | J187: =+A187 -> - Unit classiche(a) | K187: 197296 | L187: 1204 | M187: 0 | N187: 2803840 | O187: 1159516 | P187: 1958919 | Q187: 5923479
A188: - Unit protette(b) | B188: 590 | C188: 0 | D188: 0 | E188: 182 | F188: 0 | G188: 0 | H188: 182 | J188: =+A188 -> - Unit protette(b) | K188: 3823 | L188: 0 | M188: 0 | N188: 597 | O188: 0 | P188: 0 | Q188: 597
A189: - Unit garantite(c) | B189: 1647 | C189: 0 | D189: 0 | E189: 39867 | F189: 50093 | G189: 0 | H189: 89960 | J189: =+A189 -> - Unit garantite(c) | K189: 11308 | L189: 114 | M189: 0 | N189: 211602 | O189: 426621 | P189: 0 | Q189: 638337
A190: - Index linked | B190: 0 | C190: 0 | D190: 0 | E190: 0 | F190: 0 | G190: 0 | H190: 0 | J190: =+A190 -> - Index linked | K190: 144 | L190: 0 | M190: 0 | N190: 0 | O190: 0 | P190: 1061 | Q190: 1061
A191: Ramo IV | B191: 0 | C191: 0 | D191: 0 | E191: 0 | F191: 0 | G191: 0 | H191: 0 | J191: Ramo IV | K191: 0 | L191: 0 | M191: 0 | N191: 0 | O191: 0 | P191: 0 | Q191: 0
A192: Ramo V | B192: 0 | C192: 0 | D192: 0 | E192: 0 | F192: 0 | G192: 0 | H192: 0 | J192: Ramo V | K192: 0 | L192: 0 | M192: 0 | N192: 0 | O192: 0 | P192: 0 | Q192: 0
A193: Ramo VI | B193: 0 | C193: 0 | D193: 0 | E193: 0 | F193: 0 | G193: 0 | H193: 0 | J193: Ramo VI | K193: 0 | L193: 0 | M193: 0 | N193: 0 | O193: 0 | P193: 0 | Q193: 0
A194: Totale | B194: 26371 | C194: 65 | D194: 0 | E194: 206512 | F194: 140887 | G194: 344722 | H194: 692186 | J194: Totale | K194: =SUM(K185:K186,K191:K193) -> 212571 | L194: 1318 | M194: 0 | N194: 3024689 | O194: 1594785 | P194: 1959980 | Q194: 6580772
A195: Forme pens. individuali | B195: 2237 | C195: 0 | D195: 0 | E195: 40049 | F195: 50093 | G195: 0 | H195: 90142 | J195: Forme pens. individuali | K195: =+IF(ISERROR(B195+K173),0,B195+K173) -> 13218 | L195: 0 | M195: 0 | N195: 212199 | O195: 426621 | P195: 0 | Q195: 638820
A196: Forme di puro rischio | B196: 0 | C196: 0 | D196: 0 | E196: 949 | F196: 949 | G196: 0 | H196: 1898 | J196: Forme di puro rischio | K196: 0 | L196: 0 | M196: 0 | N196: 8343 | O196: 8341 | P196: 0 | Q196: 16684
A197: Altre forme | B197: 24134 | C197: 65 | D197: 0 | E197: 165514 | F197: 89845 | G197: 344722 | H197: 600146 | J197: Altre forme | K197: 199353 | L197: 1318 | M197: 0 | N197: 2804147 | O197: 1159823 | P197: 1959980 | Q197: 5925268
A198: Totale | B198: 26371 | C198: 65 | D198: 0 | E198: 206512 | F198: 140887 | G198: 344722 | H198: 692186 | J198: Totale | K198: =SUM(K195:K197) -> 212571 | L198: 1318 | M198: 0 | N198: 3024689 | O198: 1594785 | P198: 1959980 | Q198: 6580772
A200: (*) Le polizze che prevedono una rateazione del premio periodico devono essere indicate secondo l'intero importo di tariffa su base annua, comprensivo di eventuali sovrappremi e garanzie accessorie.
A201: (**) Sono da intendersi tutte le nuove polizze di Ramo III che prevedono una garanzia finanziaria di rendimento ovvero una garanzia del capitale investito in capo alla compagnia di assicurazioni. | E201: 0.298347554
A203: Ottobre | J203: =+A203 -> Ottobre
L205: Premi imponibili annualizzati(*)
B206: Numero polizze/Adesioni | C206: Agenti | D206: Agenzie in Economia | E206: Sportelli bancari e postali | F206: Promotori finanziari | G206: Altre forme (inclusi Broker) | H206: Totale | K206: Numero polizze/Adesioni | L206: Agenti | M206: Agenzie in Economia | N206: Sportelli bancari e postali | O206: Promotori finanziari | P206: Altre forme (inclusi Broker) | Q206: Totale
A207: Ramo I | B207: 0 | C207: 0 | D207: 0 | E207: 484 | F207: 484 | G207: 0 | H207: 968 | J207: Ramo I | K207: =+IF(ISERROR(B207+K185),0,B207+K185) -> 0 | L207: 0 | M207: 0 | N207: 9134 | O207: 9132 | P207: 0 | Q207: 18266
A208: Ramo III | B208: 9306 | C208: 561 | D208: 0 | E208: 208444 | F208: 222272 | G208: 15593 | H208: 446870 | J208: Ramo III | K208: 221877 | L208: 1879 | M208: 0 | N208: 3224483 | O208: 1808409 | P208: 1975573 | Q208: 7010344
A209: - Unit classiche(a) | B209: 5923 | C209: 561 | D209: 0 | E209: 167174 | F209: 162132 | G209: 15593 | H209: 345460 | J209: =+A209 -> - Unit classiche(a) | K209: 203219 | L209: 1765 | M209: 0 | N209: 2971014 | O209: 1321648 | P209: 1974512 | Q209: 6268939
A210: - Unit protette(b) | B210: 1124 | C210: 0 | D210: 0 | E210: 263 | F210: 0 | G210: 0 | H210: 263 | J210: =+A210 -> - Unit protette(b) | K210: 4947 | L210: 0 | M210: 0 | N210: 860 | O210: 0 | P210: 0 | Q210: 860
A211: - Unit garantite(c) | B211: 2259 | C211: 0 | D211: 0 | E211: 41007 | F211: 60140 | G211: 0 | H211: 101147 | J211: =+A211 -> - Unit garantite(c) | K211: 13567 | L211: 114 | M211: 0 | N211: 252609 | O211: 486761 | P211: 0 | Q211: 739484
A212: - Index linked | B212: 0 | C212: 0 | D212: 0 | E212: 0 | F212: 0 | G212: 0 | H212: 0 | J212: =+A212 -> - Index linked | K212: 144 | L212: 0 | M212: 0 | N212: 0 | O212: 0 | P212: 1061 | Q212: 1061
A213: Ramo IV | B213: 0 | C213: 0 | D213: 0 | E213: 0 | F213: 0 | G213: 0 | H213: 0 | J213: Ramo IV | K213: 0 | L213: 0 | M213: 0 | N213: 0 | O213: 0 | P213: 0 | Q213: 0
A214: Ramo V | B214: 0 | C214: 0 | D214: 0 | E214: 0 | F214: 0 | G214: 0 | H214: 0 | J214: Ramo V | K214: 0 | L214: 0 | M214: 0 | N214: 0 | O214: 0 | P214: 0 | Q214: 0
A215: Ramo VI | B215: 0 | C215: 0 | D215: 0 | E215: 0 | F215: 0 | G215: 0 | H215: 0 | J215: Ramo VI | K215: 0 | L215: 0 | M215: 0 | N215: 0 | O215: 0 | P215: 0 | Q215: 0
A216: Totale | B216: 9306 | C216: 561 | D216: 0 | E216: 208928 | F216: 222756 | G216: 15593 | H216: 447838 | J216: Totale | K216: =SUM(K207:K208,K213:K215) -> 221877 | L216: 1879 | M216: 0 | N216: 3233617 | O216: 1817541 | P216: 1975573 | Q216: 7028610
A217: Forme pens. individuali | B217: 3383 | C217: 0 | D217: 0 | E217: 41270 | F217: 60140 | G217: 0 | H217: 101410 | J217: Forme pens. individuali | K217: =+IF(ISERROR(B217+K195),0,B217+K195) -> 16601 | L217: 0 | M217: 0 | N217: 253469 | O217: 486761 | P217: 0 | Q217: 740230
A218: Forme di puro rischio | B218: 0 | C218: 0 | D218: 0 | E218: 484 | F218: 484 | G218: 0 | H218: 968 | J218: Forme di puro rischio | K218: 0 | L218: 0 | M218: 0 | N218: 8827 | O218: 8825 | P218: 0 | Q218: 17652
A219: Altre forme | B219: 5923 | C219: 561 | D219: 0 | E219: 167174 | F219: 162132 | G219: 15593 | H219: 345460 | J219: Altre forme | K219: 205276 | L219: 1879 | M219: 0 | N219: 2971321 | O219: 1321955 | P219: 1975573 | Q219: 6270728
A220: Totale | B220: 9306 | C220: 561 | D220: 0 | E220: 208928 | F220: 222756 | G220: 15593 | H220: 447838 | J220: Totale | K220: =SUM(K217:K219) -> 221877 | L220: 1879 | M220: 0 | N220: 3233617 | O220: 1817541 | P220: 1975573 | Q220: 7028610
A222: (*) Le polizze che prevedono una rateazione del premio periodico devono essere indicate secondo l'intero importo di tariffa su base annua, comprensivo di eventuali sovrappremi e garanzie accessorie.
A223: (**) Sono da intendersi tutte le nuove polizze di Ramo III che prevedono una garanzia finanziaria di rendimento ovvero una garanzia del capitale investito in capo alla compagnia di assicurazioni.
A225: Novembre | J225: =+A225 -> Novembre
L227: Premi imponibili annualizzati(*)
B228: Numero polizze/Adesioni | C228: Agenti | D228: Agenzie in Economia | E228: Sportelli bancari e postali | F228: Promotori finanziari | G228: Altre forme (inclusi Broker) | H228: Totale | K228: Numero polizze/Adesioni | L228: Agenti | M228: Agenzie in Economia | N228: Sportelli bancari e postali | O228: Promotori finanziari | P228: Altre forme (inclusi Broker) | Q228: Totale
A229: Ramo I | B229: 0 | C229: 0 | D229: 0 | E229: 1412 | F229: 1412 | G229: 0 | H229: 2824 | J229: Ramo I | K229: =+IF(ISERROR(B229+K207),0,B229+K207) -> 0 | L229: 0 | M229: 0 | N229: 10546 | O229: 10544 | P229: 0 | Q229: 21090
A230: Ramo III | B230: 39859 | C230: 712 | D230: 0 | E230: 284955 | F230: 300936 | G230: 416716 | H230: 1003319 | J230: Ramo III | K230: 261736 | L230: 2591 | M230: 0 | N230: 3509438 | O230: 2109345 | P230: 2392289 | Q230: 8013663
... 31 more rows

Sheet tab3_2012 (hidden)
A1: Nuova produzione Vita emessa nel 2011
A2: Settore polizze "collettive"
A3: Premi del lavoro diretto - Attività svolta da imprese nazionali e da rappresentanze in Italia di imprese extra U.E. (importi in MIGLIAIA di Euro)
A4: Dato mensile: | I4: Dato cumulato da inizio anno:
A5: 1°Trim.2012 | I5: =+A5 -> 1°Trim.2012
B7: Premi imponibili annualizzati(*) | J7: Premi imponibili annualizzati(*)
B8: Agenti | C8: Agenzie in Economia | D8: Sportelli bancari e postali | E8: Promotori finanziari | F8: Altre forme (inclusi Broker) | G8: Totale | J8: Agenti | K8: Agenzie in Economia | L8: Sportelli bancari e postali | M8: Promotori finanziari | N8: Altre forme (inclusi Broker) | O8: Totale
A9: Ramo I | B9: 51392 | C9: 139808.8524 | D9: 71445.5764 | E9: 2575.772009 | F9: 62123.44826 | G9: 327345.717 | I9: =+A9 -> Ramo I | J9: =++IF(ISERROR(B9),0,B9) -> 51392 | K9: 139808.8524 | L9: 71445.5764 | M9: 2575.772009 | N9: 62123.44826 | O9: 327345.717
A10: Ramo III | B10: 8315 | C10: 1.003026483 | D10: 0 | E10: 502.5162681 | F10: 0 | G10: 8818.60884 | I10: Ramo III | J10: 8315 | K10: 1.003026483 | L10: 0 | M10: 502.5162681 | N10: 0 | O10: 8818.60884
A11: Ramo IV | B11: 23 | C11: 175.5296346 | D11: 0 | E11: 0 | F11: 113.3419926 | G11: 311.9412363 | I11: Ramo IV | J11: 23 | K11: 175.5296346 | L11: 0 | M11: 0 | N11: 113.3419926 | O11: 311.9412363
A12: Ramo V | B12: 103886 | C12: 47436.13147 | D12: 989.9871389 | E12: 5.015132416 | F12: 7223.796732 | G12: 159541.3924 | I12: Ramo V | J12: 103886 | K12: 47436.13147 | L12: 989.9871389 | M12: 5.015132416 | N12: 7223.796732 | O12: 159541.3924
A13: Ramo VI | B13: 14955 | C13: 193895.0495 | D13: 1263.813369 | E13: 186.5629259 | F13: 269.814124 | G13: 210570.3647 | I13: Ramo VI | J13: 14955 | K13: 193895.0495 | L13: 1263.813369 | M13: 186.5629259 | N13: 269.814124 | O13: 210570.3647
A14: Totale | B14: 178572 | C14: 381316.566 | D14: 73699.37691 | E14: 3269.866335 | F14: 69730.40111 | G14: 706588.0242 | I14: Totale | J14: =SUM(J9:J13) -> 178571 | K14: =SUM(K9:K10,K11:K13) -> 381316.566 | L14: =SUM(L9:L10,L11:L13) -> 73699.37691 | M14: =SUM(M9:M10,M11:M13) -> 3269.866335 | N14: =SUM(N9:N10,N11:N13) -> 69730.40111 | O14: =SUM(O9:O10,O11:O13) -> 706588.0242
A15: Forme di puro rischio | B15: 8741 | C15: 14665.25021 | D15: 71018.28712 | E15: 221.6688528 | F15: 11816.655 | G15: 106463.237 | I15: Forme di puro rischio | J15: =++IF(ISERROR(B15),0,B15) -> 8741 | K15: 14665.25021 | L15: 71018.28712 | M15: 221.6688528 | N15: 11816.655 | O15: 106463.237
A16: Altre forme | B16: 169830 | C16: 366651.3158 | D16: 2681.08979 | E16: 3048.197482 | F16: 57913.74611 | G16: 600124.7873 | I16: Altre forme | J16: 169830 | K16: 366651.3158 | L16: 2681.08979 | M16: 3048.197482 | N16: 57913.74611 | O16: 600124.7873
A17: Totale | B17: 178572 | C17: 381316.566 | D17: 73699.37691 | E17: 3269.866335 | F17: 69730.40111 | G17: 706588.0242 | I17: Totale | J17: =SUM(J15:J16) -> 178571 | K17: 381316.566 | L17: 73699.37691 | M17: 3269.866335 | N17: 69730.40111 | O17: 706588.0242
A19: (*) Le polizze che prevedono una rateazione del premio periodico devono essere indicate secondo l'intero importo di tariffa su base annua, comprensivo di eventuali sovrappremi e garanzie accessorie.
A22: 2°Trim.2012 | I22: =+A22 -> 2°Trim.2012
J24: Premi imponibili annualizzati(*)
B25: Agenti | C25: Agenzie in Economia | D25: Sportelli bancari e postali | E25: Promotori finanziari | F25: Altre forme (inclusi Broker) | G25: Totale | J25: Agenti | K25: Agenzie in Economia | L25: Sportelli bancari e postali | M25: Promotori finanziari | N25: Altre forme (inclusi Broker) | O25: Totale
A26: Ramo I | B26: 28192 | C26: 142259.2461 | D26: 69001.20086 | E26: 1702.135942 | F26: 80803.81349 | G26: 321958.4618 | I26: Ramo I | J26: =+IF(ISERROR(B26+J9),0,B26+J9) -> 79584 | K26: 282068.0985 | L26: 140446.7773 | M26: 4277.907951 | N26: 142927.2617 | O26: 649304.1788
A27: Ramo III | B27: 74 | C27: 1.003026483 | D27: 0 | E27: 4176.602276 | F27: 0 | G27: 4251.829262 | I27: Ramo III | J27: 8389 | K27: 2.006052966 | L27: 0 | M27: 4679.118544 | N27: 0 | O27: 13070.4381
A28: Ramo IV | B28: 10 | C28: 93.28146294 | D28: 62.18764196 | E28: 0 | F28: 40.12105933 | G28: 205.6204291 | I28: Ramo IV | J28: 33 | K28: 268.8110975 | L28: 62.18764196 | M28: 0 | N28: 153.4630519 | O28: 517.5616653
A29: Ramo V | B29: 61602 | C29: 106721.0148 | D29: 516.5586388 | E29: 15.04539725 | F29: 19561.02248 | G29: 188415.5158 | I29: Ramo V | J29: 165488 | K29: 154157.1463 | L29: 1506.545778 | M29: 20.06052966 | N29: 26784.81921 | O29: 347956.9082
A30: Ramo VI | B30: 10983 | C30: 121053.2602 | D30: 747.25473 | E30: 66.19974789 | F30: 327.98966 | G30: 133177.8443 | I30: Ramo VI | J30: 25938 | K30: 314948.3097 | L30: 2011.068099 | M30: 252.7626738 | N30: 597.803784 | O30: 343748.2091
A31: Totale | B31: 100861 | C31: 370127.8056 | D31: 70327.20187 | E31: 5959.983363 | F31: 100732.9467 | G31: 648009.2716 | I31: Totale | J31: =SUM(J26:J27,J28:J30) -> 279432 | K31: 751444.3716 | L31: 144026.5788 | M31: 9229.849698 | N31: 170463.3478 | O31: 1354597.296
A32: Forme di puro rischio | B32: 5268 | C32: 7895.824476 | D32: 67610.00313 | E32: 1.003026483 | F32: 18685.38036 | G32: 99460.10607 | I32: Forme di puro rischio | J32: =+IF(ISERROR(B32+J15),0,B32+J15) -> 14009 | K32: 22561.07469 | L32: 138628.2902 | M32: 222.6718793 | N32: 30502.03535 | O32: 205923.3431
A33: Altre forme | B33: 95593 | C33: 362231.9811 | D33: 2717.198743 | E33: 5958.980337 | F33: 82047.56632 | G33: 548549.1655 | I33: Altre forme | J33: 265423 | K33: 728883.2969 | L33: 5398.288533 | M33: 9007.177819 | N33: 139961.3124 | O33: 1148673.953
A34: Totale | B34: 100861 | C34: 370127.8056 | D34: 70327.20187 | E34: 5959.983363 | F34: 100732.9467 | G34: 648009.2716 | I34: Totale | J34: =SUM(J32:J33) -> 279432 | K34: 751444.3716 | L34: 144026.5788 | M34: 9229.849698 | N34: 170463.3478 | O34: 1354597.296
A36: (*) Le polizze che prevedono una rateazione del premio periodico devono essere indicate secondo l'intero importo di tariffa su base annua, comprensivo di eventuali sovrappremi e garanzie accessorie.
A39: 3°Trim.2012 | I39: =+A39 -> 3°Trim.2012
J41: Premi imponibili annualizzati(*)
B42: Agenti | C42: Agenzie in Economia | D42: Sportelli bancari e postali | E42: Promotori finanziari | F42: Altre forme (inclusi Broker) | G42: Totale | J42: Agenti | K42: Agenzie in Economia | L42: Sportelli bancari e postali | M42: Promotori finanziari | N42: Altre forme (inclusi Broker) | O42: Totale
A43: Ramo I | B43: 31995 | C43: 122063.3079 | D43: 79065.56859 | E43: 81162.89697 | F43: 93896.31817 | G43: 408182.6304 | I43: Ramo I | J43: =+IF(ISERROR(B43+J26),0,B43+J26) -> 111579 | K43: 404131.4064 | L43: 219512.3458 | M43: 85440.80492 | N43: 236823.5799 | O43: 1057486.809
A44: Ramo III | B44: 84 | C44: 44.13316526 | D44: 0 | E44: 756.2819683 | F44: 0 | G44: 884.6693582 | I44: Ramo III | J44: 8473 | K44: 46.13921823 | L44: 0 | M44: 5435.400512 | N44: 0 | O44: 13955.10746
A45: Ramo IV | B45: 1 | C45: 1.003026483 | D45: 127.3843634 | E45: 0 | F45: 1871.647418 | G45: 2001.037834 | I45: Ramo IV | J45: 34 | K45: 269.814124 | L45: 189.5720053 | M45: 0 | N45: 2025.11047 | O45: 2518.599499
A46: Ramo V | B46: 17389 | C46: 67304.08005 | D46: 319.9654481 | E46: 59.17856251 | F46: 10112.513 | G46: 95185.2072 | I46: Ramo V | J46: 182877 | K46: 221461.2263 | L46: 1826.511226 | M46: 79.23909217 | N46: 36897.33221 | O46: 443142.1154
A47: Ramo VI | B47: 14258 | C47: 560319.6813 | D47: 979.9568741 | E47: 140.4237076 | F47: 1896.72308 | G47: 577594.8064 | I47: Ramo VI | J47: 40196 | K47: 875267.9909 | L47: 2991.024973 | M47: 393.1863814 | N47: 2494.526864 | O47: 921343.0155
A48: Totale | B48: 63727 | C48: 749732.2054 | D48: 80492.87528 | E48: 82118.78121 | F48: 107777.2017 | G48: 1083848.351 | I48: Totale | J48: =SUM(J43:J44,J45:J47) -> 343159 | K48: 1501176.577 | L48: 224519.454 | M48: 91348.6309 | N48: 278240.5495 | O48: 2438445.647
A49: Forme di puro rischio | B49: 7179 | C49: 11100.49409 | D49: 78172.87502 | E49: 129.3904163 | F49: 16736.4999 | G49: 113317.92 | I49: Forme di puro rischio | J49: =+IF(ISERROR(B49+J32),0,B49+J32) -> 21188 | K49: 33661.56878 | L49: 216801.1653 | M49: 352.0622956 | N49: 47238.53525 | O49: 319241.263
A50: Altre forme | B50: 56549 | C50: 738631.7113 | D50: 2320.000256 | E50: 81989.39079 | F50: 91040.70177 | G50: 970530.4312 | I50: Altre forme | J50: 321972 | K50: 1467515.008 | L50: 7718.288788 | M50: 90996.56861 | N50: 231002.0142 | O50: 2119204.384
A51: Totale | B51: 63727 | C51: 749732.2054 | D51: 80492.87528 | E51: 82118.78121 | F51: 107777.2017 | G51: 1083848.351 | I51: Totale | J51: =SUM(J49:J50) -> 343160 | K51: 1501176.577 | L51: 224519.454 | M51: 91348.6309 | N51: 278240.5495 | O51: 2438445.647
A53: (*) Le polizze che prevedono una rateazione del premio periodico devono essere indicate secondo l'intero importo di tariffa su base annua, comprensivo di eventuali sovrappremi e garanzie accessorie.
A56: 4°Trim.2012 | I56: =+A56 -> 4°Trim.2012
J58: Premi imponibili annualizzati(*)
B59: Agenti | C59: Agenzie in Economia | D59: Sportelli bancari e postali | E59: Promotori finanziari | F59: Altre forme (inclusi Broker) | G59: Totale | J59: Agenti | K59: Agenzie in Economia | L59: Sportelli bancari e postali | M59: Promotori finanziari | N59: Altre forme (inclusi Broker) | O59: Totale
A60: Ramo I | B60: 49696 | C60: 195124.7599 | D60: 72795.65004 | E60: 2388.206056 | F60: 66650.10678 | G60: 386654.673 | I60: Ramo I | J60: =+IF(ISERROR(B60+J43),0,B60+J43) -> 161275 | K60: 599256.1663 | L60: 292307.9959 | M60: 87829.01097 | N60: 303473.6867 | O60: 1444141.482
A61: Ramo III | B61: 16 | C61: 1.003026483 | D61: 0 | E61: 439.3255996 | F61: 0 | G61: 456.3770499 | I61: Ramo III | J61: 8489 | K61: 47.14224471 | L61: 0 | M61: 5874.726112 | N61: 0 | O61: 14411.48451
A62: Ramo IV | B62: 11 | C62: 63.19066844 | D62: 207.626482 | E62: 0 | F62: 79.23909217 | G62: 361.0895339 | I62: Ramo IV | J62: 45 | K62: 333.0047924 | L62: 397.1984873 | M62: 0 | N62: 2104.349562 | O62: 2879.689033
A63: Ramo V | B63: 33486 | C63: 98487.17038 | D63: 351.0592691 | E63: 93.28146294 | F63: 2452.399751 | G63: 134869.95 | I63: Ramo V | J63: 216363 | K63: 319948.3967 | L63: 2177.570495 | M63: 172.5205551 | N63: 39349.73196 | O63: 578012.0654
A64: Ramo VI | B64: 17233 | C64: 116806.4461 | D64: 807.436319 | E64: 301.9109714 | F64: 710.1427501 | G64: 135858.9341 | I64: Ramo VI | J64: 57429 | K64: 992074.437 | L64: 3798.461292 | M64: 695.0973528 | N64: 3204.669614 | O64: 1057201.95
A65: Totale | B65: 100442 | C65: 410482.5701 | D65: 74161.77211 | E65: 3222.72409 | F65: 69891.88837 | G65: 658201.0237 | I65: Totale | J65: =SUM(J60:J61,J62:J64) -> 443601 | K65: 1911659.147 | L65: 298681.2262 | M65: 94571.35499 | N65: 348132.4378 | O65: 3096646.671
A66: Forme di puro rischio | B66: 6309 | C66: 3423.329387 | D66: 69264.99682 | E66: 2.006052966 | F66: 13043.35639 | G66: 92042.72523 | I66: Forme di puro rischio | J66: =+IF(ISERROR(B66+J49),0,B66+J49) -> 27497 | K66: 37084.89816 | L66: 286066.1621 | M66: 354.0683486 | N66: 60281.89164 | O66: 411283.9882
A67: Altre forme | B67: 94133 | C67: 407059.2407 | D67: 4896.775291 | E67: 3220.718038 | F67: 56848.53199 | G67: 566158.2984 | I67: Altre forme | J67: 416105 | K67: 1874574.249 | L67: 12615.06408 | M67: 94217.28665 | N67: 287850.5462 | O67: 2685362.682
A68: Totale | B68: 100442 | C68: 410482.5701 | D68: 74161.77211 | E68: 3222.72409 | F68: 69891.88837 | G68: 658201.0237 | I68: Totale | J68: =SUM(J66:J67) -> 443602 | K68: 1911659.147 | L68: 298681.2262 | M68: 94571.35499 | N68: 348132.4378 | O68: 3096646.671
A70: (*) Le polizze che prevedono una rateazione del premio periodico devono essere indicate secondo l'intero importo di tariffa su base annua, comprensivo di eventuali sovrappremi e garanzie accessorie.

Sheet tab3_2012_TOT (hidden)
A1: Nuova produzione Vita emessa nel 2011
A2: Settore polizze "individuali e collettive"
A3: Premi del lavoro diretto - Attività svolta da imprese nazionali e da rappresentanze in Italia di imprese extra U.E. (importi in MIGLIAIA di Euro)
A4: Dato mensile: | I4: Dato cumulato da inizio anno:
A5: 1°Trim.2012 | I5: =+A5 -> 1°Trim.2012
B7: Premi imponibili annualizzati(*) | J7: Premi imponibili annualizzati(*)
B8: Agenti | C8: Agenzie in Economia | D8: Sportelli bancari e postali | E8: Promotori finanziari | F8: Altre forme (inclusi Broker) | G8: Totale | J8: Agenti | K8: Agenzie in Economia | L8: Sportelli bancari e postali | M8: Promotori finanziari | N8: Altre forme (inclusi Broker) | O8: Totale
A9: Ramo I | B9: =+tab3_2012!B9+TAB2_2012!C9+TAB2_2012!C31+TAB2_2012!C53 -> 1284768.417 | C9: =+tab3_2012!C9+TAB2_2012!D9+TAB2_2012!D31+TAB2_2012!D53 -> 396540.7868 | D9: =+tab3_2012!D9+TAB2_2012!E9+TAB2_2012!E31+TAB2_2012!E53 -> 6653414.032 | E9: =+tab3_2012!E9+TAB2_2012!F9+TAB2_2012!F31+TAB2_2012!F53 -> 1312353.948 | F9: =+tab3_2012!F9+TAB2_2012!G9+TAB2_2012!G31+TAB2_2012!G53 -> 106322.4123 | G9: =+tab3_2012!G9+TAB2_2012!H9+TAB2_2012!H31+TAB2_2012!H53 -> 9753399.664 | I9: =+A9 -> Ramo I | J9: =++IF(ISERROR(B9),0,B9) -> 1284768.417 | K9: =++IF(ISERROR(C9),0,C9) -> 396540.7868 | L9: 6653414.032 | M9: 1312353.948 | N9: 106322.4123 | O9: 9753399.664
A10: Ramo III | B10: =+tab3_2012!B10+TAB2_2012!C10+TAB2_2012!C32+TAB2_2012!C54 -> 80676.10799 | C10: =+tab3_2012!C10+TAB2_2012!D10+TAB2_2012!D32+TAB2_2012!D54 -> 2752.611292 | D10: =+tab3_2012!D10+TAB2_2012!E10+TAB2_2012!E32+TAB2_2012!E54 -> 1486474.964 | E10: =+tab3_2012!E10+TAB2_2012!F10+TAB2_2012!F32+TAB2_2012!F54 -> 1229158.413 | F10: =+tab3_2012!F10+TAB2_2012!G10+TAB2_2012!G32+TAB2_2012!G54 -> 2624.565746 | G10: =+tab3_2012!G10+TAB2_2012!H10+TAB2_2012!H32+TAB2_2012!H54 -> 2801686.752 | I10: Ramo III | J10: =++IF(ISERROR(B10),0,B10) -> 80676.10799 | K10: 2752.611292 | L10: 1486474.964 | M10: 1229158.413 | N10: 2624.565746 | O10: 2801686.752
A11: Ramo IV | B11: =+tab3_2012!B11+TAB2_2012!C15+TAB2_2012!C37+TAB2_2012!C59 -> 146.1179263 | C11: =+tab3_2012!C11+TAB2_2012!D15+TAB2_2012!D37+TAB2_2012!D59 -> 181.5351937 | D11: =+tab3_2012!D11+TAB2_2012!E15+TAB2_2012!E37+TAB2_2012!E59 -> 813.7872113 | E11: =+tab3_2012!E11+TAB2_2012!F15+TAB2_2012!F37+TAB2_2012!F59 -> 0 | F11: =+tab3_2012!F11+TAB2_2012!G15+TAB2_2012!G37+TAB2_2012!G59 -> 117.3459697 | G11: =+tab3_2012!G11+TAB2_2012!H15+TAB2_2012!H37+TAB2_2012!H59 -> 1258.85591 | I11: Ramo IV | J11: =++IF(ISERROR(B11),0,B11) -> 146.1179263 | K11: 181.5351937 | L11: 813.7872113 | M11: 0 | N11: 117.3459697 | O11: 1258.85591
A12: Ramo V | B12: =+tab3_2012!B12+TAB2_2012!C16+TAB2_2012!C38+TAB2_2012!C60 -> 169793.272 | C12: =+tab3_2012!C12+TAB2_2012!D16+TAB2_2012!D38+TAB2_2012!D60 -> 134205.6291 | D12: =+tab3_2012!D12+TAB2_2012!E16+TAB2_2012!E38+TAB2_2012!E60 -> 107941.6764 | E12: =+tab3_2012!E12+TAB2_2012!F16+TAB2_2012!F38+TAB2_2012!F60 -> 6521.182991 | F12: =+tab3_2012!F12+TAB2_2012!G16+TAB2_2012!G38+TAB2_2012!G60 -> 9270.720776 | G12: =+tab3_2012!G12+TAB2_2012!H16+TAB2_2012!H38+TAB2_2012!H60 -> 427732.9433 | I12: Ramo V | J12: =++IF(ISERROR(B12),0,B12) -> 169793.272 | K12: 134205.6291 | L12: 107941.6764 | M12: 6521.182991 | N12: 9270.720776 | O12: 427732.9433
A13: Ramo VI | B13: =+tab3_2012!B13+TAB2_2012!C17+TAB2_2012!C39+TAB2_2012!C61 -> 23793.61497 | C13: =+tab3_2012!C13+TAB2_2012!D17+TAB2_2012!D39+TAB2_2012!D61 -> 195679.7695 | D13: =+tab3_2012!D13+TAB2_2012!E17+TAB2_2012!E39+TAB2_2012!E61 -> 7755.020305 | E13: =+tab3_2012!E13+TAB2_2012!F17+TAB2_2012!F39+TAB2_2012!F61 -> 1848.139238 | F13: =+tab3_2012!F13+TAB2_2012!G17+TAB2_2012!G39+TAB2_2012!G61 -> 284.828835 | G13: =+tab3_2012!G13+TAB2_2012!H17+TAB2_2012!H39+TAB2_2012!H61 -> 229361.4977 | I13: Ramo VI | J13: =++IF(ISERROR(B13),0,B13) -> 23793.61497 | K13: 195679.7695 | L13: 7755.020305 | M13: 1848.139238 | N13: 284.828835 | O13: 229361.4977
A14: Totale | B14: =+SUM(B9:B13) -> 1559177.53 | C14: 729360.3319 | D14: 8256399.48 | E14: 2549881.683 | F14: 118619.8736 | G14: 13213439.71 | I14: Totale | J14: =SUM(J9:J13) -> 1559177.53 | K14: =SUM(K9:K10,K11:K13) -> 729360.3319 | L14: =SUM(L9:L10,L11:L13) -> 8256399.48 | M14: =SUM(M9:M10,M11:M13) -> 2549881.683 | N14: =SUM(N9:N10,N11:N13) -> 118619.8736 | O14: =SUM(O9:O10,O11:O13) -> 13213439.71
A15: Forme di puro rischio | B15: =+tab3_2012!B15+TAB2_2012!C20+TAB2_2012!C42+TAB2_2012!C64 -> 27344.84592 | C15: =+tab3_2012!C15+TAB2_2012!D20+TAB2_2012!D42+TAB2_2012!D64 -> 15145.71222 | D15: =+tab3_2012!D15+TAB2_2012!E20+TAB2_2012!E42+TAB2_2012!E64 -> 119721.928 | E15: =+tab3_2012!E15+TAB2_2012!F20+TAB2_2012!F42+TAB2_2012!F64 -> 1013.420061 | F15: =+tab3_2012!F15+TAB2_2012!G20+TAB2_2012!G42+TAB2_2012!G64 -> 12496.30186 | G15: =+tab3_2012!G15+TAB2_2012!H20+TAB2_2012!H42+TAB2_2012!H64 -> 175722.5839 | I15: Forme di puro rischio | J15: =++IF(ISERROR(B15),0,B15) -> 27344.84592 | K15: 15145.71222 | L15: 119721.928 | M15: 1013.420061 | N15: 12496.30186 | O15: 175722.5839
A16: Altre forme | B16: =+tab3_2012!B16+TAB2_2012!C21+TAB2_2012!C43+TAB2_2012!C65+TAB2_2012!C19+TAB2_2012!C41+TAB2_2012!C63 -> 1531832.684 | C16: =+tab3_2012!C16+TAB2_2012!D21+TAB2_2012!D43+TAB2_2012!D65+TAB2_2012!D19+TAB2_2012!D41+TAB2_2012!D63 -> 714214.6197 | D16: =+tab3_2012!D16+TAB2_2012!E21+TAB2_2012!E43+TAB2_2012!E65+TAB2_2012!E19+TAB2_2012!E41+TAB2_2012!E63 -> 8136677.552 | E16: =+tab3_2012!E16+TAB2_2012!F21+TAB2_2012!F43+TAB2_2012!F65+TAB2_2012!F19+TAB2_2012!F41+TAB2_2012!F63 -> 2548868.263 | F16: =+tab3_2012!F16+TAB2_2012!G21+TAB2_2012!G43+TAB2_2012!G65+TAB2_2012!G19+TAB2_2012!G41+TAB2_2012!G63 -> 106123.5718 | G16: =+tab3_2012!G16+TAB2_2012!H21+TAB2_2012!H43+TAB2_2012!H65+TAB2_2012!H19+TAB2_2012!H41+TAB2_2012!H63 -> 13037717.13 | I16: Altre forme | J16: 1531832.684 | K16: 714214.6197 | L16: 8136677.552 | M16: 2548868.263 | N16: 106123.5718 | O16: 13037717.13
A17: Totale | B17: =+SUM(B15:B16) -> 1559177.53 | C17: 729360.3319 | D17: 8256399.48 | E17: 2549881.683 | F17: 118619.8736 | G17: 13213439.71 | I17: Totale | J17: =SUM(J15:J16) -> 1559177.53 | K17: 729360.3319 | L17: 8256399.48 | M17: 2549881.683 | N17: 118619.8736 | O17: 13213439.71
A19: (*) Le polizze che prevedono una rateazione del premio periodico devono essere indicate secondo l'intero importo di tariffa su base annua, comprensivo di eventuali sovrappremi e garanzie accessorie.
A22: 2°Trim.2012 | I22: =+A22 -> 2°Trim.2012
B24: Premi imponibili annualizzati(*) | J24: Premi imponibili annualizzati(*)
B25: Agenti | C25: Agenzie in Economia | D25: Sportelli bancari e postali | E25: Promotori finanziari | F25: Altre forme (inclusi Broker) | G25: Totale | J25: Agenti | K25: Agenzie in Economia | L25: Sportelli bancari e postali | M25: Promotori finanziari | N25: Altre forme (inclusi Broker) | O25: Totale
A26: Ramo I | B26: =+tab3_2012!B26+TAB2_2012!C75+TAB2_2012!C97+TAB2_2012!C119 -> 1375020.161 | C26: =+tab3_2012!C26+TAB2_2012!D75+TAB2_2012!D97+TAB2_2012!D119 -> 379349.6938 | D26: =+tab3_2012!D26+TAB2_2012!E75+TAB2_2012!E97+TAB2_2012!E119 -> 7107610.542 | E26: =+tab3_2012!E26+TAB2_2012!F75+TAB2_2012!F97+TAB2_2012!F119 -> 843687.0551 | F26: =+tab3_2012!F26+TAB2_2012!G75+TAB2_2012!G97+TAB2_2012!G119 -> 121195.8369 | G26: =+tab3_2012!G26+TAB2_2012!H75+TAB2_2012!H97+TAB2_2012!H119 -> 9826863.354 | I26: Ramo I | J26: =+IF(ISERROR(B26+J9),0,B26+J9) -> 2659788.577 | K26: 775890.4806 | L26: 13761024.57 | M26: 2156041.003 | N26: 227518.2492 | O26: 19580263.02
A27: Ramo III | B27: =+tab3_2012!B27+TAB2_2012!C76+TAB2_2012!C98+TAB2_2012!C120 -> 109449.5459 | C27: =+tab3_2012!C27+TAB2_2012!D76+TAB2_2012!D98+TAB2_2012!D120 -> 8328.429792 | D27: =+tab3_2012!D27+TAB2_2012!E76+TAB2_2012!E98+TAB2_2012!E120 -> 1617394.463 | E27: =+tab3_2012!E27+TAB2_2012!F76+TAB2_2012!F98+TAB2_2012!F120 -> 1549532.819 | F27: =+tab3_2012!F27+TAB2_2012!G76+TAB2_2012!G98+TAB2_2012!G120 -> 360.3213504 | G27: =+tab3_2012!G27+TAB2_2012!H76+TAB2_2012!H98+TAB2_2012!H120 -> 3285065.803 | I27: Ramo III | J27: 190125.6539 | K27: 11081.04108 | L27: 3103869.427 | M27: 2778691.232 | N27: 2984.887097 | O27: 6086752.555
A28: Ramo IV | B28: =+tab3_2012!B28+TAB2_2012!C81+TAB2_2012!C103+TAB2_2012!C125 -> 313.2704699 | C28: =+tab3_2012!C28+TAB2_2012!D81+TAB2_2012!D103+TAB2_2012!D125 -> 110.2966378 | D28: =+tab3_2012!D28+TAB2_2012!E81+TAB2_2012!E103+TAB2_2012!E125 -> 895.9312111 | E28: =+tab3_2012!E28+TAB2_2012!F81+TAB2_2012!F103+TAB2_2012!F125 -> 0 | F28: =+tab3_2012!F28+TAB2_2012!G81+TAB2_2012!G103+TAB2_2012!G125 -> 40.12105933 | G28: =+tab3_2012!G28+TAB2_2012!H81+TAB2_2012!H103+TAB2_2012!H125 -> 1359.649643 | I28: Ramo IV | J28: 459.3883962 | K28: 291.8318315 | L28: 1709.718422 | M28: 0 | N28: 157.4670291 | O28: 2618.505553
A29: Ramo V | B29: =+tab3_2012!B29+TAB2_2012!C82+TAB2_2012!C104+TAB2_2012!C126 -> 213889.817 | C29: =+tab3_2012!C29+TAB2_2012!D82+TAB2_2012!D104+TAB2_2012!D126 -> 190804.0037 | D29: =+tab3_2012!D29+TAB2_2012!E82+TAB2_2012!E104+TAB2_2012!E126 -> 111838.8407 | E29: =+tab3_2012!E29+TAB2_2012!F82+TAB2_2012!F104+TAB2_2012!F126 -> 583.5524168 | F29: =+tab3_2012!F29+TAB2_2012!G82+TAB2_2012!G104+TAB2_2012!G126 -> 36801.3982 | G29: =+tab3_2012!G29+TAB2_2012!H82+TAB2_2012!H104+TAB2_2012!H126 -> 553917.4865 | I29: Ramo V | J29: 383683.089 | K29: 325009.6328 | L29: 219780.5172 | M29: 7104.735408 | N29: 46072.11898 | O29: 981650.4298
A30: Ramo VI | B30: =+tab3_2012!B30+TAB2_2012!C83+TAB2_2012!C105+TAB2_2012!C127 -> 25127.61479 | C30: =+tab3_2012!C30+TAB2_2012!D83+TAB2_2012!D105+TAB2_2012!D127 -> 122527.5751 | D30: =+tab3_2012!D30+TAB2_2012!E83+TAB2_2012!E105+TAB2_2012!E127 -> 6904.746252 | E30: =+tab3_2012!E30+TAB2_2012!F83+TAB2_2012!F105+TAB2_2012!F127 -> 935.9754521 | F30: =+tab3_2012!F30+TAB2_2012!G83+TAB2_2012!G105+TAB2_2012!G127 -> 336.9976938 | G30: =+tab3_2012!G30+TAB2_2012!H83+TAB2_2012!H105+TAB2_2012!H127 -> 155833.0492 | I30: Ramo VI | J30: 48921.22976 | K30: 318207.3446 | L30: 14659.76656 | M30: 2784.11469 | N30: 621.8265287 | O30: 385194.547
A31: Totale | B31: =+SUM(B26:B30) -> 1723800.409 | C31: 701119.999 | D31: 8844644.524 | E31: 2394739.402 | F31: 158734.6752 | G31: 13823039.34 | I31: Totale | J31: =SUM(J26:J27,J28:J30) -> 3282977.938 | K31: 1430480.331 | L31: 17101044 | M31: 4944621.085 | N31: 277354.5488 | O31: 27036479.05
A32: Forme di puro rischio | B32: =+tab3_2012!B32+TAB2_2012!C86+TAB2_2012!C108+TAB2_2012!C130 -> 21500.47684 | C32: =+tab3_2012!C32+TAB2_2012!D86+TAB2_2012!D108+TAB2_2012!D130 -> 8441.310964 | D32: =+tab3_2012!D32+TAB2_2012!E86+TAB2_2012!E108+TAB2_2012!E130 -> 116207.3444 | E32: =+tab3_2012!E32+TAB2_2012!F86+TAB2_2012!F108+TAB2_2012!F130 -> 1235.103652 | F32: =+tab3_2012!F32+TAB2_2012!G86+TAB2_2012!G108+TAB2_2012!G130 -> 19266.89898 | G32: =+tab3_2012!G32+TAB2_2012!H86+TAB2_2012!H108+TAB2_2012!H130 -> 166651.0299 | I32: Forme di puro rischio | J32: =+IF(ISERROR(B32+J15),0,B32+J15) -> 48845.32275 | K32: 23587.02319 | L32: 235929.2724 | M32: 2248.523713 | N32: 31763.20084 | O32: 342373.6138
A33: Altre forme | B33: =+tab3_2012!B33+TAB2_2012!C87+TAB2_2012!C85+TAB2_2012!C109+TAB2_2012!C107+TAB2_2012!C131+TAB2_2012!C129 -> 1702299.932 | C33: =+tab3_2012!C33+TAB2_2012!D87+TAB2_2012!D85+TAB2_2012!D109+TAB2_2012!D107+TAB2_2012!D131+TAB2_2012!D129 -> 692678.688 | D33: =+tab3_2012!D33+TAB2_2012!E87+TAB2_2012!E85+TAB2_2012!E109+TAB2_2012!E107+TAB2_2012!E131+TAB2_2012!E129 -> 8728437.179 | E33: =+tab3_2012!E33+TAB2_2012!F87+TAB2_2012!F85+TAB2_2012!F109+TAB2_2012!F107+TAB2_2012!F131+TAB2_2012!F129 -> 2393504.298 | F33: =+tab3_2012!F33+TAB2_2012!G87+TAB2_2012!G85+TAB2_2012!G109+TAB2_2012!G107+TAB2_2012!G131+TAB2_2012!G129 -> 139467.7762 | G33: =+tab3_2012!G33+TAB2_2012!H87+TAB2_2012!H85+TAB2_2012!H109+TAB2_2012!H107+TAB2_2012!H131+TAB2_2012!H129 -> 13656388.31 | I33: Altre forme | J33: 3234132.616 | K33: 1406893.308 | L33: 16865114.73 | M33: 4942372.561 | N33: 245591.3479 | O33: 26694105.44
A34: Totale | B34: =+SUM(B32:B33) -> 1723800.409 | C34: 701119.999 | D34: 8844644.524 | E34: 2394739.402 | F34: 158734.6752 | G34: 13823039.34 | I34: Totale | J34: =SUM(J32:J33) -> 3282977.938 | K34: 1430480.331 | L34: 17101044 | M34: 4944621.085 | N34: 277354.5488 | O34: 27036479.05
A36: (*) Le polizze che prevedono una rateazione del premio periodico devono essere indicate secondo l'intero importo di tariffa su base annua, comprensivo di eventuali sovrappremi e garanzie accessorie. | O36: =+O31/[2]tab3_2011_TOT!$O$31-1 -> -0.1543100642
A39: 3°Trim.2012 | I39: =+A39 -> 3°Trim.2012
B41: Premi imponibili annualizzati(*) | J41: Premi imponibili annualizzati(*)
B42: Agenti | C42: Agenzie in Economia | D42: Sportelli bancari e postali | E42: Promotori finanziari | F42: Altre forme (inclusi Broker) | G42: Totale | J42: Agenti | K42: Agenzie in Economia | L42: Sportelli bancari e postali | M42: Promotori finanziari | N42: Altre forme (inclusi Broker) | O42: Totale
A43: Ramo I | B43: =+tab3_2012!B43+TAB2_2012!C141+TAB2_2012!C163+TAB2_2012!C185 -> 1016868.353 | C43: =+tab3_2012!C43+TAB2_2012!D141+TAB2_2012!D163+TAB2_2012!D185 -> 337470.4174 | D43: =+tab3_2012!D43+TAB2_2012!E141+TAB2_2012!E163+TAB2_2012!E185 -> 5613795.684 | E43: =+tab3_2012!E43+TAB2_2012!F141+TAB2_2012!F163+TAB2_2012!F185 -> 650211.3994 | F43: =+tab3_2012!F43+TAB2_2012!G141+TAB2_2012!G163+TAB2_2012!G185 -> 115970.0045 | G43: =+tab3_2012!G43+TAB2_2012!H141+TAB2_2012!H163+TAB2_2012!H185 -> 7734315.398 | I43: Ramo I | J43: =+IF(ISERROR(B43+J26),0,B43+J26) -> 3676656.931 | K43: 1113360.898 | L43: 19374820.26 | M43: 2806252.402 | N43: 343488.2536 | O43: 27314578.42
A44: Ramo III | B44: =+tab3_2012!B44+TAB2_2012!C142+TAB2_2012!C164+TAB2_2012!C186 -> 61726.97592 | C44: =+tab3_2012!C44+TAB2_2012!D142+TAB2_2012!D164+TAB2_2012!D186 -> 2929.706647 | D44: =+tab3_2012!D44+TAB2_2012!E142+TAB2_2012!E164+TAB2_2012!E186 -> 1069236.592 | E44: =+tab3_2012!E44+TAB2_2012!F142+TAB2_2012!F164+TAB2_2012!F186 -> 1108020.789 | F44: =+tab3_2012!F44+TAB2_2012!G142+TAB2_2012!G164+TAB2_2012!G186 -> 389.347237 | G44: =+tab3_2012!G44+TAB2_2012!H142+TAB2_2012!H164+TAB2_2012!H186 -> 2242303.665 | I44: Ramo III | J44: 251852.6298 | K44: 14010.74773 | L44: 4173106.02 | M44: 3886712.021 | N44: 3374.234334 | O44: 8329056.22
A45: Ramo IV | B45: =+tab3_2012!B45+TAB2_2012!C147+TAB2_2012!C169+TAB2_2012!C191 -> 369.3284915 | C45: =+tab3_2012!C45+TAB2_2012!D147+TAB2_2012!D169+TAB2_2012!D191 -> 9.010167604 | D45: =+tab3_2012!D45+TAB2_2012!E147+TAB2_2012!E169+TAB2_2012!E191 -> 1376.498378 | E45: =+tab3_2012!E45+TAB2_2012!F147+TAB2_2012!F169+TAB2_2012!F191 -> 0 | F45: =+tab3_2012!F45+TAB2_2012!G147+TAB2_2012!G169+TAB2_2012!G191 -> 2184.926814 | G45: =+tab3_2012!G45+TAB2_2012!H147+TAB2_2012!H169+TAB2_2012!H191 -> 3939.766878 | I45: Ramo IV | J45: 828.7168878 | K45: 300.8419991 | L45: 3086.216801 | M45: 0 | N45: 2342.393843 | O45: 6558.272431
A46: Ramo V | B46: =+tab3_2012!B46+TAB2_2012!C148+TAB2_2012!C170+TAB2_2012!C192 -> 83441.90889 | C46: =+tab3_2012!C46+TAB2_2012!D148+TAB2_2012!D170+TAB2_2012!D192 -> 156235.3929 | D46: =+tab3_2012!D46+TAB2_2012!E148+TAB2_2012!E170+TAB2_2012!E192 -> 69970.08248 | E46: =+tab3_2012!E46+TAB2_2012!F148+TAB2_2012!F170+TAB2_2012!F192 -> 469.5445449 | F46: =+tab3_2012!F46+TAB2_2012!G148+TAB2_2012!G170+TAB2_2012!G192 -> 11284.55828 | G46: =+tab3_2012!G46+TAB2_2012!H148+TAB2_2012!H170+TAB2_2012!H192 -> 321401.9572 | I46: Ramo V | J46: 467124.9979 | K46: 481245.0257 | L46: 289750.5997 | M46: 7574.279953 | N46: 57356.67726 | O46: 1303052.387
A47: Ramo VI | B47: =+tab3_2012!B47+TAB2_2012!C149+TAB2_2012!C171+TAB2_2012!C193 -> 19508.68279 | C47: =+tab3_2012!C47+TAB2_2012!D149+TAB2_2012!D171+TAB2_2012!D193 -> 561614.8364 | D47: =+tab3_2012!D47+TAB2_2012!E149+TAB2_2012!E171+TAB2_2012!E193 -> 6091.515587 | E47: =+tab3_2012!E47+TAB2_2012!F149+TAB2_2012!F171+TAB2_2012!F193 -> 1324.479701 | F47: =+tab3_2012!F47+TAB2_2012!G149+TAB2_2012!G171+TAB2_2012!G193 -> 1904.730221 | G47: =+tab3_2012!G47+TAB2_2012!H149+TAB2_2012!H171+TAB2_2012!H193 -> 590444.2661 | I47: Ramo VI | J47: 68429.91255 | K47: 879822.1809 | L47: 20751.28214 | M47: 4108.594391 | N47: 2526.55675 | O47: 975638.8131
A48: Totale | B48: =+SUM(B43:B47) -> 1181915.249 | C48: 1058259.363 | D48: 6760470.373 | E48: 1760026.213 | F48: 131733.567 | G48: 10892405.05 | I48: Totale | J48: =SUM(J43:J44,J45:J47) -> 4464893.188 | K48: 2488739.694 | L48: 23861514.38 | M48: 6704647.298 | N48: 409088.1158 | O48: 37928884.11
A49: Forme di puro rischio | B49: =+tab3_2012!B49+TAB2_2012!C152+TAB2_2012!C174+TAB2_2012!C196 -> 18902.45549 | C49: =+tab3_2012!C49+TAB2_2012!D152+TAB2_2012!D174+TAB2_2012!D196 -> 11648.98326 | D49: =+tab3_2012!D49+TAB2_2012!E152+TAB2_2012!E174+TAB2_2012!E196 -> 129142.3318 | E49: =+tab3_2012!E49+TAB2_2012!F152+TAB2_2012!F174+TAB2_2012!F196 -> 1189.335722 | F49: =+tab3_2012!F49+TAB2_2012!G152+TAB2_2012!G174+TAB2_2012!G196 -> 17398.08993 | G49: =+tab3_2012!G49+TAB2_2012!H152+TAB2_2012!H174+TAB2_2012!H196 -> 178280.8568 | I49: Forme di puro rischio | J49: =+IF(ISERROR(B49+J32),0,B49+J32) -> 67747.77825 | K49: 35236.00644 | L49: 365071.6042 | M49: 3437.859435 | N49: 49161.29077 | O49: 520654.4705
A50: Altre forme | B50: =+tab3_2012!B50+TAB2_2012!C153+TAB2_2012!C151+TAB2_2012!C175+TAB2_2012!C173+TAB2_2012!C197+TAB2_2012!C195 -> 1163013.794 | C50: =+tab3_2012!C50+TAB2_2012!D153+TAB2_2012!D151+TAB2_2012!D175+TAB2_2012!D173+TAB2_2012!D197+TAB2_2012!D195 -> 1046610.38 | D50: =+tab3_2012!D50+TAB2_2012!E153+TAB2_2012!E151+TAB2_2012!E175+TAB2_2012!E173+TAB2_2012!E197+TAB2_2012!E195 -> 6631328.041 | E50: =+tab3_2012!E50+TAB2_2012!F153+TAB2_2012!F151+TAB2_2012!F175+TAB2_2012!F173+TAB2_2012!F197+TAB2_2012!F195 -> 1758836.877 | F50: =+tab3_2012!F50+TAB2_2012!G153+TAB2_2012!G151+TAB2_2012!G175+TAB2_2012!G173+TAB2_2012!G197+TAB2_2012!G195 -> 114335.4771 | G50: =+tab3_2012!G50+TAB2_2012!H153+TAB2_2012!H151+TAB2_2012!H175+TAB2_2012!H173+TAB2_2012!H197+TAB2_2012!H195 -> 10714124.2 | I50: Altre forme | J50: 4397146.41 | K50: 2453503.688 | L50: 23496442.77 | M50: 6701209.438 | N50: 359926.825 | O50: 37408229.64
A51: Totale | B51: =+SUM(B49:B50) -> 1181916.249 | C51: 1058259.363 | D51: 6760470.373 | E51: 1760026.213 | F51: 131733.567 | G51: 10892405.05 | I51: Totale | J51: =SUM(J49:J50) -> 4464894.188 | K51: 2488739.694 | L51: 23861514.38 | M51: 6704647.298 | N51: 409088.1158 | O51: 37928884.11
A53: (*) Le polizze che prevedono una rateazione del premio periodico devono essere indicate secondo l'intero importo di tariffa su base annua, comprensivo di eventuali sovrappremi e garanzie accessorie.
A56: 4°Trim.2012 | I56: =+A56 -> 4°Trim.2012
B58: Premi imponibili annualizzati(*) | J58: Premi imponibili annualizzati(*)
B59: Agenti | C59: Agenzie in Economia | D59: Sportelli bancari e postali | E59: Promotori finanziari | F59: Altre forme (inclusi Broker) | G59: Totale | J59: Agenti | K59: Agenzie in Economia | L59: Sportelli bancari e postali | M59: Promotori finanziari | N59: Altre forme (inclusi Broker) | O59: Totale
A60: Ramo I | B60: =+tab3_2012!B60+TAB2_2012!C207+TAB2_2012!C229+TAB2_2012!C251 -> 2018286.676 | C60: =+tab3_2012!C60+TAB2_2012!D207+TAB2_2012!D229+TAB2_2012!D251 -> 496870.8704 | D60: =+tab3_2012!D60+TAB2_2012!E207+TAB2_2012!E229+TAB2_2012!E251 -> 5776622.574 | E60: =+tab3_2012!E60+TAB2_2012!F207+TAB2_2012!F229+TAB2_2012!F251 -> 739274.3935 | F60: =+tab3_2012!F60+TAB2_2012!G207+TAB2_2012!G229+TAB2_2012!G251 -> 102512.0901 | G60: =+tab3_2012!G60+TAB2_2012!H207+TAB2_2012!H229+TAB2_2012!H251 -> 9133566.553 | I60: Ramo I | J60: =+IF(ISERROR(B60+J43),0,B60+J43) -> 5694943.606 | K60: 1610231.768 | L60: 25151442.83 | M60: 3545526.796 | N60: 446000.3437 | O60: 36448144.97
A61: Ramo III | B61: =+tab3_2012!B61+TAB2_2012!C208+TAB2_2012!C230+TAB2_2012!C252 -> 186575.3819 | C61: =+tab3_2012!C61+TAB2_2012!D208+TAB2_2012!D230+TAB2_2012!D252 -> 6465.768589 | D61: =+tab3_2012!D61+TAB2_2012!E208+TAB2_2012!E230+TAB2_2012!E252 -> 1435072.861 | E61: =+tab3_2012!E61+TAB2_2012!F208+TAB2_2012!F230+TAB2_2012!F252 -> 1456635.025 | F61: =+tab3_2012!F61+TAB2_2012!G208+TAB2_2012!G230+TAB2_2012!G252 -> 497.4436421 | G61: =+tab3_2012!G61+TAB2_2012!H208+TAB2_2012!H230+TAB2_2012!H252 -> 3085246.528 | I61: Ramo III | J61: 438428.0117 | K61: 20476.51632 | L61: 5608178.881 | M61: 5343347.046 | N61: 3871.677976 | O61: 11414302.75
A62: Ramo IV | B62: =+tab3_2012!B62+TAB2_2012!C213+TAB2_2012!C235+TAB2_2012!C257 -> 1143.009576 | C62: =+tab3_2012!C62+TAB2_2012!D213+TAB2_2012!D235+TAB2_2012!D257 -> 75.20138012 | D62: =+tab3_2012!D62+TAB2_2012!E213+TAB2_2012!E235+TAB2_2012!E257 -> 17098.69068 | E62: =+tab3_2012!E62+TAB2_2012!F213+TAB2_2012!F235+TAB2_2012!F257 -> 0 | F62: =+tab3_2012!F62+TAB2_2012!G213+TAB2_2012!G235+TAB2_2012!G257 -> 79.23909217 | G62: =+tab3_2012!G62+TAB2_2012!H213+TAB2_2012!H235+TAB2_2012!H257 -> 18396.17401 | I62: Ramo IV | J62: 1971.726464 | K62: 376.0433792 | L62: 20184.90748 | M62: 0 | N62: 2421.632935 | O62: 24954.44645
A63: Ramo V | B63: =+tab3_2012!B63+TAB2_2012!C214+TAB2_2012!C236+TAB2_2012!C258 -> 179496.2183 | C63: =+tab3_2012!C63+TAB2_2012!D214+TAB2_2012!D236+TAB2_2012!D258 -> 178012.0942 | D63: =+tab3_2012!D63+TAB2_2012!E214+TAB2_2012!E236+TAB2_2012!E258 -> 92192.96792 | E63: =+tab3_2012!E63+TAB2_2012!F214+TAB2_2012!F236+TAB2_2012!F258 -> 3310.150408 | F63: =+tab3_2012!F63+TAB2_2012!G214+TAB2_2012!G236+TAB2_2012!G258 -> 3120.996035 | G63: =+tab3_2012!G63+TAB2_2012!H214+TAB2_2012!H236+TAB2_2012!H258 -> 456132.466 | I63: Ramo V | J63: 646621.2162 | K63: 659257.1199 | L63: 381943.5676 | M63: 10884.43036 | N63: 60477.6733 | O63: 1759184.853
A64: Ramo VI | B64: =+tab3_2012!B64+TAB2_2012!C215+TAB2_2012!C237+TAB2_2012!C259 -> 27773.40039 | C64: =+tab3_2012!C64+TAB2_2012!D215+TAB2_2012!D237+TAB2_2012!D259 -> 118011.5208 | D64: =+tab3_2012!D64+TAB2_2012!E215+TAB2_2012!E237+TAB2_2012!E259 -> 13083.38455 | E64: =+tab3_2012!E64+TAB2_2012!F215+TAB2_2012!F237+TAB2_2012!F259 -> 5444.497356 | F64: =+tab3_2012!F64+TAB2_2012!G215+TAB2_2012!G237+TAB2_2012!G259 -> 719.1507839 | G64: =+tab3_2012!G64+TAB2_2012!H215+TAB2_2012!H237+TAB2_2012!H259 -> 165031.9519 | I64: Ramo VI | J64: 96203.31294 | K64: 997833.7017 | L64: 33834.66669 | M64: 9553.091747 | N64: 3245.707533 | O64: 1140670.765
A65: Totale | B65: =+SUM(B60:B64) -> 2413274.686 | C65: 799435.4554 | D65: 7334070.478 | E65: 2204664.066 | F65: 106928.9196 | G65: 12858373.67 | I65: Totale | J65: =SUM(J60:J61,J62:J64) -> 6878167.874 | K65: 3288175.15 | L65: 31195584.85 | M65: 8909311.364 | N65: 516017.0354 | O65: 50787257.78
A66: Forme di puro rischio | B66: =+tab3_2012!B66+TAB2_2012!C218+TAB2_2012!C240+TAB2_2012!C262 -> 26511.01705 | C66: =+tab3_2012!C66+TAB2_2012!D218+TAB2_2012!D240+TAB2_2012!D262 -> 3926.778385 | D66: =+tab3_2012!D66+TAB2_2012!E218+TAB2_2012!E240+TAB2_2012!E262 -> 115210.9735 | E66: =+tab3_2012!E66+TAB2_2012!F218+TAB2_2012!F240+TAB2_2012!F262 -> 1926.7226 | F66: =+tab3_2012!F66+TAB2_2012!G218+TAB2_2012!G240+TAB2_2012!G262 -> 13698.94107 | G66: =+tab3_2012!G66+TAB2_2012!H218+TAB2_2012!H240+TAB2_2012!H262 -> 161274.4691 | I66: Forme di puro rischio | J66: =+IF(ISERROR(B66+J49),0,B66+J49) -> 94258.79529 | K66: 39162.78483 | L66: 480282.5777 | M66: 5364.582035 | N66: 62860.23184 | O66: 681928.9397
A67: Altre forme | B67: =+tab3_2012!B67+TAB2_2012!C217+TAB2_2012!C219+TAB2_2012!C239+TAB2_2012!C241+TAB2_2012!C261+TAB2_2012!C263 -> 2386763.669 | C67: =+tab3_2012!C67+TAB2_2012!D217+TAB2_2012!D219+TAB2_2012!D239+TAB2_2012!D241+TAB2_2012!D261+TAB2_2012!D263 -> 795508.677 | D67: =+tab3_2012!D67+TAB2_2012!E217+TAB2_2012!E219+TAB2_2012!E239+TAB2_2012!E241+TAB2_2012!E261+TAB2_2012!E263 -> 7218859.504 | E67: =+tab3_2012!E67+TAB2_2012!F217+TAB2_2012!F219+TAB2_2012!F239+TAB2_2012!F241+TAB2_2012!F261+TAB2_2012!F263 -> 2202737.344 | F67: =+tab3_2012!F67+TAB2_2012!G217+TAB2_2012!G219+TAB2_2012!G239+TAB2_2012!G241+TAB2_2012!G261+TAB2_2012!G263 -> 93229.97856 | G67: =+tab3_2012!G67+TAB2_2012!H217+TAB2_2012!H219+TAB2_2012!H239+TAB2_2012!H241+TAB2_2012!H261+TAB2_2012!H263 -> 12697099.2 | I67: Altre forme | J67: 6783910.078 | K67: 3249012.365 | L67: 30715302.28 | M67: 8903946.782 | N67: 453156.8036 | O67: 50105328.84
A68: Totale | B68: =+SUM(B66:B67) -> 2413274.686 | C68: 799435.4554 | D68: 7334070.478 | E68: 2204664.066 | F68: 106928.9196 | G68: 12858373.67 | I68: Totale | J68: =SUM(J66:J67) -> 6878168.874 | K68: 3288175.15 | L68: 31195584.85 | M68: 8909311.364 | N68: 516017.0354 | O68: 50787257.78
A70: (*) Le polizze che prevedono una rateazione del premio periodico devono essere indicate secondo l'intero importo di tariffa su base annua, comprensivo di eventuali sovrappremi e garanzie accessorie.
B72: =+TAB3_2014!B65+TAB2_2014!C260+TAB2_2014!C238+TAB2_2014!C216 -> 2978698.925 | C72: =+TAB3_2014!C65+TAB2_2014!D260+TAB2_2014!D238+TAB2_2014!D216 -> 1136773.742 | D72: =+TAB3_2014!D65+TAB2_2014!E260+TAB2_2014!E238+TAB2_2014!E216 -> 13972712.47 | E72: =+TAB3_2014!E65+TAB2_2014!F260+TAB2_2014!F238+TAB2_2014!F216 -> 4650788.959 | F72: =+TAB3_2014!F65+TAB2_2014!G260+TAB2_2014!G238+TAB2_2014!G216 -> 224352.1366 | G72: =+TAB3_2014!G65+TAB2_2014!H260+TAB2_2014!H238+TAB2_2014!H216 -> 22963326.4 | J72: =+J51+TAB3_2014!B68+TAB2_2014!C264+TAB2_2014!C242+TAB2_2014!C220 -> 7443593.113 | K72: =+K51+TAB3_2014!C68+TAB2_2014!D264+TAB2_2014!D242+TAB2_2014!D220 -> 3625513.437 | L72: =+L51+TAB3_2014!D68+TAB2_2014!E264+TAB2_2014!E242+TAB2_2014!E220 -> 37834226.84 | M72: =+M51+TAB3_2014!E68+TAB2_2014!F264+TAB2_2014!F242+TAB2_2014!F220 -> 11355436.26 | N72: =+N51+TAB3_2014!F68+TAB2_2014!G264+TAB2_2014!G242+TAB2_2014!G220 -> 633440.2524 | O72: =+O51+TAB3_2014!G68+TAB2_2014!H264+TAB2_2014!H242+TAB2_2014!H220 -> 60892210.51

Sheet TAB1_2013 (hidden)
A1: Nuova produzione Vita emessa nel 2013
A2: Settore polizze "individuali"
A3: Premi del lavoro diretto - Attività svolta da imprese nazionali e da rappresentanze in Italia di imprese extra U.E. (importi in MIGLIAIA di Euro)
A4: Dato mensile: | J4: Dato cumulato da inizio anno:
A5: Gennaio | J5: =+A5 -> Gennaio
C7: Premi imponibili annualizzati(*) | L7: Premi imponibili annualizzati(*)
B8: Numero polizze/Adesioni | C8: Agenti | D8: Agenzie in Economia | E8: Sportelli bancari e postali | F8: Promotori finanziari | G8: Altre forme (inclusi Broker) | H8: Totale | K8: Numero polizze/Adesioni | L8: Agenti | M8: Agenzie in Economia | N8: Sportelli bancari e postali | O8: Promotori finanziari | P8: Altre forme (inclusi Broker) | Q8: Totale
A9: Annui | B9: 60959 | C9: 17000.52704 | D9: 33562.7311 | E9: 26361.42473 | F9: 3115.295542 | G9: 365.2691529 | H9: 80405.24756 | J9: =+A9 -> Annui | K9: =+IF(ISERROR(B9),0,B9) -> 60959 | L9: 17000.52704 | M9: 33562.7311 | N9: 26361.42473 | O9: 3115.295542 | P9: 365.2691529 | Q9: 80405.24756 | S9: =+Q9 -> 80405.24756
A10: Unici | B10: 131217 | C10: 415869.4383 | D10: 87876.75303 | E10: 3379715.383 | F10: 679675.8272 | G10: 8879.542997 | H10: 4572016.945 | J10: =+A10 -> Unici | K10: 131217 | L10: 415869.4383 | M10: 87876.75303 | N10: 3379715.383 | O10: 679675.8272 | P10: 8879.542997 | Q10: 4572016.945 | S10: =+Q10/10 -> 457201.6945
A11: Ricorrenti | B11: 73585 | C11: 54927.47396 | D11: 11499.47352 | E11: 176521.0716 | F11: 5491.046142 | G11: 2097.545601 | H11: 250536.6109 | J11: =+A11 -> Ricorrenti | K11: 73585 | L11: 54927.47396 | M11: 11499.47352 | N11: 176521.0716 | O11: 5491.046142 | P11: 2097.545601 | Q11: 250536.6109 | S11: =+Q11 -> 250536.6109
A12: Totale | B12: 265761 | C12: 487797.4393 | D12: 132938.9576 | E12: 3582597.88 | F12: 688282.1689 | G12: 11342.35775 | H12: 4902958.803 | J12: =+A12 -> Totale | K12: =SUM(K9:K11) -> 265761 | L12: 487797.4393 | M12: 132938.9576 | N12: 3582597.88 | O12: 688282.1689 | P12: 11342.35775 | Q12: 4902958.803 | S12: =+SUM(S9:S11) -> 788143.5529
A14: (*) Le polizze che prevedono una rateazione del premio periodico devono essere indicate secondo l'intero importo di tariffa su base annua, comprensivo di eventuali sovrappremi e garanzie accessorie.
A17: Febbraio | B17: Febbraio | J17: =+A17 -> Febbraio
L19: Premi imponibili annualizzati(*)
B20: Numero polizze/Adesioni | C20: Agenti | D20: Agenzie in Economia | E20: Sportelli bancari e postali | F20: Promotori finanziari | G20: Altre forme (inclusi Broker) | H20: Totale | K20: Numero polizze/Adesioni | L20: Agenti | M20: Agenzie in Economia | N20: Sportelli bancari e postali | O20: Promotori finanziari | P20: Altre forme (inclusi Broker) | Q20: Totale
A21: Annui | B21: 59244 | C21: 18881.57621 | D21: 29720.18255 | E21: 29216.80755 | F21: 1626.442731 | G21: 193.5286356 | H21: 79638.53768 | J21: Annui | K21: =+IF(ISERROR(B21+K9),0,B21+K9) -> 120203 | L21: 35882.10325 | M21: 63282.91364 | N21: 55578.23228 | O21: 4741.738273 | P21: 558.7977885 | Q21: 160043.7852 | S21: =+Q21 -> 160043.7852
A22: Unici | B22: 133049 | C22: 463228.3373 | D22: 89642.86513 | E22: 3236695.237 | F22: 785508.6663 | G22: 14118.56575 | H22: 4589193.671 | J22: Unici | K22: 264266 | L22: 879097.7757 | M22: 177519.6182 | N22: 6616410.62 | O22: 1465184.494 | P22: 22998.10875 | Q22: 9161210.616 | S22: =+Q22/10 -> 916121.0616
A23: Ricorrenti | B23: 70412 | C23: 53252.46245 | D23: 11196.58417 | E23: 216087.2559 | F23: 4834.204935 | G23: 1477.034613 | H23: 286847.5421 | J23: Ricorrenti | K23: 143997 | L23: 108179.9364 | M23: 22696.0577 | N23: 392608.3276 | O23: 10325.25108 | P23: 3574.580214 | Q23: 537384.153 | S23: =+Q23 -> 537384.153
A24: Totale | B24: 262705 | C24: 535362.376 | D24: 130559.6318 | E24: 3481999.3 | F24: 791969.314 | G24: 15789.129 | H24: 4955679.751 | J24: Totale | K24: =SUM(K21:K23) -> 528466 | L24: 1023159.815 | M24: 263498.5895 | N24: 7064597.18 | O24: 1480251.483 | P24: 27131.48675 | Q24: 9858638.554 | S24: =+SUM(S21:S23) -> 1613549
L25: =+L24/Q24 -> 0.1037830741 | M25: =+M24/Q24 -> 0.02672768537
A26: (*) Le polizze che prevedono una rateazione del premio periodico devono essere indicate secondo l'intero importo di tariffa su base annua, comprensivo di eventuali sovrappremi e garanzie accessorie.
A29: Marzo | B29: Marzo | J29: =+A29 -> Marzo
L31: Premi imponibili annualizzati(*)
